Workbook

Sheet Feuil1 (hidden)
C1: FC1 40 | D1: FC1 44 | E1: FC1 48 | F1: FC1 53 | G1: FC1 58 | H1: FC1 63 | I1: FC1 69 | J1: FC1 +69 | K1: FC2 44 | L1: FC2 48 | M1: FC2 53 | N1: FC2 58 | O1: FC2 63 | P1: FC2 69 | Q1: FC2 +69 | R1: FJ48 | S1: FJ53 | T1: FJ58 | U1: FJ63 | V1: FJ69 | W1: FJ75 | X1: FJ+75 | Y1: FS48 | Z1: FS53 | AA1: FS58 | AB1: FS63 | AC1: FS69 | AD1: FS75 | AE1: FS+75 | AF1: C1 45 | AG1: C1 50 | AH1: C1 56 | AI1: C1 62 | AJ1: C1 69 | AK1: C1 77 | AL1: C1 85 | AM1: C1 94 | AN1: C1 +94 | AO1: C2 50 | AP1: C2 56 | AQ1: C2 62 | AR1: C2 69 | AS1: C2 77 | AT1: C2 85 | AU1: C2 94 | AV1: C2 +94 | AW1: J56 | AX1: J62 | AY1: J69 | AZ1: J77 | BA1: J85 | BB1: J94 | BC1: J105 | BD1: J+105 | BE1: S56 | BF1: S62 | BG1: S69 | BH1: S77 | BI1: S85 | BJ1: S94 | BK1: S105 | BL1: S+105
B2: DEBUTANT | C2: 20 | D2: 25 | E2: 25 | F2: 35 | G2: 40 | H2: 45 | I2: 50 | J2: 60 | K2: 30 | L2: 35 | M2: 45 | N2: 50 | O2: 55 | P2: 60 | Q2: 70 | R2: 45 | S2: 55 | T2: 60 | U2: 65 | V2: 70 | W2: 80 | X2: 90 | Y2: 55 | Z2: 65 | AA2: 70 | AB2: 75 | AC2: 80 | AD2: 95 | AE2: 100 | AF2: 35 | AG2: 40 | AH2: 50 | AI2: 75 | AJ2: 85 | AK2: 90 | AL2: 100 | AM2: 110 | AN2: 120 | AO2: 45 | AP2: 65 | AQ2: 85 | AR2: 95 | AS2: 110 | AT2: 120 | AU2: 125 | AV2: 135 | AW2: 80 | AX2: 90 | AY2: 110 | AZ2: 130 | BA2: 145 | BB2: 150 | BC2: 155 | BD2: 165 | BE2: 95 | BF2: 120 | BG2: 130 | BH2: 150 | BI2: 165 | BJ2: 170 | BK2: 175 | BL2: 185
B3: DEPARTEMENTAL | C3: 25 | D3: 35 | E3: 35 | F3: 45 | G3: 50 | H3: 55 | I3: 60 | J3: 70 | K3: 40 | L3: 45 | M3: 55 | N3: 60 | O3: 65 | P3: 70 | Q3: 80 | R3: 55 | S3: 65 | T3: 70 | U3: 75 | V3: 80 | W3: 95 | X3: 100 | Y3: 65 | Z3: 75 | AA3: 80 | AB3: 85 | AC3: 90 | AD3: 105 | AE3: 110 | AF3: 50 | AG3: 55 | AH3: 70 | AI3: 95 | AJ3: 105 | AK3: 110 | AL3: 120 | AM3: 130 | AN3: 140 | AO3: 65 | AP3: 85 | AQ3: 105 | AR3: 115 | AS3: 130 | AT3: 140 | AU3: 145 | AV3: 155 | AW3: 100 | AX3: 120 | AY3: 130 | AZ3: 150 | BA3: 165 | BB3: 170 | BC3: 175 | BD3: 185 | BE3: 115 | BF3: 135 | BG3: 150 | BH3: 170 | BI3: 185 | BJ3: 190 | BK3: 195 | BL3: 205
B4: REGIONAL | C4: 35 | D4: 40 | E4: 45 | F4: 55 | G4: 60 | H4: 65 | I4: 70 | J4: 80 | K4: 50 | L4: 55 | M4: 65 | N4: 70 | O4: 75 | P4: 80 | Q4: 95 | R4: 65 | S4: 75 | T4: 80 | U4: 85 | V4: 90 | W4: 105 | X4: 110 | Y4: 75 | Z4: 85 | AA4: 90 | AB4: 95 | AC4: 105 | AD4: 115 | AE4: 125 | AF4: 60 | AG4: 65 | AH4: 85 | AI4: 105 | AJ4: 115 | AK4: 130 | AL4: 140 | AM4: 145 | AN4: 155 | AO4: 80 | AP4: 100 | AQ4: 120 | AR4: 130 | AS4: 150 | AT4: 160 | AU4: 165 | AV4: 175 | AW4: 115 | AX4: 135 | AY4: 150 | AZ4: 170 | BA4: 185 | BB4: 190 | BC4: 195 | BD4: 205 | BE4: 130 | BF4: 150 | BG4: 170 | BH4: 190 | BI4: 205 | BJ4: 215 | BK4: 220 | BL4: 225
B5: INTERREGIONAL | C5: 45 | D5: 50 | E5: 55 | F5: 65 | G5: 70 | H5: 75 | I5: 80 | J5: 95 | K5: 60 | L5: 65 | M5: 75 | N5: 80 | O5: 85 | P5: 90 | Q5: 105 | R5: 75 | S5: 85 | T5: 90 | U5: 95 | V5: 105 | W5: 115 | X5: 125 | Y5: 85 | Z5: 95 | AA5: 100 | AB5: 110 | AC5: 120 | AD5: 130 | AE5: 140 | AF5: 75 | AG5: 80 | AH5: 100 | AI5: 120 | AJ5: 130 | AK5: 150 | AL5: 160 | AM5: 165 | AN5: 175 | AO5: 95 | AP5: 115 | AQ5: 135 | AR5: 150 | AS5: 170 | AT5: 180 | AU5: 185 | AV5: 195 | AW5: 130 | AX5: 150 | AY5: 170 | AZ5: 190 | BA5: 205 | BB5: 215 | BC5: 220 | BD5: 225 | BE5: 145 | BF5: 170 | BG5: 190 | BH5: 210 | BI5: 225 | BJ5: 235 | BK5: 245 | BL5: 250
B6: FEDERAL | C6: 50 | D6: 60 | E6: 65 | F6: 75 | G6: 80 | H6: 85 | I6: 90 | J6: 105 | K6: 70 | L6: 75 | M6: 85 | N6: 90 | O6: 95 | P6: 105 | Q6: 115 | R6: 85 | S6: 95 | T6: 100 | U6: 110 | V6: 120 | W6: 130 | X6: 140 | Y6: 95 | Z6: 105 | AA6: 115 | AB6: 125 | AC6: 135 | AD6: 145 | AE6: 150 | AF6: 90 | AG6: 95 | AH6: 115 | AI6: 135 | AJ6: 150 | AK6: 170 | AL6: 180 | AM6: 185 | AN6: 195 | AO6: 110 | AP6: 130 | AQ6: 150 | AR6: 170 | AS6: 185 | AT6: 200 | AU6: 210 | AV6: 220 | AW6: 145 | AX6: 170 | AY6: 190 | AZ6: 210 | BA6: 225 | BB6: 235 | BC6: 245 | BD6: 250 | BE6: 170 | BF6: 190 | BG6: 220 | BH6: 240 | BI6: 250 | BJ6: 260 | BK6: 270 | BL6: 280
B7: NATIONAL | C7: 60 | D7: 70 | E7: 75 | F7: 85 | G7: 90 | H7: 95 | I7: 105 | J7: 115 | K7: 80 | L7: 85 | M7: 95 | N7: 100 | O7: 110 | P7: 120 | Q7: 130 | R7: 95 | S7: 105 | T7: 115 | U7: 125 | V7: 135 | W7: 145 | X7: 150 | Y7: 110 | Z7: 120 | AA7: 130 | AB7: 140 | AC7: 150 | AD7: 160 | AE7: 170 | AF7: 105 | AG7: 110 | AH7: 130 | AI7: 150 | AJ7: 170 | AK7: 185 | AL7: 200 | AM7: 210 | AN7: 220 | AO7: 120 | AP7: 145 | AQ7: 170 | AR7: 190 | AS7: 200 | AT7: 220 | AU7: 225 | AV7: 235 | AW7: 170 | AX7: 190 | AY7: 220 | AZ7: 240 | BA7: 250 | BB7: 260 | BC7: 270 | BD7: 280 | BE7: 190 | BF7: 210 | BG7: 240 | BH7: 265 | BI7: 280 | BJ7: 290 | BK7: 300 | BL7: 310
B8: INTERNATIONAL B | C8: 70 | D8: 80 | E8: 85 | F8: 95 | G8: 100 | H8: 110 | I8: 120 | J8: 130 | K8: 90 | L8: 95 | M8: 105 | N8: 115 | O8: 125 | P8: 135 | Q8: 145 | R8: 110 | S8: 120 | T8: 130 | U8: 140 | V8: 150 | W8: 160 | X8: 170 | Y8: 125 | Z8: 140 | AA8: 150 | AB8: 160 | AC8: 170 | AD8: 180 | AE8: 190 | AF8: 115 | AG8: 120 | AH8: 145 | AI8: 170 | AJ8: 190 | AK8: 200 | AL8: 220 | AM8: 225 | AN8: 235 | AO8: 135 | AP8: 170 | AQ8: 190 | AR8: 210 | AS8: 220 | AT8: 240 | AU8: 250 | AV8: 260 | AW8: 190 | AX8: 210 | AY8: 240 | AZ8: 260 | BA8: 280 | BB8: 290 | BC8: 300 | BD8: 310 | BE8: 210 | BF8: 230 | BG8: 260 | BH8: 285 | BI8: 300 | BJ8: 310 | BK8: 325 | BL8: 330
B9: INTERNATIONAL A | C9: 80 | D9: 90 | E9: 95 | F9: 105 | G9: 115 | H9: 125 | I9: 135 | J9: 145 | K9: 100 | L9: 110 | M9: 120 | N9: 130 | O9: 140 | P9: 150 | Q9: 160 | R9: 125 | S9: 135 | T9: 150 | U9: 160 | V9: 170 | W9: 180 | X9: 190 | Y9: 140 | Z9: 160 | AA9: 170 | AB9: 180 | AC9: 190 | AD9: 195 | AE9: 210 | AF9: 130 | AG9: 135 | AH9: 170 | AI9: 190 | AJ9: 210 | AK9: 220 | AL9: 240 | AM9: 250 | AN9: 260 | AO9: 150 | AP9: 190 | AQ9: 210 | AR9: 230 | AS9: 250 | AT9: 260 | AU9: 280 | AV9: 280 | AW9: 210 | AX9: 230 | AY9: 250 | AZ9: 285 | BA9: 300 | BB9: 310 | BC9: 325 | BD9: 330 | BE9: 225 | BF9: 255 | BG9: 275 | BH9: 305 | BI9: 325 | BJ9: 330 | BK9: 345 | BL9: 355
B10: OLYMPIQUE | C10: 1000 | D10: 1000 | E10: 1000 | F10: 1000 | G10: 1000 | H10: 1000 | I10: 1000 | J10: 1000 | K10: 1000 | L10: 1000 | M10: 1000 | N10: 1000 | O10: 1000 | P10: 1000 | Q10: 1000 | R10: 1000 | S10: 1000 | T10: 1000 | U10: 1000 | V10: 1000 | W10: 1000 | X10: 1000 | Y10: 155 | Z10: 175 | AA10: 190 | AB10: 200 | AC10: 205 | AD10: 210 | AE10: 225 | AF10: 1000 | AG10: 1000 | AH10: 1000 | AI10: 1000 | AJ10: 1000 | AK10: 1000 | AL10: 10000 | AM10: 1000 | AN10: 1000 | AO10: 1000 | AP10: 1000 | AQ10: 1000 | AR10: 1000 | AS10: 1000 | AT10: 10000 | AU10: 1000 | AV10: 1000 | AW10: 1000 | AX10: 1000 | AY10: 1000 | AZ10: 10000 | BA10: 1000 | BB10: 1000 | BC10: 1000 | BD10: 10000 | BE10: 240 | BF10: 270 | BG10: 290 | BH10: 320 | BI10: 345 | BJ10: 355 | BK10: 365 | BL10: 375
B11: MINIME | C11: CADET | D11: CADET | E11: JUNIOR | F11: SENIOR | H11: MINIME | I11: CADETTE | J11: CADETTE | K11: JUNIOR | L11: SENIOR
A12: 20.01 | B12: NON | C12: C1 45 | D12: C2 50 | E12: J56 | F12: S56 | G12: 20.01 | H12: NON | I12: FC1 40 | J12: FC2 44 | K12: FJ48 | L12: FS48
A13: 34.01 | B13: NON | C13: C1 45 | D13: C2 50 | E13: J56 | F13: S56 | G13: 30.01 | H13: NON | I13: FC1 40 | J13: FC2 44 | K13: FJ48 | L13: FS48
A14: 38.01 | B14: NON | C14: C1 45 | D14: C2 50 | E14: J56 | F14: S56 | G14: 35.01 | H14: NON | I14: FC1 40 | J14: FC2 44 | K14: FJ48 | L14: FS48
A15: 40.01 | B15: NON | C15: C1 45 | D15: C2 50 | E15: J56 | F15: S56 | G15: 36.01 | H15: NON | I15: FC1 40 | J15: FC2 44 | K15: FJ48 | L15: FS48
A16: 45.01 | B16: NON | C16: C1 50 | D16: C2 50 | E16: J56 | F16: S56 | G16: 40.01 | H16: NON | I16: FC1 44 | J16: FC2 44 | K16: FJ48 | L16: FS48
A17: 50.01 | B17: NON | C17: C1 56 | D17: C2 56 | E17: J56 | F17: S56 | G17: 44.01 | H17: NON | I17: FC1 48 | J17: FC2 48 | K17: FJ48 | L17: FS48
A18: 52.05 | B18: NON | C18: C1 56 | D18: C2 56 | E18: J56 | F18: S56 | G18: 48.01 | H18: NON | I18: FC1 53 | J18: FC2 53 | K18: FJ53 | L18: FS53
A19: 56.01 | B19: NON | C19: C1 62 | D19: C2 62 | E19: J62 | F19: S62 | G19: 53.01 | H19: NON | I19: FC1 58 | J19: FC2 58 | K19: FJ58 | L19: FS58
A20: 62.01 | B20: NON | C20: C1 69 | D20: C2 69 | E20: J69 | F20: S69 | G20: 58.01 | H20: NON | I20: FC1 63 | J20: FC2 63 | K20: FJ63 | L20: FS63
A21: 69.01 | B21: NON | C21: C1 77 | D21: C2 77 | E21: J77 | F21: S77 | G21: 63.01 | H21: NON | I21: FC1 69 | J21: FC2 69 | K21: FJ69 | L21: FS69
A22: 77.01 | B22: NON | C22: C1 85 | D22: C2 85 | E22: J85 | F22: S85 | G22: 69.01 | H22: NON | I22: FC1 +69 | J22: FC2 +69 | K22: FJ75 | L22: FS75
A23: 85.01 | B23: NON | C23: C1 94 | D23: C2 94 | E23: J94 | F23: S94 | G23: 75.01 | H23: NON | I23: FC1 +69 | J23: FC2 +69 | K23: FJ+75 | L23: FS+75
A24: 94.01 | B24: NON | C24: C1 +94 | D24: C2 +94 | E24: J105 | F24: S105 | G24: 110 | H24: NON | I24: FC1 +69 | J24: FC2 +69 | K24: FJ+75 | L24: FS+75
A25: 105.01 | B25: NON | C25: C1 +94 | D25: C2 +94 | E25: J+105 | F25: S+105 | G25: 140 | H25: NON | I25: FC1 +69 | J25: FC2 +69 | K25: FJ+75 | L25: FS+75
A26: 110 | B26: NON | C26: C1 +94 | D26: C2 +94 | E26: J+105 | F26: S+105
A27: 120 | B27: NON | C27: C1 +94 | D27: C2 +94 | E27: J+105 | F27: S+105
A28: 130 | B28: NON | C28: C1 +94 | D28: C2 +94 | E28: J+105 | F28: S+105
A29: 140 | B29: NON | C29: C1 +94 | D29: C2 +94 | E29: J+105 | F29: S+105

Sheet FEMININES
F1: EPREUVE : | G1: CHAMPIONNAT INTERREGIONAL D'AUTOMNE | Q1: DATE : | S1: 2014-11-15
G2: CLASSEMENT NATIONAL des ZONES
A4: SEXE | B4: ZONE | C4: REG. | D4: CL. | E4: LICENCE | F4: NOMS | G4: Prénoms | H4: AN | I4: POIDS | J4: CLUB | K4: NAT | L4: 1 | M4: 2 | N4: 3 | O4: ARR | P4: 1 | Q4: 2 | R4: 3 | S4: EP-J | T4: Total | U4: Points | V4: SERIE | X4: Catég | Y4: IWF | AB4: DEB | AC4: DEP + | AD4: REG + | AE4: IRG + | AF4: FED + | AG4: NAT + | AH4: INTB + | AI4: INTA + | AJ4: OLY +
A6: F | B6: NE | C6: LOR | D6: 1 | E6: 191333 | F6: DUCHAUFFOUR | G6: Mélanie | H6: 2001 | I6: 31.4 | J6: H.Valleroy-Auboué | K6: F | L6: -20 | M6: -20 | N6: 22 | O6: =IF(H6="","",IF(MAXA(L6:N6)<=0,0,MAXA(L6:N6))) -> 22 | P6: 28 | Q6: 30 | R6: 31 | S6: =IF(H6="","",IF(MAXA(P6:R6)<=0,0,MAXA(P6:R6))) -> 31 | T6: =IF(H6="","",IF(OR(O6=0,S6=0),0,O6+S6)) -> 53 | U6: =T6-I6 -> 21.6 | V6: =IF(H6="","",AQ6) -> FED + | W6: =IF(AJ6>=0,AJ6,IF(AI6>=0,AI6,IF(AH6>=0,AH6,IF(AG6>=0,AG6,IF(AF6>=0,AF6,IF(AE6>=0,AE6,IF(AD6>=0,AD6,IF(AC6>=0,AC6,AB6)))))))) -> 3 | X6: =IF(I6="","",IF(A6="H",IF(OR(H6="SEN",H6<1995),VLOOKUP(I6,Feuil1!$A$11:$F$29,6),IF(AND(H6>1994,H6<1998),VLOOKUP(I6,Feuil1!$A$11:$F$29,5),IF(AND(H6>1997,H6<2000),VLOOKUP(I6,Feuil1!$A$11:$F$29,4),IF(AND(H6>1999,H6<2002),VLOOKUP(I6,Feuil1!$A$11:$F$29,3),VLOOKUP(I6,Feuil1!$A$11:$F$29,2))))),IF(OR(H6="SEN",H6<1995),VLOOKUP(I6,Feuil1!$G$11:$L$25,6),IF(AND(H6>1994,H6<1998),VLOOKUP(I6,Feuil1!$G$11:$L$25,5),IF(AND(H6>1997,H6<2000),VLOOKUP(I6,Feuil1!$G$11:$L$25,4),IF(AND(H6>1999,H6<2002),VLOOKUP(I6,Feuil1!$G$11:$L$25,3),VLOOKUP(I6,Feuil1!$G$11:$L$25,2))))))) -> FC1 40 | Y6: =IF(I6="","",IF(A6="H",10^(0.794358141*LOG(I6/174.393)^2)*T6,IF(A6="F",10^(0.89726074*LOG(I6/148.026)^2)*T6,""))) -> 135.258512 | AB6: =T6-HLOOKUP(X6,Feuil1!$C$1:$BL$10,2,FALSE) -> 33 | AC6: =T6-HLOOKUP(X6,Feuil1!$C$1:$BL$10,3,FALSE) -> 28 | AD6: =T6-HLOOKUP(X6,Feuil1!$C$1:$BL$10,4,FALSE) -> 18 | AE6: =T6-HLOOKUP(X6,Feuil1!$C$1:$BL$10,5,FALSE) -> 8 | AF6: =T6-HLOOKUP(X6,Feuil1!$C$1:$BL$10,6,FALSE) -> 3 | AG6: =T6-HLOOKUP(X6,Feuil1!$C$1:$BL$10,7,FALSE) -> -7 | AH6: =T6-HLOOKUP(X6,Feuil1!$C$1:$BL$10,8,FALSE) -> -17 | AI6: =T6-HLOOKUP(X6,Feuil1!$C$1:$BL$10,9,FALSE) -> -27 | AJ6: =T6-HLOOKUP(X6,Feuil1!$C$1:$BL$10,10,FALSE) -> -947 | AQ6: =IF(AJ6>=0,$AJ$4,IF(AI6>=0,$AI$4,IF(AH6>=0,$AH$4,IF(AG6>=0,$AG$4,IF(AF6>=0,$AF$4,IF(AE6>=0,$AE$4,IF(AD6>=0,$AD$4,IF(AC6>=0,$AC$4,$AB$4)))))))) -> FED +
A8: F | B8: NE | C8: ALS | D8: 1 | E8: 244336 | F8: CHRISTOPHEL | G8: Marie | H8: 2000 | I8: 43.5 | J8: ASPTT Strasbourg | K8: F | L8: 32 | M8: 35 | N8: 38 | O8: =IF(H8="","",IF(MAXA(L8:N8)<=0,0,MAXA(L8:N8))) -> 38 | P8: 42 | Q8: 45 | R8: 48 | S8: =IF(H8="","",IF(MAXA(P8:R8)<=0,0,MAXA(P8:R8))) -> 48 | T8: =IF(H8="","",IF(OR(O8=0,S8=0),0,O8+S8)) -> 86 | U8: =T8-I8 -> 42.5 | V8: =IF(H8="","",AQ8) -> INTB + | W8: =IF(AJ8>=0,AJ8,IF(AI8>=0,AI8,IF(AH8>=0,AH8,IF(AG8>=0,AG8,IF(AF8>=0,AF8,IF(AE8>=0,AE8,IF(AD8>=0,AD8,IF(AC8>=0,AC8,AB8)))))))) -> 6 | X8: =IF(I8="","",IF(A8="H",IF(OR(H8="SEN",H8<1995),VLOOKUP(I8,Feuil1!$A$11:$F$29,6),IF(AND(H8>1994,H8<1998),VLOOKUP(I8,Feuil1!$A$11:$F$29,5),IF(AND(H8>1997,H8<2000),VLOOKUP(I8,Feuil1!$A$11:$F$29,4),IF(AND(H8>1999,H8<2002),VLOOKUP(I8,Feuil1!$A$11:$F$29,3),VLOOKUP(I8,Feuil1!$A$11:$F$29,2))))),IF(OR(H8="SEN",H8<1995),VLOOKUP(I8,Feuil1!$G$11:$L$25,6),IF(AND(H8>1994,H8<1998),VLOOKUP(I8,Feuil1!$G$11:$L$25,5),IF(AND(H8>1997,H8<2000),VLOOKUP(I8,Feuil1!$G$11:$L$25,4),IF(AND(H8>1999,H8<2002),VLOOKUP(I8,Feuil1!$G$11:$L$25,3),VLOOKUP(I8,Feuil1!$G$11:$L$25,2))))))) -> FC1 44 | Y8: =IF(I8="","",IF(A8="H",10^(0.794358141*LOG(I8/174.393)^2)*T8,IF(A8="F",10^(0.89726074*LOG(I8/148.026)^2)*T8,""))) -> 154.2767197 | AB8: =T8-HLOOKUP(X8,Feuil1!$C$1:$BL$10,2,FALSE) -> 61 | AC8: =T8-HLOOKUP(X8,Feuil1!$C$1:$BL$10,3,FALSE) -> 51 | AD8: =T8-HLOOKUP(X8,Feuil1!$C$1:$BL$10,4,FALSE) -> 46 | AE8: =T8-HLOOKUP(X8,Feuil1!$C$1:$BL$10,5,FALSE) -> 36 | AF8: =T8-HLOOKUP(X8,Feuil1!$C$1:$BL$10,6,FALSE) -> 26 | AG8: =T8-HLOOKUP(X8,Feuil1!$C$1:$BL$10,7,FALSE) -> 16 | AH8: =T8-HLOOKUP(X8,Feuil1!$C$1:$BL$10,8,FALSE) -> 6 | AI8: =T8-HLOOKUP(X8,Feuil1!$C$1:$BL$10,9,FALSE) -> -4 | AJ8: =T8-HLOOKUP(X8,Feuil1!$C$1:$BL$10,10,FALSE) -> -914 | AQ8: =IF(AJ8>=0,$AJ$4,IF(AI8>=0,$AI$4,IF(AH8>=0,$AH$4,IF(AG8>=0,$AG$4,IF(AF8>=0,$AF$4,IF(AE8>=0,$AE$4,IF(AD8>=0,$AD$4,IF(AC8>=0,$AC$4,$AB$4)))))))) -> INTB +
A9: F | B9: ZCO | C9: BNO | D9: 2 | E9: 379232 | F9: HEUZE | G9: Emma | H9: 2000 | I9: 43.49 | J9: CA Evron 53 | K9: F | L9: 26 | M9: -28 | N9: 28 | O9: =IF(H9="","",IF(MAXA(L9:N9)<=0,0,MAXA(L9:N9))) -> 28 | P9: 35 | Q9: 38 | R9: 40 | S9: =IF(H9="","",IF(MAXA(P9:R9)<=0,0,MAXA(P9:R9))) -> 40 | T9: =IF(H9="","",IF(OR(O9=0,S9=0),0,O9+S9)) -> 68 | U9: 24.51 | V9: =IF(H9="","",AQ9) -> FED + | W9: =IF(AJ9>=0,AJ9,IF(AI9>=0,AI9,IF(AH9>=0,AH9,IF(AG9>=0,AG9,IF(AF9>=0,AF9,IF(AE9>=0,AE9,IF(AD9>=0,AD9,IF(AC9>=0,AC9,AB9)))))))) -> 8 | X9: =IF(I9="","",IF(A9="H",IF(OR(H9="SEN",H9<1995),VLOOKUP(I9,Feuil1!$A$11:$F$29,6),IF(AND(H9>1994,H9<1998),VLOOKUP(I9,Feuil1!$A$11:$F$29,5),IF(AND(H9>1997,H9<2000),VLOOKUP(I9,Feuil1!$A$11:$F$29,4),IF(AND(H9>1999,H9<2002),VLOOKUP(I9,Feuil1!$A$11:$F$29,3),VLOOKUP(I9,Feuil1!$A$11:$F$29,2))))),IF(OR(H9="SEN",H9<1995),VLOOKUP(I9,Feuil1!$G$11:$L$25,6),IF(AND(H9>1994,H9<1998),VLOOKUP(I9,Feuil1!$G$11:$L$25,5),IF(AND(H9>1997,H9<2000),VLOOKUP(I9,Feuil1!$G$11:$L$25,4),IF(AND(H9>1999,H9<2002),VLOOKUP(I9,Feuil1!$G$11:$L$25,3),VLOOKUP(I9,Feuil1!$G$11:$L$25,2))))))) -> FC1 44 | Y9: =IF(I9="","",IF(A9="H",10^(0.794358141*LOG(I9/174.393)^2)*T9,IF(A9="F",10^(0.89726074*LOG(I9/148.026)^2)*T9,""))) -> 122.0130165 | AB9: =T9-HLOOKUP(X9,Feuil1!$C$1:$BL$10,2,FALSE) -> 43 | AC9: =T9-HLOOKUP(X9,Feuil1!$C$1:$BL$10,3,FALSE) -> 33 | AD9: =T9-HLOOKUP(X9,Feuil1!$C$1:$BL$10,4,FALSE) -> 28 | AE9: =T9-HLOOKUP(X9,Feuil1!$C$1:$BL$10,5,FALSE) -> 18 | AF9: =T9-HLOOKUP(X9,Feuil1!$C$1:$BL$10,6,FALSE) -> 8 | AG9: =T9-HLOOKUP(X9,Feuil1!$C$1:$BL$10,7,FALSE) -> -2 | AH9: =T9-HLOOKUP(X9,Feuil1!$C$1:$BL$10,8,FALSE) -> -12 | AI9: =T9-HLOOKUP(X9,Feuil1!$C$1:$BL$10,9,FALSE) -> -22 | AJ9: =T9-HLOOKUP(X9,Feuil1!$C$1:$BL$10,10,FALSE) -> -932 | AQ9: =IF(AJ9>=0,$AJ$4,IF(AI9>=0,$AI$4,IF(AH9>=0,$AH$4,IF(AG9>=0,$AG$4,IF(AF9>=0,$AF$4,IF(AE9>=0,$AE$4,IF(AD9>=0,$AD$4,IF(AC9>=0,$AC$4,$AB$4)))))))) -> FED +
A10: F | B10: Nord | C10: NPC | D10: 3 | E10: 298339 | F10: RIQUIER | G10: Angélique | H10: 2001 | I10: 41 | J10: Lille UC | K10: F | L10: 23 | M10: -25 | N10: -25 | O10: =IF(H10="","",IF(MAXA(L10:N10)<=0,0,MAXA(L10:N10))) -> 23 | P10: -34 | Q10: 34 | R10: -37 | S10: =IF(H10="","",IF(MAXA(P10:R10)<=0,0,MAXA(P10:R10))) -> 34 | T10: =IF(H10="","",IF(OR(O10=0,S10=0),0,O10+S10)) -> 57 | U10: 16 | V10: =IF(H10="","",AQ10) -> IRG + | W10: =IF(AJ10>=0,AJ10,IF(AI10>=0,AI10,IF(AH10>=0,AH10,IF(AG10>=0,AG10,IF(AF10>=0,AF10,IF(AE10>=0,AE10,IF(AD10>=0,AD10,IF(AC10>=0,AC10,AB10)))))))) -> 7 | X10: =IF(I10="","",IF(A10="H",IF(OR(H10="SEN",H10<1995),VLOOKUP(I10,Feuil1!$A$11:$F$29,6),IF(AND(H10>1994,H10<1998),VLOOKUP(I10,Feuil1!$A$11:$F$29,5),IF(AND(H10>1997,H10<2000),VLOOKUP(I10,Feuil1!$A$11:$F$29,4),IF(AND(H10>1999,H10<2002),VLOOKUP(I10,Feuil1!$A$11:$F$29,3),VLOOKUP(I10,Feuil1!$A$11:$F$29,2))))),IF(OR(H10="SEN",H10<1995),VLOOKUP(I10,Feuil1!$G$11:$L$25,6),IF(AND(H10>1994,H10<1998),VLOOKUP(I10,Feuil1!$G$11:$L$25,5),IF(AND(H10>1997,H10<2000),VLOOKUP(I10,Feuil1!$G$11:$L$25,4),IF(AND(H10>1999,H10<2002),VLOOKUP(I10,Feuil1!$G$11:$L$25,3),VLOOKUP(I10,Feuil1!$G$11:$L$25,2))))))) -> FC1 44 | Y10: =IF(I10="","",IF(A10="H",10^(0.794358141*LOG(I10/174.393)^2)*T10,IF(A10="F",10^(0.89726074*LOG(I10/148.026)^2)*T10,""))) -> 108.3436033 | AB10: =T10-HLOOKUP(X10,Feuil1!$C$1:$BL$10,2,FALSE) -> 32 | AC10: =T10-HLOOKUP(X10,Feuil1!$C$1:$BL$10,3,FALSE) -> 22 | AD10: =T10-HLOOKUP(X10,Feuil1!$C$1:$BL$10,4,FALSE) -> 17 | AE10: =T10-HLOOKUP(X10,Feuil1!$C$1:$BL$10,5,FALSE) -> 7 | AF10: =T10-HLOOKUP(X10,Feuil1!$C$1:$BL$10,6,FALSE) -> -3 | AG10: =T10-HLOOKUP(X10,Feuil1!$C$1:$BL$10,7,FALSE) -> -13 | AH10: =T10-HLOOKUP(X10,Feuil1!$C$1:$BL$10,8,FALSE) -> -23 | AI10: =T10-HLOOKUP(X10,Feuil1!$C$1:$BL$10,9,FALSE) -> -33 | AJ10: =T10-HLOOKUP(X10,Feuil1!$C$1:$BL$10,10,FALSE) -> -943 | AQ10: =IF(AJ10>=0,$AJ$4,IF(AI10>=0,$AI$4,IF(AH10>=0,$AH$4,IF(AG10>=0,$AG$4,IF(AF10>=0,$AF$4,IF(AE10>=0,$AE$4,IF(AD10>=0,$AD$4,IF(AC10>=0,$AC$4,$AB$4)))))))) -> IRG +
AB11: =T11-HLOOKUP(X11,Feuil1!$C$1:$BL$10,2,FALSE) ->  | AC11: =T11-HLOOKUP(X11,Feuil1!$C$1:$BL$10,3,FALSE) ->  | AD11: =T11-HLOOKUP(X11,Feuil1!$C$1:$BL$10,4,FALSE) ->  | AE11: =T11-HLOOKUP(X11,Feuil1!$C$1:$BL$10,5,FALSE) ->  | AF11: =T11-HLOOKUP(X11,Feuil1!$C$1:$BL$10,6,FALSE) ->  | AG11: =T11-HLOOKUP(X11,Feuil1!$C$1:$BL$10,7,FALSE) ->  | AH11: =T11-HLOOKUP(X11,Feuil1!$C$1:$BL$10,8,FALSE) ->  | AI11: =T11-HLOOKUP(X11,Feuil1!$C$1:$BL$10,9,FALSE) ->  | AJ11: =T11-HLOOKUP(X11,Feuil1!$C$1:$BL$10,10,FALSE) -> 
A12: F | B12: SEST | C12: LAN | D12: 1 | E12: 290105 | F12: ROMERO | G12: Heloise | H12: 2000 | I12: 46.55 | J12: NARBONNE | K12: F | L12: 32 | M12: 35 | N12: -37 | O12: =IF(H12="","",IF(MAXA(L12:N12)<=0,0,MAXA(L12:N12))) -> 35 | P12: 43 | Q12: 46 | R12: 50 | S12: =IF(H12="","",IF(MAXA(P12:R12)<=0,0,MAXA(P12:R12))) -> 50 | T12: =IF(H12="","",IF(OR(O12=0,S12=0),0,O12+S12)) -> 85 | U12: 38.45 | V12: =IF(H12="","",AQ12) -> INTB + | W12: =IF(AJ12>=0,AJ12,IF(AI12>=0,AI12,IF(AH12>=0,AH12,IF(AG12>=0,AG12,IF(AF12>=0,AF12,IF(AE12>=0,AE12,IF(AD12>=0,AD12,IF(AC12>=0,AC12,AB12)))))))) -> 0 | X12: =IF(I12="","",IF(A12="H",IF(OR(H12="SEN",H12<1995),VLOOKUP(I12,Feuil1!$A$11:$F$29,6),IF(AND(H12>1994,H12<1998),VLOOKUP(I12,Feuil1!$A$11:$F$29,5),IF(AND(H12>1997,H12<2000),VLOOKUP(I12,Feuil1!$A$11:$F$29,4),IF(AND(H12>1999,H12<2002),VLOOKUP(I12,Feuil1!$A$11:$F$29,3),VLOOKUP(I12,Feuil1!$A$11:$F$29,2))))),IF(OR(H12="SEN",H12<1995),VLOOKUP(I12,Feuil1!$G$11:$L$25,6),IF(AND(H12>1994,H12<1998),VLOOKUP(I12,Feuil1!$G$11:$L$25,5),IF(AND(H12>1997,H12<2000),VLOOKUP(I12,Feuil1!$G$11:$L$25,4),IF(AND(H12>1999,H12<2002),VLOOKUP(I12,Feuil1!$G$11:$L$25,3),VLOOKUP(I12,Feuil1!$G$11:$L$25,2))))))) -> FC1 48 | Y12: =IF(I12="","",IF(A12="H",10^(0.794358141*LOG(I12/174.393)^2)*T12,IF(A12="F",10^(0.89726074*LOG(I12/148.026)^2)*T12,""))) -> 143.1888563 | AB12: =T12-HLOOKUP(X12,Feuil1!$C$1:$BL$10,2,FALSE) -> 60 | AC12: =T12-HLOOKUP(X12,Feuil1!$C$1:$BL$10,3,FALSE) -> 50 | AD12: =T12-HLOOKUP(X12,Feuil1!$C$1:$BL$10,4,FALSE) -> 40 | AE12: =T12-HLOOKUP(X12,Feuil1!$C$1:$BL$10,5,FALSE) -> 30 | AF12: =T12-HLOOKUP(X12,Feuil1!$C$1:$BL$10,6,FALSE) -> 20 | AG12: =T12-HLOOKUP(X12,Feuil1!$C$1:$BL$10,7,FALSE) -> 10 | AH12: =T12-HLOOKUP(X12,Feuil1!$C$1:$BL$10,8,FALSE) -> 0 | AI12: =T12-HLOOKUP(X12,Feuil1!$C$1:$BL$10,9,FALSE) -> -10 | AJ12: =T12-HLOOKUP(X12,Feuil1!$C$1:$BL$10,10,FALSE) -> -915 | AQ12: =IF(AJ12>=0,$AJ$4,IF(AI12>=0,$AI$4,IF(AH12>=0,$AH$4,IF(AG12>=0,$AG$4,IF(AF12>=0,$AF$4,IF(AE12>=0,$AE$4,IF(AD12>=0,$AD$4,IF(AC12>=0,$AC$4,$AB$4)))))))) -> INTB +
A13: F | B13: Nord | C13: NPC | D13: 2 | E13: 367010 | F13: PIETERS | G13: Justine | H13: 2000 | I13: 45.07 | J13: CA Rosendael | K13: F | L13: 25 | M13: 27 | N13: -29 | O13: =IF(H13="","",IF(MAXA(L13:N13)<=0,0,MAXA(L13:N13))) -> 27 | P13: 33 | Q13: 38 | R13: -40 | S13: =IF(H13="","",IF(MAXA(P13:R13)<=0,0,MAXA(P13:R13))) -> 38 | T13: =IF(H13="","",IF(OR(O13=0,S13=0),0,O13+S13)) -> 65 | U13: 19.93 | V13: =IF(H13="","",AQ13) -> FED + | W13: =IF(AJ13>=0,AJ13,IF(AI13>=0,AI13,IF(AH13>=0,AH13,IF(AG13>=0,AG13,IF(AF13>=0,AF13,IF(AE13>=0,AE13,IF(AD13>=0,AD13,IF(AC13>=0,AC13,AB13)))))))) -> 0 | X13: =IF(I13="","",IF(A13="H",IF(OR(H13="SEN",H13<1995),VLOOKUP(I13,Feuil1!$A$11:$F$29,6),IF(AND(H13>1994,H13<1998),VLOOKUP(I13,Feuil1!$A$11:$F$29,5),IF(AND(H13>1997,H13<2000),VLOOKUP(I13,Feuil1!$A$11:$F$29,4),IF(AND(H13>1999,H13<2002),VLOOKUP(I13,Feuil1!$A$11:$F$29,3),VLOOKUP(I13,Feuil1!$A$11:$F$29,2))))),IF(OR(H13="SEN",H13<1995),VLOOKUP(I13,Feuil1!$G$11:$L$25,6),IF(AND(H13>1994,H13<1998),VLOOKUP(I13,Feuil1!$G$11:$L$25,5),IF(AND(H13>1997,H13<2000),VLOOKUP(I13,Feuil1!$G$11:$L$25,4),IF(AND(H13>1999,H13<2002),VLOOKUP(I13,Feuil1!$G$11:$L$25,3),VLOOKUP(I13,Feuil1!$G$11:$L$25,2))))))) -> FC1 48 | Y13: =IF(I13="","",IF(A13="H",10^(0.794358141*LOG(I13/174.393)^2)*T13,IF(A13="F",10^(0.89726074*LOG(I13/148.026)^2)*T13,""))) -> 112.7798973 | AB13: =T13-HLOOKUP(X13,Feuil1!$C$1:$BL$10,2,FALSE) -> 40 | AC13: =T13-HLOOKUP(X13,Feuil1!$C$1:$BL$10,3,FALSE) -> 30 | AD13: =T13-HLOOKUP(X13,Feuil1!$C$1:$BL$10,4,FALSE) -> 20 | AE13: =T13-HLOOKUP(X13,Feuil1!$C$1:$BL$10,5,FALSE) -> 10 | AF13: =T13-HLOOKUP(X13,Feuil1!$C$1:$BL$10,6,FALSE) -> 0 | AG13: =T13-HLOOKUP(X13,Feuil1!$C$1:$BL$10,7,FALSE) -> -10 | AH13: =T13-HLOOKUP(X13,Feuil1!$C$1:$BL$10,8,FALSE) -> -20 | AI13: =T13-HLOOKUP(X13,Feuil1!$C$1:$BL$10,9,FALSE) -> -30 | AJ13: =T13-HLOOKUP(X13,Feuil1!$C$1:$BL$10,10,FALSE) -> -935 | AQ13: =IF(AJ13>=0,$AJ$4,IF(AI13>=0,$AI$4,IF(AH13>=0,$AH$4,IF(AG13>=0,$AG$4,IF(AF13>=0,$AF$4,IF(AE13>=0,$AE$4,IF(AD13>=0,$AD$4,IF(AC13>=0,$AC$4,$AB$4)))))))) -> FED +
A14: F | B14: NE | C14: ALS | D14: 3 | E14: 340255 | F14: MIGUEL | G14: Lea | H14: 2001 | I14: 45.8 | J14: Dorlisheim FH | K14: F | L14: 25 | M14: 28 | N14: -29 | O14: =IF(H14="","",IF(MAXA(L14:N14)<=0,0,MAXA(L14:N14))) -> 28 | P14: 32 | Q14: 35 | R14: -37 | S14: =IF(H14="","",IF(MAXA(P14:R14)<=0,0,MAXA(P14:R14))) -> 35 | T14: =IF(H14="","",IF(OR(O14=0,S14=0),0,O14+S14)) -> 63 | U14: 17.2 | V14: =IF(H14="","",AQ14) -> IRG + | W14: =IF(AJ14>=0,AJ14,IF(AI14>=0,AI14,IF(AH14>=0,AH14,IF(AG14>=0,AG14,IF(AF14>=0,AF14,IF(AE14>=0,AE14,IF(AD14>=0,AD14,IF(AC14>=0,AC14,AB14)))))))) -> 8 | X14: =IF(I14="","",IF(A14="H",IF(OR(H14="SEN",H14<1995),VLOOKUP(I14,Feuil1!$A$11:$F$29,6),IF(AND(H14>1994,H14<1998),VLOOKUP(I14,Feuil1!$A$11:$F$29,5),IF(AND(H14>1997,H14<2000),VLOOKUP(I14,Feuil1!$A$11:$F$29,4),IF(AND(H14>1999,H14<2002),VLOOKUP(I14,Feuil1!$A$11:$F$29,3),VLOOKUP(I14,Feuil1!$A$11:$F$29,2))))),IF(OR(H14="SEN",H14<1995),VLOOKUP(I14,Feuil1!$G$11:$L$25,6),IF(AND(H14>1994,H14<1998),VLOOKUP(I14,Feuil1!$G$11:$L$25,5),IF(AND(H14>1997,H14<2000),VLOOKUP(I14,Feuil1!$G$11:$L$25,4),IF(AND(H14>1999,H14<2002),VLOOKUP(I14,Feuil1!$G$11:$L$25,3),VLOOKUP(I14,Feuil1!$G$11:$L$25,2))))))) -> FC1 48 | Y14: =IF(I14="","",IF(A14="H",10^(0.794358141*LOG(I14/174.393)^2)*T14,IF(A14="F",10^(0.89726074*LOG(I14/148.026)^2)*T14,""))) -> 107.7049268 | AB14: =T14-HLOOKUP(X14,Feuil1!$C$1:$BL$10,2,FALSE) -> 38 | AC14: =T14-HLOOKUP(X14,Feuil1!$C$1:$BL$10,3,FALSE) -> 28 | AD14: =T14-HLOOKUP(X14,Feuil1!$C$1:$BL$10,4,FALSE) -> 18 | AE14: =T14-HLOOKUP(X14,Feuil1!$C$1:$BL$10,5,FALSE) -> 8 | AF14: =T14-HLOOKUP(X14,Feuil1!$C$1:$BL$10,6,FALSE) -> -2 | AG14: =T14-HLOOKUP(X14,Feuil1!$C$1:$BL$10,7,FALSE) -> -12 | AH14: =T14-HLOOKUP(X14,Feuil1!$C$1:$BL$10,8,FALSE) -> -22 | AI14: =T14-HLOOKUP(X14,Feuil1!$C$1:$BL$10,9,FALSE) -> -32 | AJ14: =T14-HLOOKUP(X14,Feuil1!$C$1:$BL$10,10,FALSE) -> -937 | AQ14: =IF(AJ14>=0,$AJ$4,IF(AI14>=0,$AI$4,IF(AH14>=0,$AH$4,IF(AG14>=0,$AG$4,IF(AF14>=0,$AF$4,IF(AE14>=0,$AE$4,IF(AD14>=0,$AD$4,IF(AC14>=0,$AC$4,$AB$4)))))))) -> IRG +
AB15: =T15-HLOOKUP(X15,Feuil1!$C$1:$BL$10,2,FALSE) ->  | AC15: =T15-HLOOKUP(X15,Feuil1!$C$1:$BL$10,3,FALSE) ->  | AD15: =T15-HLOOKUP(X15,Feuil1!$C$1:$BL$10,4,FALSE) ->  | AE15: =T15-HLOOKUP(X15,Feuil1!$C$1:$BL$10,5,FALSE) ->  | AF15: =T15-HLOOKUP(X15,Feuil1!$C$1:$BL$10,6,FALSE) ->  | AG15: =T15-HLOOKUP(X15,Feuil1!$C$1:$BL$10,7,FALSE) ->  | AH15: =T15-HLOOKUP(X15,Feuil1!$C$1:$BL$10,8,FALSE) ->  | AI15: =T15-HLOOKUP(X15,Feuil1!$C$1:$BL$10,9,FALSE) ->  | AJ15: =T15-HLOOKUP(X15,Feuil1!$C$1:$BL$10,10,FALSE) -> 
A16: F | B16: NE | C16: ALS | D16: 1 | E16: 300315 | F16: IMBS | G16: Honorine | H16: 2001 | I16: 48.1 | J16: Dorlisheim FH | K16: F | L16: 34 | M16: 36 | N16: 38 | O16: =IF(H16="","",IF(MAXA(L16:N16)<=0,0,MAXA(L16:N16))) -> 38 | P16: 43 | Q16: 46 | R16: 47 | S16: =IF(H16="","",IF(MAXA(P16:R16)<=0,0,MAXA(P16:R16))) -> 47 | T16: =IF(H16="","",IF(OR(O16=0,S16=0),0,O16+S16)) -> 85 | U16: 36.9 | V16: =IF(H16="","",AQ16) -> NAT + | W16: =IF(AJ16>=0,AJ16,IF(AI16>=0,AI16,IF(AH16>=0,AH16,IF(AG16>=0,AG16,IF(AF16>=0,AF16,IF(AE16>=0,AE16,IF(AD16>=0,AD16,IF(AC16>=0,AC16,AB16)))))))) -> 0 | X16: =IF(I16="","",IF(A16="H",IF(OR(H16="SEN",H16<1995),VLOOKUP(I16,Feuil1!$A$11:$F$29,6),IF(AND(H16>1994,H16<1998),VLOOKUP(I16,Feuil1!$A$11:$F$29,5),IF(AND(H16>1997,H16<2000),VLOOKUP(I16,Feuil1!$A$11:$F$29,4),IF(AND(H16>1999,H16<2002),VLOOKUP(I16,Feuil1!$A$11:$F$29,3),VLOOKUP(I16,Feuil1!$A$11:$F$29,2))))),IF(OR(H16="SEN",H16<1995),VLOOKUP(I16,Feuil1!$G$11:$L$25,6),IF(AND(H16>1994,H16<1998),VLOOKUP(I16,Feuil1!$G$11:$L$25,5),IF(AND(H16>1997,H16<2000),VLOOKUP(I16,Feuil1!$G$11:$L$25,4),IF(AND(H16>1999,H16<2002),VLOOKUP(I16,Feuil1!$G$11:$L$25,3),VLOOKUP(I16,Feuil1!$G$11:$L$25,2))))))) -> FC1 53 | Y16: =IF(I16="","",IF(A16="H",10^(0.794358141*LOG(I16/174.393)^2)*T16,IF(A16="F",10^(0.89726074*LOG(I16/148.026)^2)*T16,""))) -> 139.080157 | AB16: =T16-HLOOKUP(X16,Feuil1!$C$1:$BL$10,2,FALSE) -> 50 | AC16: =T16-HLOOKUP(X16,Feuil1!$C$1:$BL$10,3,FALSE) -> 40 | AD16: =T16-HLOOKUP(X16,Feuil1!$C$1:$BL$10,4,FALSE) -> 30 | AE16: =T16-HLOOKUP(X16,Feuil1!$C$1:$BL$10,5,FALSE) -> 20 | AF16: =T16-HLOOKUP(X16,Feuil1!$C$1:$BL$10,6,FALSE) -> 10 | AG16: =T16-HLOOKUP(X16,Feuil1!$C$1:$BL$10,7,FALSE) -> 0 | AH16: =T16-HLOOKUP(X16,Feuil1!$C$1:$BL$10,8,FALSE) -> -10 | AI16: =T16-HLOOKUP(X16,Feuil1!$C$1:$BL$10,9,FALSE) -> -20 | AJ16: =T16-HLOOKUP(X16,Feuil1!$C$1:$BL$10,10,FALSE) -> -915 | AQ16: =IF(AJ16>=0,$AJ$4,IF(AI16>=0,$AI$4,IF(AH16>=0,$AH$4,IF(AG16>=0,$AG$4,IF(AF16>=0,$AF$4,IF(AE16>=0,$AE$4,IF(AD16>=0,$AD$4,IF(AC16>=0,$AC$4,$AB$4)))))))) -> NAT +
A17: F | B17: SO | C17: LIM | D17: 2 | E17: 326705 | F17: LOPEZ | G17: Mélissa | H17: 2001 | I17: 52.1 | J17: LIMOGES AVA | K17: F | L17: 28 | M17: 31 | N17: 33 | O17: =IF(H17="","",IF(MAXA(L17:N17)<=0,0,MAXA(L17:N17))) -> 33 | P17: 38 | Q17: 42 | R17: -43 | S17: =IF(H17="","",IF(MAXA(P17:R17)<=0,0,MAXA(P17:R17))) -> 42 | T17: =IF(H17="","",IF(OR(O17=0,S17=0),0,O17+S17)) -> 75 | U17: 22.9 | V17: =IF(H17="","",AQ17) -> FED + | W17: =IF(AJ17>=0,AJ17,IF(AI17>=0,AI17,IF(AH17>=0,AH17,IF(AG17>=0,AG17,IF(AF17>=0,AF17,IF(AE17>=0,AE17,IF(AD17>=0,AD17,IF(AC17>=0,AC17,AB17)))))))) -> 0 | X17: =IF(I17="","",IF(A17="H",IF(OR(H17="SEN",H17<1995),VLOOKUP(I17,Feuil1!$A$11:$F$29,6),IF(AND(H17>1994,H17<1998),VLOOKUP(I17,Feuil1!$A$11:$F$29,5),IF(AND(H17>1997,H17<2000),VLOOKUP(I17,Feuil1!$A$11:$F$29,4),IF(AND(H17>1999,H17<2002),VLOOKUP(I17,Feuil1!$A$11:$F$29,3),VLOOKUP(I17,Feuil1!$A$11:$F$29,2))))),IF(OR(H17="SEN",H17<1995),VLOOKUP(I17,Feuil1!$G$11:$L$25,6),IF(AND(H17>1994,H17<1998),VLOOKUP(I17,Feuil1!$G$11:$L$25,5),IF(AND(H17>1997,H17<2000),VLOOKUP(I17,Feuil1!$G$11:$L$25,4),IF(AND(H17>1999,H17<2002),VLOOKUP(I17,Feuil1!$G$11:$L$25,3),VLOOKUP(I17,Feuil1!$G$11:$L$25,2))))))) -> FC1 53 | Y17: =IF(I17="","",IF(A17="H",10^(0.794358141*LOG(I17/174.393)^2)*T17,IF(A17="F",10^(0.89726074*LOG(I17/148.026)^2)*T17,""))) -> 114.7081179 | AB17: =T17-HLOOKUP(X17,Feuil1!$C$1:$BL$10,2,FALSE) -> 40 | AC17: =T17-HLOOKUP(X17,Feuil1!$C$1:$BL$10,3,FALSE) -> 30 | AD17: =T17-HLOOKUP(X17,Feuil1!$C$1:$BL$10,4,FALSE) -> 20 | AE17: =T17-HLOOKUP(X17,Feuil1!$C$1:$BL$10,5,FALSE) -> 10 | AF17: =T17-HLOOKUP(X17,Feuil1!$C$1:$BL$10,6,FALSE) -> 0 | AG17: =T17-HLOOKUP(X17,Feuil1!$C$1:$BL$10,7,FALSE) -> -10 | AH17: =T17-HLOOKUP(X17,Feuil1!$C$1:$BL$10,8,FALSE) -> -20 | AI17: =T17-HLOOKUP(X17,Feuil1!$C$1:$BL$10,9,FALSE) -> -30 | AJ17: =T17-HLOOKUP(X17,Feuil1!$C$1:$BL$10,10,FALSE) -> -925 | AQ17: =IF(AJ17>=0,$AJ$4,IF(AI17>=0,$AI$4,IF(AH17>=0,$AH$4,IF(AG17>=0,$AG$4,IF(AF17>=0,$AF$4,IF(AE17>=0,$AE$4,IF(AD17>=0,$AD$4,IF(AC17>=0,$AC$4,$AB$4)))))))) -> FED +
A18: F | B18: SO | C18: LIM | D18: 3 | E18: 326707 | F18: LAMARGUE | G18: Loriane | H18: 2000 | I18: 52.5 | J18: LIMOGES AVA | K18: F | L18: 28 | M18: 31 | N18: 32 | O18: 32 | P18: 39 | Q18: 43 | R18: -45 | S18: =IF(H18="","",IF(MAXA(P18:R18)<=0,0,MAXA(P18:R18))) -> 43 | T18: =IF(H18="","",IF(OR(O18=0,S18=0),0,O18+S18)) -> 75 | U18: 22.5 | V18: =IF(H18="","",AQ18) -> FED + | W18: =IF(AJ18>=0,AJ18,IF(AI18>=0,AI18,IF(AH18>=0,AH18,IF(AG18>=0,AG18,IF(AF18>=0,AF18,IF(AE18>=0,AE18,IF(AD18>=0,AD18,IF(AC18>=0,AC18,AB18)))))))) -> 0 | X18: =IF(I18="","",IF(A18="H",IF(OR(H18="SEN",H18<1995),VLOOKUP(I18,Feuil1!$A$11:$F$29,6),IF(AND(H18>1994,H18<1998),VLOOKUP(I18,Feuil1!$A$11:$F$29,5),IF(AND(H18>1997,H18<2000),VLOOKUP(I18,Feuil1!$A$11:$F$29,4),IF(AND(H18>1999,H18<2002),VLOOKUP(I18,Feuil1!$A$11:$F$29,3),VLOOKUP(I18,Feuil1!$A$11:$F$29,2))))),IF(OR(H18="SEN",H18<1995),VLOOKUP(I18,Feuil1!$G$11:$L$25,6),IF(AND(H18>1994,H18<1998),VLOOKUP(I18,Feuil1!$G$11:$L$25,5),IF(AND(H18>1997,H18<2000),VLOOKUP(I18,Feuil1!$G$11:$L$25,4),IF(AND(H18>1999,H18<2002),VLOOKUP(I18,Feuil1!$G$11:$L$25,3),VLOOKUP(I18,Feuil1!$G$11:$L$25,2))))))) -> FC1 53 | Y18: =IF(I18="","",IF(A18="H",10^(0.794358141*LOG(I18/174.393)^2)*T18,IF(A18="F",10^(0.89726074*LOG(I18/148.026)^2)*T18,""))) -> 113.9989624 | AB18: =T18-HLOOKUP(X18,Feuil1!$C$1:$BL$10,2,FALSE) -> 40 | AC18: =T18-HLOOKUP(X18,Feuil1!$C$1:$BL$10,3,FALSE) -> 30 | AD18: =T18-HLOOKUP(X18,Feuil1!$C$1:$BL$10,4,FALSE) -> 20 | AE18: =T18-HLOOKUP(X18,Feuil1!$C$1:$BL$10,5,FALSE) -> 10 | AF18: =T18-HLOOKUP(X18,Feuil1!$C$1:$BL$10,6,FALSE) -> 0 | AG18: =T18-HLOOKUP(X18,Feuil1!$C$1:$BL$10,7,FALSE) -> -10 | AH18: =T18-HLOOKUP(X18,Feuil1!$C$1:$BL$10,8,FALSE) -> -20 | AI18: =T18-HLOOKUP(X18,Feuil1!$C$1:$BL$10,9,FALSE) -> -30 | AJ18: =T18-HLOOKUP(X18,Feuil1!$C$1:$BL$10,10,FALSE) -> -925 | AQ18: =IF(AJ18>=0,$AJ$4,IF(AI18>=0,$AI$4,IF(AH18>=0,$AH$4,IF(AG18>=0,$AG$4,IF(AF18>=0,$AF$4,IF(AE18>=0,$AE$4,IF(AD18>=0,$AD$4,IF(AC18>=0,$AC$4,$AB$4)))))))) -> FED +
AB19: =T19-HLOOKUP(X19,Feuil1!$C$1:$BL$10,2,FALSE) ->  | AC19: =T19-HLOOKUP(X19,Feuil1!$C$1:$BL$10,3,FALSE) ->  | AD19: =T19-HLOOKUP(X19,Feuil1!$C$1:$BL$10,4,FALSE) ->  | AE19: =T19-HLOOKUP(X19,Feuil1!$C$1:$BL$10,5,FALSE) ->  | AF19: =T19-HLOOKUP(X19,Feuil1!$C$1:$BL$10,6,FALSE) ->  | AG19: =T19-HLOOKUP(X19,Feuil1!$C$1:$BL$10,7,FALSE) ->  | AH19: =T19-HLOOKUP(X19,Feuil1!$C$1:$BL$10,8,FALSE) ->  | AI19: =T19-HLOOKUP(X19,Feuil1!$C$1:$BL$10,9,FALSE) ->  | AJ19: =T19-HLOOKUP(X19,Feuil1!$C$1:$BL$10,10,FALSE) -> 
A20: F | B20: Nord | C20: NPC | D20: 1 | E20: 359845 | F20: PARANTHOEN | G20: Kimberley | H20: 2000 | I20: 57.27 | J20: CA Rosendael | K20: F | L20: 35 | M20: 38 | N20: -40 | O20: =IF(H20="","",IF(MAXA(L20:N20)<=0,0,MAXA(L20:N20))) -> 38 | P20: 48 | Q20: -52 | R20: 52 | S20: =IF(H20="","",IF(MAXA(P20:R20)<=0,0,MAXA(P20:R20))) -> 52 | T20: =IF(H20="","",IF(OR(O20=0,S20=0),0,O20+S20)) -> 90 | U20: 32.73 | V20: =IF(H20="","",AQ20) -> NAT + | W20: =IF(AJ20>=0,AJ20,IF(AI20>=0,AI20,IF(AH20>=0,AH20,IF(AG20>=0,AG20,IF(AF20>=0,AF20,IF(AE20>=0,AE20,IF(AD20>=0,AD20,IF(AC20>=0,AC20,AB20)))))))) -> 0 | X20: =IF(I20="","",IF(A20="H",IF(OR(H20="SEN",H20<1995),VLOOKUP(I20,Feuil1!$A$11:$F$29,6),IF(AND(H20>1994,H20<1998),VLOOKUP(I20,Feuil1!$A$11:$F$29,5),IF(AND(H20>1997,H20<2000),VLOOKUP(I20,Feuil1!$A$11:$F$29,4),IF(AND(H20>1999,H20<2002),VLOOKUP(I20,Feuil1!$A$11:$F$29,3),VLOOKUP(I20,Feuil1!$A$11:$F$29,2))))),IF(OR(H20="SEN",H20<1995),VLOOKUP(I20,Feuil1!$G$11:$L$25,6),IF(AND(H20>1994,H20<1998),VLOOKUP(I20,Feuil1!$G$11:$L$25,5),IF(AND(H20>1997,H20<2000),VLOOKUP(I20,Feuil1!$G$11:$L$25,4),IF(AND(H20>1999,H20<2002),VLOOKUP(I20,Feuil1!$G$11:$L$25,3),VLOOKUP(I20,Feuil1!$G$11:$L$25,2))))))) -> FC1 58 | Y20: =IF(I20="","",IF(A20="H",10^(0.794358141*LOG(I20/174.393)^2)*T20,IF(A20="F",10^(0.89726074*LOG(I20/148.026)^2)*T20,""))) -> 127.8942517 | AB20: =T20-HLOOKUP(X20,Feuil1!$C$1:$BL$10,2,FALSE) -> 50 | AC20: =T20-HLOOKUP(X20,Feuil1!$C$1:$BL$10,3,FALSE) -> 40 | AD20: =T20-HLOOKUP(X20,Feuil1!$C$1:$BL$10,4,FALSE) -> 30 | AE20: =T20-HLOOKUP(X20,Feuil1!$C$1:$BL$10,5,FALSE) -> 20 | AF20: =T20-HLOOKUP(X20,Feuil1!$C$1:$BL$10,6,FALSE) -> 10 | AG20: =T20-HLOOKUP(X20,Feuil1!$C$1:$BL$10,7,FALSE) -> 0 | AH20: =T20-HLOOKUP(X20,Feuil1!$C$1:$BL$10,8,FALSE) -> -10 | AI20: =T20-HLOOKUP(X20,Feuil1!$C$1:$BL$10,9,FALSE) -> -25 | AJ20: =T20-HLOOKUP(X20,Feuil1!$C$1:$BL$10,10,FALSE) -> -910 | AQ20: =IF(AJ20>=0,$AJ$4,IF(AI20>=0,$AI$4,IF(AH20>=0,$AH$4,IF(AG20>=0,$AG$4,IF(AF20>=0,$AF$4,IF(AE20>=0,$AE$4,IF(AD20>=0,$AD$4,IF(AC20>=0,$AC$4,$AB$4)))))))) -> NAT +
A21: F | B21: NE | C21: CHA | D21: 2 | E21: 320210 | F21: ROEHRIG | G21: Ludivine | H21: 2000 | I21: 54.9 | J21: Langres HM | K21: F | L21: 35 | M21: 38 | N21: 40 | O21: =IF(H21="","",IF(MAXA(L21:N21)<=0,0,MAXA(L21:N21))) -> 40 | P21: 45 | Q21: - | R21: - | S21: =IF(H21="","",IF(MAXA(P21:R21)<=0,0,MAXA(P21:R21))) -> 45 | T21: =IF(H21="","",IF(OR(O21=0,S21=0),0,O21+S21)) -> 85 | U21: 30.1 | V21: =IF(H21="","",AQ21) -> FED + | W21: =IF(AJ21>=0,AJ21,IF(AI21>=0,AI21,IF(AH21>=0,AH21,IF(AG21>=0,AG21,IF(AF21>=0,AF21,IF(AE21>=0,AE21,IF(AD21>=0,AD21,IF(AC21>=0,AC21,AB21)))))))) -> 5 | X21: =IF(I21="","",IF(A21="H",IF(OR(H21="SEN",H21<1995),VLOOKUP(I21,Feuil1!$A$11:$F$29,6),IF(AND(H21>1994,H21<1998),VLOOKUP(I21,Feuil1!$A$11:$F$29,5),IF(AND(H21>1997,H21<2000),VLOOKUP(I21,Feuil1!$A$11:$F$29,4),IF(AND(H21>1999,H21<2002),VLOOKUP(I21,Feuil1!$A$11:$F$29,3),VLOOKUP(I21,Feuil1!$A$11:$F$29,2))))),IF(OR(H21="SEN",H21<1995),VLOOKUP(I21,Feuil1!$G$11:$L$25,6),IF(AND(H21>1994,H21<1998),VLOOKUP(I21,Feuil1!$G$11:$L$25,5),IF(AND(H21>1997,H21<2000),VLOOKUP(I21,Feuil1!$G$11:$L$25,4),IF(AND(H21>1999,H21<2002),VLOOKUP(I21,Feuil1!$G$11:$L$25,3),VLOOKUP(I21,Feuil1!$G$11:$L$25,2))))))) -> FC1 58 | Y21: =IF(I21="","",IF(A21="H",10^(0.794358141*LOG(I21/174.393)^2)*T21,IF(A21="F",10^(0.89726074*LOG(I21/148.026)^2)*T21,""))) -> 124.7135894 | AB21: =T21-HLOOKUP(X21,Feuil1!$C$1:$BL$10,2,FALSE) -> 45 | AC21: =T21-HLOOKUP(X21,Feuil1!$C$1:$BL$10,3,FALSE) -> 35 | AD21: =T21-HLOOKUP(X21,Feuil1!$C$1:$BL$10,4,FALSE) -> 25 | AE21: =T21-HLOOKUP(X21,Feuil1!$C$1:$BL$10,5,FALSE) -> 15 | AF21: =T21-HLOOKUP(X21,Feuil1!$C$1:$BL$10,6,FALSE) -> 5 | AG21: =T21-HLOOKUP(X21,Feuil1!$C$1:$BL$10,7,FALSE) -> -5 | AH21: =T21-HLOOKUP(X21,Feuil1!$C$1:$BL$10,8,FALSE) -> -15 | AI21: =T21-HLOOKUP(X21,Feuil1!$C$1:$BL$10,9,FALSE) -> -30 | AJ21: =T21-HLOOKUP(X21,Feuil1!$C$1:$BL$10,10,FALSE) -> -915 | AQ21: =IF(AJ21>=0,$AJ$4,IF(AI21>=0,$AI$4,IF(AH21>=0,$AH$4,IF(AG21>=0,$AG$4,IF(AF21>=0,$AF$4,IF(AE21>=0,$AE$4,IF(AD21>=0,$AD$4,IF(AC21>=0,$AC$4,$AB$4)))))))) -> FED +
AB22: =T22-HLOOKUP(X22,Feuil1!$C$1:$BL$10,2,FALSE) ->  | AC22: =T22-HLOOKUP(X22,Feuil1!$C$1:$BL$10,3,FALSE) ->  | AD22: =T22-HLOOKUP(X22,Feuil1!$C$1:$BL$10,4,FALSE) ->  | AE22: =T22-HLOOKUP(X22,Feuil1!$C$1:$BL$10,5,FALSE) ->  | AF22: =T22-HLOOKUP(X22,Feuil1!$C$1:$BL$10,6,FALSE) ->  | AG22: =T22-HLOOKUP(X22,Feuil1!$C$1:$BL$10,7,FALSE) ->  | AH22: =T22-HLOOKUP(X22,Feuil1!$C$1:$BL$10,8,FALSE) ->  | AI22: =T22-HLOOKUP(X22,Feuil1!$C$1:$BL$10,9,FALSE) ->  | AJ22: =T22-HLOOKUP(X22,Feuil1!$C$1:$BL$10,10,FALSE) -> 
A23: F | B23: NE | C23: BOU | D23: 1 | E23: 363267 | F23: GRAILLOT | G23: Vicky | H23: 2000 | I23: 59.9 | J23: Stade Dijonnais HM | K23: F | L23: 47 | M23: 50 | N23: 52 | O23: =IF(H23="","",IF(MAXA(L23:N23)<=0,0,MAXA(L23:N23))) -> 52 | P23: -58 | Q23: 58 | R23: -63 | S23: =IF(H23="","",IF(MAXA(P23:R23)<=0,0,MAXA(P23:R23))) -> 58 | T23: =IF(H23="","",IF(OR(O23=0,S23=0),0,O23+S23)) -> 110 | U23: 50.1 | V23: =IF(H23="","",AQ23) -> INTB + | W23: =IF(AJ23>=0,AJ23,IF(AI23>=0,AI23,IF(AH23>=0,AH23,IF(AG23>=0,AG23,IF(AF23>=0,AF23,IF(AE23>=0,AE23,IF(AD23>=0,AD23,IF(AC23>=0,AC23,AB23)))))))) -> 0 | X23: =IF(I23="","",IF(A23="H",IF(OR(H23="SEN",H23<1995),VLOOKUP(I23,Feuil1!$A$11:$F$29,6),IF(AND(H23>1994,H23<1998),VLOOKUP(I23,Feuil1!$A$11:$F$29,5),IF(AND(H23>1997,H23<2000),VLOOKUP(I23,Feuil1!$A$11:$F$29,4),IF(AND(H23>1999,H23<2002),VLOOKUP(I23,Feuil1!$A$11:$F$29,3),VLOOKUP(I23,Feuil1!$A$11:$F$29,2))))),IF(OR(H23="SEN",H23<1995),VLOOKUP(I23,Feuil1!$G$11:$L$25,6),IF(AND(H23>1994,H23<1998),VLOOKUP(I23,Feuil1!$G$11:$L$25,5),IF(AND(H23>1997,H23<2000),VLOOKUP(I23,Feuil1!$G$11:$L$25,4),IF(AND(H23>1999,H23<2002),VLOOKUP(I23,Feuil1!$G$11:$L$25,3),VLOOKUP(I23,Feuil1!$G$11:$L$25,2))))))) -> FC1 63 | Y23: =IF(I23="","",IF(A23="H",10^(0.794358141*LOG(I23/174.393)^2)*T23,IF(A23="F",10^(0.89726074*LOG(I23/148.026)^2)*T23,""))) -> 151.3251375 | AB23: =T23-HLOOKUP(X23,Feuil1!$C$1:$BL$10,2,FALSE) -> 65 | AC23: =T23-HLOOKUP(X23,Feuil1!$C$1:$BL$10,3,FALSE) -> 55 | AD23: =T23-HLOOKUP(X23,Feuil1!$C$1:$BL$10,4,FALSE) -> 45 | AE23: =T23-HLOOKUP(X23,Feuil1!$C$1:$BL$10,5,FALSE) -> 35 | AF23: =T23-HLOOKUP(X23,Feuil1!$C$1:$BL$10,6,FALSE) -> 25 | AG23: =T23-HLOOKUP(X23,Feuil1!$C$1:$BL$10,7,FALSE) -> 15 | AH23: =T23-HLOOKUP(X23,Feuil1!$C$1:$BL$10,8,FALSE) -> 0 | AI23: =T23-HLOOKUP(X23,Feuil1!$C$1:$BL$10,9,FALSE) -> -15 | AJ23: =T23-HLOOKUP(X23,Feuil1!$C$1:$BL$10,10,FALSE) -> -890 | AQ23: =IF(AJ23>=0,$AJ$4,IF(AI23>=0,$AI$4,IF(AH23>=0,$AH$4,IF(AG23>=0,$AG$4,IF(AF23>=0,$AF$4,IF(AE23>=0,$AE$4,IF(AD23>=0,$AD$4,IF(AC23>=0,$AC$4,$AB$4)))))))) -> INTB +
AB24: =T24-HLOOKUP(X24,Feuil1!$C$1:$BL$10,2,FALSE) ->  | AC24: =T24-HLOOKUP(X24,Feuil1!$C$1:$BL$10,3,FALSE) ->  | AD24: =T24-HLOOKUP(X24,Feuil1!$C$1:$BL$10,4,FALSE) ->  | AE24: =T24-HLOOKUP(X24,Feuil1!$C$1:$BL$10,5,FALSE) ->  | AF24: =T24-HLOOKUP(X24,Feuil1!$C$1:$BL$10,6,FALSE) ->  | AG24: =T24-HLOOKUP(X24,Feuil1!$C$1:$BL$10,7,FALSE) ->  | AH24: =T24-HLOOKUP(X24,Feuil1!$C$1:$BL$10,8,FALSE) ->  | AI24: =T24-HLOOKUP(X24,Feuil1!$C$1:$BL$10,9,FALSE) ->  | AJ24: =T24-HLOOKUP(X24,Feuil1!$C$1:$BL$10,10,FALSE) -> 
A25: F | B25: ZCO | C25: PDL | D25: 1 | E25: 191138 | F25: L'HERMIER | G25: Nolwen | H25: 1999 | I25: 42.77 | J25: CA Evron 53 | K25: F | L25: 38 | M25: -40 | N25: 40 | O25: =IF(H25="","",IF(MAXA(L25:N25)<=0,0,MAXA(L25:N25))) -> 40 | P25: 53 | Q25: 55 | R25: -58 | S25: =IF(H25="","",IF(MAXA(P25:R25)<=0,0,MAXA(P25:R25))) -> 55 | T25: =IF(H25="","",IF(OR(O25=0,S25=0),0,O25+S25)) -> 95 | U25: 52.23 | V25: =IF(H25="","",AQ25) -> INTB + | W25: =IF(AJ25>=0,AJ25,IF(AI25>=0,AI25,IF(AH25>=0,AH25,IF(AG25>=0,AG25,IF(AF25>=0,AF25,IF(AE25>=0,AE25,IF(AD25>=0,AD25,IF(AC25>=0,AC25,AB25)))))))) -> 5 | X25: =IF(I25="","",IF(A25="H",IF(OR(H25="SEN",H25<1995),VLOOKUP(I25,Feuil1!$A$11:$F$29,6),IF(AND(H25>1994,H25<1998),VLOOKUP(I25,Feuil1!$A$11:$F$29,5),IF(AND(H25>1997,H25<2000),VLOOKUP(I25,Feuil1!$A$11:$F$29,4),IF(AND(H25>1999,H25<2002),VLOOKUP(I25,Feuil1!$A$11:$F$29,3),VLOOKUP(I25,Feuil1!$A$11:$F$29,2))))),IF(OR(H25="SEN",H25<1995),VLOOKUP(I25,Feuil1!$G$11:$L$25,6),IF(AND(H25>1994,H25<1998),VLOOKUP(I25,Feuil1!$G$11:$L$25,5),IF(AND(H25>1997,H25<2000),VLOOKUP(I25,Feuil1!$G$11:$L$25,4),IF(AND(H25>1999,H25<2002),VLOOKUP(I25,Feuil1!$G$11:$L$25,3),VLOOKUP(I25,Feuil1!$G$11:$L$25,2))))))) -> FC2 44 | Y25: =IF(I25="","",IF(A25="H",10^(0.794358141*LOG(I25/174.393)^2)*T25,IF(A25="F",10^(0.89726074*LOG(I25/148.026)^2)*T25,""))) -> 173.2163855 | AB25: =T25-HLOOKUP(X25,Feuil1!$C$1:$BL$10,2,FALSE) -> 65 | AC25: =T25-HLOOKUP(X25,Feuil1!$C$1:$BL$10,3,FALSE) -> 55 | AD25: =T25-HLOOKUP(X25,Feuil1!$C$1:$BL$10,4,FALSE) -> 45 | AE25: =T25-HLOOKUP(X25,Feuil1!$C$1:$BL$10,5,FALSE) -> 35 | AF25: =T25-HLOOKUP(X25,Feuil1!$C$1:$BL$10,6,FALSE) -> 25 | AG25: =T25-HLOOKUP(X25,Feuil1!$C$1:$BL$10,7,FALSE) -> 15 | AH25: =T25-HLOOKUP(X25,Feuil1!$C$1:$BL$10,8,FALSE) -> 5 | AI25: =T25-HLOOKUP(X25,Feuil1!$C$1:$BL$10,9,FALSE) -> -5 | AJ25: =T25-HLOOKUP(X25,Feuil1!$C$1:$BL$10,10,FALSE) -> -905 | AQ25: =IF(AJ25>=0,$AJ$4,IF(AI25>=0,$AI$4,IF(AH25>=0,$AH$4,IF(AG25>=0,$AG$4,IF(AF25>=0,$AF$4,IF(AE25>=0,$AE$4,IF(AD25>=0,$AD$4,IF(AC25>=0,$AC$4,$AB$4)))))))) -> INTB +
AB26: =T26-HLOOKUP(X26,Feuil1!$C$1:$BL$10,2,FALSE) ->  | AC26: =T26-HLOOKUP(X26,Feuil1!$C$1:$BL$10,3,FALSE) ->  | AD26: =T26-HLOOKUP(X26,Feuil1!$C$1:$BL$10,4,FALSE) ->  | AE26: =T26-HLOOKUP(X26,Feuil1!$C$1:$BL$10,5,FALSE) ->  | AF26: =T26-HLOOKUP(X26,Feuil1!$C$1:$BL$10,6,FALSE) ->  | AG26: =T26-HLOOKUP(X26,Feuil1!$C$1:$BL$10,7,FALSE) ->  | AH26: =T26-HLOOKUP(X26,Feuil1!$C$1:$BL$10,8,FALSE) ->  | AI26: =T26-HLOOKUP(X26,Feuil1!$C$1:$BL$10,9,FALSE) ->  | AJ26: =T26-HLOOKUP(X26,Feuil1!$C$1:$BL$10,10,FALSE) -> 
A27: F | B27: SO | C27: AQ | D27: 1 | E27: 277832 | F27: RIGAUD | G27: Garance | H27: 1999 | I27: 47.9 | J27: ST MEDARD EN JALLES EA | K27: F | L27: 43 | M27: 47 | N27: 50 | O27: =IF(H27="","",IF(MAXA(L27:N27)<=0,0,MAXA(L27:N27))) -> 50 | P27: 54 | Q27: 57 | R27: 60 | S27: =IF(H27="","",IF(MAXA(P27:R27)<=0,0,MAXA(P27:R27))) -> 60 | T27: =IF(H27="","",IF(OR(O27=0,S27=0),0,O27+S27)) -> 110 | U27: 62.1 | V27: =IF(H27="","",AQ27) -> INTA + | W27: =IF(AJ27>=0,AJ27,IF(AI27>=0,AI27,IF(AH27>=0,AH27,IF(AG27>=0,AG27,IF(AF27>=0,AF27,IF(AE27>=0,AE27,IF(AD27>=0,AD27,IF(AC27>=0,AC27,AB27)))))))) -> 0 | X27: =IF(I27="","",IF(A27="H",IF(OR(H27="SEN",H27<1995),VLOOKUP(I27,Feuil1!$A$11:$F$29,6),IF(AND(H27>1994,H27<1998),VLOOKUP(I27,Feuil1!$A$11:$F$29,5),IF(AND(H27>1997,H27<2000),VLOOKUP(I27,Feuil1!$A$11:$F$29,4),IF(AND(H27>1999,H27<2002),VLOOKUP(I27,Feuil1!$A$11:$F$29,3),VLOOKUP(I27,Feuil1!$A$11:$F$29,2))))),IF(OR(H27="SEN",H27<1995),VLOOKUP(I27,Feuil1!$G$11:$L$25,6),IF(AND(H27>1994,H27<1998),VLOOKUP(I27,Feuil1!$G$11:$L$25,5),IF(AND(H27>1997,H27<2000),VLOOKUP(I27,Feuil1!$G$11:$L$25,4),IF(AND(H27>1999,H27<2002),VLOOKUP(I27,Feuil1!$G$11:$L$25,3),VLOOKUP(I27,Feuil1!$G$11:$L$25,2))))))) -> FC2 48 | Y27: =IF(I27="","",IF(A27="H",10^(0.794358141*LOG(I27/174.393)^2)*T27,IF(A27="F",10^(0.89726074*LOG(I27/148.026)^2)*T27,""))) -> 180.6455129 | AB27: =T27-HLOOKUP(X27,Feuil1!$C$1:$BL$10,2,FALSE) -> 75 | AC27: =T27-HLOOKUP(X27,Feuil1!$C$1:$BL$10,3,FALSE) -> 65 | AD27: =T27-HLOOKUP(X27,Feuil1!$C$1:$BL$10,4,FALSE) -> 55 | AE27: =T27-HLOOKUP(X27,Feuil1!$C$1:$BL$10,5,FALSE) -> 45 | AF27: =T27-HLOOKUP(X27,Feuil1!$C$1:$BL$10,6,FALSE) -> 35 | AG27: =T27-HLOOKUP(X27,Feuil1!$C$1:$BL$10,7,FALSE) -> 25 | AH27: =T27-HLOOKUP(X27,Feuil1!$C$1:$BL$10,8,FALSE) -> 15 | AI27: =T27-HLOOKUP(X27,Feuil1!$C$1:$BL$10,9,FALSE) -> 0 | AJ27: =T27-HLOOKUP(X27,Feuil1!$C$1:$BL$10,10,FALSE) -> -890 | AQ27: =IF(AJ27>=0,$AJ$4,IF(AI27>=0,$AI$4,IF(AH27>=0,$AH$4,IF(AG27>=0,$AG$4,IF(AF27>=0,$AF$4,IF(AE27>=0,$AE$4,IF(AD27>=0,$AD$4,IF(AC27>=0,$AC$4,$AB$4)))))))) -> INTA +
A28: F | B28: SO | C28: AQ | D28: 2 | E28: 298421 | F28: MOCAER | G28: Nolwenn | H28: 1999 | I28: 44.8 | J28: ST MEDARD EN JALLES EA | K28: F | L28: 40 | M28: 43 | N28: 46 | O28: =IF(H28="","",IF(MAXA(L28:N28)<=0,0,MAXA(L28:N28))) -> 46 | P28: 55 | Q28: 58 | R28: 61 | S28: =IF(H28="","",IF(MAXA(P28:R28)<=0,0,MAXA(P28:R28))) -> 61 | T28: =IF(H28="","",IF(OR(O28=0,S28=0),0,O28+S28)) -> 107 | U28: 62.2 | V28: =IF(H28="","",AQ28) -> INTB + | W28: =IF(AJ28>=0,AJ28,IF(AI28>=0,AI28,IF(AH28>=0,AH28,IF(AG28>=0,AG28,IF(AF28>=0,AF28,IF(AE28>=0,AE28,IF(AD28>=0,AD28,IF(AC28>=0,AC28,AB28)))))))) -> 12 | X28: =IF(I28="","",IF(A28="H",IF(OR(H28="SEN",H28<1995),VLOOKUP(I28,Feuil1!$A$11:$F$29,6),IF(AND(H28>1994,H28<1998),VLOOKUP(I28,Feuil1!$A$11:$F$29,5),IF(AND(H28>1997,H28<2000),VLOOKUP(I28,Feuil1!$A$11:$F$29,4),IF(AND(H28>1999,H28<2002),VLOOKUP(I28,Feuil1!$A$11:$F$29,3),VLOOKUP(I28,Feuil1!$A$11:$F$29,2))))),IF(OR(H28="SEN",H28<1995),VLOOKUP(I28,Feuil1!$G$11:$L$25,6),IF(AND(H28>1994,H28<1998),VLOOKUP(I28,Feuil1!$G$11:$L$25,5),IF(AND(H28>1997,H28<2000),VLOOKUP(I28,Feuil1!$G$11:$L$25,4),IF(AND(H28>1999,H28<2002),VLOOKUP(I28,Feuil1!$G$11:$L$25,3),VLOOKUP(I28,Feuil1!$G$11:$L$25,2))))))) -> FC2 48 | Y28: =IF(I28="","",IF(A28="H",10^(0.794358141*LOG(I28/174.393)^2)*T28,IF(A28="F",10^(0.89726074*LOG(I28/148.026)^2)*T28,""))) -> 186.6924276 | AB28: =T28-HLOOKUP(X28,Feuil1!$C$1:$BL$10,2,FALSE) -> 72 | AC28: =T28-HLOOKUP(X28,Feuil1!$C$1:$BL$10,3,FALSE) -> 62 | AD28: =T28-HLOOKUP(X28,Feuil1!$C$1:$BL$10,4,FALSE) -> 52 | AE28: =T28-HLOOKUP(X28,Feuil1!$C$1:$BL$10,5,FALSE) -> 42 | AF28: =T28-HLOOKUP(X28,Feuil1!$C$1:$BL$10,6,FALSE) -> 32 | AG28: =T28-HLOOKUP(X28,Feuil1!$C$1:$BL$10,7,FALSE) -> 22 | AH28: =T28-HLOOKUP(X28,Feuil1!$C$1:$BL$10,8,FALSE) -> 12 | AI28: =T28-HLOOKUP(X28,Feuil1!$C$1:$BL$10,9,FALSE) -> -3 | AJ28: =T28-HLOOKUP(X28,Feuil1!$C$1:$BL$10,10,FALSE) -> -893 | AQ28: =IF(AJ28>=0,$AJ$4,IF(AI28>=0,$AI$4,IF(AH28>=0,$AH$4,IF(AG28>=0,$AG$4,IF(AF28>=0,$AF$4,IF(AE28>=0,$AE$4,IF(AD28>=0,$AD$4,IF(AC28>=0,$AC$4,$AB$4)))))))) -> INTB +
AB29: =T29-HLOOKUP(X29,Feuil1!$C$1:$BL$10,2,FALSE) ->  | AC29: =T29-HLOOKUP(X29,Feuil1!$C$1:$BL$10,3,FALSE) ->  | AD29: =T29-HLOOKUP(X29,Feuil1!$C$1:$BL$10,4,FALSE) ->  | AE29: =T29-HLOOKUP(X29,Feuil1!$C$1:$BL$10,5,FALSE) ->  | AF29: =T29-HLOOKUP(X29,Feuil1!$C$1:$BL$10,6,FALSE) ->  | AG29: =T29-HLOOKUP(X29,Feuil1!$C$1:$BL$10,7,FALSE) ->  | AH29: =T29-HLOOKUP(X29,Feuil1!$C$1:$BL$10,8,FALSE) ->  | AI29: =T29-HLOOKUP(X29,Feuil1!$C$1:$BL$10,9,FALSE) ->  | AJ29: =T29-HLOOKUP(X29,Feuil1!$C$1:$BL$10,10,FALSE) -> 
A30: F | B30: SEST | C30: CAZ | D30: 1 | E30: 295873 | F30: RICHET | G30: Caterine | H30: 1999 | I30: 49.25 | J30: E.S. VILLENEUVE LOUBET | K30: F | L30: -40 | M30: 41 | N30: 44 | O30: =IF(H30="","",IF(MAXA(L30:N30)<=0,0,MAXA(L30:N30))) -> 44 | P30: 54 | Q30: 58 | R30: 61 | S30: =IF(H30="","",IF(MAXA(P30:R30)<=0,0,MAXA(P30:R30))) -> 61 | T30: =IF(H30="","",IF(OR(O30=0,S30=0),0,O30+S30)) -> 105 | U30: 55.75 | V30: =IF(H30="","",AQ30) -> INTB + | W30: =IF(AJ30>=0,AJ30,IF(AI30>=0,AI30,IF(AH30>=0,AH30,IF(AG30>=0,AG30,IF(AF30>=0,AF30,IF(AE30>=0,AE30,IF(AD30>=0,AD30,IF(AC30>=0,AC30,AB30)))))))) -> 0 | X30: =IF(I30="","",IF(A30="H",IF(OR(H30="SEN",H30<1995),VLOOKUP(I30,Feuil1!$A$11:$F$29,6),IF(AND(H30>1994,H30<1998),VLOOKUP(I30,Feuil1!$A$11:$F$29,5),IF(AND(H30>1997,H30<2000),VLOOKUP(I30,Feuil1!$A$11:$F$29,4),IF(AND(H30>1999,H30<2002),VLOOKUP(I30,Feuil1!$A$11:$F$29,3),VLOOKUP(I30,Feuil1!$A$11:$F$29,2))))),IF(OR(H30="SEN",H30<1995),VLOOKUP(I30,Feuil1!$G$11:$L$25,6),IF(AND(H30>1994,H30<1998),VLOOKUP(I30,Feuil1!$G$11:$L$25,5),IF(AND(H30>1997,H30<2000),VLOOKUP(I30,Feuil1!$G$11:$L$25,4),IF(AND(H30>1999,H30<2002),VLOOKUP(I30,Feuil1!$G$11:$L$25,3),VLOOKUP(I30,Feuil1!$G$11:$L$25,2))))))) -> FC2 53 | Y30: =IF(I30="","",IF(A30="H",10^(0.794358141*LOG(I30/174.393)^2)*T30,IF(A30="F",10^(0.89726074*LOG(I30/148.026)^2)*T30,""))) -> 168.3218512 | AB30: =T30-HLOOKUP(X30,Feuil1!$C$1:$BL$10,2,FALSE) -> 60 | AC30: =T30-HLOOKUP(X30,Feuil1!$C$1:$BL$10,3,FALSE) -> 50 | AD30: =T30-HLOOKUP(X30,Feuil1!$C$1:$BL$10,4,FALSE) -> 40 | AE30: =T30-HLOOKUP(X30,Feuil1!$C$1:$BL$10,5,FALSE) -> 30 | AF30: =T30-HLOOKUP(X30,Feuil1!$C$1:$BL$10,6,FALSE) -> 20 | AG30: =T30-HLOOKUP(X30,Feuil1!$C$1:$BL$10,7,FALSE) -> 10 | AH30: =T30-HLOOKUP(X30,Feuil1!$C$1:$BL$10,8,FALSE) -> 0 | AI30: =T30-HLOOKUP(X30,Feuil1!$C$1:$BL$10,9,FALSE) -> -15 | AJ30: =T30-HLOOKUP(X30,Feuil1!$C$1:$BL$10,10,FALSE) -> -895 | AQ30: =IF(AJ30>=0,$AJ$4,IF(AI30>=0,$AI$4,IF(AH30>=0,$AH$4,IF(AG30>=0,$AG$4,IF(AF30>=0,$AF$4,IF(AE30>=0,$AE$4,IF(AD30>=0,$AD$4,IF(AC30>=0,$AC$4,$AB$4)))))))) -> INTB +
A31: F | B31: Nord | C31: PIC | D31: 2 | E31: 326995 | F31: BONNIERE | G31: Priscillia | H31: 1999 | I31: 52.93 | J31: Villers-Bretonneux KC | K31: F | L31: 40 | M31: 43 | N31: -44 | O31: =IF(H31="","",IF(MAXA(L31:N31)<=0,0,MAXA(L31:N31))) -> 43 | P31: 48 | Q31: 52 | R31: -55 | S31: =IF(H31="","",IF(MAXA(P31:R31)<=0,0,MAXA(P31:R31))) -> 52 | T31: =IF(H31="","",IF(OR(O31=0,S31=0),0,O31+S31)) -> 95 | U31: 42.07 | V31: =IF(H31="","",AQ31) -> NAT + | W31: =IF(AJ31>=0,AJ31,IF(AI31>=0,AI31,IF(AH31>=0,AH31,IF(AG31>=0,AG31,IF(AF31>=0,AF31,IF(AE31>=0,AE31,IF(AD31>=0,AD31,IF(AC31>=0,AC31,AB31)))))))) -> 0 | X31: =IF(I31="","",IF(A31="H",IF(OR(H31="SEN",H31<1995),VLOOKUP(I31,Feuil1!$A$11:$F$29,6),IF(AND(H31>1994,H31<1998),VLOOKUP(I31,Feuil1!$A$11:$F$29,5),IF(AND(H31>1997,H31<2000),VLOOKUP(I31,Feuil1!$A$11:$F$29,4),IF(AND(H31>1999,H31<2002),VLOOKUP(I31,Feuil1!$A$11:$F$29,3),VLOOKUP(I31,Feuil1!$A$11:$F$29,2))))),IF(OR(H31="SEN",H31<1995),VLOOKUP(I31,Feuil1!$G$11:$L$25,6),IF(AND(H31>1994,H31<1998),VLOOKUP(I31,Feuil1!$G$11:$L$25,5),IF(AND(H31>1997,H31<2000),VLOOKUP(I31,Feuil1!$G$11:$L$25,4),IF(AND(H31>1999,H31<2002),VLOOKUP(I31,Feuil1!$G$11:$L$25,3),VLOOKUP(I31,Feuil1!$G$11:$L$25,2))))))) -> FC2 53 | Y31: =IF(I31="","",IF(A31="H",10^(0.794358141*LOG(I31/174.393)^2)*T31,IF(A31="F",10^(0.89726074*LOG(I31/148.026)^2)*T31,""))) -> 143.4539795 | AB31: =T31-HLOOKUP(X31,Feuil1!$C$1:$BL$10,2,FALSE) -> 50 | AC31: =T31-HLOOKUP(X31,Feuil1!$C$1:$BL$10,3,FALSE) -> 40 | AD31: =T31-HLOOKUP(X31,Feuil1!$C$1:$BL$10,4,FALSE) -> 30 | AE31: =T31-HLOOKUP(X31,Feuil1!$C$1:$BL$10,5,FALSE) -> 20 | AF31: =T31-HLOOKUP(X31,Feuil1!$C$1:$BL$10,6,FALSE) -> 10 | AG31: =T31-HLOOKUP(X31,Feuil1!$C$1:$BL$10,7,FALSE) -> 0 | AH31: =T31-HLOOKUP(X31,Feuil1!$C$1:$BL$10,8,FALSE) -> -10 | AI31: =T31-HLOOKUP(X31,Feuil1!$C$1:$BL$10,9,FALSE) -> -25 | AJ31: =T31-HLOOKUP(X31,Feuil1!$C$1:$BL$10,10,FALSE) -> -905 | AQ31: =IF(AJ31>=0,$AJ$4,IF(AI31>=0,$AI$4,IF(AH31>=0,$AH$4,IF(AG31>=0,$AG$4,IF(AF31>=0,$AF$4,IF(AE31>=0,$AE$4,IF(AD31>=0,$AD$4,IF(AC31>=0,$AC$4,$AB$4)))))))) -> NAT +
A32: F | B32: ZCO | C32: BNO | D32: 3 | E32: 285369 | F32: VILLENEUVE | G32: Irys | H32: 1998 | I32: 52.54 | J32: Caen CHM | K32: F | L32: 40 | M32: -43 | N32: -43 | O32: =IF(H32="","",IF(MAXA(L32:N32)<=0,0,MAXA(L32:N32))) -> 40 | P32: 50 | Q32: -55 | R32: -55 | S32: =IF(H32="","",IF(MAXA(P32:R32)<=0,0,MAXA(P32:R32))) -> 50 | T32: =IF(H32="","",IF(OR(O32=0,S32=0),0,O32+S32)) -> 90 | U32: 37.46 | V32: =IF(H32="","",AQ32) -> FED + | W32: =IF(AJ32>=0,AJ32,IF(AI32>=0,AI32,IF(AH32>=0,AH32,IF(AG32>=0,AG32,IF(AF32>=0,AF32,IF(AE32>=0,AE32,IF(AD32>=0,AD32,IF(AC32>=0,AC32,AB32)))))))) -> 5 | X32: =IF(I32="","",IF(A32="H",IF(OR(H32="SEN",H32<1995),VLOOKUP(I32,Feuil1!$A$11:$F$29,6),IF(AND(H32>1994,H32<1998),VLOOKUP(I32,Feuil1!$A$11:$F$29,5),IF(AND(H32>1997,H32<2000),VLOOKUP(I32,Feuil1!$A$11:$F$29,4),IF(AND(H32>1999,H32<2002),VLOOKUP(I32,Feuil1!$A$11:$F$29,3),VLOOKUP(I32,Feuil1!$A$11:$F$29,2))))),IF(OR(H32="SEN",H32<1995),VLOOKUP(I32,Feuil1!$G$11:$L$25,6),IF(AND(H32>1994,H32<1998),VLOOKUP(I32,Feuil1!$G$11:$L$25,5),IF(AND(H32>1997,H32<2000),VLOOKUP(I32,Feuil1!$G$11:$L$25,4),IF(AND(H32>1999,H32<2002),VLOOKUP(I32,Feuil1!$G$11:$L$25,3),VLOOKUP(I32,Feuil1!$G$11:$L$25,2))))))) -> FC2 53 | Y32: =IF(I32="","",IF(A32="H",10^(0.794358141*LOG(I32/174.393)^2)*T32,IF(A32="F",10^(0.89726074*LOG(I32/148.026)^2)*T32,""))) -> 136.7146429 | AB32: =T32-HLOOKUP(X32,Feuil1!$C$1:$BL$10,2,FALSE) -> 45 | AC32: =T32-HLOOKUP(X32,Feuil1!$C$1:$BL$10,3,FALSE) -> 35 | AD32: =T32-HLOOKUP(X32,Feuil1!$C$1:$BL$10,4,FALSE) -> 25 | AE32: =T32-HLOOKUP(X32,Feuil1!$C$1:$BL$10,5,FALSE) -> 15 | AF32: =T32-HLOOKUP(X32,Feuil1!$C$1:$BL$10,6,FALSE) -> 5 | AG32: =T32-HLOOKUP(X32,Feuil1!$C$1:$BL$10,7,FALSE) -> -5 | AH32: =T32-HLOOKUP(X32,Feuil1!$C$1:$BL$10,8,FALSE) -> -15 | AI32: =T32-HLOOKUP(X32,Feuil1!$C$1:$BL$10,9,FALSE) -> -30 | AJ32: =T32-HLOOKUP(X32,Feuil1!$C$1:$BL$10,10,FALSE) -> -910 | AQ32: =IF(AJ32>=0,$AJ$4,IF(AI32>=0,$AI$4,IF(AH32>=0,$AH$4,IF(AG32>=0,$AG$4,IF(AF32>=0,$AF$4,IF(AE32>=0,$AE$4,IF(AD32>=0,$AD$4,IF(AC32>=0,$AC$4,$AB$4)))))))) -> FED +
A33: F | B33: SEST | C33: CAZ | D33: 4 | E33: 363002 | F33: MAILLOT | G33: Asia | H33: 1998 | I33: 49 | J33: ASLDD. TOULON | K33: F | L33: -36 | M33: 36 | N33: 39 | O33: =IF(H33="","",IF(MAXA(L33:N33)<=0,0,MAXA(L33:N33))) -> 39 | P33: 47 | Q33: 50 | R33: -52 | S33: =IF(H33="","",IF(MAXA(P33:R33)<=0,0,MAXA(P33:R33))) -> 50 | T33: =IF(H33="","",IF(OR(O33=0,S33=0),0,O33+S33)) -> 89 | U33: 40 | V33: =IF(H33="","",AQ33) -> FED + | W33: =IF(AJ33>=0,AJ33,IF(AI33>=0,AI33,IF(AH33>=0,AH33,IF(AG33>=0,AG33,IF(AF33>=0,AF33,IF(AE33>=0,AE33,IF(AD33>=0,AD33,IF(AC33>=0,AC33,AB33)))))))) -> 4 | X33: =IF(I33="","",IF(A33="H",IF(OR(H33="SEN",H33<1995),VLOOKUP(I33,Feuil1!$A$11:$F$29,6),IF(AND(H33>1994,H33<1998),VLOOKUP(I33,Feuil1!$A$11:$F$29,5),IF(AND(H33>1997,H33<2000),VLOOKUP(I33,Feuil1!$A$11:$F$29,4),IF(AND(H33>1999,H33<2002),VLOOKUP(I33,Feuil1!$A$11:$F$29,3),VLOOKUP(I33,Feuil1!$A$11:$F$29,2))))),IF(OR(H33="SEN",H33<1995),VLOOKUP(I33,Feuil1!$G$11:$L$25,6),IF(AND(H33>1994,H33<1998),VLOOKUP(I33,Feuil1!$G$11:$L$25,5),IF(AND(H33>1997,H33<2000),VLOOKUP(I33,Feuil1!$G$11:$L$25,4),IF(AND(H33>1999,H33<2002),VLOOKUP(I33,Feuil1!$G$11:$L$25,3),VLOOKUP(I33,Feuil1!$G$11:$L$25,2))))))) -> FC2 53 | Y33: =IF(I33="","",IF(A33="H",10^(0.794358141*LOG(I33/174.393)^2)*T33,IF(A33="F",10^(0.89726074*LOG(I33/148.026)^2)*T33,""))) -> 143.2983362 | AB33: =T33-HLOOKUP(X33,Feuil1!$C$1:$BL$10,2,FALSE) -> 44 | AC33: =T33-HLOOKUP(X33,Feuil1!$C$1:$BL$10,3,FALSE) -> 34 | AD33: =T33-HLOOKUP(X33,Feuil1!$C$1:$BL$10,4,FALSE) -> 24 | AE33: =T33-HLOOKUP(X33,Feuil1!$C$1:$BL$10,5,FALSE) -> 14 | AF33: =T33-HLOOKUP(X33,Feuil1!$C$1:$BL$10,6,FALSE) -> 4 | AG33: =T33-HLOOKUP(X33,Feuil1!$C$1:$BL$10,7,FALSE) -> -6 | AH33: =T33-HLOOKUP(X33,Feuil1!$C$1:$BL$10,8,FALSE) -> -16 | AI33: =T33-HLOOKUP(X33,Feuil1!$C$1:$BL$10,9,FALSE) -> -31 | AJ33: =T33-HLOOKUP(X33,Feuil1!$C$1:$BL$10,10,FALSE) -> -911 | AQ33: =IF(AJ33>=0,$AJ$4,IF(AI33>=0,$AI$4,IF(AH33>=0,$AH$4,IF(AG33>=0,$AG$4,IF(AF33>=0,$AF$4,IF(AE33>=0,$AE$4,IF(AD33>=0,$AD$4,IF(AC33>=0,$AC$4,$AB$4)))))))) -> FED +
A34: F | B34: DOM | C34: MAR | D34: 5 | E34: 362590 | F34: BOISFER | G34: Priscilla | H34: 1999 | I34: 52.6 | J34: ABBC/Foyal Didier | K34: F | L34: 33 | M34: 37 | N34: -40 | O34: =IF(H34="","",IF(MAXA(L34:N34)<=0,0,MAXA(L34:N34))) -> 37 | P34: 44 | Q34: 49 | R34: -52 | S34: =IF(H34="","",IF(MAXA(P34:R34)<=0,0,MAXA(P34:R34))) -> 49 | T34: =IF(H34="","",IF(OR(O34=0,S34=0),0,O34+S34)) -> 86 | U34: =T34-I34 -> 33.4 | V34: =IF(H34="","",AQ34) -> FED + | W34: =IF(AJ34>=0,AJ34,IF(AI34>=0,AI34,IF(AH34>=0,AH34,IF(AG34>=0,AG34,IF(AF34>=0,AF34,IF(AE34>=0,AE34,IF(AD34>=0,AD34,IF(AC34>=0,AC34,AB34)))))))) -> 1 | X34: =IF(I34="","",IF(A34="H",IF(OR(H34="SEN",H34<1995),VLOOKUP(I34,Feuil1!$A$11:$F$29,6),IF(AND(H34>1994,H34<1998),VLOOKUP(I34,Feuil1!$A$11:$F$29,5),IF(AND(H34>1997,H34<2000),VLOOKUP(I34,Feuil1!$A$11:$F$29,4),IF(AND(H34>1999,H34<2002),VLOOKUP(I34,Feuil1!$A$11:$F$29,3),VLOOKUP(I34,Feuil1!$A$11:$F$29,2))))),IF(OR(H34="SEN",H34<1995),VLOOKUP(I34,Feuil1!$G$11:$L$25,6),IF(AND(H34>1994,H34<1998),VLOOKUP(I34,Feuil1!$G$11:$L$25,5),IF(AND(H34>1997,H34<2000),VLOOKUP(I34,Feuil1!$G$11:$L$25,4),IF(AND(H34>1999,H34<2002),VLOOKUP(I34,Feuil1!$G$11:$L$25,3),VLOOKUP(I34,Feuil1!$G$11:$L$25,2))))))) -> FC2 53 | Y34: =IF(I34="","",IF(A34="H",10^(0.794358141*LOG(I34/174.393)^2)*T34,IF(A34="F",10^(0.89726074*LOG(I34/148.026)^2)*T34,""))) -> 130.5181937 | AB34: =T34-HLOOKUP(X34,Feuil1!$C$1:$BL$10,2,FALSE) -> 41 | AC34: =T34-HLOOKUP(X34,Feuil1!$C$1:$BL$10,3,FALSE) -> 31 | AD34: =T34-HLOOKUP(X34,Feuil1!$C$1:$BL$10,4,FALSE) -> 21 | AE34: =T34-HLOOKUP(X34,Feuil1!$C$1:$BL$10,5,FALSE) -> 11 | AF34: =T34-HLOOKUP(X34,Feuil1!$C$1:$BL$10,6,FALSE) -> 1 | AG34: =T34-HLOOKUP(X34,Feuil1!$C$1:$BL$10,7,FALSE) -> -9 | AH34: =T34-HLOOKUP(X34,Feuil1!$C$1:$BL$10,8,FALSE) -> -19 | AI34: =T34-HLOOKUP(X34,Feuil1!$C$1:$BL$10,9,FALSE) -> -34 | AJ34: =T34-HLOOKUP(X34,Feuil1!$C$1:$BL$10,10,FALSE) -> -914 | AQ34: =IF(AJ34>=0,$AJ$4,IF(AI34>=0,$AI$4,IF(AH34>=0,$AH$4,IF(AG34>=0,$AG$4,IF(AF34>=0,$AF$4,IF(AE34>=0,$AE$4,IF(AD34>=0,$AD$4,IF(AC34>=0,$AC$4,$AB$4)))))))) -> FED +
AB35: =T35-HLOOKUP(X35,Feuil1!$C$1:$BL$10,2,FALSE) ->  | AC35: =T35-HLOOKUP(X35,Feuil1!$C$1:$BL$10,3,FALSE) ->  | AD35: =T35-HLOOKUP(X35,Feuil1!$C$1:$BL$10,4,FALSE) ->  | AE35: =T35-HLOOKUP(X35,Feuil1!$C$1:$BL$10,5,FALSE) ->  | AF35: =T35-HLOOKUP(X35,Feuil1!$C$1:$BL$10,6,FALSE) ->  | AG35: =T35-HLOOKUP(X35,Feuil1!$C$1:$BL$10,7,FALSE) ->  | AH35: =T35-HLOOKUP(X35,Feuil1!$C$1:$BL$10,8,FALSE) ->  | AI35: =T35-HLOOKUP(X35,Feuil1!$C$1:$BL$10,9,FALSE) ->  | AJ35: =T35-HLOOKUP(X35,Feuil1!$C$1:$BL$10,10,FALSE) -> 
A36: F | B36: Nord | C36: PIC | D36: 1 | E36: 260923 | F36: ARNOULD | G36: Lutricia | H36: 1998 | I36: 57.94 | J36: Villers-Bretonneux KC | K36: F | L36: 52 | M36: -56 | N36: 56 | O36: =IF(H36="","",IF(MAXA(L36:N36)<=0,0,MAXA(L36:N36))) -> 56 | P36: 67 | Q36: 70 | R36: 72 | S36: =IF(H36="","",IF(MAXA(P36:R36)<=0,0,MAXA(P36:R36))) -> 72 | T36: =IF(H36="","",IF(OR(O36=0,S36=0),0,O36+S36)) -> 128 | U36: 70.06 | V36: =IF(H36="","",AQ36) -> INTB + | W36: =IF(AJ36>=0,AJ36,IF(AI36>=0,AI36,IF(AH36>=0,AH36,IF(AG36>=0,AG36,IF(AF36>=0,AF36,IF(AE36>=0,AE36,IF(AD36>=0,AD36,IF(AC36>=0,AC36,AB36)))))))) -> 13 | X36: =IF(I36="","",IF(A36="H",IF(OR(H36="SEN",H36<1995),VLOOKUP(I36,Feuil1!$A$11:$F$29,6),IF(AND(H36>1994,H36<1998),VLOOKUP(I36,Feuil1!$A$11:$F$29,5),IF(AND(H36>1997,H36<2000),VLOOKUP(I36,Feuil1!$A$11:$F$29,4),IF(AND(H36>1999,H36<2002),VLOOKUP(I36,Feuil1!$A$11:$F$29,3),VLOOKUP(I36,Feuil1!$A$11:$F$29,2))))),IF(OR(H36="SEN",H36<1995),VLOOKUP(I36,Feuil1!$G$11:$L$25,6),IF(AND(H36>1994,H36<1998),VLOOKUP(I36,Feuil1!$G$11:$L$25,5),IF(AND(H36>1997,H36<2000),VLOOKUP(I36,Feuil1!$G$11:$L$25,4),IF(AND(H36>1999,H36<2002),VLOOKUP(I36,Feuil1!$G$11:$L$25,3),VLOOKUP(I36,Feuil1!$G$11:$L$25,2))))))) -> FC2 58 | Y36: =IF(I36="","",IF(A36="H",10^(0.794358141*LOG(I36/174.393)^2)*T36,IF(A36="F",10^(0.89726074*LOG(I36/148.026)^2)*T36,""))) -> 180.3445437 | AB36: =T36-HLOOKUP(X36,Feuil1!$C$1:$BL$10,2,FALSE) -> 78 | AC36: =T36-HLOOKUP(X36,Feuil1!$C$1:$BL$10,3,FALSE) -> 68 | AD36: =T36-HLOOKUP(X36,Feuil1!$C$1:$BL$10,4,FALSE) -> 58 | AE36: =T36-HLOOKUP(X36,Feuil1!$C$1:$BL$10,5,FALSE) -> 48 | AF36: =T36-HLOOKUP(X36,Feuil1!$C$1:$BL$10,6,FALSE) -> 38 | AG36: =T36-HLOOKUP(X36,Feuil1!$C$1:$BL$10,7,FALSE) -> 28 | AH36: =T36-HLOOKUP(X36,Feuil1!$C$1:$BL$10,8,FALSE) -> 13 | AI36: =T36-HLOOKUP(X36,Feuil1!$C$1:$BL$10,9,FALSE) -> -2 | AJ36: =T36-HLOOKUP(X36,Feuil1!$C$1:$BL$10,10,FALSE) -> -872 | AQ36: =IF(AJ36>=0,$AJ$4,IF(AI36>=0,$AI$4,IF(AH36>=0,$AH$4,IF(AG36>=0,$AG$4,IF(AF36>=0,$AF$4,IF(AE36>=0,$AE$4,IF(AD36>=0,$AD$4,IF(AC36>=0,$AC$4,$AB$4)))))))) -> INTB +
A37: F | B37: Nord | C37: NPC | D37: 2 | E37: 208590 | F37: HOUZÉ | G37: Océane | H37: 1998 | I37: 57.99 | J37: CHCD Comines | K37: F | L37: 43 | M37: 45 | N37: 47 | O37: =IF(H37="","",IF(MAXA(L37:N37)<=0,0,MAXA(L37:N37))) -> 47 | P37: 53 | Q37: 56 | R37: -60 | S37: =IF(H37="","",IF(MAXA(P37:R37)<=0,0,MAXA(P37:R37))) -> 56 | T37: =IF(H37="","",IF(OR(O37=0,S37=0),0,O37+S37)) -> 103 | U37: 45.01 | V37: =IF(H37="","",AQ37) -> NAT + | W37: =IF(AJ37>=0,AJ37,IF(AI37>=0,AI37,IF(AH37>=0,AH37,IF(AG37>=0,AG37,IF(AF37>=0,AF37,IF(AE37>=0,AE37,IF(AD37>=0,AD37,IF(AC37>=0,AC37,AB37)))))))) -> 3 | X37: =IF(I37="","",IF(A37="H",IF(OR(H37="SEN",H37<1995),VLOOKUP(I37,Feuil1!$A$11:$F$29,6),IF(AND(H37>1994,H37<1998),VLOOKUP(I37,Feuil1!$A$11:$F$29,5),IF(AND(H37>1997,H37<2000),VLOOKUP(I37,Feuil1!$A$11:$F$29,4),IF(AND(H37>1999,H37<2002),VLOOKUP(I37,Feuil1!$A$11:$F$29,3),VLOOKUP(I37,Feuil1!$A$11:$F$29,2))))),IF(OR(H37="SEN",H37<1995),VLOOKUP(I37,Feuil1!$G$11:$L$25,6),IF(AND(H37>1994,H37<1998),VLOOKUP(I37,Feuil1!$G$11:$L$25,5),IF(AND(H37>1997,H37<2000),VLOOKUP(I37,Feuil1!$G$11:$L$25,4),IF(AND(H37>1999,H37<2002),VLOOKUP(I37,Feuil1!$G$11:$L$25,3),VLOOKUP(I37,Feuil1!$G$11:$L$25,2))))))) -> FC2 58 | Y37: =IF(I37="","",IF(A37="H",10^(0.794358141*LOG(I37/174.393)^2)*T37,IF(A37="F",10^(0.89726074*LOG(I37/148.026)^2)*T37,""))) -> 145.0295625 | AB37: =T37-HLOOKUP(X37,Feuil1!$C$1:$BL$10,2,FALSE) -> 53 | AC37: =T37-HLOOKUP(X37,Feuil1!$C$1:$BL$10,3,FALSE) -> 43 | AD37: =T37-HLOOKUP(X37,Feuil1!$C$1:$BL$10,4,FALSE) -> 33 | AE37: =T37-HLOOKUP(X37,Feuil1!$C$1:$BL$10,5,FALSE) -> 23 | AF37: =T37-HLOOKUP(X37,Feuil1!$C$1:$BL$10,6,FALSE) -> 13 | AG37: =T37-HLOOKUP(X37,Feuil1!$C$1:$BL$10,7,FALSE) -> 3 | AH37: =T37-HLOOKUP(X37,Feuil1!$C$1:$BL$10,8,FALSE) -> -12 | AI37: =T37-HLOOKUP(X37,Feuil1!$C$1:$BL$10,9,FALSE) -> -27 | AJ37: =T37-HLOOKUP(X37,Feuil1!$C$1:$BL$10,10,FALSE) -> -897 | AQ37: =IF(AJ37>=0,$AJ$4,IF(AI37>=0,$AI$4,IF(AH37>=0,$AH$4,IF(AG37>=0,$AG$4,IF(AF37>=0,$AF$4,IF(AE37>=0,$AE$4,IF(AD37>=0,$AD$4,IF(AC37>=0,$AC$4,$AB$4)))))))) -> NAT +
A38: F | B38: DOM | C38: MAR | D38: 3 | E38: 286912 | F38: KICHENAMA | G38: Clara | H38: 1999 | I38: 58 | J38: ABBC/Foyal Didier | K38: F | L38: 40 | M38: 45 | N38: -48 | O38: =IF(H38="","",IF(MAXA(L38:N38)<=0,0,MAXA(L38:N38))) -> 45 | P38: 55 | Q38: -60 | R38: -60 | S38: =IF(H38="","",IF(MAXA(P38:R38)<=0,0,MAXA(P38:R38))) -> 55 | T38: =IF(H38="","",IF(OR(O38=0,S38=0),0,O38+S38)) -> 100 | U38: =T38-I38 -> 42 | V38: =IF(H38="","",AQ38) -> NAT + | W38: =IF(AJ38>=0,AJ38,IF(AI38>=0,AI38,IF(AH38>=0,AH38,IF(AG38>=0,AG38,IF(AF38>=0,AF38,IF(AE38>=0,AE38,IF(AD38>=0,AD38,IF(AC38>=0,AC38,AB38)))))))) -> 0 | X38: =IF(I38="","",IF(A38="H",IF(OR(H38="SEN",H38<1995),VLOOKUP(I38,Feuil1!$A$11:$F$29,6),IF(AND(H38>1994,H38<1998),VLOOKUP(I38,Feuil1!$A$11:$F$29,5),IF(AND(H38>1997,H38<2000),VLOOKUP(I38,Feuil1!$A$11:$F$29,4),IF(AND(H38>1999,H38<2002),VLOOKUP(I38,Feuil1!$A$11:$F$29,3),VLOOKUP(I38,Feuil1!$A$11:$F$29,2))))),IF(OR(H38="SEN",H38<1995),VLOOKUP(I38,Feuil1!$G$11:$L$25,6),IF(AND(H38>1994,H38<1998),VLOOKUP(I38,Feuil1!$G$11:$L$25,5),IF(AND(H38>1997,H38<2000),VLOOKUP(I38,Feuil1!$G$11:$L$25,4),IF(AND(H38>1999,H38<2002),VLOOKUP(I38,Feuil1!$G$11:$L$25,3),VLOOKUP(I38,Feuil1!$G$11:$L$25,2))))))) -> FC2 58 | Y38: =IF(I38="","",IF(A38="H",10^(0.794358141*LOG(I38/174.393)^2)*T38,IF(A38="F",10^(0.89726074*LOG(I38/148.026)^2)*T38,""))) -> 140.7876713 | AB38: =T38-HLOOKUP(X38,Feuil1!$C$1:$BL$10,2,FALSE) -> 50 | AC38: =T38-HLOOKUP(X38,Feuil1!$C$1:$BL$10,3,FALSE) -> 40 | AD38: =T38-HLOOKUP(X38,Feuil1!$C$1:$BL$10,4,FALSE) -> 30 | AE38: =T38-HLOOKUP(X38,Feuil1!$C$1:$BL$10,5,FALSE) -> 20 | AF38: =T38-HLOOKUP(X38,Feuil1!$C$1:$BL$10,6,FALSE) -> 10 | AG38: =T38-HLOOKUP(X38,Feuil1!$C$1:$BL$10,7,FALSE) -> 0 | AH38: =T38-HLOOKUP(X38,Feuil1!$C$1:$BL$10,8,FALSE) -> -15 | AI38: =T38-HLOOKUP(X38,Feuil1!$C$1:$BL$10,9,FALSE) -> -30 | AJ38: =T38-HLOOKUP(X38,Feuil1!$C$1:$BL$10,10,FALSE) -> -900 | AQ38: =IF(AJ38>=0,$AJ$4,IF(AI38>=0,$AI$4,IF(AH38>=0,$AH$4,IF(AG38>=0,$AG$4,IF(AF38>=0,$AF$4,IF(AE38>=0,$AE$4,IF(AD38>=0,$AD$4,IF(AC38>=0,$AC$4,$AB$4)))))))) -> NAT +
A39: F | B39: Nord | C39: NPC | D39: 4 | E39: 280129 | F39: BOUDRAHEM | G39: Inès | H39: 1999 | I39: 56.56 | J39: St Pol sur Mer | K39: F | L39: 40 | M39: -43 | N39: 43 | O39: =IF(H39="","",IF(MAXA(L39:N39)<=0,0,MAXA(L39:N39))) -> 43 | P39: 50 | Q39: 55 | R39: -57 | S39: 55 | T39: 98 | U39: 41.44 | V39: FED + | W39: 8 | X39: =IF(I39="","",IF(A39="H",IF(OR(H39="SEN",H39<1995),VLOOKUP(I39,Feuil1!$A$11:$F$29,6),IF(AND(H39>1994,H39<1998),VLOOKUP(I39,Feuil1!$A$11:$F$29,5),IF(AND(H39>1997,H39<2000),VLOOKUP(I39,Feuil1!$A$11:$F$29,4),IF(AND(H39>1999,H39<2002),VLOOKUP(I39,Feuil1!$A$11:$F$29,3),VLOOKUP(I39,Feuil1!$A$11:$F$29,2))))),IF(OR(H39="SEN",H39<1995),VLOOKUP(I39,Feuil1!$G$11:$L$25,6),IF(AND(H39>1994,H39<1998),VLOOKUP(I39,Feuil1!$G$11:$L$25,5),IF(AND(H39>1997,H39<2000),VLOOKUP(I39,Feuil1!$G$11:$L$25,4),IF(AND(H39>1999,H39<2002),VLOOKUP(I39,Feuil1!$G$11:$L$25,3),VLOOKUP(I39,Feuil1!$G$11:$L$25,2))))))) -> FC2 58 | Y39: 140.5628392 | AB39: =T39-HLOOKUP(X39,Feuil1!$C$1:$BL$10,2,FALSE) -> 48 | AC39: =T39-HLOOKUP(X39,Feuil1!$C$1:$BL$10,3,FALSE) -> 38 | AD39: =T39-HLOOKUP(X39,Feuil1!$C$1:$BL$10,4,FALSE) -> 28 | AE39: =T39-HLOOKUP(X39,Feuil1!$C$1:$BL$10,5,FALSE) -> 18 | AF39: =T39-HLOOKUP(X39,Feuil1!$C$1:$BL$10,6,FALSE) -> 8 | AG39: =T39-HLOOKUP(X39,Feuil1!$C$1:$BL$10,7,FALSE) -> -2 | AH39: =T39-HLOOKUP(X39,Feuil1!$C$1:$BL$10,8,FALSE) -> -17 | AI39: =T39-HLOOKUP(X39,Feuil1!$C$1:$BL$10,9,FALSE) -> -32 | AJ39: =T39-HLOOKUP(X39,Feuil1!$C$1:$BL$10,10,FALSE) -> -902 | AQ39: FED +
A40: F | B40: DOM | C40: GUA | D40: 5 | E40: 367889 | F40: UFFREN | G40: Aurore | H40: 1998 | I40: 57.7 | J40: AHCS/Pointois | K40: F | L40: 34 | M40: 37 | N40: -40 | O40: =IF(H40="","",IF(MAXA(L40:N40)<=0,0,MAXA(L40:N40))) -> 37 | P40: 40 | Q40: 45 | R40: -50 | S40: 45 | T40: 82 | U40: 24.3 | V40: IRG + | W40: 2 | X40: =IF(I40="","",IF(A40="H",IF(OR(H40="SEN",H40<1995),VLOOKUP(I40,Feuil1!$A$11:$F$29,6),IF(AND(H40>1994,H40<1998),VLOOKUP(I40,Feuil1!$A$11:$F$29,5),IF(AND(H40>1997,H40<2000),VLOOKUP(I40,Feuil1!$A$11:$F$29,4),IF(AND(H40>1999,H40<2002),VLOOKUP(I40,Feuil1!$A$11:$F$29,3),VLOOKUP(I40,Feuil1!$A$11:$F$29,2))))),IF(OR(H40="SEN",H40<1995),VLOOKUP(I40,Feuil1!$G$11:$L$25,6),IF(AND(H40>1994,H40<1998),VLOOKUP(I40,Feuil1!$G$11:$L$25,5),IF(AND(H40>1997,H40<2000),VLOOKUP(I40,Feuil1!$G$11:$L$25,4),IF(AND(H40>1999,H40<2002),VLOOKUP(I40,Feuil1!$G$11:$L$25,3),VLOOKUP(I40,Feuil1!$G$11:$L$25,2))))))) -> FC2 58 | Y40: 115.8850977 | AB40: =T40-HLOOKUP(X40,Feuil1!$C$1:$BL$10,2,FALSE) -> 32 | AC40: =T40-HLOOKUP(X40,Feuil1!$C$1:$BL$10,3,FALSE) -> 22 | AD40: =T40-HLOOKUP(X40,Feuil1!$C$1:$BL$10,4,FALSE) -> 12 | AE40: =T40-HLOOKUP(X40,Feuil1!$C$1:$BL$10,5,FALSE) -> 2 | AF40: =T40-HLOOKUP(X40,Feuil1!$C$1:$BL$10,6,FALSE) -> -8 | AG40: =T40-HLOOKUP(X40,Feuil1!$C$1:$BL$10,7,FALSE) -> -18 | AH40: =T40-HLOOKUP(X40,Feuil1!$C$1:$BL$10,8,FALSE) -> -33 | AI40: =T40-HLOOKUP(X40,Feuil1!$C$1:$BL$10,9,FALSE) -> -48 | AJ40: =T40-HLOOKUP(X40,Feuil1!$C$1:$BL$10,10,FALSE) -> -918 | AQ40: IRG +
AB41: =T41-HLOOKUP(X41,Feuil1!$C$1:$BL$10,2,FALSE) ->  | AC41: =T41-HLOOKUP(X41,Feuil1!$C$1:$BL$10,3,FALSE) ->  | AD41: =T41-HLOOKUP(X41,Feuil1!$C$1:$BL$10,4,FALSE) ->  | AE41: =T41-HLOOKUP(X41,Feuil1!$C$1:$BL$10,5,FALSE) ->  | AF41: =T41-HLOOKUP(X41,Feuil1!$C$1:$BL$10,6,FALSE) ->  | AG41: =T41-HLOOKUP(X41,Feuil1!$C$1:$BL$10,7,FALSE) ->  | AH41: =T41-HLOOKUP(X41,Feuil1!$C$1:$BL$10,8,FALSE) ->  | AI41: =T41-HLOOKUP(X41,Feuil1!$C$1:$BL$10,9,FALSE) ->  | AJ41: =T41-HLOOKUP(X41,Feuil1!$C$1:$BL$10,10,FALSE) -> 
A42: F | B42: NE | C42: BOU | D42: 1 | E42: 334936 | F42: COMTE | G42: Pauline | H42: 1999 | I42: 60.8 | J42: HC Avallon | K42: F | L42: 48 | M42: 52 | N42: 56 | O42: =IF(H42="","",IF(MAXA(L42:N42)<=0,0,MAXA(L42:N42))) -> 56 | P42: 60 | Q42: 65 | R42: -69 | S42: =IF(H42="","",IF(MAXA(P42:R42)<=0,0,MAXA(P42:R42))) -> 65 | T42: =IF(H42="","",IF(OR(O42=0,S42=0),0,O42+S42)) -> 121 | U42: 60.2 | V42: =IF(H42="","",AQ42) -> NAT + | W42: =IF(AJ42>=0,AJ42,IF(AI42>=0,AI42,IF(AH42>=0,AH42,IF(AG42>=0,AG42,IF(AF42>=0,AF42,IF(AE42>=0,AE42,IF(AD42>=0,AD42,IF(AC42>=0,AC42,AB42)))))))) -> 11 | X42: =IF(I42="","",IF(A42="H",IF(OR(H42="SEN",H42<1995),VLOOKUP(I42,Feuil1!$A$11:$F$29,6),IF(AND(H42>1994,H42<1998),VLOOKUP(I42,Feuil1!$A$11:$F$29,5),IF(AND(H42>1997,H42<2000),VLOOKUP(I42,Feuil1!$A$11:$F$29,4),IF(AND(H42>1999,H42<2002),VLOOKUP(I42,Feuil1!$A$11:$F$29,3),VLOOKUP(I42,Feuil1!$A$11:$F$29,2))))),IF(OR(H42="SEN",H42<1995),VLOOKUP(I42,Feuil1!$G$11:$L$25,6),IF(AND(H42>1994,H42<1998),VLOOKUP(I42,Feuil1!$G$11:$L$25,5),IF(AND(H42>1997,H42<2000),VLOOKUP(I42,Feuil1!$G$11:$L$25,4),IF(AND(H42>1999,H42<2002),VLOOKUP(I42,Feuil1!$G$11:$L$25,3),VLOOKUP(I42,Feuil1!$G$11:$L$25,2))))))) -> FC2 63 | Y42: =IF(I42="","",IF(A42="H",10^(0.794358141*LOG(I42/174.393)^2)*T42,IF(A42="F",10^(0.89726074*LOG(I42/148.026)^2)*T42,""))) -> 164.7307669 | AB42: =T42-HLOOKUP(X42,Feuil1!$C$1:$BL$10,2,FALSE) -> 66 | AC42: =T42-HLOOKUP(X42,Feuil1!$C$1:$BL$10,3,FALSE) -> 56 | AD42: =T42-HLOOKUP(X42,Feuil1!$C$1:$BL$10,4,FALSE) -> 46 | AE42: =T42-HLOOKUP(X42,Feuil1!$C$1:$BL$10,5,FALSE) -> 36 | AF42: =T42-HLOOKUP(X42,Feuil1!$C$1:$BL$10,6,FALSE) -> 26 | AG42: =T42-HLOOKUP(X42,Feuil1!$C$1:$BL$10,7,FALSE) -> 11 | AH42: =T42-HLOOKUP(X42,Feuil1!$C$1:$BL$10,8,FALSE) -> -4 | AI42: =T42-HLOOKUP(X42,Feuil1!$C$1:$BL$10,9,FALSE) -> -19 | AJ42: =T42-HLOOKUP(X42,Feuil1!$C$1:$BL$10,10,FALSE) -> -879 | AQ42: =IF(AJ42>=0,$AJ$4,IF(AI42>=0,$AI$4,IF(AH42>=0,$AH$4,IF(AG42>=0,$AG$4,IF(AF42>=0,$AF$4,IF(AE42>=0,$AE$4,IF(AD42>=0,$AD$4,IF(AC42>=0,$AC$4,$AB$4)))))))) -> NAT +
A43: F | B43: DOM | C43: GUA | D43: 2 | E43: 382038 | F43: NUIRO | G43: Naomy | H43: 1999 | I43: 59.7 | J43: AHCS/Pointois | K43: F | L43: 45 | M43: 50 | N43: 52 | O43: =IF(H43="","",IF(MAXA(L43:N43)<=0,0,MAXA(L43:N43))) -> 52 | P43: 53 | Q43: 58 | R43: -60 | S43: =IF(H43="","",IF(MAXA(P43:R43)<=0,0,MAXA(P43:R43))) -> 58 | T43: =IF(H43="","",IF(OR(O43=0,S43=0),0,O43+S43)) -> 110 | U43: =T43-I43 -> 50.3 | V43: =IF(H43="","",AQ43) -> NAT + | W43: =IF(AJ43>=0,AJ43,IF(AI43>=0,AI43,IF(AH43>=0,AH43,IF(AG43>=0,AG43,IF(AF43>=0,AF43,IF(AE43>=0,AE43,IF(AD43>=0,AD43,IF(AC43>=0,AC43,AB43)))))))) -> 0 | X43: =IF(I43="","",IF(A43="H",IF(OR(H43="SEN",H43<1995),VLOOKUP(I43,Feuil1!$A$11:$F$29,6),IF(AND(H43>1994,H43<1998),VLOOKUP(I43,Feuil1!$A$11:$F$29,5),IF(AND(H43>1997,H43<2000),VLOOKUP(I43,Feuil1!$A$11:$F$29,4),IF(AND(H43>1999,H43<2002),VLOOKUP(I43,Feuil1!$A$11:$F$29,3),VLOOKUP(I43,Feuil1!$A$11:$F$29,2))))),IF(OR(H43="SEN",H43<1995),VLOOKUP(I43,Feuil1!$G$11:$L$25,6),IF(AND(H43>1994,H43<1998),VLOOKUP(I43,Feuil1!$G$11:$L$25,5),IF(AND(H43>1997,H43<2000),VLOOKUP(I43,Feuil1!$G$11:$L$25,4),IF(AND(H43>1999,H43<2002),VLOOKUP(I43,Feuil1!$G$11:$L$25,3),VLOOKUP(I43,Feuil1!$G$11:$L$25,2))))))) -> FC2 63 | Y43: =IF(I43="","",IF(A43="H",10^(0.794358141*LOG(I43/174.393)^2)*T43,IF(A43="F",10^(0.89726074*LOG(I43/148.026)^2)*T43,""))) -> 151.6830678 | AB43: =T43-HLOOKUP(X43,Feuil1!$C$1:$BL$10,2,FALSE) -> 55 | AC43: =T43-HLOOKUP(X43,Feuil1!$C$1:$BL$10,3,FALSE) -> 45 | AD43: =T43-HLOOKUP(X43,Feuil1!$C$1:$BL$10,4,FALSE) -> 35 | AE43: =T43-HLOOKUP(X43,Feuil1!$C$1:$BL$10,5,FALSE) -> 25 | AF43: =T43-HLOOKUP(X43,Feuil1!$C$1:$BL$10,6,FALSE) -> 15 | AG43: =T43-HLOOKUP(X43,Feuil1!$C$1:$BL$10,7,FALSE) -> 0 | AH43: =T43-HLOOKUP(X43,Feuil1!$C$1:$BL$10,8,FALSE) -> -15 | AI43: =T43-HLOOKUP(X43,Feuil1!$C$1:$BL$10,9,FALSE) -> -30 | AJ43: =T43-HLOOKUP(X43,Feuil1!$C$1:$BL$10,10,FALSE) -> -890 | AQ43: =IF(AJ43>=0,$AJ$4,IF(AI43>=0,$AI$4,IF(AH43>=0,$AH$4,IF(AG43>=0,$AG$4,IF(AF43>=0,$AF$4,IF(AE43>=0,$AE$4,IF(AD43>=0,$AD$4,IF(AC43>=0,$AC$4,$AB$4)))))))) -> NAT +
A44: F | B44: SEST | C44: CAZ | D44: 3 | E44: 339283 | F44: DULIO | G44: Ambre | H44: 1999 | I44: 58.3 | J44: E.S. VILLENEUVE LOUBET | K44: F | L44: 44 | M44: -48 | N44: 48 | O44: =IF(H44="","",IF(MAXA(L44:N44)<=0,0,MAXA(L44:N44))) -> 48 | P44: -54 | Q44: 54 | R44: 58 | S44: =IF(H44="","",IF(MAXA(P44:R44)<=0,0,MAXA(P44:R44))) -> 58 | T44: =IF(H44="","",IF(OR(O44=0,S44=0),0,O44+S44)) -> 106 | U44: 47.7 | V44: =IF(H44="","",AQ44) -> FED + | W44: =IF(AJ44>=0,AJ44,IF(AI44>=0,AI44,IF(AH44>=0,AH44,IF(AG44>=0,AG44,IF(AF44>=0,AF44,IF(AE44>=0,AE44,IF(AD44>=0,AD44,IF(AC44>=0,AC44,AB44)))))))) -> 11 | X44: =IF(I44="","",IF(A44="H",IF(OR(H44="SEN",H44<1995),VLOOKUP(I44,Feuil1!$A$11:$F$29,6),IF(AND(H44>1994,H44<1998),VLOOKUP(I44,Feuil1!$A$11:$F$29,5),IF(AND(H44>1997,H44<2000),VLOOKUP(I44,Feuil1!$A$11:$F$29,4),IF(AND(H44>1999,H44<2002),VLOOKUP(I44,Feuil1!$A$11:$F$29,3),VLOOKUP(I44,Feuil1!$A$11:$F$29,2))))),IF(OR(H44="SEN",H44<1995),VLOOKUP(I44,Feuil1!$G$11:$L$25,6),IF(AND(H44>1994,H44<1998),VLOOKUP(I44,Feuil1!$G$11:$L$25,5),IF(AND(H44>1997,H44<2000),VLOOKUP(I44,Feuil1!$G$11:$L$25,4),IF(AND(H44>1999,H44<2002),VLOOKUP(I44,Feuil1!$G$11:$L$25,3),VLOOKUP(I44,Feuil1!$G$11:$L$25,2))))))) -> FC2 63 | Y44: =IF(I44="","",IF(A44="H",10^(0.794358141*LOG(I44/174.393)^2)*T44,IF(A44="F",10^(0.89726074*LOG(I44/148.026)^2)*T44,""))) -> 148.6753323 | AB44: =T44-HLOOKUP(X44,Feuil1!$C$1:$BL$10,2,FALSE) -> 51 | AC44: =T44-HLOOKUP(X44,Feuil1!$C$1:$BL$10,3,FALSE) -> 41 | AD44: =T44-HLOOKUP(X44,Feuil1!$C$1:$BL$10,4,FALSE) -> 31 | AE44: =T44-HLOOKUP(X44,Feuil1!$C$1:$BL$10,5,FALSE) -> 21 | AF44: =T44-HLOOKUP(X44,Feuil1!$C$1:$BL$10,6,FALSE) -> 11 | AG44: =T44-HLOOKUP(X44,Feuil1!$C$1:$BL$10,7,FALSE) -> -4 | AH44: =T44-HLOOKUP(X44,Feuil1!$C$1:$BL$10,8,FALSE) -> -19 | AI44: =T44-HLOOKUP(X44,Feuil1!$C$1:$BL$10,9,FALSE) -> -34 | AJ44: =T44-HLOOKUP(X44,Feuil1!$C$1:$BL$10,10,FALSE) -> -894 | AQ44: =IF(AJ44>=0,$AJ$4,IF(AI44>=0,$AI$4,IF(AH44>=0,$AH$4,IF(AG44>=0,$AG$4,IF(AF44>=0,$AF$4,IF(AE44>=0,$AE$4,IF(AD44>=0,$AD$4,IF(AC44>=0,$AC$4,$AB$4)))))))) -> FED +
A45: F | B45: SO | C45: MPY | D45: 4 | E45: 360521 | F45: JENNISKEN | G45: Laura | H45: 1998 | I45: 62.1 | J45: TOULOUSE HC | K45: F | L45: 40 | M45: 43 | N45: -46 | O45: =IF(H45="","",IF(MAXA(L45:N45)<=0,0,MAXA(L45:N45))) -> 43 | P45: 50 | Q45: 53 | R45: -55 | S45: =IF(H45="","",IF(MAXA(P45:R45)<=0,0,MAXA(P45:R45))) -> 53 | T45: =IF(H45="","",IF(OR(O45=0,S45=0),0,O45+S45)) -> 96 | U45: 33.9 | V45: =IF(H45="","",AQ45) -> FED + | W45: =IF(AJ45>=0,AJ45,IF(AI45>=0,AI45,IF(AH45>=0,AH45,IF(AG45>=0,AG45,IF(AF45>=0,AF45,IF(AE45>=0,AE45,IF(AD45>=0,AD45,IF(AC45>=0,AC45,AB45)))))))) -> 1 | X45: =IF(I45="","",IF(A45="H",IF(OR(H45="SEN",H45<1995),VLOOKUP(I45,Feuil1!$A$11:$F$29,6),IF(AND(H45>1994,H45<1998),VLOOKUP(I45,Feuil1!$A$11:$F$29,5),IF(AND(H45>1997,H45<2000),VLOOKUP(I45,Feuil1!$A$11:$F$29,4),IF(AND(H45>1999,H45<2002),VLOOKUP(I45,Feuil1!$A$11:$F$29,3),VLOOKUP(I45,Feuil1!$A$11:$F$29,2))))),IF(OR(H45="SEN",H45<1995),VLOOKUP(I45,Feuil1!$G$11:$L$25,6),IF(AND(H45>1994,H45<1998),VLOOKUP(I45,Feuil1!$G$11:$L$25,5),IF(AND(H45>1997,H45<2000),VLOOKUP(I45,Feuil1!$G$11:$L$25,4),IF(AND(H45>1999,H45<2002),VLOOKUP(I45,Feuil1!$G$11:$L$25,3),VLOOKUP(I45,Feuil1!$G$11:$L$25,2))))))) -> FC2 63 | Y45: =IF(I45="","",IF(A45="H",10^(0.794358141*LOG(I45/174.393)^2)*T45,IF(A45="F",10^(0.89726074*LOG(I45/148.026)^2)*T45,""))) -> 128.8145023 | AB45: =T45-HLOOKUP(X45,Feuil1!$C$1:$BL$10,2,FALSE) -> 41 | AC45: =T45-HLOOKUP(X45,Feuil1!$C$1:$BL$10,3,FALSE) -> 31 | AD45: =T45-HLOOKUP(X45,Feuil1!$C$1:$BL$10,4,FALSE) -> 21 | AE45: =T45-HLOOKUP(X45,Feuil1!$C$1:$BL$10,5,FALSE) -> 11 | AF45: =T45-HLOOKUP(X45,Feuil1!$C$1:$BL$10,6,FALSE) -> 1 | AG45: =T45-HLOOKUP(X45,Feuil1!$C$1:$BL$10,7,FALSE) -> -14 | AH45: =T45-HLOOKUP(X45,Feuil1!$C$1:$BL$10,8,FALSE) -> -29 | AI45: =T45-HLOOKUP(X45,Feuil1!$C$1:$BL$10,9,FALSE) -> -44 | AJ45: =T45-HLOOKUP(X45,Feuil1!$C$1:$BL$10,10,FALSE) -> -904 | AQ45: =IF(AJ45>=0,$AJ$4,IF(AI45>=0,$AI$4,IF(AH45>=0,$AH$4,IF(AG45>=0,$AG$4,IF(AF45>=0,$AF$4,IF(AE45>=0,$AE$4,IF(AD45>=0,$AD$4,IF(AC45>=0,$AC$4,$AB$4)))))))) -> FED +
A46: F | B46: SEST | C46: RAL | D46: 5 | E46: 344106 | F46: LAFAURIE | G46: Lise | H46: 1998 | I46: 61.35 | J46: C.H. L'ARBRESLE | K46: F | L46: 39 | M46: 42 | N46: -45 | O46: =IF(H46="","",IF(MAXA(L46:N46)<=0,0,MAXA(L46:N46))) -> 42 | P46: 49 | Q46: 53 | R46: -55 | S46: =IF(H46="","",IF(MAXA(P46:R46)<=0,0,MAXA(P46:R46))) -> 53 | T46: =IF(H46="","",IF(OR(O46=0,S46=0),0,O46+S46)) -> 95 | U46: 33.65 | V46: =IF(H46="","",AQ46) -> FED + | W46: =IF(AJ46>=0,AJ46,IF(AI46>=0,AI46,IF(AH46>=0,AH46,IF(AG46>=0,AG46,IF(AF46>=0,AF46,IF(AE46>=0,AE46,IF(AD46>=0,AD46,IF(AC46>=0,AC46,AB46)))))))) -> 0 | X46: =IF(I46="","",IF(A46="H",IF(OR(H46="SEN",H46<1995),VLOOKUP(I46,Feuil1!$A$11:$F$29,6),IF(AND(H46>1994,H46<1998),VLOOKUP(I46,Feuil1!$A$11:$F$29,5),IF(AND(H46>1997,H46<2000),VLOOKUP(I46,Feuil1!$A$11:$F$29,4),IF(AND(H46>1999,H46<2002),VLOOKUP(I46,Feuil1!$A$11:$F$29,3),VLOOKUP(I46,Feuil1!$A$11:$F$29,2))))),IF(OR(H46="SEN",H46<1995),VLOOKUP(I46,Feuil1!$G$11:$L$25,6),IF(AND(H46>1994,H46<1998),VLOOKUP(I46,Feuil1!$G$11:$L$25,5),IF(AND(H46>1997,H46<2000),VLOOKUP(I46,Feuil1!$G$11:$L$25,4),IF(AND(H46>1999,H46<2002),VLOOKUP(I46,Feuil1!$G$11:$L$25,3),VLOOKUP(I46,Feuil1!$G$11:$L$25,2))))))) -> FC2 63 | Y46: =IF(I46="","",IF(A46="H",10^(0.794358141*LOG(I46/174.393)^2)*T46,IF(A46="F",10^(0.89726074*LOG(I46/148.026)^2)*T46,""))) -> 128.5329712 | AB46: =T46-HLOOKUP(X46,Feuil1!$C$1:$BL$10,2,FALSE) -> 40 | AC46: =T46-HLOOKUP(X46,Feuil1!$C$1:$BL$10,3,FALSE) -> 30 | AD46: =T46-HLOOKUP(X46,Feuil1!$C$1:$BL$10,4,FALSE) -> 20 | AE46: =T46-HLOOKUP(X46,Feuil1!$C$1:$BL$10,5,FALSE) -> 10 | AF46: =T46-HLOOKUP(X46,Feuil1!$C$1:$BL$10,6,FALSE) -> 0 | AG46: =T46-HLOOKUP(X46,Feuil1!$C$1:$BL$10,7,FALSE) -> -15 | AH46: =T46-HLOOKUP(X46,Feuil1!$C$1:$BL$10,8,FALSE) -> -30 | AI46: =T46-HLOOKUP(X46,Feuil1!$C$1:$BL$10,9,FALSE) -> -45 | AJ46: =T46-HLOOKUP(X46,Feuil1!$C$1:$BL$10,10,FALSE) -> -905 | AQ46: =IF(AJ46>=0,$AJ$4,IF(AI46>=0,$AI$4,IF(AH46>=0,$AH$4,IF(AG46>=0,$AG$4,IF(AF46>=0,$AF$4,IF(AE46>=0,$AE$4,IF(AD46>=0,$AD$4,IF(AC46>=0,$AC$4,$AB$4)))))))) -> FED +
AB47: =T47-HLOOKUP(X47,Feuil1!$C$1:$BL$10,2,FALSE) ->  | AC47: =T47-HLOOKUP(X47,Feuil1!$C$1:$BL$10,3,FALSE) ->  | AD47: =T47-HLOOKUP(X47,Feuil1!$C$1:$BL$10,4,FALSE) ->  | AE47: =T47-HLOOKUP(X47,Feuil1!$C$1:$BL$10,5,FALSE) ->  | AF47: =T47-HLOOKUP(X47,Feuil1!$C$1:$BL$10,6,FALSE) ->  | AG47: =T47-HLOOKUP(X47,Feuil1!$C$1:$BL$10,7,FALSE) ->  | AH47: =T47-HLOOKUP(X47,Feuil1!$C$1:$BL$10,8,FALSE) ->  | AI47: =T47-HLOOKUP(X47,Feuil1!$C$1:$BL$10,9,FALSE) ->  | AJ47: =T47-HLOOKUP(X47,Feuil1!$C$1:$BL$10,10,FALSE) -> 
A48: F | B48: NE | C48: CHA | D48: 1 | E48: 239747 | F48: VAUTARD | G48: Priscillia | H48: 1999 | I48: 66.9 | J48: Langres HM | K48: F | L48: 45 | M48: 48 | N48: 50 | O48: =IF(H48="","",IF(MAXA(L48:N48)<=0,0,MAXA(L48:N48))) -> 50 | P48: 50 | Q48: 55 | R48: -57 | S48: =IF(H48="","",IF(MAXA(P48:R48)<=0,0,MAXA(P48:R48))) -> 55 | T48: =IF(H48="","",IF(OR(O48=0,S48=0),0,O48+S48)) -> 105 | U48: 38.1 | V48: =IF(H48="","",AQ48) -> FED + | W48: =IF(AJ48>=0,AJ48,IF(AI48>=0,AI48,IF(AH48>=0,AH48,IF(AG48>=0,AG48,IF(AF48>=0,AF48,IF(AE48>=0,AE48,IF(AD48>=0,AD48,IF(AC48>=0,AC48,AB48)))))))) -> 0 | X48: =IF(I48="","",IF(A48="H",IF(OR(H48="SEN",H48<1995),VLOOKUP(I48,Feuil1!$A$11:$F$29,6),IF(AND(H48>1994,H48<1998),VLOOKUP(I48,Feuil1!$A$11:$F$29,5),IF(AND(H48>1997,H48<2000),VLOOKUP(I48,Feuil1!$A$11:$F$29,4),IF(AND(H48>1999,H48<2002),VLOOKUP(I48,Feuil1!$A$11:$F$29,3),VLOOKUP(I48,Feuil1!$A$11:$F$29,2))))),IF(OR(H48="SEN",H48<1995),VLOOKUP(I48,Feuil1!$G$11:$L$25,6),IF(AND(H48>1994,H48<1998),VLOOKUP(I48,Feuil1!$G$11:$L$25,5),IF(AND(H48>1997,H48<2000),VLOOKUP(I48,Feuil1!$G$11:$L$25,4),IF(AND(H48>1999,H48<2002),VLOOKUP(I48,Feuil1!$G$11:$L$25,3),VLOOKUP(I48,Feuil1!$G$11:$L$25,2))))))) -> FC2 69 | Y48: =IF(I48="","",IF(A48="H",10^(0.794358141*LOG(I48/174.393)^2)*T48,IF(A48="F",10^(0.89726074*LOG(I48/148.026)^2)*T48,""))) -> 134.2552301 | AB48: =T48-HLOOKUP(X48,Feuil1!$C$1:$BL$10,2,FALSE) -> 45 | AC48: =T48-HLOOKUP(X48,Feuil1!$C$1:$BL$10,3,FALSE) -> 35 | AD48: =T48-HLOOKUP(X48,Feuil1!$C$1:$BL$10,4,FALSE) -> 25 | AE48: =T48-HLOOKUP(X48,Feuil1!$C$1:$BL$10,5,FALSE) -> 15 | AF48: =T48-HLOOKUP(X48,Feuil1!$C$1:$BL$10,6,FALSE) -> 0 | AG48: =T48-HLOOKUP(X48,Feuil1!$C$1:$BL$10,7,FALSE) -> -15 | AH48: =T48-HLOOKUP(X48,Feuil1!$C$1:$BL$10,8,FALSE) -> -30 | AI48: =T48-HLOOKUP(X48,Feuil1!$C$1:$BL$10,9,FALSE) -> -45 | AJ48: =T48-HLOOKUP(X48,Feuil1!$C$1:$BL$10,10,FALSE) -> -895 | AQ48: =IF(AJ48>=0,$AJ$4,IF(AI48>=0,$AI$4,IF(AH48>=0,$AH$4,IF(AG48>=0,$AG$4,IF(AF48>=0,$AF$4,IF(AE48>=0,$AE$4,IF(AD48>=0,$AD$4,IF(AC48>=0,$AC$4,$AB$4)))))))) -> FED +
A49: F | B49: SEST | C49: CAZ | D49: 2 | E49: 362268 | F49: MAZOUZ | G49: Sophie | H49: 1998 | I49: 65.2 | J49: ASLDD. TOULON | K49: F | L49: 39 | M49: -42 | N49: -42 | O49: =IF(H49="","",IF(MAXA(L49:N49)<=0,0,MAXA(L49:N49))) -> 39 | P49: 58 | Q49: -62 | R49: -63 | S49: =IF(H49="","",IF(MAXA(P49:R49)<=0,0,MAXA(P49:R49))) -> 58 | T49: =IF(H49="","",IF(OR(O49=0,S49=0),0,O49+S49)) -> 97 | U49: 31.8 | V49: =IF(H49="","",AQ49) -> IRG + | W49: =IF(AJ49>=0,AJ49,IF(AI49>=0,AI49,IF(AH49>=0,AH49,IF(AG49>=0,AG49,IF(AF49>=0,AF49,IF(AE49>=0,AE49,IF(AD49>=0,AD49,IF(AC49>=0,AC49,AB49)))))))) -> 7 | X49: =IF(I49="","",IF(A49="H",IF(OR(H49="SEN",H49<1995),VLOOKUP(I49,Feuil1!$A$11:$F$29,6),IF(AND(H49>1994,H49<1998),VLOOKUP(I49,Feuil1!$A$11:$F$29,5),IF(AND(H49>1997,H49<2000),VLOOKUP(I49,Feuil1!$A$11:$F$29,4),IF(AND(H49>1999,H49<2002),VLOOKUP(I49,Feuil1!$A$11:$F$29,3),VLOOKUP(I49,Feuil1!$A$11:$F$29,2))))),IF(OR(H49="SEN",H49<1995),VLOOKUP(I49,Feuil1!$G$11:$L$25,6),IF(AND(H49>1994,H49<1998),VLOOKUP(I49,Feuil1!$G$11:$L$25,5),IF(AND(H49>1997,H49<2000),VLOOKUP(I49,Feuil1!$G$11:$L$25,4),IF(AND(H49>1999,H49<2002),VLOOKUP(I49,Feuil1!$G$11:$L$25,3),VLOOKUP(I49,Feuil1!$G$11:$L$25,2))))))) -> FC2 69 | Y49: =IF(I49="","",IF(A49="H",10^(0.794358141*LOG(I49/174.393)^2)*T49,IF(A49="F",10^(0.89726074*LOG(I49/148.026)^2)*T49,""))) -> 126.0505473 | AB49: =T49-HLOOKUP(X49,Feuil1!$C$1:$BL$10,2,FALSE) -> 37 | AC49: =T49-HLOOKUP(X49,Feuil1!$C$1:$BL$10,3,FALSE) -> 27 | AD49: =T49-HLOOKUP(X49,Feuil1!$C$1:$BL$10,4,FALSE) -> 17 | AE49: =T49-HLOOKUP(X49,Feuil1!$C$1:$BL$10,5,FALSE) -> 7 | AF49: =T49-HLOOKUP(X49,Feuil1!$C$1:$BL$10,6,FALSE) -> -8 | AG49: =T49-HLOOKUP(X49,Feuil1!$C$1:$BL$10,7,FALSE) -> -23 | AH49: =T49-HLOOKUP(X49,Feuil1!$C$1:$BL$10,8,FALSE) -> -38 | AI49: =T49-HLOOKUP(X49,Feuil1!$C$1:$BL$10,9,FALSE) -> -53 | AJ49: =T49-HLOOKUP(X49,Feuil1!$C$1:$BL$10,10,FALSE) -> -903 | AQ49: =IF(AJ49>=0,$AJ$4,IF(AI49>=0,$AI$4,IF(AH49>=0,$AH$4,IF(AG49>=0,$AG$4,IF(AF49>=0,$AF$4,IF(AE49>=0,$AE$4,IF(AD49>=0,$AD$4,IF(AC49>=0,$AC$4,$AB$4)))))))) -> IRG +
A50: F | B50: SEST | C50: CAZ | D50: 3 | E50: 365254 | F50: GAUJARD | G50: Marine | H50: 1998 | I50: 63.6 | J50: ASLDD. TOULON | K50: F | L50: 36 | M50: 38 | N50: 40 | O50: =IF(H50="","",IF(MAXA(L50:N50)<=0,0,MAXA(L50:N50))) -> 40 | P50: 48 | Q50: 51 | R50: 53 | S50: =IF(H50="","",IF(MAXA(P50:R50)<=0,0,MAXA(P50:R50))) -> 53 | T50: =IF(H50="","",IF(OR(O50=0,S50=0),0,O50+S50)) -> 93 | U50: 29.4 | V50: =IF(H50="","",AQ50) -> IRG + | W50: =IF(AJ50>=0,AJ50,IF(AI50>=0,AI50,IF(AH50>=0,AH50,IF(AG50>=0,AG50,IF(AF50>=0,AF50,IF(AE50>=0,AE50,IF(AD50>=0,AD50,IF(AC50>=0,AC50,AB50)))))))) -> 3 | X50: =IF(I50="","",IF(A50="H",IF(OR(H50="SEN",H50<1995),VLOOKUP(I50,Feuil1!$A$11:$F$29,6),IF(AND(H50>1994,H50<1998),VLOOKUP(I50,Feuil1!$A$11:$F$29,5),IF(AND(H50>1997,H50<2000),VLOOKUP(I50,Feuil1!$A$11:$F$29,4),IF(AND(H50>1999,H50<2002),VLOOKUP(I50,Feuil1!$A$11:$F$29,3),VLOOKUP(I50,Feuil1!$A$11:$F$29,2))))),IF(OR(H50="SEN",H50<1995),VLOOKUP(I50,Feuil1!$G$11:$L$25,6),IF(AND(H50>1994,H50<1998),VLOOKUP(I50,Feuil1!$G$11:$L$25,5),IF(AND(H50>1997,H50<2000),VLOOKUP(I50,Feuil1!$G$11:$L$25,4),IF(AND(H50>1999,H50<2002),VLOOKUP(I50,Feuil1!$G$11:$L$25,3),VLOOKUP(I50,Feuil1!$G$11:$L$25,2))))))) -> FC2 69 | Y50: =IF(I50="","",IF(A50="H",10^(0.794358141*LOG(I50/174.393)^2)*T50,IF(A50="F",10^(0.89726074*LOG(I50/148.026)^2)*T50,""))) -> 122.8162032 | AB50: =T50-HLOOKUP(X50,Feuil1!$C$1:$BL$10,2,FALSE) -> 33 | AC50: =T50-HLOOKUP(X50,Feuil1!$C$1:$BL$10,3,FALSE) -> 23 | AD50: =T50-HLOOKUP(X50,Feuil1!$C$1:$BL$10,4,FALSE) -> 13 | AE50: =T50-HLOOKUP(X50,Feuil1!$C$1:$BL$10,5,FALSE) -> 3 | AF50: =T50-HLOOKUP(X50,Feuil1!$C$1:$BL$10,6,FALSE) -> -12 | AG50: =T50-HLOOKUP(X50,Feuil1!$C$1:$BL$10,7,FALSE) -> -27 | AH50: =T50-HLOOKUP(X50,Feuil1!$C$1:$BL$10,8,FALSE) -> -42 | AI50: =T50-HLOOKUP(X50,Feuil1!$C$1:$BL$10,9,FALSE) -> -57 | AJ50: =T50-HLOOKUP(X50,Feuil1!$C$1:$BL$10,10,FALSE) -> -907 | AQ50: =IF(AJ50>=0,$AJ$4,IF(AI50>=0,$AI$4,IF(AH50>=0,$AH$4,IF(AG50>=0,$AG$4,IF(AF50>=0,$AF$4,IF(AE50>=0,$AE$4,IF(AD50>=0,$AD$4,IF(AC50>=0,$AC$4,$AB$4)))))))) -> IRG +
A51: F | B51: SEST | C51: CAZ | D51: 4 | E51: 363004 | F51: PEUGNIEZ | G51: Clea | H51: 1998 | I51: 65.7 | J51: ASLDD. TOULON | K51: F | L51: 35 | M51: 38 | N51: 40 | O51: =IF(H51="","",IF(MAXA(L51:N51)<=0,0,MAXA(L51:N51))) -> 40 | P51: 47 | Q51: 50 | R51: -52 | S51: =IF(H51="","",IF(MAXA(P51:R51)<=0,0,MAXA(P51:R51))) -> 50 | T51: =IF(H51="","",IF(OR(O51=0,S51=0),0,O51+S51)) -> 90 | U51: 24.3 | V51: =IF(H51="","",AQ51) -> IRG + | W51: =IF(AJ51>=0,AJ51,IF(AI51>=0,AI51,IF(AH51>=0,AH51,IF(AG51>=0,AG51,IF(AF51>=0,AF51,IF(AE51>=0,AE51,IF(AD51>=0,AD51,IF(AC51>=0,AC51,AB51)))))))) -> 0 | X51: =IF(I51="","",IF(A51="H",IF(OR(H51="SEN",H51<1995),VLOOKUP(I51,Feuil1!$A$11:$F$29,6),IF(AND(H51>1994,H51<1998),VLOOKUP(I51,Feuil1!$A$11:$F$29,5),IF(AND(H51>1997,H51<2000),VLOOKUP(I51,Feuil1!$A$11:$F$29,4),IF(AND(H51>1999,H51<2002),VLOOKUP(I51,Feuil1!$A$11:$F$29,3),VLOOKUP(I51,Feuil1!$A$11:$F$29,2))))),IF(OR(H51="SEN",H51<1995),VLOOKUP(I51,Feuil1!$G$11:$L$25,6),IF(AND(H51>1994,H51<1998),VLOOKUP(I51,Feuil1!$G$11:$L$25,5),IF(AND(H51>1997,H51<2000),VLOOKUP(I51,Feuil1!$G$11:$L$25,4),IF(AND(H51>1999,H51<2002),VLOOKUP(I51,Feuil1!$G$11:$L$25,3),VLOOKUP(I51,Feuil1!$G$11:$L$25,2))))))) -> FC2 69 | Y51: =IF(I51="","",IF(A51="H",10^(0.794358141*LOG(I51/174.393)^2)*T51,IF(A51="F",10^(0.89726074*LOG(I51/148.026)^2)*T51,""))) -> 116.3872189 | AB51: =T51-HLOOKUP(X51,Feuil1!$C$1:$BL$10,2,FALSE) -> 30 | AC51: =T51-HLOOKUP(X51,Feuil1!$C$1:$BL$10,3,FALSE) -> 20 | AD51: =T51-HLOOKUP(X51,Feuil1!$C$1:$BL$10,4,FALSE) -> 10 | AE51: =T51-HLOOKUP(X51,Feuil1!$C$1:$BL$10,5,FALSE) -> 0 | AF51: =T51-HLOOKUP(X51,Feuil1!$C$1:$BL$10,6,FALSE) -> -15 | AG51: =T51-HLOOKUP(X51,Feuil1!$C$1:$BL$10,7,FALSE) -> -30 | AH51: =T51-HLOOKUP(X51,Feuil1!$C$1:$BL$10,8,FALSE) -> -45 | AI51: =T51-HLOOKUP(X51,Feuil1!$C$1:$BL$10,9,FALSE) -> -60 | AJ51: =T51-HLOOKUP(X51,Feuil1!$C$1:$BL$10,10,FALSE) -> -910 | AQ51: =IF(AJ51>=0,$AJ$4,IF(AI51>=0,$AI$4,IF(AH51>=0,$AH$4,IF(AG51>=0,$AG$4,IF(AF51>=0,$AF$4,IF(AE51>=0,$AE$4,IF(AD51>=0,$AD$4,IF(AC51>=0,$AC$4,$AB$4)))))))) -> IRG +
AB52: =T52-HLOOKUP(X52,Feuil1!$C$1:$BL$10,2,FALSE) ->  | AC52: =T52-HLOOKUP(X52,Feuil1!$C$1:$BL$10,3,FALSE) ->  | AD52: =T52-HLOOKUP(X52,Feuil1!$C$1:$BL$10,4,FALSE) ->  | AE52: =T52-HLOOKUP(X52,Feuil1!$C$1:$BL$10,5,FALSE) ->  | AF52: =T52-HLOOKUP(X52,Feuil1!$C$1:$BL$10,6,FALSE) ->  | AG52: =T52-HLOOKUP(X52,Feuil1!$C$1:$BL$10,7,FALSE) ->  | AH52: =T52-HLOOKUP(X52,Feuil1!$C$1:$BL$10,8,FALSE) ->  | AI52: =T52-HLOOKUP(X52,Feuil1!$C$1:$BL$10,9,FALSE) ->  | AJ52: =T52-HLOOKUP(X52,Feuil1!$C$1:$BL$10,10,FALSE) -> 
A53: F | B53: ZCO | C53: BRE | D53: 1 | E53: 210931 | F53: BACCEI | G53: Marilou | H53: 1998 | I53: 79.56 | J53: CHM Plouhinec PR | K53: F | L53: 50 | M53: 53 | N53: -56 | O53: =IF(H53="","",IF(MAXA(L53:N53)<=0,0,MAXA(L53:N53))) -> 53 | P53: 57 | Q53: 62 | R53: -65 | S53: =IF(H53="","",IF(MAXA(P53:R53)<=0,0,MAXA(P53:R53))) -> 62 | T53: =IF(H53="","",IF(OR(O53=0,S53=0),0,O53+S53)) -> 115 | U53: 35.44 | V53: =IF(H53="","",AQ53) -> FED + | W53: =IF(AJ53>=0,AJ53,IF(AI53>=0,AI53,IF(AH53>=0,AH53,IF(AG53>=0,AG53,IF(AF53>=0,AF53,IF(AE53>=0,AE53,IF(AD53>=0,AD53,IF(AC53>=0,AC53,AB53)))))))) -> 0 | X53: =IF(I53="","",IF(A53="H",IF(OR(H53="SEN",H53<1995),VLOOKUP(I53,Feuil1!$A$11:$F$29,6),IF(AND(H53>1994,H53<1998),VLOOKUP(I53,Feuil1!$A$11:$F$29,5),IF(AND(H53>1997,H53<2000),VLOOKUP(I53,Feuil1!$A$11:$F$29,4),IF(AND(H53>1999,H53<2002),VLOOKUP(I53,Feuil1!$A$11:$F$29,3),VLOOKUP(I53,Feuil1!$A$11:$F$29,2))))),IF(OR(H53="SEN",H53<1995),VLOOKUP(I53,Feuil1!$G$11:$L$25,6),IF(AND(H53>1994,H53<1998),VLOOKUP(I53,Feuil1!$G$11:$L$25,5),IF(AND(H53>1997,H53<2000),VLOOKUP(I53,Feuil1!$G$11:$L$25,4),IF(AND(H53>1999,H53<2002),VLOOKUP(I53,Feuil1!$G$11:$L$25,3),VLOOKUP(I53,Feuil1!$G$11:$L$25,2))))))) -> FC2 +69 | Y53: =IF(I53="","",IF(A53="H",10^(0.794358141*LOG(I53/174.393)^2)*T53,IF(A53="F",10^(0.89726074*LOG(I53/148.026)^2)*T53,""))) -> 133.6396716 | AB53: =T53-HLOOKUP(X53,Feuil1!$C$1:$BL$10,2,FALSE) -> 45 | AC53: =T53-HLOOKUP(X53,Feuil1!$C$1:$BL$10,3,FALSE) -> 35 | AD53: =T53-HLOOKUP(X53,Feuil1!$C$1:$BL$10,4,FALSE) -> 20 | AE53: =T53-HLOOKUP(X53,Feuil1!$C$1:$BL$10,5,FALSE) -> 10 | AF53: =T53-HLOOKUP(X53,Feuil1!$C$1:$BL$10,6,FALSE) -> 0 | AG53: =T53-HLOOKUP(X53,Feuil1!$C$1:$BL$10,7,FALSE) -> -15 | AH53: =T53-HLOOKUP(X53,Feuil1!$C$1:$BL$10,8,FALSE) -> -30 | AI53: =T53-HLOOKUP(X53,Feuil1!$C$1:$BL$10,9,FALSE) -> -45 | AJ53: =T53-HLOOKUP(X53,Feuil1!$C$1:$BL$10,10,FALSE) -> -885 | AQ53: =IF(AJ53>=0,$AJ$4,IF(AI53>=0,$AI$4,IF(AH53>=0,$AH$4,IF(AG53>=0,$AG$4,IF(AF53>=0,$AF$4,IF(AE53>=0,$AE$4,IF(AD53>=0,$AD$4,IF(AC53>=0,$AC$4,$AB$4)))))))) -> FED +
AB54: =T54-HLOOKUP(X54,Feuil1!$C$1:$BL$10,2,FALSE) ->  | AC54: =T54-HLOOKUP(X54,Feuil1!$C$1:$BL$10,3,FALSE) ->  | AD54: =T54-HLOOKUP(X54,Feuil1!$C$1:$BL$10,4,FALSE) ->  | AE54: =T54-HLOOKUP(X54,Feuil1!$C$1:$BL$10,5,FALSE) ->  | AF54: =T54-HLOOKUP(X54,Feuil1!$C$1:$BL$10,6,FALSE) ->  | AG54: =T54-HLOOKUP(X54,Feuil1!$C$1:$BL$10,7,FALSE) ->  | AH54: =T54-HLOOKUP(X54,Feuil1!$C$1:$BL$10,8,FALSE) ->  | AI54: =T54-HLOOKUP(X54,Feuil1!$C$1:$BL$10,9,FALSE) ->  | AJ54: =T54-HLOOKUP(X54,Feuil1!$C$1:$BL$10,10,FALSE) -> 
AB55: =T55-HLOOKUP(X55,Feuil1!$C$1:$BL$10,2,FALSE) ->  | AC55: =T55-HLOOKUP(X55,Feuil1!$C$1:$BL$10,3,FALSE) ->  | AD55: =T55-HLOOKUP(X55,Feuil1!$C$1:$BL$10,4,FALSE) ->  | AE55: =T55-HLOOKUP(X55,Feuil1!$C$1:$BL$10,5,FALSE) ->  | AF55: =T55-HLOOKUP(X55,Feuil1!$C$1:$BL$10,6,FALSE) ->  | AG55: =T55-HLOOKUP(X55,Feuil1!$C$1:$BL$10,7,FALSE) ->  | AH55: =T55-HLOOKUP(X55,Feuil1!$C$1:$BL$10,8,FALSE) ->  | AI55: =T55-HLOOKUP(X55,Feuil1!$C$1:$BL$10,9,FALSE) ->  | AJ55: =T55-HLOOKUP(X55,Feuil1!$C$1:$BL$10,10,FALSE) -> 
A56: F | B56: ZCO | C56: PDL | D56: 1 | E56: 97644 | F56: L'HERMIER | G56: Mélanie | H56: 1996 | I56: 47.74 | J56: CA Evron 53 | K56: F | L56: -43 | M56: 43 | N56: 45 | O56: =IF(H56="","",IF(MAXA(L56:N56)<=0,0,MAXA(L56:N56))) -> 45 | P56: 53 | Q56: 56 | R56: -59 | S56: =IF(H56="","",IF(MAXA(P56:R56)<=0,0,MAXA(P56:R56))) -> 56 | T56: =IF(H56="","",IF(OR(O56=0,S56=0),0,O56+S56)) -> 101 | U56: =T56-I56 -> 53.26 | V56: =IF(H56="","",AQ56) -> NAT + | W56: =IF(AJ56>=0,AJ56,IF(AI56>=0,AI56,IF(AH56>=0,AH56,IF(AG56>=0,AG56,IF(AF56>=0,AF56,IF(AE56>=0,AE56,IF(AD56>=0,AD56,IF(AC56>=0,AC56,AB56)))))))) -> 6 | X56: =IF(I56="","",IF(A56="H",IF(OR(H56="SEN",H56<1995),VLOOKUP(I56,Feuil1!$A$11:$F$29,6),IF(AND(H56>1994,H56<1998),VLOOKUP(I56,Feuil1!$A$11:$F$29,5),IF(AND(H56>1997,H56<2000),VLOOKUP(I56,Feuil1!$A$11:$F$29,4),IF(AND(H56>1999,H56<2002),VLOOKUP(I56,Feuil1!$A$11:$F$29,3),VLOOKUP(I56,Feuil1!$A$11:$F$29,2))))),IF(OR(H56="SEN",H56<1995),VLOOKUP(I56,Feuil1!$G$11:$L$25,6),IF(AND(H56>1994,H56<1998),VLOOKUP(I56,Feuil1!$G$11:$L$25,5),IF(AND(H56>1997,H56<2000),VLOOKUP(I56,Feuil1!$G$11:$L$25,4),IF(AND(H56>1999,H56<2002),VLOOKUP(I56,Feuil1!$G$11:$L$25,3),VLOOKUP(I56,Feuil1!$G$11:$L$25,2))))))) -> FJ48 | Y56: =IF(I56="","",IF(A56="H",10^(0.794358141*LOG(I56/174.393)^2)*T56,IF(A56="F",10^(0.89726074*LOG(I56/148.026)^2)*T56,""))) -> 166.3548628 | AB56: =T56-HLOOKUP(X56,Feuil1!$C$1:$BL$10,2,FALSE) -> 56 | AC56: =T56-HLOOKUP(X56,Feuil1!$C$1:$BL$10,3,FALSE) -> 46 | AD56: =T56-HLOOKUP(X56,Feuil1!$C$1:$BL$10,4,FALSE) -> 36 | AE56: =T56-HLOOKUP(X56,Feuil1!$C$1:$BL$10,5,FALSE) -> 26 | AF56: =T56-HLOOKUP(X56,Feuil1!$C$1:$BL$10,6,FALSE) -> 16 | AG56: =T56-HLOOKUP(X56,Feuil1!$C$1:$BL$10,7,FALSE) -> 6 | AH56: =T56-HLOOKUP(X56,Feuil1!$C$1:$BL$10,8,FALSE) -> -9 | AI56: =T56-HLOOKUP(X56,Feuil1!$C$1:$BL$10,9,FALSE) -> -24 | AJ56: =T56-HLOOKUP(X56,Feuil1!$C$1:$BL$10,10,FALSE) -> -899 | AQ56: =IF(AJ56>=0,$AJ$4,IF(AI56>=0,$AI$4,IF(AH56>=0,$AH$4,IF(AG56>=0,$AG$4,IF(AF56>=0,$AF$4,IF(AE56>=0,$AE$4,IF(AD56>=0,$AD$4,IF(AC56>=0,$AC$4,$AB$4)))))))) -> NAT +
A57: F | B57: NE | C57: CHA | D57: 2 | E57: 193808 | F57: POIRET | G57: Kimberley | H57: 1997 | I57: 41.1 | J57: Reims HM | K57: F | L57: 40 | M57: 42 | N57: -44 | O57: =IF(H57="","",IF(MAXA(L57:N57)<=0,0,MAXA(L57:N57))) -> 42 | P57: 50 | Q57: 53 | R57: 55 | S57: =IF(H57="","",IF(MAXA(P57:R57)<=0,0,MAXA(P57:R57))) -> 55 | T57: =IF(H57="","",IF(OR(O57=0,S57=0),0,O57+S57)) -> 97 | U57: 55.9 | V57: =IF(H57="","",AQ57) -> NAT + | W57: =IF(AJ57>=0,AJ57,IF(AI57>=0,AI57,IF(AH57>=0,AH57,IF(AG57>=0,AG57,IF(AF57>=0,AF57,IF(AE57>=0,AE57,IF(AD57>=0,AD57,IF(AC57>=0,AC57,AB57)))))))) -> 2 | X57: =IF(I57="","",IF(A57="H",IF(OR(H57="SEN",H57<1995),VLOOKUP(I57,Feuil1!$A$11:$F$29,6),IF(AND(H57>1994,H57<1998),VLOOKUP(I57,Feuil1!$A$11:$F$29,5),IF(AND(H57>1997,H57<2000),VLOOKUP(I57,Feuil1!$A$11:$F$29,4),IF(AND(H57>1999,H57<2002),VLOOKUP(I57,Feuil1!$A$11:$F$29,3),VLOOKUP(I57,Feuil1!$A$11:$F$29,2))))),IF(OR(H57="SEN",H57<1995),VLOOKUP(I57,Feuil1!$G$11:$L$25,6),IF(AND(H57>1994,H57<1998),VLOOKUP(I57,Feuil1!$G$11:$L$25,5),IF(AND(H57>1997,H57<2000),VLOOKUP(I57,Feuil1!$G$11:$L$25,4),IF(AND(H57>1999,H57<2002),VLOOKUP(I57,Feuil1!$G$11:$L$25,3),VLOOKUP(I57,Feuil1!$G$11:$L$25,2))))))) -> FJ48 | Y57: =IF(I57="","",IF(A57="H",10^(0.794358141*LOG(I57/174.393)^2)*T57,IF(A57="F",10^(0.89726074*LOG(I57/148.026)^2)*T57,""))) -> 183.9257851 | AB57: =T57-HLOOKUP(X57,Feuil1!$C$1:$BL$10,2,FALSE) -> 52 | AC57: =T57-HLOOKUP(X57,Feuil1!$C$1:$BL$10,3,FALSE) -> 42 | AD57: =T57-HLOOKUP(X57,Feuil1!$C$1:$BL$10,4,FALSE) -> 32 | AE57: =T57-HLOOKUP(X57,Feuil1!$C$1:$BL$10,5,FALSE) -> 22 | AF57: =T57-HLOOKUP(X57,Feuil1!$C$1:$BL$10,6,FALSE) -> 12 | AG57: =T57-HLOOKUP(X57,Feuil1!$C$1:$BL$10,7,FALSE) -> 2 | AH57: =T57-HLOOKUP(X57,Feuil1!$C$1:$BL$10,8,FALSE) -> -13 | AI57: =T57-HLOOKUP(X57,Feuil1!$C$1:$BL$10,9,FALSE) -> -28 | AJ57: =T57-HLOOKUP(X57,Feuil1!$C$1:$BL$10,10,FALSE) -> -903 | AQ57: =IF(AJ57>=0,$AJ$4,IF(AI57>=0,$AI$4,IF(AH57>=0,$AH$4,IF(AG57>=0,$AG$4,IF(AF57>=0,$AF$4,IF(AE57>=0,$AE$4,IF(AD57>=0,$AD$4,IF(AC57>=0,$AC$4,$AB$4)))))))) -> NAT +
A58: F | B58: SEST | C58: PRO | D58: 3 | E58: 361701 | F58: DELEUIL | G58: Fanny | H58: 1995 | I58: 47.2 | J58: EEAR. MONTEUX | K58: F | L58: 40 | M58: -42 | N58: 42 | O58: =IF(H58="","",IF(MAXA(L58:N58)<=0,0,MAXA(L58:N58))) -> 42 | P58: -50 | Q58: 53 | R58: -55 | S58: =IF(H58="","",IF(MAXA(P58:R58)<=0,0,MAXA(P58:R58))) -> 53 | T58: =IF(H58="","",IF(OR(O58=0,S58=0),0,O58+S58)) -> 95 | U58: 47.8 | V58: =IF(H58="","",AQ58) -> NAT + | W58: =IF(AJ58>=0,AJ58,IF(AI58>=0,AI58,IF(AH58>=0,AH58,IF(AG58>=0,AG58,IF(AF58>=0,AF58,IF(AE58>=0,AE58,IF(AD58>=0,AD58,IF(AC58>=0,AC58,AB58)))))))) -> 0 | X58: =IF(I58="","",IF(A58="H",IF(OR(H58="SEN",H58<1995),VLOOKUP(I58,Feuil1!$A$11:$F$29,6),IF(AND(H58>1994,H58<1998),VLOOKUP(I58,Feuil1!$A$11:$F$29,5),IF(AND(H58>1997,H58<2000),VLOOKUP(I58,Feuil1!$A$11:$F$29,4),IF(AND(H58>1999,H58<2002),VLOOKUP(I58,Feuil1!$A$11:$F$29,3),VLOOKUP(I58,Feuil1!$A$11:$F$29,2))))),IF(OR(H58="SEN",H58<1995),VLOOKUP(I58,Feuil1!$G$11:$L$25,6),IF(AND(H58>1994,H58<1998),VLOOKUP(I58,Feuil1!$G$11:$L$25,5),IF(AND(H58>1997,H58<2000),VLOOKUP(I58,Feuil1!$G$11:$L$25,4),IF(AND(H58>1999,H58<2002),VLOOKUP(I58,Feuil1!$G$11:$L$25,3),VLOOKUP(I58,Feuil1!$G$11:$L$25,2))))))) -> FJ48 | Y58: =IF(I58="","",IF(A58="H",10^(0.794358141*LOG(I58/174.393)^2)*T58,IF(A58="F",10^(0.89726074*LOG(I58/148.026)^2)*T58,""))) -> 158.058087 | AB58: =T58-HLOOKUP(X58,Feuil1!$C$1:$BL$10,2,FALSE) -> 50 | AC58: =T58-HLOOKUP(X58,Feuil1!$C$1:$BL$10,3,FALSE) -> 40 | AD58: =T58-HLOOKUP(X58,Feuil1!$C$1:$BL$10,4,FALSE) -> 30 | AE58: =T58-HLOOKUP(X58,Feuil1!$C$1:$BL$10,5,FALSE) -> 20 | AF58: =T58-HLOOKUP(X58,Feuil1!$C$1:$BL$10,6,FALSE) -> 10 | AG58: =T58-HLOOKUP(X58,Feuil1!$C$1:$BL$10,7,FALSE) -> 0 | AH58: =T58-HLOOKUP(X58,Feuil1!$C$1:$BL$10,8,FALSE) -> -15 | AI58: =T58-HLOOKUP(X58,Feuil1!$C$1:$BL$10,9,FALSE) -> -30 | AJ58: =T58-HLOOKUP(X58,Feuil1!$C$1:$BL$10,10,FALSE) -> -905 | AQ58: =IF(AJ58>=0,$AJ$4,IF(AI58>=0,$AI$4,IF(AH58>=0,$AH$4,IF(AG58>=0,$AG$4,IF(AF58>=0,$AF$4,IF(AE58>=0,$AE$4,IF(AD58>=0,$AD$4,IF(AC58>=0,$AC$4,$AB$4)))))))) -> NAT +
A59: F | B59: DOM | C59: REU | D59: 4 | E59: 357739 | F59: VIRAMA | G59: Deborah | H59: 1996 | I59: 47.3 | J59: CH LA PLAINE | K59: F | L59: 35 | M59: 42 | N59: -45 | O59: =IF(H59="","",IF(MAXA(L59:N59)<=0,0,MAXA(L59:N59))) -> 42 | P59: 45 | Q59: -50 | R59: 50 | S59: =IF(H59="","",IF(MAXA(P59:R59)<=0,0,MAXA(P59:R59))) -> 50 | T59: =IF(H59="","",IF(OR(O59=0,S59=0),0,O59+S59)) -> 92 | U59: =T59-I59 -> 44.7 | V59: =IF(H59="","",AQ59) -> FED + | W59: =IF(AJ59>=0,AJ59,IF(AI59>=0,AI59,IF(AH59>=0,AH59,IF(AG59>=0,AG59,IF(AF59>=0,AF59,IF(AE59>=0,AE59,IF(AD59>=0,AD59,IF(AC59>=0,AC59,AB59)))))))) -> 7 | X59: =IF(I59="","",IF(A59="H",IF(OR(H59="SEN",H59<1995),VLOOKUP(I59,Feuil1!$A$11:$F$29,6),IF(AND(H59>1994,H59<1998),VLOOKUP(I59,Feuil1!$A$11:$F$29,5),IF(AND(H59>1997,H59<2000),VLOOKUP(I59,Feuil1!$A$11:$F$29,4),IF(AND(H59>1999,H59<2002),VLOOKUP(I59,Feuil1!$A$11:$F$29,3),VLOOKUP(I59,Feuil1!$A$11:$F$29,2))))),IF(OR(H59="SEN",H59<1995),VLOOKUP(I59,Feuil1!$G$11:$L$25,6),IF(AND(H59>1994,H59<1998),VLOOKUP(I59,Feuil1!$G$11:$L$25,5),IF(AND(H59>1997,H59<2000),VLOOKUP(I59,Feuil1!$G$11:$L$25,4),IF(AND(H59>1999,H59<2002),VLOOKUP(I59,Feuil1!$G$11:$L$25,3),VLOOKUP(I59,Feuil1!$G$11:$L$25,2))))))) -> FJ48 | Y59: =IF(I59="","",IF(A59="H",10^(0.794358141*LOG(I59/174.393)^2)*T59,IF(A59="F",10^(0.89726074*LOG(I59/148.026)^2)*T59,""))) -> 152.7787442 | AB59: =T59-HLOOKUP(X59,Feuil1!$C$1:$BL$10,2,FALSE) -> 47 | AC59: =T59-HLOOKUP(X59,Feuil1!$C$1:$BL$10,3,FALSE) -> 37 | AD59: =T59-HLOOKUP(X59,Feuil1!$C$1:$BL$10,4,FALSE) -> 27 | AE59: =T59-HLOOKUP(X59,Feuil1!$C$1:$BL$10,5,FALSE) -> 17 | AF59: =T59-HLOOKUP(X59,Feuil1!$C$1:$BL$10,6,FALSE) -> 7 | AG59: =T59-HLOOKUP(X59,Feuil1!$C$1:$BL$10,7,FALSE) -> -3 | AH59: =T59-HLOOKUP(X59,Feuil1!$C$1:$BL$10,8,FALSE) -> -18 | AI59: =T59-HLOOKUP(X59,Feuil1!$C$1:$BL$10,9,FALSE) -> -33 | AJ59: =T59-HLOOKUP(X59,Feuil1!$C$1:$BL$10,10,FALSE) -> -908 | AQ59: =IF(AJ59>=0,$AJ$4,IF(AI59>=0,$AI$4,IF(AH59>=0,$AH$4,IF(AG59>=0,$AG$4,IF(AF59>=0,$AF$4,IF(AE59>=0,$AE$4,IF(AD59>=0,$AD$4,IF(AC59>=0,$AC$4,$AB$4)))))))) -> FED +
AB60: =T60-HLOOKUP(X60,Feuil1!$C$1:$BL$10,2,FALSE) ->  | AC60: =T60-HLOOKUP(X60,Feuil1!$C$1:$BL$10,3,FALSE) ->  | AD60: =T60-HLOOKUP(X60,Feuil1!$C$1:$BL$10,4,FALSE) ->  | AE60: =T60-HLOOKUP(X60,Feuil1!$C$1:$BL$10,5,FALSE) ->  | AF60: =T60-HLOOKUP(X60,Feuil1!$C$1:$BL$10,6,FALSE) ->  | AG60: =T60-HLOOKUP(X60,Feuil1!$C$1:$BL$10,7,FALSE) ->  | AH60: =T60-HLOOKUP(X60,Feuil1!$C$1:$BL$10,8,FALSE) ->  | AI60: =T60-HLOOKUP(X60,Feuil1!$C$1:$BL$10,9,FALSE) ->  | AJ60: =T60-HLOOKUP(X60,Feuil1!$C$1:$BL$10,10,FALSE) -> 
A61: F | B61: Nord | C61: PIC | D61: 1 | E61: 280885 | F61: CABON | G61: Ophélie | H61: 1997 | I61: 52.86 | J61: Péronne AAEEP | K61: F | L61: 57 | M61: -60 | N61: 60 | O61: =IF(H61="","",IF(MAXA(L61:N61)<=0,0,MAXA(L61:N61))) -> 60 | P61: 70 | Q61: 75 | R61: -80 | S61: =IF(H61="","",IF(MAXA(P61:R61)<=0,0,MAXA(P61:R61))) -> 75 | T61: =IF(H61="","",IF(OR(O61=0,S61=0),0,O61+S61)) -> 135 | U61: 82.14 | V61: =IF(H61="","",AQ61) -> INTA + | W61: =IF(AJ61>=0,AJ61,IF(AI61>=0,AI61,IF(AH61>=0,AH61,IF(AG61>=0,AG61,IF(AF61>=0,AF61,IF(AE61>=0,AE61,IF(AD61>=0,AD61,IF(AC61>=0,AC61,AB61)))))))) -> 0 | X61: =IF(I61="","",IF(A61="H",IF(OR(H61="SEN",H61<1995),VLOOKUP(I61,Feuil1!$A$11:$F$29,6),IF(AND(H61>1994,H61<1998),VLOOKUP(I61,Feuil1!$A$11:$F$29,5),IF(AND(H61>1997,H61<2000),VLOOKUP(I61,Feuil1!$A$11:$F$29,4),IF(AND(H61>1999,H61<2002),VLOOKUP(I61,Feuil1!$A$11:$F$29,3),VLOOKUP(I61,Feuil1!$A$11:$F$29,2))))),IF(OR(H61="SEN",H61<1995),VLOOKUP(I61,Feuil1!$G$11:$L$25,6),IF(AND(H61>1994,H61<1998),VLOOKUP(I61,Feuil1!$G$11:$L$25,5),IF(AND(H61>1997,H61<2000),VLOOKUP(I61,Feuil1!$G$11:$L$25,4),IF(AND(H61>1999,H61<2002),VLOOKUP(I61,Feuil1!$G$11:$L$25,3),VLOOKUP(I61,Feuil1!$G$11:$L$25,2))))))) -> FJ53 | Y61: =IF(I61="","",IF(A61="H",10^(0.794358141*LOG(I61/174.393)^2)*T61,IF(A61="F",10^(0.89726074*LOG(I61/148.026)^2)*T61,""))) -> 204.0721354 | AB61: =T61-HLOOKUP(X61,Feuil1!$C$1:$BL$10,2,FALSE) -> 80 | AC61: =T61-HLOOKUP(X61,Feuil1!$C$1:$BL$10,3,FALSE) -> 70 | AD61: =T61-HLOOKUP(X61,Feuil1!$C$1:$BL$10,4,FALSE) -> 60 | AE61: =T61-HLOOKUP(X61,Feuil1!$C$1:$BL$10,5,FALSE) -> 50 | AF61: =T61-HLOOKUP(X61,Feuil1!$C$1:$BL$10,6,FALSE) -> 40 | AG61: =T61-HLOOKUP(X61,Feuil1!$C$1:$BL$10,7,FALSE) -> 30 | AH61: =T61-HLOOKUP(X61,Feuil1!$C$1:$BL$10,8,FALSE) -> 15 | AI61: =T61-HLOOKUP(X61,Feuil1!$C$1:$BL$10,9,FALSE) -> 0 | AJ61: =T61-HLOOKUP(X61,Feuil1!$C$1:$BL$10,10,FALSE) -> -865 | AQ61: =IF(AJ61>=0,$AJ$4,IF(AI61>=0,$AI$4,IF(AH61>=0,$AH$4,IF(AG61>=0,$AG$4,IF(AF61>=0,$AF$4,IF(AE61>=0,$AE$4,IF(AD61>=0,$AD$4,IF(AC61>=0,$AC$4,$AB$4)))))))) -> INTA +
A62: F | B62: NE | C62: BOU | D62: 2 | E62: 196470 | F62: BALACE | G62: Julie | H62: 1996 | I62: 51.4 | J62: Stade Dijonnais HM | K62: F | L62: 58 | M62: -61 | N62: 61 | O62: =IF(H62="","",IF(MAXA(L62:N62)<=0,0,MAXA(L62:N62))) -> 61 | P62: 70 | Q62: -75 | R62: -75 | S62: =IF(H62="","",IF(MAXA(P62:R62)<=0,0,MAXA(P62:R62))) -> 70 | T62: =IF(H62="","",IF(OR(O62=0,S62=0),0,O62+S62)) -> 131 | U62: 79.6 | V62: =IF(H62="","",AQ62) -> INTB + | W62: =IF(AJ62>=0,AJ62,IF(AI62>=0,AI62,IF(AH62>=0,AH62,IF(AG62>=0,AG62,IF(AF62>=0,AF62,IF(AE62>=0,AE62,IF(AD62>=0,AD62,IF(AC62>=0,AC62,AB62)))))))) -> 11 | X62: =IF(I62="","",IF(A62="H",IF(OR(H62="SEN",H62<1995),VLOOKUP(I62,Feuil1!$A$11:$F$29,6),IF(AND(H62>1994,H62<1998),VLOOKUP(I62,Feuil1!$A$11:$F$29,5),IF(AND(H62>1997,H62<2000),VLOOKUP(I62,Feuil1!$A$11:$F$29,4),IF(AND(H62>1999,H62<2002),VLOOKUP(I62,Feuil1!$A$11:$F$29,3),VLOOKUP(I62,Feuil1!$A$11:$F$29,2))))),IF(OR(H62="SEN",H62<1995),VLOOKUP(I62,Feuil1!$G$11:$L$25,6),IF(AND(H62>1994,H62<1998),VLOOKUP(I62,Feuil1!$G$11:$L$25,5),IF(AND(H62>1997,H62<2000),VLOOKUP(I62,Feuil1!$G$11:$L$25,4),IF(AND(H62>1999,H62<2002),VLOOKUP(I62,Feuil1!$G$11:$L$25,3),VLOOKUP(I62,Feuil1!$G$11:$L$25,2))))))) -> FJ53 | Y62: =IF(I62="","",IF(A62="H",10^(0.794358141*LOG(I62/174.393)^2)*T62,IF(A62="F",10^(0.89726074*LOG(I62/148.026)^2)*T62,""))) -> 202.5890644 | AB62: =T62-HLOOKUP(X62,Feuil1!$C$1:$BL$10,2,FALSE) -> 76 | AC62: =T62-HLOOKUP(X62,Feuil1!$C$1:$BL$10,3,FALSE) -> 66 | AD62: =T62-HLOOKUP(X62,Feuil1!$C$1:$BL$10,4,FALSE) -> 56 | AE62: =T62-HLOOKUP(X62,Feuil1!$C$1:$BL$10,5,FALSE) -> 46 | AF62: =T62-HLOOKUP(X62,Feuil1!$C$1:$BL$10,6,FALSE) -> 36 | AG62: =T62-HLOOKUP(X62,Feuil1!$C$1:$BL$10,7,FALSE) -> 26 | AH62: =T62-HLOOKUP(X62,Feuil1!$C$1:$BL$10,8,FALSE) -> 11 | AI62: =T62-HLOOKUP(X62,Feuil1!$C$1:$BL$10,9,FALSE) -> -4 | AJ62: =T62-HLOOKUP(X62,Feuil1!$C$1:$BL$10,10,FALSE) -> -869 | AQ62: =IF(AJ62>=0,$AJ$4,IF(AI62>=0,$AI$4,IF(AH62>=0,$AH$4,IF(AG62>=0,$AG$4,IF(AF62>=0,$AF$4,IF(AE62>=0,$AE$4,IF(AD62>=0,$AD$4,IF(AC62>=0,$AC$4,$AB$4)))))))) -> INTB +
A63: F | B63: Nord | C63: PIC | D63: 3 | E63: 187400 | F63: CARON | G63: Amélie | H63: 1996 | I63: 52.46 | J63: Saleux CHM | K63: F | L63: 47 | M63: 50 | N63: 53 | O63: =IF(H63="","",IF(MAXA(L63:N63)<=0,0,MAXA(L63:N63))) -> 53 | P63: 55 | Q63: 60 | R63: 65 | S63: =IF(H63="","",IF(MAXA(P63:R63)<=0,0,MAXA(P63:R63))) -> 65 | T63: =IF(H63="","",IF(OR(O63=0,S63=0),0,O63+S63)) -> 118 | U63: 65.54 | V63: =IF(H63="","",AQ63) -> NAT + | W63: =IF(AJ63>=0,AJ63,IF(AI63>=0,AI63,IF(AH63>=0,AH63,IF(AG63>=0,AG63,IF(AF63>=0,AF63,IF(AE63>=0,AE63,IF(AD63>=0,AD63,IF(AC63>=0,AC63,AB63)))))))) -> 13 | X63: =IF(I63="","",IF(A63="H",IF(OR(H63="SEN",H63<1995),VLOOKUP(I63,Feuil1!$A$11:$F$29,6),IF(AND(H63>1994,H63<1998),VLOOKUP(I63,Feuil1!$A$11:$F$29,5),IF(AND(H63>1997,H63<2000),VLOOKUP(I63,Feuil1!$A$11:$F$29,4),IF(AND(H63>1999,H63<2002),VLOOKUP(I63,Feuil1!$A$11:$F$29,3),VLOOKUP(I63,Feuil1!$A$11:$F$29,2))))),IF(OR(H63="SEN",H63<1995),VLOOKUP(I63,Feuil1!$G$11:$L$25,6),IF(AND(H63>1994,H63<1998),VLOOKUP(I63,Feuil1!$G$11:$L$25,5),IF(AND(H63>1997,H63<2000),VLOOKUP(I63,Feuil1!$G$11:$L$25,4),IF(AND(H63>1999,H63<2002),VLOOKUP(I63,Feuil1!$G$11:$L$25,3),VLOOKUP(I63,Feuil1!$G$11:$L$25,2))))))) -> FJ53 | Y63: =IF(I63="","",IF(A63="H",10^(0.794358141*LOG(I63/174.393)^2)*T63,IF(A63="F",10^(0.89726074*LOG(I63/148.026)^2)*T63,""))) -> 179.4688809 | AB63: =T63-HLOOKUP(X63,Feuil1!$C$1:$BL$10,2,FALSE) -> 63 | AC63: =T63-HLOOKUP(X63,Feuil1!$C$1:$BL$10,3,FALSE) -> 53 | AD63: =T63-HLOOKUP(X63,Feuil1!$C$1:$BL$10,4,FALSE) -> 43 | AE63: =T63-HLOOKUP(X63,Feuil1!$C$1:$BL$10,5,FALSE) -> 33 | AF63: =T63-HLOOKUP(X63,Feuil1!$C$1:$BL$10,6,FALSE) -> 23 | AG63: =T63-HLOOKUP(X63,Feuil1!$C$1:$BL$10,7,FALSE) -> 13 | AH63: =T63-HLOOKUP(X63,Feuil1!$C$1:$BL$10,8,FALSE) -> -2 | AI63: =T63-HLOOKUP(X63,Feuil1!$C$1:$BL$10,9,FALSE) -> -17 | AJ63: =T63-HLOOKUP(X63,Feuil1!$C$1:$BL$10,10,FALSE) -> -882 | AQ63: =IF(AJ63>=0,$AJ$4,IF(AI63>=0,$AI$4,IF(AH63>=0,$AH$4,IF(AG63>=0,$AG$4,IF(AF63>=0,$AF$4,IF(AE63>=0,$AE$4,IF(AD63>=0,$AD$4,IF(AC63>=0,$AC$4,$AB$4)))))))) -> NAT +
A64: F | B64: SO | C64: MPY | D64: 4 | E64: 253454 | F64: JOURNET | G64: Mégane | H64: 1995 | I64: 50.2 | J64: FIGEAC HC | K64: F | L64: 47 | M64: -50 | N64: -50 | O64: =IF(H64="","",IF(MAXA(L64:N64)<=0,0,MAXA(L64:N64))) -> 47 | P64: 55 | Q64: -60 | R64: -60 | S64: =IF(H64="","",IF(MAXA(P64:R64)<=0,0,MAXA(P64:R64))) -> 55 | T64: =IF(H64="","",IF(OR(O64=0,S64=0),0,O64+S64)) -> 102 | U64: 51.8 | V64: =IF(H64="","",AQ64) -> FED + | W64: =IF(AJ64>=0,AJ64,IF(AI64>=0,AI64,IF(AH64>=0,AH64,IF(AG64>=0,AG64,IF(AF64>=0,AF64,IF(AE64>=0,AE64,IF(AD64>=0,AD64,IF(AC64>=0,AC64,AB64)))))))) -> 7 | X64: =IF(I64="","",IF(A64="H",IF(OR(H64="SEN",H64<1995),VLOOKUP(I64,Feuil1!$A$11:$F$29,6),IF(AND(H64>1994,H64<1998),VLOOKUP(I64,Feuil1!$A$11:$F$29,5),IF(AND(H64>1997,H64<2000),VLOOKUP(I64,Feuil1!$A$11:$F$29,4),IF(AND(H64>1999,H64<2002),VLOOKUP(I64,Feuil1!$A$11:$F$29,3),VLOOKUP(I64,Feuil1!$A$11:$F$29,2))))),IF(OR(H64="SEN",H64<1995),VLOOKUP(I64,Feuil1!$G$11:$L$25,6),IF(AND(H64>1994,H64<1998),VLOOKUP(I64,Feuil1!$G$11:$L$25,5),IF(AND(H64>1997,H64<2000),VLOOKUP(I64,Feuil1!$G$11:$L$25,4),IF(AND(H64>1999,H64<2002),VLOOKUP(I64,Feuil1!$G$11:$L$25,3),VLOOKUP(I64,Feuil1!$G$11:$L$25,2))))))) -> FJ53 | Y64: =IF(I64="","",IF(A64="H",10^(0.794358141*LOG(I64/174.393)^2)*T64,IF(A64="F",10^(0.89726074*LOG(I64/148.026)^2)*T64,""))) -> 160.8780292 | AB64: =T64-HLOOKUP(X64,Feuil1!$C$1:$BL$10,2,FALSE) -> 47 | AC64: =T64-HLOOKUP(X64,Feuil1!$C$1:$BL$10,3,FALSE) -> 37 | AD64: =T64-HLOOKUP(X64,Feuil1!$C$1:$BL$10,4,FALSE) -> 27 | AE64: =T64-HLOOKUP(X64,Feuil1!$C$1:$BL$10,5,FALSE) -> 17 | AF64: =T64-HLOOKUP(X64,Feuil1!$C$1:$BL$10,6,FALSE) -> 7 | AG64: =T64-HLOOKUP(X64,Feuil1!$C$1:$BL$10,7,FALSE) -> -3 | AH64: =T64-HLOOKUP(X64,Feuil1!$C$1:$BL$10,8,FALSE) -> -18 | AI64: =T64-HLOOKUP(X64,Feuil1!$C$1:$BL$10,9,FALSE) -> -33 | AJ64: =T64-HLOOKUP(X64,Feuil1!$C$1:$BL$10,10,FALSE) -> -898 | AQ64: =IF(AJ64>=0,$AJ$4,IF(AI64>=0,$AI$4,IF(AH64>=0,$AH$4,IF(AG64>=0,$AG$4,IF(AF64>=0,$AF$4,IF(AE64>=0,$AE$4,IF(AD64>=0,$AD$4,IF(AC64>=0,$AC$4,$AB$4)))))))) -> FED +
A65: F | B65: Nord | C65: PIC | D65: 5 | E65: 309751 | F65: SEIGNEUR | G65: Manon | H65: 1995 | I65: 52.61 | J65: Villers-Bretonneux KC | K65: F | L65: 40 | M65: -43 | N65: 43 | O65: =IF(H65="","",IF(MAXA(L65:N65)<=0,0,MAXA(L65:N65))) -> 43 | P65: 52 | Q65: 56 | R65: -62 | S65: =IF(H65="","",IF(MAXA(P65:R65)<=0,0,MAXA(P65:R65))) -> 56 | T65: =IF(H65="","",IF(OR(O65=0,S65=0),0,O65+S65)) -> 99 | U65: 46.39 | V65: =IF(H65="","",AQ65) -> FED + | W65: =IF(AJ65>=0,AJ65,IF(AI65>=0,AI65,IF(AH65>=0,AH65,IF(AG65>=0,AG65,IF(AF65>=0,AF65,IF(AE65>=0,AE65,IF(AD65>=0,AD65,IF(AC65>=0,AC65,AB65)))))))) -> 4 | X65: =IF(I65="","",IF(A65="H",IF(OR(H65="SEN",H65<1995),VLOOKUP(I65,Feuil1!$A$11:$F$29,6),IF(AND(H65>1994,H65<1998),VLOOKUP(I65,Feuil1!$A$11:$F$29,5),IF(AND(H65>1997,H65<2000),VLOOKUP(I65,Feuil1!$A$11:$F$29,4),IF(AND(H65>1999,H65<2002),VLOOKUP(I65,Feuil1!$A$11:$F$29,3),VLOOKUP(I65,Feuil1!$A$11:$F$29,2))))),IF(OR(H65="SEN",H65<1995),VLOOKUP(I65,Feuil1!$G$11:$L$25,6),IF(AND(H65>1994,H65<1998),VLOOKUP(I65,Feuil1!$G$11:$L$25,5),IF(AND(H65>1997,H65<2000),VLOOKUP(I65,Feuil1!$G$11:$L$25,4),IF(AND(H65>1999,H65<2002),VLOOKUP(I65,Feuil1!$G$11:$L$25,3),VLOOKUP(I65,Feuil1!$G$11:$L$25,2))))))) -> FJ53 | Y65: =IF(I65="","",IF(A65="H",10^(0.794358141*LOG(I65/174.393)^2)*T65,IF(A65="F",10^(0.89726074*LOG(I65/148.026)^2)*T65,""))) -> 150.2246608 | AB65: =T65-HLOOKUP(X65,Feuil1!$C$1:$BL$10,2,FALSE) -> 44 | AC65: =T65-HLOOKUP(X65,Feuil1!$C$1:$BL$10,3,FALSE) -> 34 | AD65: =T65-HLOOKUP(X65,Feuil1!$C$1:$BL$10,4,FALSE) -> 24 | AE65: =T65-HLOOKUP(X65,Feuil1!$C$1:$BL$10,5,FALSE) -> 14 | AF65: =T65-HLOOKUP(X65,Feuil1!$C$1:$BL$10,6,FALSE) -> 4 | AG65: =T65-HLOOKUP(X65,Feuil1!$C$1:$BL$10,7,FALSE) -> -6 | AH65: =T65-HLOOKUP(X65,Feuil1!$C$1:$BL$10,8,FALSE) -> -21 | AI65: =T65-HLOOKUP(X65,Feuil1!$C$1:$BL$10,9,FALSE) -> -36 | AJ65: =T65-HLOOKUP(X65,Feuil1!$C$1:$BL$10,10,FALSE) -> -901 | AQ65: =IF(AJ65>=0,$AJ$4,IF(AI65>=0,$AI$4,IF(AH65>=0,$AH$4,IF(AG65>=0,$AG$4,IF(AF65>=0,$AF$4,IF(AE65>=0,$AE$4,IF(AD65>=0,$AD$4,IF(AC65>=0,$AC$4,$AB$4)))))))) -> FED +
AB66: =T66-HLOOKUP(X66,Feuil1!$C$1:$BL$10,2,FALSE) ->  | AC66: =T66-HLOOKUP(X66,Feuil1!$C$1:$BL$10,3,FALSE) ->  | AD66: =T66-HLOOKUP(X66,Feuil1!$C$1:$BL$10,4,FALSE) ->  | AE66: =T66-HLOOKUP(X66,Feuil1!$C$1:$BL$10,5,FALSE) ->  | AF66: =T66-HLOOKUP(X66,Feuil1!$C$1:$BL$10,6,FALSE) ->  | AG66: =T66-HLOOKUP(X66,Feuil1!$C$1:$BL$10,7,FALSE) ->  | AH66: =T66-HLOOKUP(X66,Feuil1!$C$1:$BL$10,8,FALSE) ->  | AI66: =T66-HLOOKUP(X66,Feuil1!$C$1:$BL$10,9,FALSE) ->  | AJ66: =T66-HLOOKUP(X66,Feuil1!$C$1:$BL$10,10,FALSE) -> 
A67: F | B67: Nord | C67: PIC | D67: 1 | E67: 140592 | F67: ARANJO | G67: Caroline | H67: 1995 | I67: 56.73 | J67: Villers-Bretonneux KC | K67: F | L67: 50 | M67: 54 | N67: -56 | O67: =IF(H67="","",IF(MAXA(L67:N67)<=0,0,MAXA(L67:N67))) -> 54 | P67: 61 | Q67: 64 | R67: -66 | S67: =IF(H67="","",IF(MAXA(P67:R67)<=0,0,MAXA(P67:R67))) -> 64 | T67: =IF(H67="","",IF(OR(O67=0,S67=0),0,O67+S67)) -> 118 | U67: 61.27 | V67: =IF(H67="","",AQ67) -> NAT + | W67: =IF(AJ67>=0,AJ67,IF(AI67>=0,AI67,IF(AH67>=0,AH67,IF(AG67>=0,AG67,IF(AF67>=0,AF67,IF(AE67>=0,AE67,IF(AD67>=0,AD67,IF(AC67>=0,AC67,AB67)))))))) -> 3 | X67: =IF(I67="","",IF(A67="H",IF(OR(H67="SEN",H67<1995),VLOOKUP(I67,Feuil1!$A$11:$F$29,6),IF(AND(H67>1994,H67<1998),VLOOKUP(I67,Feuil1!$A$11:$F$29,5),IF(AND(H67>1997,H67<2000),VLOOKUP(I67,Feuil1!$A$11:$F$29,4),IF(AND(H67>1999,H67<2002),VLOOKUP(I67,Feuil1!$A$11:$F$29,3),VLOOKUP(I67,Feuil1!$A$11:$F$29,2))))),IF(OR(H67="SEN",H67<1995),VLOOKUP(I67,Feuil1!$G$11:$L$25,6),IF(AND(H67>1994,H67<1998),VLOOKUP(I67,Feuil1!$G$11:$L$25,5),IF(AND(H67>1997,H67<2000),VLOOKUP(I67,Feuil1!$G$11:$L$25,4),IF(AND(H67>1999,H67<2002),VLOOKUP(I67,Feuil1!$G$11:$L$25,3),VLOOKUP(I67,Feuil1!$G$11:$L$25,2))))))) -> FJ58 | Y67: =IF(I67="","",IF(A67="H",10^(0.794358141*LOG(I67/174.393)^2)*T67,IF(A67="F",10^(0.89726074*LOG(I67/148.026)^2)*T67,""))) -> 168.8692977 | AB67: =T67-HLOOKUP(X67,Feuil1!$C$1:$BL$10,2,FALSE) -> 58 | AC67: =T67-HLOOKUP(X67,Feuil1!$C$1:$BL$10,3,FALSE) -> 48 | AD67: =T67-HLOOKUP(X67,Feuil1!$C$1:$BL$10,4,FALSE) -> 38 | AE67: =T67-HLOOKUP(X67,Feuil1!$C$1:$BL$10,5,FALSE) -> 28 | AF67: =T67-HLOOKUP(X67,Feuil1!$C$1:$BL$10,6,FALSE) -> 18 | AG67: =T67-HLOOKUP(X67,Feuil1!$C$1:$BL$10,7,FALSE) -> 3 | AH67: =T67-HLOOKUP(X67,Feuil1!$C$1:$BL$10,8,FALSE) -> -12 | AI67: =T67-HLOOKUP(X67,Feuil1!$C$1:$BL$10,9,FALSE) -> -32 | AJ67: =T67-HLOOKUP(X67,Feuil1!$C$1:$BL$10,10,FALSE) -> -882 | AQ67: =IF(AJ67>=0,$AJ$4,IF(AI67>=0,$AI$4,IF(AH67>=0,$AH$4,IF(AG67>=0,$AG$4,IF(AF67>=0,$AF$4,IF(AE67>=0,$AE$4,IF(AD67>=0,$AD$4,IF(AC67>=0,$AC$4,$AB$4)))))))) -> NAT +
A68: F | B68: SEST | C68: RAL | D68: 2 | E68: 171425 | F68: HOSTALIER | G68: Melinda | H68: 1997 | I68: 57.1 | J68: H.C. ST BALDOPH | K68: F | L68: 48 | M68: -50 | N68: 51 | O68: 51 | P68: 64 | Q68: 66 | R68: -68 | S68: 66 | T68: 117 | U68: 59.9 | V68: NAT + | W68: 2 | X68: =IF(I68="","",IF(A68="H",IF(OR(H68="SEN",H68<1995),VLOOKUP(I68,Feuil1!$A$11:$F$29,6),IF(AND(H68>1994,H68<1998),VLOOKUP(I68,Feuil1!$A$11:$F$29,5),IF(AND(H68>1997,H68<2000),VLOOKUP(I68,Feuil1!$A$11:$F$29,4),IF(AND(H68>1999,H68<2002),VLOOKUP(I68,Feuil1!$A$11:$F$29,3),VLOOKUP(I68,Feuil1!$A$11:$F$29,2))))),IF(OR(H68="SEN",H68<1995),VLOOKUP(I68,Feuil1!$G$11:$L$25,6),IF(AND(H68>1994,H68<1998),VLOOKUP(I68,Feuil1!$G$11:$L$25,5),IF(AND(H68>1997,H68<2000),VLOOKUP(I68,Feuil1!$G$11:$L$25,4),IF(AND(H68>1999,H68<2002),VLOOKUP(I68,Feuil1!$G$11:$L$25,3),VLOOKUP(I68,Feuil1!$G$11:$L$25,2))))))) -> FJ58 | Y68: 166.6293008 | AB68: =T68-HLOOKUP(X68,Feuil1!$C$1:$BL$10,2,FALSE) -> 57 | AC68: =T68-HLOOKUP(X68,Feuil1!$C$1:$BL$10,3,FALSE) -> 47 | AD68: =T68-HLOOKUP(X68,Feuil1!$C$1:$BL$10,4,FALSE) -> 37 | AE68: =T68-HLOOKUP(X68,Feuil1!$C$1:$BL$10,5,FALSE) -> 27 | AF68: =T68-HLOOKUP(X68,Feuil1!$C$1:$BL$10,6,FALSE) -> 17 | AG68: =T68-HLOOKUP(X68,Feuil1!$C$1:$BL$10,7,FALSE) -> 2 | AH68: =T68-HLOOKUP(X68,Feuil1!$C$1:$BL$10,8,FALSE) -> -13 | AI68: =T68-HLOOKUP(X68,Feuil1!$C$1:$BL$10,9,FALSE) -> -33 | AJ68: =T68-HLOOKUP(X68,Feuil1!$C$1:$BL$10,10,FALSE) -> -883 | AQ68: NAT +
A69: F | B69: Nord | C69: PIC | D69: 3 | E69: 219978 | F69: GAUTIER | G69: Ophélie | H69: 1997 | I69: 57.66 | J69: La Vaillante St Quentin | K69: F | L69: -47 | M69: 47 | N69: -50 | O69: 47 | P69: 65 | Q69: -68 | R69: -68 | S69: 65 | T69: 112 | U69: 54.34 | V69: FED + | W69: 12 | X69: =IF(I69="","",IF(A69="H",IF(OR(H69="SEN",H69<1995),VLOOKUP(I69,Feuil1!$A$11:$F$29,6),IF(AND(H69>1994,H69<1998),VLOOKUP(I69,Feuil1!$A$11:$F$29,5),IF(AND(H69>1997,H69<2000),VLOOKUP(I69,Feuil1!$A$11:$F$29,4),IF(AND(H69>1999,H69<2002),VLOOKUP(I69,Feuil1!$A$11:$F$29,3),VLOOKUP(I69,Feuil1!$A$11:$F$29,2))))),IF(OR(H69="SEN",H69<1995),VLOOKUP(I69,Feuil1!$G$11:$L$25,6),IF(AND(H69>1994,H69<1998),VLOOKUP(I69,Feuil1!$G$11:$L$25,5),IF(AND(H69>1997,H69<2000),VLOOKUP(I69,Feuil1!$G$11:$L$25,4),IF(AND(H69>1999,H69<2002),VLOOKUP(I69,Feuil1!$G$11:$L$25,3),VLOOKUP(I69,Feuil1!$G$11:$L$25,2))))))) -> FJ58 | Y69: 158.3627303 | AB69: =T69-HLOOKUP(X69,Feuil1!$C$1:$BL$10,2,FALSE) -> 52 | AC69: =T69-HLOOKUP(X69,Feuil1!$C$1:$BL$10,3,FALSE) -> 42 | AD69: =T69-HLOOKUP(X69,Feuil1!$C$1:$BL$10,4,FALSE) -> 32 | AE69: =T69-HLOOKUP(X69,Feuil1!$C$1:$BL$10,5,FALSE) -> 22 | AF69: =T69-HLOOKUP(X69,Feuil1!$C$1:$BL$10,6,FALSE) -> 12 | AG69: =T69-HLOOKUP(X69,Feuil1!$C$1:$BL$10,7,FALSE) -> -3 | AH69: =T69-HLOOKUP(X69,Feuil1!$C$1:$BL$10,8,FALSE) -> -18 | AI69: =T69-HLOOKUP(X69,Feuil1!$C$1:$BL$10,9,FALSE) -> -38 | AJ69: =T69-HLOOKUP(X69,Feuil1!$C$1:$BL$10,10,FALSE) -> -888 | AQ69: FED +
A70: F | B70: SEST | C70: CAZ | D70: 4 | E70: 323896 | F70: DUPEYROUX | G70: Elise | H70: 1997 | I70: 53.5 | J70: ASLDD. TOULON | K70: F | L70: 43 | M70: 45 | N70: 47 | O70: 47 | P70: 53 | Q70: 56 | R70: 59 | S70: 59 | T70: 106 | U70: 52.5 | V70: FED + | W70: 6 | X70: =IF(I70="","",IF(A70="H",IF(OR(H70="SEN",H70<1995),VLOOKUP(I70,Feuil1!$A$11:$F$29,6),IF(AND(H70>1994,H70<1998),VLOOKUP(I70,Feuil1!$A$11:$F$29,5),IF(AND(H70>1997,H70<2000),VLOOKUP(I70,Feuil1!$A$11:$F$29,4),IF(AND(H70>1999,H70<2002),VLOOKUP(I70,Feuil1!$A$11:$F$29,3),VLOOKUP(I70,Feuil1!$A$11:$F$29,2))))),IF(OR(H70="SEN",H70<1995),VLOOKUP(I70,Feuil1!$G$11:$L$25,6),IF(AND(H70>1994,H70<1998),VLOOKUP(I70,Feuil1!$G$11:$L$25,5),IF(AND(H70>1997,H70<2000),VLOOKUP(I70,Feuil1!$G$11:$L$25,4),IF(AND(H70>1999,H70<2002),VLOOKUP(I70,Feuil1!$G$11:$L$25,3),VLOOKUP(I70,Feuil1!$G$11:$L$25,2))))))) -> FJ58 | Y70: 158.7032416 | AB70: =T70-HLOOKUP(X70,Feuil1!$C$1:$BL$10,2,FALSE) -> 46 | AC70: =T70-HLOOKUP(X70,Feuil1!$C$1:$BL$10,3,FALSE) -> 36 | AD70: =T70-HLOOKUP(X70,Feuil1!$C$1:$BL$10,4,FALSE) -> 26 | AE70: =T70-HLOOKUP(X70,Feuil1!$C$1:$BL$10,5,FALSE) -> 16 | AF70: =T70-HLOOKUP(X70,Feuil1!$C$1:$BL$10,6,FALSE) -> 6 | AG70: =T70-HLOOKUP(X70,Feuil1!$C$1:$BL$10,7,FALSE) -> -9 | AH70: =T70-HLOOKUP(X70,Feuil1!$C$1:$BL$10,8,FALSE) -> -24 | AI70: =T70-HLOOKUP(X70,Feuil1!$C$1:$BL$10,9,FALSE) -> -44 | AJ70: =T70-HLOOKUP(X70,Feuil1!$C$1:$BL$10,10,FALSE) -> -894 | AQ70: FED +
A71: F | B71: ZCO | C71: BRE | D71: 5 | E71: 146079 | F71: DEBIAIS | G71: Joanna | H71: 1996 | I71: 53.83 | J71: ES Saint Avé | K71: F | L71: 45 | M71: 48 | N71: -50 | O71: 48 | P71: 52 | Q71: 56 | R71: 58 | S71: 58 | T71: 106 | U71: 52.17 | V71: FED + | W71: 6 | X71: =IF(I71="","",IF(A71="H",IF(OR(H71="SEN",H71<1995),VLOOKUP(I71,Feuil1!$A$11:$F$29,6),IF(AND(H71>1994,H71<1998),VLOOKUP(I71,Feuil1!$A$11:$F$29,5),IF(AND(H71>1997,H71<2000),VLOOKUP(I71,Feuil1!$A$11:$F$29,4),IF(AND(H71>1999,H71<2002),VLOOKUP(I71,Feuil1!$A$11:$F$29,3),VLOOKUP(I71,Feuil1!$A$11:$F$29,2))))),IF(OR(H71="SEN",H71<1995),VLOOKUP(I71,Feuil1!$G$11:$L$25,6),IF(AND(H71>1994,H71<1998),VLOOKUP(I71,Feuil1!$G$11:$L$25,5),IF(AND(H71>1997,H71<2000),VLOOKUP(I71,Feuil1!$G$11:$L$25,4),IF(AND(H71>1999,H71<2002),VLOOKUP(I71,Feuil1!$G$11:$L$25,3),VLOOKUP(I71,Feuil1!$G$11:$L$25,2))))))) -> FJ58 | Y71: 157.9334098 | AB71: =T71-HLOOKUP(X71,Feuil1!$C$1:$BL$10,2,FALSE) -> 46 | AC71: =T71-HLOOKUP(X71,Feuil1!$C$1:$BL$10,3,FALSE) -> 36 | AD71: =T71-HLOOKUP(X71,Feuil1!$C$1:$BL$10,4,FALSE) -> 26 | AE71: =T71-HLOOKUP(X71,Feuil1!$C$1:$BL$10,5,FALSE) -> 16 | AF71: =T71-HLOOKUP(X71,Feuil1!$C$1:$BL$10,6,FALSE) -> 6 | AG71: =T71-HLOOKUP(X71,Feuil1!$C$1:$BL$10,7,FALSE) -> -9 | AH71: =T71-HLOOKUP(X71,Feuil1!$C$1:$BL$10,8,FALSE) -> -24 | AI71: =T71-HLOOKUP(X71,Feuil1!$C$1:$BL$10,9,FALSE) -> -44 | AJ71: =T71-HLOOKUP(X71,Feuil1!$C$1:$BL$10,10,FALSE) -> -894 | AQ71: FED +
A72: F | B72: Nord | C72: NPC | D72: 6 | E72: 345628 | F72: HENIN | G72: Manon | H72: 1995 | I72: 55.04 | J72: Berck sur Mer | K72: F | L72: 41 | M72: 44 | N72: -46 | O72: 44 | P72: 51 | Q72: 54 | R72: 56 | S72: 56 | T72: 100 | U72: 44.96 | V72: FED + | W72: 0 | X72: =IF(I72="","",IF(A72="H",IF(OR(H72="SEN",H72<1995),VLOOKUP(I72,Feuil1!$A$11:$F$29,6),IF(AND(H72>1994,H72<1998),VLOOKUP(I72,Feuil1!$A$11:$F$29,5),IF(AND(H72>1997,H72<2000),VLOOKUP(I72,Feuil1!$A$11:$F$29,4),IF(AND(H72>1999,H72<2002),VLOOKUP(I72,Feuil1!$A$11:$F$29,3),VLOOKUP(I72,Feuil1!$A$11:$F$29,2))))),IF(OR(H72="SEN",H72<1995),VLOOKUP(I72,Feuil1!$G$11:$L$25,6),IF(AND(H72>1994,H72<1998),VLOOKUP(I72,Feuil1!$G$11:$L$25,5),IF(AND(H72>1997,H72<2000),VLOOKUP(I72,Feuil1!$G$11:$L$25,4),IF(AND(H72>1999,H72<2002),VLOOKUP(I72,Feuil1!$G$11:$L$25,3),VLOOKUP(I72,Feuil1!$G$11:$L$25,2))))))) -> FJ58 | Y72: 146.4336644 | AB72: =T72-HLOOKUP(X72,Feuil1!$C$1:$BL$10,2,FALSE) -> 40 | AC72: =T72-HLOOKUP(X72,Feuil1!$C$1:$BL$10,3,FALSE) -> 30 | AD72: =T72-HLOOKUP(X72,Feuil1!$C$1:$BL$10,4,FALSE) -> 20 | AE72: =T72-HLOOKUP(X72,Feuil1!$C$1:$BL$10,5,FALSE) -> 10 | AF72: =T72-HLOOKUP(X72,Feuil1!$C$1:$BL$10,6,FALSE) -> 0 | AG72: =T72-HLOOKUP(X72,Feuil1!$C$1:$BL$10,7,FALSE) -> -15 | AH72: =T72-HLOOKUP(X72,Feuil1!$C$1:$BL$10,8,FALSE) -> -30 | AI72: =T72-HLOOKUP(X72,Feuil1!$C$1:$BL$10,9,FALSE) -> -50 | AJ72: =T72-HLOOKUP(X72,Feuil1!$C$1:$BL$10,10,FALSE) -> -900 | AQ72: FED +
A73: F | B73: Nord | C73: NPC | D73: 7 | E73: 192187 | F73: BAERT | G73: Blandine | H73: 1995 | I73: 54.25 | J73: CHCD Comines | K73: F | L73: 40 | M73: 43 | N73: -45 | O73: 43 | P73: 50 | Q73: 54 | R73: -57 | S73: 54 | T73: 97 | U73: 42.75 | V73: IRG + | W73: 7 | X73: =IF(I73="","",IF(A73="H",IF(OR(H73="SEN",H73<1995),VLOOKUP(I73,Feuil1!$A$11:$F$29,6),IF(AND(H73>1994,H73<1998),VLOOKUP(I73,Feuil1!$A$11:$F$29,5),IF(AND(H73>1997,H73<2000),VLOOKUP(I73,Feuil1!$A$11:$F$29,4),IF(AND(H73>1999,H73<2002),VLOOKUP(I73,Feuil1!$A$11:$F$29,3),VLOOKUP(I73,Feuil1!$A$11:$F$29,2))))),IF(OR(H73="SEN",H73<1995),VLOOKUP(I73,Feuil1!$G$11:$L$25,6),IF(AND(H73>1994,H73<1998),VLOOKUP(I73,Feuil1!$G$11:$L$25,5),IF(AND(H73>1997,H73<2000),VLOOKUP(I73,Feuil1!$G$11:$L$25,4),IF(AND(H73>1999,H73<2002),VLOOKUP(I73,Feuil1!$G$11:$L$25,3),VLOOKUP(I73,Feuil1!$G$11:$L$25,2))))))) -> FJ58 | Y73: 143.6445358 | AB73: =T73-HLOOKUP(X73,Feuil1!$C$1:$BL$10,2,FALSE) -> 37 | AC73: =T73-HLOOKUP(X73,Feuil1!$C$1:$BL$10,3,FALSE) -> 27 | AD73: =T73-HLOOKUP(X73,Feuil1!$C$1:$BL$10,4,FALSE) -> 17 | AE73: =T73-HLOOKUP(X73,Feuil1!$C$1:$BL$10,5,FALSE) -> 7 | AF73: =T73-HLOOKUP(X73,Feuil1!$C$1:$BL$10,6,FALSE) -> -3 | AG73: =T73-HLOOKUP(X73,Feuil1!$C$1:$BL$10,7,FALSE) -> -18 | AH73: =T73-HLOOKUP(X73,Feuil1!$C$1:$BL$10,8,FALSE) -> -33 | AI73: =T73-HLOOKUP(X73,Feuil1!$C$1:$BL$10,9,FALSE) -> -53 | AJ73: =T73-HLOOKUP(X73,Feuil1!$C$1:$BL$10,10,FALSE) -> -903 | AQ73: IRG +
AB74: =T74-HLOOKUP(X74,Feuil1!$C$1:$BL$10,2,FALSE) ->  | AC74: =T74-HLOOKUP(X74,Feuil1!$C$1:$BL$10,3,FALSE) ->  | AD74: =T74-HLOOKUP(X74,Feuil1!$C$1:$BL$10,4,FALSE) ->  | AE74: =T74-HLOOKUP(X74,Feuil1!$C$1:$BL$10,5,FALSE) ->  | AF74: =T74-HLOOKUP(X74,Feuil1!$C$1:$BL$10,6,FALSE) ->  | AG74: =T74-HLOOKUP(X74,Feuil1!$C$1:$BL$10,7,FALSE) ->  | AH74: =T74-HLOOKUP(X74,Feuil1!$C$1:$BL$10,8,FALSE) ->  | AI74: =T74-HLOOKUP(X74,Feuil1!$C$1:$BL$10,9,FALSE) ->  | AJ74: =T74-HLOOKUP(X74,Feuil1!$C$1:$BL$10,10,FALSE) -> 
A75: F | B75: NE | C75: CHA | D75: 1 | E75: 274946 | F75: GROSJEAN | G75: Loriane | H75: 1997 | I75: 60.3 | J75: Langres HM | K75: F | L75: 50 | M75: 53 | N75: 55 | O75: =IF(H75="","",IF(MAXA(L75:N75)<=0,0,MAXA(L75:N75))) -> 55 | P75: 60 | Q75: 64 | R75: 68 | S75: =IF(H75="","",IF(MAXA(P75:R75)<=0,0,MAXA(P75:R75))) -> 68 | T75: =IF(H75="","",IF(OR(O75=0,S75=0),0,O75+S75)) -> 123 | U75: 62.7 | V75: =IF(H75="","",AQ75) -> FED + | W75: =IF(AJ75>=0,AJ75,IF(AI75>=0,AI75,IF(AH75>=0,AH75,IF(AG75>=0,AG75,IF(AF75>=0,AF75,IF(AE75>=0,AE75,IF(AD75>=0,AD75,IF(AC75>=0,AC75,AB75)))))))) -> 13 | X75: =IF(I75="","",IF(A75="H",IF(OR(H75="SEN",H75<1995),VLOOKUP(I75,Feuil1!$A$11:$F$29,6),IF(AND(H75>1994,H75<1998),VLOOKUP(I75,Feuil1!$A$11:$F$29,5),IF(AND(H75>1997,H75<2000),VLOOKUP(I75,Feuil1!$A$11:$F$29,4),IF(AND(H75>1999,H75<2002),VLOOKUP(I75,Feuil1!$A$11:$F$29,3),VLOOKUP(I75,Feuil1!$A$11:$F$29,2))))),IF(OR(H75="SEN",H75<1995),VLOOKUP(I75,Feuil1!$G$11:$L$25,6),IF(AND(H75>1994,H75<1998),VLOOKUP(I75,Feuil1!$G$11:$L$25,5),IF(AND(H75>1997,H75<2000),VLOOKUP(I75,Feuil1!$G$11:$L$25,4),IF(AND(H75>1999,H75<2002),VLOOKUP(I75,Feuil1!$G$11:$L$25,3),VLOOKUP(I75,Feuil1!$G$11:$L$25,2))))))) -> FJ63 | Y75: =IF(I75="","",IF(A75="H",10^(0.794358141*LOG(I75/174.393)^2)*T75,IF(A75="F",10^(0.89726074*LOG(I75/148.026)^2)*T75,""))) -> 168.4197241 | AB75: =T75-HLOOKUP(X75,Feuil1!$C$1:$BL$10,2,FALSE) -> 58 | AC75: =T75-HLOOKUP(X75,Feuil1!$C$1:$BL$10,3,FALSE) -> 48 | AD75: =T75-HLOOKUP(X75,Feuil1!$C$1:$BL$10,4,FALSE) -> 38 | AE75: =T75-HLOOKUP(X75,Feuil1!$C$1:$BL$10,5,FALSE) -> 28 | AF75: =T75-HLOOKUP(X75,Feuil1!$C$1:$BL$10,6,FALSE) -> 13 | AG75: =T75-HLOOKUP(X75,Feuil1!$C$1:$BL$10,7,FALSE) -> -2 | AH75: =T75-HLOOKUP(X75,Feuil1!$C$1:$BL$10,8,FALSE) -> -17 | AI75: =T75-HLOOKUP(X75,Feuil1!$C$1:$BL$10,9,FALSE) -> -37 | AJ75: =T75-HLOOKUP(X75,Feuil1!$C$1:$BL$10,10,FALSE) -> -877 | AQ75: =IF(AJ75>=0,$AJ$4,IF(AI75>=0,$AI$4,IF(AH75>=0,$AH$4,IF(AG75>=0,$AG$4,IF(AF75>=0,$AF$4,IF(AE75>=0,$AE$4,IF(AD75>=0,$AD$4,IF(AC75>=0,$AC$4,$AB$4)))))))) -> FED +
A76: F | B76: SO | C76: MPY | D76: 2 | E76: 253453 | F76: JOURNET | G76: Anaïs | H76: 1995 | I76: 62.8 | J76: FIGEAC HC | K76: F | L76: 45 | M76: -50 | N76: 50 | O76: =IF(H76="","",IF(MAXA(L76:N76)<=0,0,MAXA(L76:N76))) -> 50 | P76: 60 | Q76: 65 | R76: 70 | S76: =IF(H76="","",IF(MAXA(P76:R76)<=0,0,MAXA(P76:R76))) -> 70 | T76: =IF(H76="","",IF(OR(O76=0,S76=0),0,O76+S76)) -> 120 | U76: 57.2 | V76: =IF(H76="","",AQ76) -> FED + | W76: =IF(AJ76>=0,AJ76,IF(AI76>=0,AI76,IF(AH76>=0,AH76,IF(AG76>=0,AG76,IF(AF76>=0,AF76,IF(AE76>=0,AE76,IF(AD76>=0,AD76,IF(AC76>=0,AC76,AB76)))))))) -> 10 | X76: =IF(I76="","",IF(A76="H",IF(OR(H76="SEN",H76<1995),VLOOKUP(I76,Feuil1!$A$11:$F$29,6),IF(AND(H76>1994,H76<1998),VLOOKUP(I76,Feuil1!$A$11:$F$29,5),IF(AND(H76>1997,H76<2000),VLOOKUP(I76,Feuil1!$A$11:$F$29,4),IF(AND(H76>1999,H76<2002),VLOOKUP(I76,Feuil1!$A$11:$F$29,3),VLOOKUP(I76,Feuil1!$A$11:$F$29,2))))),IF(OR(H76="SEN",H76<1995),VLOOKUP(I76,Feuil1!$G$11:$L$25,6),IF(AND(H76>1994,H76<1998),VLOOKUP(I76,Feuil1!$G$11:$L$25,5),IF(AND(H76>1997,H76<2000),VLOOKUP(I76,Feuil1!$G$11:$L$25,4),IF(AND(H76>1999,H76<2002),VLOOKUP(I76,Feuil1!$G$11:$L$25,3),VLOOKUP(I76,Feuil1!$G$11:$L$25,2))))))) -> FJ63 | Y76: =IF(I76="","",IF(A76="H",10^(0.794358141*LOG(I76/174.393)^2)*T76,IF(A76="F",10^(0.89726074*LOG(I76/148.026)^2)*T76,""))) -> 159.8087238 | AB76: =T76-HLOOKUP(X76,Feuil1!$C$1:$BL$10,2,FALSE) -> 55 | AC76: =T76-HLOOKUP(X76,Feuil1!$C$1:$BL$10,3,FALSE) -> 45 | AD76: =T76-HLOOKUP(X76,Feuil1!$C$1:$BL$10,4,FALSE) -> 35 | AE76: =T76-HLOOKUP(X76,Feuil1!$C$1:$BL$10,5,FALSE) -> 25 | AF76: =T76-HLOOKUP(X76,Feuil1!$C$1:$BL$10,6,FALSE) -> 10 | AG76: =T76-HLOOKUP(X76,Feuil1!$C$1:$BL$10,7,FALSE) -> -5 | AH76: =T76-HLOOKUP(X76,Feuil1!$C$1:$BL$10,8,FALSE) -> -20 | AI76: =T76-HLOOKUP(X76,Feuil1!$C$1:$BL$10,9,FALSE) -> -40 | AJ76: =T76-HLOOKUP(X76,Feuil1!$C$1:$BL$10,10,FALSE) -> -880 | AQ76: =IF(AJ76>=0,$AJ$4,IF(AI76>=0,$AI$4,IF(AH76>=0,$AH$4,IF(AG76>=0,$AG$4,IF(AF76>=0,$AF$4,IF(AE76>=0,$AE$4,IF(AD76>=0,$AD$4,IF(AC76>=0,$AC$4,$AB$4)))))))) -> FED +
AB77: =T77-HLOOKUP(X77,Feuil1!$C$1:$BL$10,2,FALSE) ->  | AC77: =T77-HLOOKUP(X77,Feuil1!$C$1:$BL$10,3,FALSE) ->  | AD77: =T77-HLOOKUP(X77,Feuil1!$C$1:$BL$10,4,FALSE) ->  | AE77: =T77-HLOOKUP(X77,Feuil1!$C$1:$BL$10,5,FALSE) ->  | AF77: =T77-HLOOKUP(X77,Feuil1!$C$1:$BL$10,6,FALSE) ->  | AG77: =T77-HLOOKUP(X77,Feuil1!$C$1:$BL$10,7,FALSE) ->  | AH77: =T77-HLOOKUP(X77,Feuil1!$C$1:$BL$10,8,FALSE) ->  | AI77: =T77-HLOOKUP(X77,Feuil1!$C$1:$BL$10,9,FALSE) ->  | AJ77: =T77-HLOOKUP(X77,Feuil1!$C$1:$BL$10,10,FALSE) -> 
A78: F | B78: DOM | C78: GUA | D78: 1 | E78: 183203 | F78: GRAVA | G78: Naomi | H78: 1996 | I78: 68.8 | J78: AHCS/Pointois | K78: F | L78: 65 | M78: 70 | N78: 72 | O78: =IF(H78="","",IF(MAXA(L78:N78)<=0,0,MAXA(L78:N78))) -> 72 | P78: 80 | Q78: 85 | R78: -89 | S78: =IF(H78="","",IF(MAXA(P78:R78)<=0,0,MAXA(P78:R78))) -> 85 | T78: =IF(H78="","",IF(OR(O78=0,S78=0),0,O78+S78)) -> 157 | U78: =T78-I78 -> 88.2 | V78: =IF(H78="","",AQ78) -> INTB + | W78: =IF(AJ78>=0,AJ78,IF(AI78>=0,AI78,IF(AH78>=0,AH78,IF(AG78>=0,AG78,IF(AF78>=0,AF78,IF(AE78>=0,AE78,IF(AD78>=0,AD78,IF(AC78>=0,AC78,AB78)))))))) -> 7 | X78: =IF(I78="","",IF(A78="H",IF(OR(H78="SEN",H78<1995),VLOOKUP(I78,Feuil1!$A$11:$F$29,6),IF(AND(H78>1994,H78<1998),VLOOKUP(I78,Feuil1!$A$11:$F$29,5),IF(AND(H78>1997,H78<2000),VLOOKUP(I78,Feuil1!$A$11:$F$29,4),IF(AND(H78>1999,H78<2002),VLOOKUP(I78,Feuil1!$A$11:$F$29,3),VLOOKUP(I78,Feuil1!$A$11:$F$29,2))))),IF(OR(H78="SEN",H78<1995),VLOOKUP(I78,Feuil1!$G$11:$L$25,6),IF(AND(H78>1994,H78<1998),VLOOKUP(I78,Feuil1!$G$11:$L$25,5),IF(AND(H78>1997,H78<2000),VLOOKUP(I78,Feuil1!$G$11:$L$25,4),IF(AND(H78>1999,H78<2002),VLOOKUP(I78,Feuil1!$G$11:$L$25,3),VLOOKUP(I78,Feuil1!$G$11:$L$25,2))))))) -> FJ69 | Y78: =IF(I78="","",IF(A78="H",10^(0.794358141*LOG(I78/174.393)^2)*T78,IF(A78="F",10^(0.89726074*LOG(I78/148.026)^2)*T78,""))) -> 197.3542127 | AB78: =T78-HLOOKUP(X78,Feuil1!$C$1:$BL$10,2,FALSE) -> 87 | AC78: =T78-HLOOKUP(X78,Feuil1!$C$1:$BL$10,3,FALSE) -> 77 | AD78: =T78-HLOOKUP(X78,Feuil1!$C$1:$BL$10,4,FALSE) -> 67 | AE78: =T78-HLOOKUP(X78,Feuil1!$C$1:$BL$10,5,FALSE) -> 52 | AF78: =T78-HLOOKUP(X78,Feuil1!$C$1:$BL$10,6,FALSE) -> 37 | AG78: =T78-HLOOKUP(X78,Feuil1!$C$1:$BL$10,7,FALSE) -> 22 | AH78: =T78-HLOOKUP(X78,Feuil1!$C$1:$BL$10,8,FALSE) -> 7 | AI78: =T78-HLOOKUP(X78,Feuil1!$C$1:$BL$10,9,FALSE) -> -13 | AJ78: =T78-HLOOKUP(X78,Feuil1!$C$1:$BL$10,10,FALSE) -> -843 | AQ78: =IF(AJ78>=0,$AJ$4,IF(AI78>=0,$AI$4,IF(AH78>=0,$AH$4,IF(AG78>=0,$AG$4,IF(AF78>=0,$AF$4,IF(AE78>=0,$AE$4,IF(AD78>=0,$AD$4,IF(AC78>=0,$AC$4,$AB$4)))))))) -> INTB +
A79: F | B79: SEST | C79: CAZ | D79: 2 | E79: 231757 | F79: RONCO | G79: Emmanuelle | H79: 1995 | I79: 65 | J79: E.S. VILLENEUVE LOUBET | K79: F | L79: 51 | M79: 55 | N79: 57 | O79: =IF(H79="","",IF(MAXA(L79:N79)<=0,0,MAXA(L79:N79))) -> 57 | P79: 60 | Q79: 63 | R79: 66 | S79: =IF(H79="","",IF(MAXA(P79:R79)<=0,0,MAXA(P79:R79))) -> 66 | T79: =IF(H79="","",IF(OR(O79=0,S79=0),0,O79+S79)) -> 123 | U79: 58 | V79: =IF(H79="","",AQ79) -> FED + | W79: =IF(AJ79>=0,AJ79,IF(AI79>=0,AI79,IF(AH79>=0,AH79,IF(AG79>=0,AG79,IF(AF79>=0,AF79,IF(AE79>=0,AE79,IF(AD79>=0,AD79,IF(AC79>=0,AC79,AB79)))))))) -> 3 | X79: =IF(I79="","",IF(A79="H",IF(OR(H79="SEN",H79<1995),VLOOKUP(I79,Feuil1!$A$11:$F$29,6),IF(AND(H79>1994,H79<1998),VLOOKUP(I79,Feuil1!$A$11:$F$29,5),IF(AND(H79>1997,H79<2000),VLOOKUP(I79,Feuil1!$A$11:$F$29,4),IF(AND(H79>1999,H79<2002),VLOOKUP(I79,Feuil1!$A$11:$F$29,3),VLOOKUP(I79,Feuil1!$A$11:$F$29,2))))),IF(OR(H79="SEN",H79<1995),VLOOKUP(I79,Feuil1!$G$11:$L$25,6),IF(AND(H79>1994,H79<1998),VLOOKUP(I79,Feuil1!$G$11:$L$25,5),IF(AND(H79>1997,H79<2000),VLOOKUP(I79,Feuil1!$G$11:$L$25,4),IF(AND(H79>1999,H79<2002),VLOOKUP(I79,Feuil1!$G$11:$L$25,3),VLOOKUP(I79,Feuil1!$G$11:$L$25,2))))))) -> FJ69 | Y79: =IF(I79="","",IF(A79="H",10^(0.794358141*LOG(I79/174.393)^2)*T79,IF(A79="F",10^(0.89726074*LOG(I79/148.026)^2)*T79,""))) -> 160.1519773 | AB79: =T79-HLOOKUP(X79,Feuil1!$C$1:$BL$10,2,FALSE) -> 53 | AC79: =T79-HLOOKUP(X79,Feuil1!$C$1:$BL$10,3,FALSE) -> 43 | AD79: =T79-HLOOKUP(X79,Feuil1!$C$1:$BL$10,4,FALSE) -> 33 | AE79: =T79-HLOOKUP(X79,Feuil1!$C$1:$BL$10,5,FALSE) -> 18 | AF79: =T79-HLOOKUP(X79,Feuil1!$C$1:$BL$10,6,FALSE) -> 3 | AG79: =T79-HLOOKUP(X79,Feuil1!$C$1:$BL$10,7,FALSE) -> -12 | AH79: =T79-HLOOKUP(X79,Feuil1!$C$1:$BL$10,8,FALSE) -> -27 | AI79: =T79-HLOOKUP(X79,Feuil1!$C$1:$BL$10,9,FALSE) -> -47 | AJ79: =T79-HLOOKUP(X79,Feuil1!$C$1:$BL$10,10,FALSE) -> -877 | AQ79: =IF(AJ79>=0,$AJ$4,IF(AI79>=0,$AI$4,IF(AH79>=0,$AH$4,IF(AG79>=0,$AG$4,IF(AF79>=0,$AF$4,IF(AE79>=0,$AE$4,IF(AD79>=0,$AD$4,IF(AC79>=0,$AC$4,$AB$4)))))))) -> FED +
AB80: =T80-HLOOKUP(X80,Feuil1!$C$1:$BL$10,2,FALSE) ->  | AC80: =T80-HLOOKUP(X80,Feuil1!$C$1:$BL$10,3,FALSE) ->  | AD80: =T80-HLOOKUP(X80,Feuil1!$C$1:$BL$10,4,FALSE) ->  | AE80: =T80-HLOOKUP(X80,Feuil1!$C$1:$BL$10,5,FALSE) ->  | AF80: =T80-HLOOKUP(X80,Feuil1!$C$1:$BL$10,6,FALSE) ->  | AG80: =T80-HLOOKUP(X80,Feuil1!$C$1:$BL$10,7,FALSE) ->  | AH80: =T80-HLOOKUP(X80,Feuil1!$C$1:$BL$10,8,FALSE) ->  | AI80: =T80-HLOOKUP(X80,Feuil1!$C$1:$BL$10,9,FALSE) ->  | AJ80: =T80-HLOOKUP(X80,Feuil1!$C$1:$BL$10,10,FALSE) -> 
A81: F | B81: DOM | C81: GUA | D81: 1 | E81: 212730 | F81: ROSAN | G81: Kysia | H81: 1996 | I81: 74.7 | J81: AHCS/Pointois | K81: F | L81: 60 | M81: 65 | N81: 67 | O81: =IF(H81="","",IF(MAXA(L81:N81)<=0,0,MAXA(L81:N81))) -> 67 | P81: 80 | Q81: 85 | R81: -90 | S81: =IF(H81="","",IF(MAXA(P81:R81)<=0,0,MAXA(P81:R81))) -> 85 | T81: =IF(H81="","",IF(OR(O81=0,S81=0),0,O81+S81)) -> 152 | U81: =T81-I81 -> 77.3 | V81: =IF(H81="","",AQ81) -> NAT + | W81: =IF(AJ81>=0,AJ81,IF(AI81>=0,AI81,IF(AH81>=0,AH81,IF(AG81>=0,AG81,IF(AF81>=0,AF81,IF(AE81>=0,AE81,IF(AD81>=0,AD81,IF(AC81>=0,AC81,AB81)))))))) -> 7 | X81: =IF(I81="","",IF(A81="H",IF(OR(H81="SEN",H81<1995),VLOOKUP(I81,Feuil1!$A$11:$F$29,6),IF(AND(H81>1994,H81<1998),VLOOKUP(I81,Feuil1!$A$11:$F$29,5),IF(AND(H81>1997,H81<2000),VLOOKUP(I81,Feuil1!$A$11:$F$29,4),IF(AND(H81>1999,H81<2002),VLOOKUP(I81,Feuil1!$A$11:$F$29,3),VLOOKUP(I81,Feuil1!$A$11:$F$29,2))))),IF(OR(H81="SEN",H81<1995),VLOOKUP(I81,Feuil1!$G$11:$L$25,6),IF(AND(H81>1994,H81<1998),VLOOKUP(I81,Feuil1!$G$11:$L$25,5),IF(AND(H81>1997,H81<2000),VLOOKUP(I81,Feuil1!$G$11:$L$25,4),IF(AND(H81>1999,H81<2002),VLOOKUP(I81,Feuil1!$G$11:$L$25,3),VLOOKUP(I81,Feuil1!$G$11:$L$25,2))))))) -> FJ75 | Y81: =IF(I81="","",IF(A81="H",10^(0.794358141*LOG(I81/174.393)^2)*T81,IF(A81="F",10^(0.89726074*LOG(I81/148.026)^2)*T81,""))) -> 182.3892912 | AB81: =T81-HLOOKUP(X81,Feuil1!$C$1:$BL$10,2,FALSE) -> 72 | AC81: =T81-HLOOKUP(X81,Feuil1!$C$1:$BL$10,3,FALSE) -> 57 | AD81: =T81-HLOOKUP(X81,Feuil1!$C$1:$BL$10,4,FALSE) -> 47 | AE81: =T81-HLOOKUP(X81,Feuil1!$C$1:$BL$10,5,FALSE) -> 37 | AF81: =T81-HLOOKUP(X81,Feuil1!$C$1:$BL$10,6,FALSE) -> 22 | AG81: =T81-HLOOKUP(X81,Feuil1!$C$1:$BL$10,7,FALSE) -> 7 | AH81: =T81-HLOOKUP(X81,Feuil1!$C$1:$BL$10,8,FALSE) -> -8 | AI81: =T81-HLOOKUP(X81,Feuil1!$C$1:$BL$10,9,FALSE) -> -28 | AJ81: =T81-HLOOKUP(X81,Feuil1!$C$1:$BL$10,10,FALSE) -> -848 | AQ81: =IF(AJ81>=0,$AJ$4,IF(AI81>=0,$AI$4,IF(AH81>=0,$AH$4,IF(AG81>=0,$AG$4,IF(AF81>=0,$AF$4,IF(AE81>=0,$AE$4,IF(AD81>=0,$AD$4,IF(AC81>=0,$AC$4,$AB$4)))))))) -> NAT +
AB82: =T82-HLOOKUP(X82,Feuil1!$C$1:$BL$10,2,FALSE) ->  | AC82: =T82-HLOOKUP(X82,Feuil1!$C$1:$BL$10,3,FALSE) ->  | AD82: =T82-HLOOKUP(X82,Feuil1!$C$1:$BL$10,4,FALSE) ->  | AE82: =T82-HLOOKUP(X82,Feuil1!$C$1:$BL$10,5,FALSE) ->  | AF82: =T82-HLOOKUP(X82,Feuil1!$C$1:$BL$10,6,FALSE) ->  | AG82: =T82-HLOOKUP(X82,Feuil1!$C$1:$BL$10,7,FALSE) ->  | AH82: =T82-HLOOKUP(X82,Feuil1!$C$1:$BL$10,8,FALSE) ->  | AI82: =T82-HLOOKUP(X82,Feuil1!$C$1:$BL$10,9,FALSE) ->  | AJ82: =T82-HLOOKUP(X82,Feuil1!$C$1:$BL$10,10,FALSE) -> 
A83: F | B83: NE | C83: BOU | D83: 1 | E83: 007051 | F83: BARDIS | G83: Mélanie | H83: 1986 | I83: 47.7 | J83: Stade Dijonnais HM | K83: F | L83: 53 | M83: 57 | N83: 60 | O83: =IF(H83="","",IF(MAXA(L83:N83)<=0,0,MAXA(L83:N83))) -> 60 | P83: 65 | Q83: 69 | R83: 72 | S83: =IF(H83="","",IF(MAXA(P83:R83)<=0,0,MAXA(P83:R83))) -> 72 | T83: =IF(H83="","",IF(OR(O83=0,S83=0),0,O83+S83)) -> 132 | U83: =T83-I83 -> 84.3 | V83: =IF(H83="","",AQ83) -> INTB + | W83: =IF(AJ83>=0,AJ83,IF(AI83>=0,AI83,IF(AH83>=0,AH83,IF(AG83>=0,AG83,IF(AF83>=0,AF83,IF(AE83>=0,AE83,IF(AD83>=0,AD83,IF(AC83>=0,AC83,AB83)))))))) -> 7 | X83: =IF(I83="","",IF(A83="H",IF(OR(H83="SEN",H83<1995),VLOOKUP(I83,Feuil1!$A$11:$F$29,6),IF(AND(H83>1994,H83<1998),VLOOKUP(I83,Feuil1!$A$11:$F$29,5),IF(AND(H83>1997,H83<2000),VLOOKUP(I83,Feuil1!$A$11:$F$29,4),IF(AND(H83>1999,H83<2002),VLOOKUP(I83,Feuil1!$A$11:$F$29,3),VLOOKUP(I83,Feuil1!$A$11:$F$29,2))))),IF(OR(H83="SEN",H83<1995),VLOOKUP(I83,Feuil1!$G$11:$L$25,6),IF(AND(H83>1994,H83<1998),VLOOKUP(I83,Feuil1!$G$11:$L$25,5),IF(AND(H83>1997,H83<2000),VLOOKUP(I83,Feuil1!$G$11:$L$25,4),IF(AND(H83>1999,H83<2002),VLOOKUP(I83,Feuil1!$G$11:$L$25,3),VLOOKUP(I83,Feuil1!$G$11:$L$25,2))))))) -> FS48 | Y83: =IF(I83="","",IF(A83="H",10^(0.794358141*LOG(I83/174.393)^2)*T83,IF(A83="F",10^(0.89726074*LOG(I83/148.026)^2)*T83,""))) -> 217.5751191 | AB83: =T83-HLOOKUP(X83,Feuil1!$C$1:$BL$10,2,FALSE) -> 77 | AC83: =T83-HLOOKUP(X83,Feuil1!$C$1:$BL$10,3,FALSE) -> 67 | AD83: =T83-HLOOKUP(X83,Feuil1!$C$1:$BL$10,4,FALSE) -> 57 | AE83: =T83-HLOOKUP(X83,Feuil1!$C$1:$BL$10,5,FALSE) -> 47 | AF83: =T83-HLOOKUP(X83,Feuil1!$C$1:$BL$10,6,FALSE) -> 37 | AG83: =T83-HLOOKUP(X83,Feuil1!$C$1:$BL$10,7,FALSE) -> 22 | AH83: =T83-HLOOKUP(X83,Feuil1!$C$1:$BL$10,8,FALSE) -> 7 | AI83: =T83-HLOOKUP(X83,Feuil1!$C$1:$BL$10,9,FALSE) -> -8 | AJ83: =T83-HLOOKUP(X83,Feuil1!$C$1:$BL$10,10,FALSE) -> -23 | AQ83: =IF(AJ83>=0,$AJ$4,IF(AI83>=0,$AI$4,IF(AH83>=0,$AH$4,IF(AG83>=0,$AG$4,IF(AF83>=0,$AF$4,IF(AE83>=0,$AE$4,IF(AD83>=0,$AD$4,IF(AC83>=0,$AC$4,$AB$4)))))))) -> INTB +
A84: F | B84: SEST | C84: RAL | D84: 2 | E84: 21779 | F84: LYAUDET | G84: Chrystel | H84: 1972 | I84: 47.1 | J84: H.C. OYONNAX | K84: F | L84: -43 | M84: 43 | N84: 45 | O84: =IF(H84="","",IF(MAXA(L84:N84)<=0,0,MAXA(L84:N84))) -> 45 | P84: 55 | Q84: 57 | R84: -59 | S84: =IF(H84="","",IF(MAXA(P84:R84)<=0,0,MAXA(P84:R84))) -> 57 | T84: =IF(H84="","",IF(OR(O84=0,S84=0),0,O84+S84)) -> 102 | U84: 54.9 | V84: =IF(H84="","",AQ84) -> FED + | W84: =IF(AJ84>=0,AJ84,IF(AI84>=0,AI84,IF(AH84>=0,AH84,IF(AG84>=0,AG84,IF(AF84>=0,AF84,IF(AE84>=0,AE84,IF(AD84>=0,AD84,IF(AC84>=0,AC84,AB84)))))))) -> 7 | X84: =IF(I84="","",IF(A84="H",IF(OR(H84="SEN",H84<1995),VLOOKUP(I84,Feuil1!$A$11:$F$29,6),IF(AND(H84>1994,H84<1998),VLOOKUP(I84,Feuil1!$A$11:$F$29,5),IF(AND(H84>1997,H84<2000),VLOOKUP(I84,Feuil1!$A$11:$F$29,4),IF(AND(H84>1999,H84<2002),VLOOKUP(I84,Feuil1!$A$11:$F$29,3),VLOOKUP(I84,Feuil1!$A$11:$F$29,2))))),IF(OR(H84="SEN",H84<1995),VLOOKUP(I84,Feuil1!$G$11:$L$25,6),IF(AND(H84>1994,H84<1998),VLOOKUP(I84,Feuil1!$G$11:$L$25,5),IF(AND(H84>1997,H84<2000),VLOOKUP(I84,Feuil1!$G$11:$L$25,4),IF(AND(H84>1999,H84<2002),VLOOKUP(I84,Feuil1!$G$11:$L$25,3),VLOOKUP(I84,Feuil1!$G$11:$L$25,2))))))) -> FS48 | Y84: =IF(I84="","",IF(A84="H",10^(0.794358141*LOG(I84/174.393)^2)*T84,IF(A84="F",10^(0.89726074*LOG(I84/148.026)^2)*T84,""))) -> 170.0256921 | AB84: =T84-HLOOKUP(X84,Feuil1!$C$1:$BL$10,2,FALSE) -> 47 | AC84: =T84-HLOOKUP(X84,Feuil1!$C$1:$BL$10,3,FALSE) -> 37 | AD84: =T84-HLOOKUP(X84,Feuil1!$C$1:$BL$10,4,FALSE) -> 27 | AE84: =T84-HLOOKUP(X84,Feuil1!$C$1:$BL$10,5,FALSE) -> 17 | AF84: =T84-HLOOKUP(X84,Feuil1!$C$1:$BL$10,6,FALSE) -> 7 | AG84: =T84-HLOOKUP(X84,Feuil1!$C$1:$BL$10,7,FALSE) -> -8 | AH84: =T84-HLOOKUP(X84,Feuil1!$C$1:$BL$10,8,FALSE) -> -23 | AI84: =T84-HLOOKUP(X84,Feuil1!$C$1:$BL$10,9,FALSE) -> -38 | AJ84: =T84-HLOOKUP(X84,Feuil1!$C$1:$BL$10,10,FALSE) -> -53 | AQ84: =IF(AJ84>=0,$AJ$4,IF(AI84>=0,$AI$4,IF(AH84>=0,$AH$4,IF(AG84>=0,$AG$4,IF(AF84>=0,$AF$4,IF(AE84>=0,$AE$4,IF(AD84>=0,$AD$4,IF(AC84>=0,$AC$4,$AB$4)))))))) -> FED +
A85: F | B85: Nord | C85: NPC | D85: 3 | E85: 368810 | F85: CRET | G85: Crinuta | H85: 1989 | I85: 48 | J85: CA Rosendael | K85: Rou | L85: -47 | M85: 47 | N85: -50 | O85: =IF(H85="","",IF(MAXA(L85:N85)<=0,0,MAXA(L85:N85))) -> 47 | P85: 50 | Q85: 54 | R85: -58 | S85: =IF(H85="","",IF(MAXA(P85:R85)<=0,0,MAXA(P85:R85))) -> 54 | T85: =IF(H85="","",IF(OR(O85=0,S85=0),0,O85+S85)) -> 101 | U85: 53 | V85: =IF(H85="","",AQ85) -> FED + | W85: =IF(AJ85>=0,AJ85,IF(AI85>=0,AI85,IF(AH85>=0,AH85,IF(AG85>=0,AG85,IF(AF85>=0,AF85,IF(AE85>=0,AE85,IF(AD85>=0,AD85,IF(AC85>=0,AC85,AB85)))))))) -> 6 | X85: =IF(I85="","",IF(A85="H",IF(OR(H85="SEN",H85<1995),VLOOKUP(I85,Feuil1!$A$11:$F$29,6),IF(AND(H85>1994,H85<1998),VLOOKUP(I85,Feuil1!$A$11:$F$29,5),IF(AND(H85>1997,H85<2000),VLOOKUP(I85,Feuil1!$A$11:$F$29,4),IF(AND(H85>1999,H85<2002),VLOOKUP(I85,Feuil1!$A$11:$F$29,3),VLOOKUP(I85,Feuil1!$A$11:$F$29,2))))),IF(OR(H85="SEN",H85<1995),VLOOKUP(I85,Feuil1!$G$11:$L$25,6),IF(AND(H85>1994,H85<1998),VLOOKUP(I85,Feuil1!$G$11:$L$25,5),IF(AND(H85>1997,H85<2000),VLOOKUP(I85,Feuil1!$G$11:$L$25,4),IF(AND(H85>1999,H85<2002),VLOOKUP(I85,Feuil1!$G$11:$L$25,3),VLOOKUP(I85,Feuil1!$G$11:$L$25,2))))))) -> FS48 | Y85: =IF(I85="","",IF(A85="H",10^(0.794358141*LOG(I85/174.393)^2)*T85,IF(A85="F",10^(0.89726074*LOG(I85/148.026)^2)*T85,""))) -> 165.5618162 | AB85: =T85-HLOOKUP(X85,Feuil1!$C$1:$BL$10,2,FALSE) -> 46 | AC85: =T85-HLOOKUP(X85,Feuil1!$C$1:$BL$10,3,FALSE) -> 36 | AD85: =T85-HLOOKUP(X85,Feuil1!$C$1:$BL$10,4,FALSE) -> 26 | AE85: =T85-HLOOKUP(X85,Feuil1!$C$1:$BL$10,5,FALSE) -> 16 | AF85: =T85-HLOOKUP(X85,Feuil1!$C$1:$BL$10,6,FALSE) -> 6 | AG85: =T85-HLOOKUP(X85,Feuil1!$C$1:$BL$10,7,FALSE) -> -9 | AH85: =T85-HLOOKUP(X85,Feuil1!$C$1:$BL$10,8,FALSE) -> -24 | AI85: =T85-HLOOKUP(X85,Feuil1!$C$1:$BL$10,9,FALSE) -> -39 | AJ85: =T85-HLOOKUP(X85,Feuil1!$C$1:$BL$10,10,FALSE) -> -54 | AQ85: =IF(AJ85>=0,$AJ$4,IF(AI85>=0,$AI$4,IF(AH85>=0,$AH$4,IF(AG85>=0,$AG$4,IF(AF85>=0,$AF$4,IF(AE85>=0,$AE$4,IF(AD85>=0,$AD$4,IF(AC85>=0,$AC$4,$AB$4)))))))) -> FED +
A86: F | B86: ZCO | C86: BRE | D86: 4 | E86: 270512 | F86: SAYAH | G86: Nadia | H86: 1965 | I86: 47.33 | J86: Caen CHM | K86: F | L86: 38 | M86: 40 | N86: 42 | O86: =IF(H86="","",IF(MAXA(L86:N86)<=0,0,MAXA(L86:N86))) -> 42 | P86: 45 | Q86: 48 | R86: -50 | S86: =IF(H86="","",IF(MAXA(P86:R86)<=0,0,MAXA(P86:R86))) -> 48 | T86: =IF(H86="","",IF(OR(O86=0,S86=0),0,O86+S86)) -> 90 | U86: 42.67 | V86: =IF(H86="","",AQ86) -> IRG + | W86: =IF(AJ86>=0,AJ86,IF(AI86>=0,AI86,IF(AH86>=0,AH86,IF(AG86>=0,AG86,IF(AF86>=0,AF86,IF(AE86>=0,AE86,IF(AD86>=0,AD86,IF(AC86>=0,AC86,AB86)))))))) -> 5 | X86: =IF(I86="","",IF(A86="H",IF(OR(H86="SEN",H86<1995),VLOOKUP(I86,Feuil1!$A$11:$F$29,6),IF(AND(H86>1994,H86<1998),VLOOKUP(I86,Feuil1!$A$11:$F$29,5),IF(AND(H86>1997,H86<2000),VLOOKUP(I86,Feuil1!$A$11:$F$29,4),IF(AND(H86>1999,H86<2002),VLOOKUP(I86,Feuil1!$A$11:$F$29,3),VLOOKUP(I86,Feuil1!$A$11:$F$29,2))))),IF(OR(H86="SEN",H86<1995),VLOOKUP(I86,Feuil1!$G$11:$L$25,6),IF(AND(H86>1994,H86<1998),VLOOKUP(I86,Feuil1!$G$11:$L$25,5),IF(AND(H86>1997,H86<2000),VLOOKUP(I86,Feuil1!$G$11:$L$25,4),IF(AND(H86>1999,H86<2002),VLOOKUP(I86,Feuil1!$G$11:$L$25,3),VLOOKUP(I86,Feuil1!$G$11:$L$25,2))))))) -> FS48 | Y86: =IF(I86="","",IF(A86="H",10^(0.794358141*LOG(I86/174.393)^2)*T86,IF(A86="F",10^(0.89726074*LOG(I86/148.026)^2)*T86,""))) -> 149.3732561 | AB86: =T86-HLOOKUP(X86,Feuil1!$C$1:$BL$10,2,FALSE) -> 35 | AC86: =T86-HLOOKUP(X86,Feuil1!$C$1:$BL$10,3,FALSE) -> 25 | AD86: =T86-HLOOKUP(X86,Feuil1!$C$1:$BL$10,4,FALSE) -> 15 | AE86: =T86-HLOOKUP(X86,Feuil1!$C$1:$BL$10,5,FALSE) -> 5 | AF86: =T86-HLOOKUP(X86,Feuil1!$C$1:$BL$10,6,FALSE) -> -5 | AG86: =T86-HLOOKUP(X86,Feuil1!$C$1:$BL$10,7,FALSE) -> -20 | AH86: =T86-HLOOKUP(X86,Feuil1!$C$1:$BL$10,8,FALSE) -> -35 | AI86: =T86-HLOOKUP(X86,Feuil1!$C$1:$BL$10,9,FALSE) -> -50 | AJ86: =T86-HLOOKUP(X86,Feuil1!$C$1:$BL$10,10,FALSE) -> -65 | AQ86: =IF(AJ86>=0,$AJ$4,IF(AI86>=0,$AI$4,IF(AH86>=0,$AH$4,IF(AG86>=0,$AG$4,IF(AF86>=0,$AF$4,IF(AE86>=0,$AE$4,IF(AD86>=0,$AD$4,IF(AC86>=0,$AC$4,$AB$4)))))))) -> IRG +
AB87: =T87-HLOOKUP(X87,Feuil1!$C$1:$BL$10,2,FALSE) ->  | AC87: =T87-HLOOKUP(X87,Feuil1!$C$1:$BL$10,3,FALSE) ->  | AD87: =T87-HLOOKUP(X87,Feuil1!$C$1:$BL$10,4,FALSE) ->  | AE87: =T87-HLOOKUP(X87,Feuil1!$C$1:$BL$10,5,FALSE) ->  | AF87: =T87-HLOOKUP(X87,Feuil1!$C$1:$BL$10,6,FALSE) ->  | AG87: =T87-HLOOKUP(X87,Feuil1!$C$1:$BL$10,7,FALSE) ->  | AH87: =T87-HLOOKUP(X87,Feuil1!$C$1:$BL$10,8,FALSE) ->  | AI87: =T87-HLOOKUP(X87,Feuil1!$C$1:$BL$10,9,FALSE) ->  | AJ87: =T87-HLOOKUP(X87,Feuil1!$C$1:$BL$10,10,FALSE) -> 
A88: F | B88: Nord | C88: NPC | D88: 1 | E88: 250225 | F88: PLANCQ | G88: Déborah | H88: 1993 | I88: 52.2 | J88: CA Rosendael | K88: F | L88: 57 | M88: 60 | N88: 63 | O88: =IF(H88="","",IF(MAXA(L88:N88)<=0,0,MAXA(L88:N88))) -> 63 | P88: 73 | Q88: 77 | R88: 80 | S88: =IF(H88="","",IF(MAXA(P88:R88)<=0,0,MAXA(P88:R88))) -> 80 | T88: =IF(H88="","",IF(OR(O88=0,S88=0),0,O88+S88)) -> 143 | U88: 90.8 | V88: =IF(H88="","",AQ88) -> INTB + | W88: =IF(AJ88>=0,AJ88,IF(AI88>=0,AI88,IF(AH88>=0,AH88,IF(AG88>=0,AG88,IF(AF88>=0,AF88,IF(AE88>=0,AE88,IF(AD88>=0,AD88,IF(AC88>=0,AC88,AB88)))))))) -> 3 | X88: =IF(I88="","",IF(A88="H",IF(OR(H88="SEN",H88<1995),VLOOKUP(I88,Feuil1!$A$11:$F$29,6),IF(AND(H88>1994,H88<1998),VLOOKUP(I88,Feuil1!$A$11:$F$29,5),IF(AND(H88>1997,H88<2000),VLOOKUP(I88,Feuil1!$A$11:$F$29,4),IF(AND(H88>1999,H88<2002),VLOOKUP(I88,Feuil1!$A$11:$F$29,3),VLOOKUP(I88,Feuil1!$A$11:$F$29,2))))),IF(OR(H88="SEN",H88<1995),VLOOKUP(I88,Feuil1!$G$11:$L$25,6),IF(AND(H88>1994,H88<1998),VLOOKUP(I88,Feuil1!$G$11:$L$25,5),IF(AND(H88>1997,H88<2000),VLOOKUP(I88,Feuil1!$G$11:$L$25,4),IF(AND(H88>1999,H88<2002),VLOOKUP(I88,Feuil1!$G$11:$L$25,3),VLOOKUP(I88,Feuil1!$G$11:$L$25,2))))))) -> FS53 | Y88: =IF(I88="","",IF(A88="H",10^(0.794358141*LOG(I88/174.393)^2)*T88,IF(A88="F",10^(0.89726074*LOG(I88/148.026)^2)*T88,""))) -> 218.3694202 | AB88: =T88-HLOOKUP(X88,Feuil1!$C$1:$BL$10,2,FALSE) -> 78 | AC88: =T88-HLOOKUP(X88,Feuil1!$C$1:$BL$10,3,FALSE) -> 68 | AD88: =T88-HLOOKUP(X88,Feuil1!$C$1:$BL$10,4,FALSE) -> 58 | AE88: =T88-HLOOKUP(X88,Feuil1!$C$1:$BL$10,5,FALSE) -> 48 | AF88: =T88-HLOOKUP(X88,Feuil1!$C$1:$BL$10,6,FALSE) -> 38 | AG88: =T88-HLOOKUP(X88,Feuil1!$C$1:$BL$10,7,FALSE) -> 23 | AH88: =T88-HLOOKUP(X88,Feuil1!$C$1:$BL$10,8,FALSE) -> 3 | AI88: =T88-HLOOKUP(X88,Feuil1!$C$1:$BL$10,9,FALSE) -> -17 | AJ88: =T88-HLOOKUP(X88,Feuil1!$C$1:$BL$10,10,FALSE) -> -32 | AQ88: =IF(AJ88>=0,$AJ$4,IF(AI88>=0,$AI$4,IF(AH88>=0,$AH$4,IF(AG88>=0,$AG$4,IF(AF88>=0,$AF$4,IF(AE88>=0,$AE$4,IF(AD88>=0,$AD$4,IF(AC88>=0,$AC$4,$AB$4)))))))) -> INTB +
A89: F | B89: SEST | C89: RAL | D89: 2 | E89: 79011 | F89: BAILLET | G89: Florence | H89: 1990 | I89: 48.4 | J89: H.C. ST BALDOPH | K89: F | L89: 53 | M89: 56 | N89: 59 | O89: 59 | P89: 71 | Q89: 75 | R89: -78 | S89: 75 | T89: 134 | U89: 85.6 | V89: NAT + | W89: 14 | X89: =IF(I89="","",IF(A89="H",IF(OR(H89="SEN",H89<1995),VLOOKUP(I89,Feuil1!$A$11:$F$29,6),IF(AND(H89>1994,H89<1998),VLOOKUP(I89,Feuil1!$A$11:$F$29,5),IF(AND(H89>1997,H89<2000),VLOOKUP(I89,Feuil1!$A$11:$F$29,4),IF(AND(H89>1999,H89<2002),VLOOKUP(I89,Feuil1!$A$11:$F$29,3),VLOOKUP(I89,Feuil1!$A$11:$F$29,2))))),IF(OR(H89="SEN",H89<1995),VLOOKUP(I89,Feuil1!$G$11:$L$25,6),IF(AND(H89>1994,H89<1998),VLOOKUP(I89,Feuil1!$G$11:$L$25,5),IF(AND(H89>1997,H89<2000),VLOOKUP(I89,Feuil1!$G$11:$L$25,4),IF(AND(H89>1999,H89<2002),VLOOKUP(I89,Feuil1!$G$11:$L$25,3),VLOOKUP(I89,Feuil1!$G$11:$L$25,2))))))) -> FS53 | Y89: 218.0680004 | AB89: =T89-HLOOKUP(X89,Feuil1!$C$1:$BL$10,2,FALSE) -> 69 | AC89: =T89-HLOOKUP(X89,Feuil1!$C$1:$BL$10,3,FALSE) -> 59 | AD89: =T89-HLOOKUP(X89,Feuil1!$C$1:$BL$10,4,FALSE) -> 49 | AE89: =T89-HLOOKUP(X89,Feuil1!$C$1:$BL$10,5,FALSE) -> 39 | AF89: =T89-HLOOKUP(X89,Feuil1!$C$1:$BL$10,6,FALSE) -> 29 | AG89: =T89-HLOOKUP(X89,Feuil1!$C$1:$BL$10,7,FALSE) -> 14 | AH89: =T89-HLOOKUP(X89,Feuil1!$C$1:$BL$10,8,FALSE) -> -6 | AI89: =T89-HLOOKUP(X89,Feuil1!$C$1:$BL$10,9,FALSE) -> -26 | AJ89: =T89-HLOOKUP(X89,Feuil1!$C$1:$BL$10,10,FALSE) -> -41 | AQ89: NAT +
A90: F | B90: ZCO | C90: BNO | D90: 3 | E90: 32998 | F90: FLEURY | G90: Laura | H90: 1988 | I90: 52.7 | J90: Caen CHM | K90: F | L90: 53 | M90: 55 | N90: 57 | O90: 57 | P90: 63 | Q90: 66 | R90: 68 | S90: 68 | T90: 125 | U90: 72.3 | V90: NAT + | W90: 5 | X90: =IF(I90="","",IF(A90="H",IF(OR(H90="SEN",H90<1995),VLOOKUP(I90,Feuil1!$A$11:$F$29,6),IF(AND(H90>1994,H90<1998),VLOOKUP(I90,Feuil1!$A$11:$F$29,5),IF(AND(H90>1997,H90<2000),VLOOKUP(I90,Feuil1!$A$11:$F$29,4),IF(AND(H90>1999,H90<2002),VLOOKUP(I90,Feuil1!$A$11:$F$29,3),VLOOKUP(I90,Feuil1!$A$11:$F$29,2))))),IF(OR(H90="SEN",H90<1995),VLOOKUP(I90,Feuil1!$G$11:$L$25,6),IF(AND(H90>1994,H90<1998),VLOOKUP(I90,Feuil1!$G$11:$L$25,5),IF(AND(H90>1997,H90<2000),VLOOKUP(I90,Feuil1!$G$11:$L$25,4),IF(AND(H90>1999,H90<2002),VLOOKUP(I90,Feuil1!$G$11:$L$25,3),VLOOKUP(I90,Feuil1!$G$11:$L$25,2))))))) -> FS53 | Y90: 189.4166161 | AB90: =T90-HLOOKUP(X90,Feuil1!$C$1:$BL$10,2,FALSE) -> 60 | AC90: =T90-HLOOKUP(X90,Feuil1!$C$1:$BL$10,3,FALSE) -> 50 | AD90: =T90-HLOOKUP(X90,Feuil1!$C$1:$BL$10,4,FALSE) -> 40 | AE90: =T90-HLOOKUP(X90,Feuil1!$C$1:$BL$10,5,FALSE) -> 30 | AF90: =T90-HLOOKUP(X90,Feuil1!$C$1:$BL$10,6,FALSE) -> 20 | AG90: =T90-HLOOKUP(X90,Feuil1!$C$1:$BL$10,7,FALSE) -> 5 | AH90: =T90-HLOOKUP(X90,Feuil1!$C$1:$BL$10,8,FALSE) -> -15 | AI90: =T90-HLOOKUP(X90,Feuil1!$C$1:$BL$10,9,FALSE) -> -35 | AJ90: =T90-HLOOKUP(X90,Feuil1!$C$1:$BL$10,10,FALSE) -> -50 | AQ90: NAT +
A91: F | B91: SEST | C91: CAZ | D91: 4 | E91: 31729 | F91: DRAGO | G91: Sylvie | H91: 1982 | I91: 50.6 | J91: ASLDD. TOULON | K91: F | L91: 51 | M91: 53 | N91: -55 | O91: 53 | P91: 67 | Q91: -70 | R91: -70 | S91: 67 | T91: 120 | U91: 69.4 | V91: NAT + | W91: 0 | X91: =IF(I91="","",IF(A91="H",IF(OR(H91="SEN",H91<1995),VLOOKUP(I91,Feuil1!$A$11:$F$29,6),IF(AND(H91>1994,H91<1998),VLOOKUP(I91,Feuil1!$A$11:$F$29,5),IF(AND(H91>1997,H91<2000),VLOOKUP(I91,Feuil1!$A$11:$F$29,4),IF(AND(H91>1999,H91<2002),VLOOKUP(I91,Feuil1!$A$11:$F$29,3),VLOOKUP(I91,Feuil1!$A$11:$F$29,2))))),IF(OR(H91="SEN",H91<1995),VLOOKUP(I91,Feuil1!$G$11:$L$25,6),IF(AND(H91>1994,H91<1998),VLOOKUP(I91,Feuil1!$G$11:$L$25,5),IF(AND(H91>1997,H91<2000),VLOOKUP(I91,Feuil1!$G$11:$L$25,4),IF(AND(H91>1999,H91<2002),VLOOKUP(I91,Feuil1!$G$11:$L$25,3),VLOOKUP(I91,Feuil1!$G$11:$L$25,2))))))) -> FS53 | Y91: 188.0111545 | AB91: =T91-HLOOKUP(X91,Feuil1!$C$1:$BL$10,2,FALSE) -> 55 | AC91: =T91-HLOOKUP(X91,Feuil1!$C$1:$BL$10,3,FALSE) -> 45 | AD91: =T91-HLOOKUP(X91,Feuil1!$C$1:$BL$10,4,FALSE) -> 35 | AE91: =T91-HLOOKUP(X91,Feuil1!$C$1:$BL$10,5,FALSE) -> 25 | AF91: =T91-HLOOKUP(X91,Feuil1!$C$1:$BL$10,6,FALSE) -> 15 | AG91: =T91-HLOOKUP(X91,Feuil1!$C$1:$BL$10,7,FALSE) -> 0 | AH91: =T91-HLOOKUP(X91,Feuil1!$C$1:$BL$10,8,FALSE) -> -20 | AI91: =T91-HLOOKUP(X91,Feuil1!$C$1:$BL$10,9,FALSE) -> -40 | AJ91: =T91-HLOOKUP(X91,Feuil1!$C$1:$BL$10,10,FALSE) -> -55 | AQ91: NAT +
A92: F | B92: ZCO | C92: BRE | D92: 5 | E92: 1312 | F92: LE GUENNEC | G92: Isabelle | H92: 1972 | I92: 52.41 | J92: Vannes AC | K92: F | L92: 48 | M92: 50 | N92: 52 | O92: 52 | P92: 58 | Q92: 60 | R92: 63 | S92: 63 | T92: 115 | U92: 62.59 | V92: FED + | W92: 10 | X92: =IF(I92="","",IF(A92="H",IF(OR(H92="SEN",H92<1995),VLOOKUP(I92,Feuil1!$A$11:$F$29,6),IF(AND(H92>1994,H92<1998),VLOOKUP(I92,Feuil1!$A$11:$F$29,5),IF(AND(H92>1997,H92<2000),VLOOKUP(I92,Feuil1!$A$11:$F$29,4),IF(AND(H92>1999,H92<2002),VLOOKUP(I92,Feuil1!$A$11:$F$29,3),VLOOKUP(I92,Feuil1!$A$11:$F$29,2))))),IF(OR(H92="SEN",H92<1995),VLOOKUP(I92,Feuil1!$G$11:$L$25,6),IF(AND(H92>1994,H92<1998),VLOOKUP(I92,Feuil1!$G$11:$L$25,5),IF(AND(H92>1997,H92<2000),VLOOKUP(I92,Feuil1!$G$11:$L$25,4),IF(AND(H92>1999,H92<2002),VLOOKUP(I92,Feuil1!$G$11:$L$25,3),VLOOKUP(I92,Feuil1!$G$11:$L$25,2))))))) -> FS53 | Y92: 175.041063 | AB92: =T92-HLOOKUP(X92,Feuil1!$C$1:$BL$10,2,FALSE) -> 50 | AC92: =T92-HLOOKUP(X92,Feuil1!$C$1:$BL$10,3,FALSE) -> 40 | AD92: =T92-HLOOKUP(X92,Feuil1!$C$1:$BL$10,4,FALSE) -> 30 | AE92: =T92-HLOOKUP(X92,Feuil1!$C$1:$BL$10,5,FALSE) -> 20 | AF92: =T92-HLOOKUP(X92,Feuil1!$C$1:$BL$10,6,FALSE) -> 10 | AG92: =T92-HLOOKUP(X92,Feuil1!$C$1:$BL$10,7,FALSE) -> -5 | AH92: =T92-HLOOKUP(X92,Feuil1!$C$1:$BL$10,8,FALSE) -> -25 | AI92: =T92-HLOOKUP(X92,Feuil1!$C$1:$BL$10,9,FALSE) -> -45 | AJ92: =T92-HLOOKUP(X92,Feuil1!$C$1:$BL$10,10,FALSE) -> -60 | AQ92: FED +
A93: F | B93: NE | C93: ALS | D93: 6 | E93: 25608 | F93: WITKOWSKI | G93: Dagmar | H93: 1958 | I93: 53 | J93: ASPTT Strasbourg | K93: F | L93: 43 | M93: 46 | N93: 49 | O93: 49 | P93: 53 | Q93: 56 | R93: -58 | S93: 56 | T93: 105 | U93: 52 | V93: FED + | W93: 0 | X93: =IF(I93="","",IF(A93="H",IF(OR(H93="SEN",H93<1995),VLOOKUP(I93,Feuil1!$A$11:$F$29,6),IF(AND(H93>1994,H93<1998),VLOOKUP(I93,Feuil1!$A$11:$F$29,5),IF(AND(H93>1997,H93<2000),VLOOKUP(I93,Feuil1!$A$11:$F$29,4),IF(AND(H93>1999,H93<2002),VLOOKUP(I93,Feuil1!$A$11:$F$29,3),VLOOKUP(I93,Feuil1!$A$11:$F$29,2))))),IF(OR(H93="SEN",H93<1995),VLOOKUP(I93,Feuil1!$G$11:$L$25,6),IF(AND(H93>1994,H93<1998),VLOOKUP(I93,Feuil1!$G$11:$L$25,5),IF(AND(H93>1997,H93<2000),VLOOKUP(I93,Feuil1!$G$11:$L$25,4),IF(AND(H93>1999,H93<2002),VLOOKUP(I93,Feuil1!$G$11:$L$25,3),VLOOKUP(I93,Feuil1!$G$11:$L$25,2))))))) -> FS53 | Y93: 158.3866413 | AB93: =T93-HLOOKUP(X93,Feuil1!$C$1:$BL$10,2,FALSE) -> 40 | AC93: =T93-HLOOKUP(X93,Feuil1!$C$1:$BL$10,3,FALSE) -> 30 | AD93: =T93-HLOOKUP(X93,Feuil1!$C$1:$BL$10,4,FALSE) -> 20 | AE93: =T93-HLOOKUP(X93,Feuil1!$C$1:$BL$10,5,FALSE) -> 10 | AF93: =T93-HLOOKUP(X93,Feuil1!$C$1:$BL$10,6,FALSE) -> 0 | AG93: =T93-HLOOKUP(X93,Feuil1!$C$1:$BL$10,7,FALSE) -> -15 | AH93: =T93-HLOOKUP(X93,Feuil1!$C$1:$BL$10,8,FALSE) -> -35 | AI93: =T93-HLOOKUP(X93,Feuil1!$C$1:$BL$10,9,FALSE) -> -55 | AJ93: =T93-HLOOKUP(X93,Feuil1!$C$1:$BL$10,10,FALSE) -> -70 | AQ93: FED +
AB94: =T94-HLOOKUP(X94,Feuil1!$C$1:$BL$10,2,FALSE) ->  | AC94: =T94-HLOOKUP(X94,Feuil1!$C$1:$BL$10,3,FALSE) ->  | AD94: =T94-HLOOKUP(X94,Feuil1!$C$1:$BL$10,4,FALSE) ->  | AE94: =T94-HLOOKUP(X94,Feuil1!$C$1:$BL$10,5,FALSE) ->  | AF94: =T94-HLOOKUP(X94,Feuil1!$C$1:$BL$10,6,FALSE) ->  | AG94: =T94-HLOOKUP(X94,Feuil1!$C$1:$BL$10,7,FALSE) ->  | AH94: =T94-HLOOKUP(X94,Feuil1!$C$1:$BL$10,8,FALSE) ->  | AI94: =T94-HLOOKUP(X94,Feuil1!$C$1:$BL$10,9,FALSE) ->  | AJ94: =T94-HLOOKUP(X94,Feuil1!$C$1:$BL$10,10,FALSE) -> 
A95: F | B95: SO | C95: MPY | D95: 1 | E95: 264816 | F95: LABRUNIE | G95: Elise | H95: 1988 | I95: 56.9 | J95: TOULOUSE HC | K95: F | L95: 69 | M95: 73 | N95: 76 | O95: =IF(H95="","",IF(MAXA(L95:N95)<=0,0,MAXA(L95:N95))) -> 76 | P95: 88 | Q95: 92 | R95: 94 | S95: =IF(H95="","",IF(MAXA(P95:R95)<=0,0,MAXA(P95:R95))) -> 94 | T95: =IF(H95="","",IF(OR(O95=0,S95=0),0,O95+S95)) -> 170 | U95: 113.1 | V95: =IF(H95="","",AQ95) -> INTA + | W95: =IF(AJ95>=0,AJ95,IF(AI95>=0,AI95,IF(AH95>=0,AH95,IF(AG95>=0,AG95,IF(AF95>=0,AF95,IF(AE95>=0,AE95,IF(AD95>=0,AD95,IF(AC95>=0,AC95,AB95)))))))) -> 0 | X95: =IF(I95="","",IF(A95="H",IF(OR(H95="SEN",H95<1995),VLOOKUP(I95,Feuil1!$A$11:$F$29,6),IF(AND(H95>1994,H95<1998),VLOOKUP(I95,Feuil1!$A$11:$F$29,5),IF(AND(H95>1997,H95<2000),VLOOKUP(I95,Feuil1!$A$11:$F$29,4),IF(AND(H95>1999,H95<2002),VLOOKUP(I95,Feuil1!$A$11:$F$29,3),VLOOKUP(I95,Feuil1!$A$11:$F$29,2))))),IF(OR(H95="SEN",H95<1995),VLOOKUP(I95,Feuil1!$G$11:$L$25,6),IF(AND(H95>1994,H95<1998),VLOOKUP(I95,Feuil1!$G$11:$L$25,5),IF(AND(H95>1997,H95<2000),VLOOKUP(I95,Feuil1!$G$11:$L$25,4),IF(AND(H95>1999,H95<2002),VLOOKUP(I95,Feuil1!$G$11:$L$25,3),VLOOKUP(I95,Feuil1!$G$11:$L$25,2))))))) -> FS58 | Y95: =IF(I95="","",IF(A95="H",10^(0.794358141*LOG(I95/174.393)^2)*T95,IF(A95="F",10^(0.89726074*LOG(I95/148.026)^2)*T95,""))) -> 242.7436124 | AB95: =T95-HLOOKUP(X95,Feuil1!$C$1:$BL$10,2,FALSE) -> 100 | AC95: =T95-HLOOKUP(X95,Feuil1!$C$1:$BL$10,3,FALSE) -> 90 | AD95: =T95-HLOOKUP(X95,Feuil1!$C$1:$BL$10,4,FALSE) -> 80 | AE95: =T95-HLOOKUP(X95,Feuil1!$C$1:$BL$10,5,FALSE) -> 70 | AF95: =T95-HLOOKUP(X95,Feuil1!$C$1:$BL$10,6,FALSE) -> 55 | AG95: =T95-HLOOKUP(X95,Feuil1!$C$1:$BL$10,7,FALSE) -> 40 | AH95: =T95-HLOOKUP(X95,Feuil1!$C$1:$BL$10,8,FALSE) -> 20 | AI95: =T95-HLOOKUP(X95,Feuil1!$C$1:$BL$10,9,FALSE) -> 0 | AJ95: =T95-HLOOKUP(X95,Feuil1!$C$1:$BL$10,10,FALSE) -> -20 | AQ95: =IF(AJ95>=0,$AJ$4,IF(AI95>=0,$AI$4,IF(AH95>=0,$AH$4,IF(AG95>=0,$AG$4,IF(AF95>=0,$AF$4,IF(AE95>=0,$AE$4,IF(AD95>=0,$AD$4,IF(AC95>=0,$AC$4,$AB$4)))))))) -> INTA +
A96: F | B96: NE | C96: BOU | D96: 2 | E96: 034097 | F96: EYANGO | G96: Delphine | H96: 1986 | I96: 57.3 | J96: Stade Dijonnais HM | K96: F | L96: 57 | M96: 59 | N96: 60 | O96: 60 | P96: 70 | Q96: 72 | R96: - | S96: 72 | T96: 132 | U96: 74.7 | V96: NAT + | W96: 2 | X96: =IF(I96="","",IF(A96="H",IF(OR(H96="SEN",H96<1995),VLOOKUP(I96,Feuil1!$A$11:$F$29,6),IF(AND(H96>1994,H96<1998),VLOOKUP(I96,Feuil1!$A$11:$F$29,5),IF(AND(H96>1997,H96<2000),VLOOKUP(I96,Feuil1!$A$11:$F$29,4),IF(AND(H96>1999,H96<2002),VLOOKUP(I96,Feuil1!$A$11:$F$29,3),VLOOKUP(I96,Feuil1!$A$11:$F$29,2))))),IF(OR(H96="SEN",H96<1995),VLOOKUP(I96,Feuil1!$G$11:$L$25,6),IF(AND(H96>1994,H96<1998),VLOOKUP(I96,Feuil1!$G$11:$L$25,5),IF(AND(H96>1997,H96<2000),VLOOKUP(I96,Feuil1!$G$11:$L$25,4),IF(AND(H96>1999,H96<2002),VLOOKUP(I96,Feuil1!$G$11:$L$25,3),VLOOKUP(I96,Feuil1!$G$11:$L$25,2))))))) -> FS58 | Y96: 187.5055687 | AB96: =T96-HLOOKUP(X96,Feuil1!$C$1:$BL$10,2,FALSE) -> 62 | AC96: =T96-HLOOKUP(X96,Feuil1!$C$1:$BL$10,3,FALSE) -> 52 | AD96: =T96-HLOOKUP(X96,Feuil1!$C$1:$BL$10,4,FALSE) -> 42 | AE96: =T96-HLOOKUP(X96,Feuil1!$C$1:$BL$10,5,FALSE) -> 32 | AF96: =T96-HLOOKUP(X96,Feuil1!$C$1:$BL$10,6,FALSE) -> 17 | AG96: =T96-HLOOKUP(X96,Feuil1!$C$1:$BL$10,7,FALSE) -> 2 | AH96: =T96-HLOOKUP(X96,Feuil1!$C$1:$BL$10,8,FALSE) -> -18 | AI96: =T96-HLOOKUP(X96,Feuil1!$C$1:$BL$10,9,FALSE) -> -38 | AJ96: =T96-HLOOKUP(X96,Feuil1!$C$1:$BL$10,10,FALSE) -> -58 | AQ96: NAT +
A97: F | B97: SEST | C97: PRO | D97: 3 | E97: 112257 | F97: CONDE | G97: Fabienne | H97: 1985 | I97: 57.5 | J97: ISTRES SPORTS | K97: F | L97: 51 | M97: 55 | N97: -57 | O97: 55 | P97: 70 | Q97: 75 | R97: -78 | S97: 75 | T97: 130 | U97: 72.5 | V97: NAT + | W97: 0 | X97: =IF(I97="","",IF(A97="H",IF(OR(H97="SEN",H97<1995),VLOOKUP(I97,Feuil1!$A$11:$F$29,6),IF(AND(H97>1994,H97<1998),VLOOKUP(I97,Feuil1!$A$11:$F$29,5),IF(AND(H97>1997,H97<2000),VLOOKUP(I97,Feuil1!$A$11:$F$29,4),IF(AND(H97>1999,H97<2002),VLOOKUP(I97,Feuil1!$A$11:$F$29,3),VLOOKUP(I97,Feuil1!$A$11:$F$29,2))))),IF(OR(H97="SEN",H97<1995),VLOOKUP(I97,Feuil1!$G$11:$L$25,6),IF(AND(H97>1994,H97<1998),VLOOKUP(I97,Feuil1!$G$11:$L$25,5),IF(AND(H97>1997,H97<2000),VLOOKUP(I97,Feuil1!$G$11:$L$25,4),IF(AND(H97>1999,H97<2002),VLOOKUP(I97,Feuil1!$G$11:$L$25,3),VLOOKUP(I97,Feuil1!$G$11:$L$25,2))))))) -> FS58 | Y97: 184.1901314 | AB97: =T97-HLOOKUP(X97,Feuil1!$C$1:$BL$10,2,FALSE) -> 60 | AC97: =T97-HLOOKUP(X97,Feuil1!$C$1:$BL$10,3,FALSE) -> 50 | AD97: =T97-HLOOKUP(X97,Feuil1!$C$1:$BL$10,4,FALSE) -> 40 | AE97: =T97-HLOOKUP(X97,Feuil1!$C$1:$BL$10,5,FALSE) -> 30 | AF97: =T97-HLOOKUP(X97,Feuil1!$C$1:$BL$10,6,FALSE) -> 15 | AG97: =T97-HLOOKUP(X97,Feuil1!$C$1:$BL$10,7,FALSE) -> 0 | AH97: =T97-HLOOKUP(X97,Feuil1!$C$1:$BL$10,8,FALSE) -> -20 | AI97: =T97-HLOOKUP(X97,Feuil1!$C$1:$BL$10,9,FALSE) -> -40 | AJ97: =T97-HLOOKUP(X97,Feuil1!$C$1:$BL$10,10,FALSE) -> -60 | AQ97: NAT +
A98: F | B98: SEST | C98: CAZ | D98: 4 | E98: 377635 | F98: GABBIANI | G98: Celia | H98: 1990 | I98: 57.6 | J98: A.S. MONACO | K98: F | L98: 50 | M98: 55 | N98: 57 | O98: 57 | P98: 63 | Q98: 67 | R98: -73 | S98: 67 | T98: 124 | U98: 66.4 | V98: FED + | W98: 9 | X98: =IF(I98="","",IF(A98="H",IF(OR(H98="SEN",H98<1995),VLOOKUP(I98,Feuil1!$A$11:$F$29,6),IF(AND(H98>1994,H98<1998),VLOOKUP(I98,Feuil1!$A$11:$F$29,5),IF(AND(H98>1997,H98<2000),VLOOKUP(I98,Feuil1!$A$11:$F$29,4),IF(AND(H98>1999,H98<2002),VLOOKUP(I98,Feuil1!$A$11:$F$29,3),VLOOKUP(I98,Feuil1!$A$11:$F$29,2))))),IF(OR(H98="SEN",H98<1995),VLOOKUP(I98,Feuil1!$G$11:$L$25,6),IF(AND(H98>1994,H98<1998),VLOOKUP(I98,Feuil1!$G$11:$L$25,5),IF(AND(H98>1997,H98<2000),VLOOKUP(I98,Feuil1!$G$11:$L$25,4),IF(AND(H98>1999,H98<2002),VLOOKUP(I98,Feuil1!$G$11:$L$25,3),VLOOKUP(I98,Feuil1!$G$11:$L$25,2))))))) -> FS58 | Y98: 175.4644202 | AB98: =T98-HLOOKUP(X98,Feuil1!$C$1:$BL$10,2,FALSE) -> 54 | AC98: =T98-HLOOKUP(X98,Feuil1!$C$1:$BL$10,3,FALSE) -> 44 | AD98: =T98-HLOOKUP(X98,Feuil1!$C$1:$BL$10,4,FALSE) -> 34 | AE98: =T98-HLOOKUP(X98,Feuil1!$C$1:$BL$10,5,FALSE) -> 24 | AF98: =T98-HLOOKUP(X98,Feuil1!$C$1:$BL$10,6,FALSE) -> 9 | AG98: =T98-HLOOKUP(X98,Feuil1!$C$1:$BL$10,7,FALSE) -> -6 | AH98: =T98-HLOOKUP(X98,Feuil1!$C$1:$BL$10,8,FALSE) -> -26 | AI98: =T98-HLOOKUP(X98,Feuil1!$C$1:$BL$10,9,FALSE) -> -46 | AJ98: =T98-HLOOKUP(X98,Feuil1!$C$1:$BL$10,10,FALSE) -> -66 | AQ98: FED +
A99: F | B99: SO | C99: MPY | D99: 5 | E99: 331243 | F99: ASPE | G99: Camille | H99: 1991 | I99: 57.6 | J99: TARBES CUTPH | K99: F | L99: 52 | M99: -56 | N99: 56 | O99: 56 | P99: 65 | Q99: -69 | R99: -69 | S99: 65 | T99: 121 | U99: 63.4 | V99: FED + | W99: 6 | X99: =IF(I99="","",IF(A99="H",IF(OR(H99="SEN",H99<1995),VLOOKUP(I99,Feuil1!$A$11:$F$29,6),IF(AND(H99>1994,H99<1998),VLOOKUP(I99,Feuil1!$A$11:$F$29,5),IF(AND(H99>1997,H99<2000),VLOOKUP(I99,Feuil1!$A$11:$F$29,4),IF(AND(H99>1999,H99<2002),VLOOKUP(I99,Feuil1!$A$11:$F$29,3),VLOOKUP(I99,Feuil1!$A$11:$F$29,2))))),IF(OR(H99="SEN",H99<1995),VLOOKUP(I99,Feuil1!$G$11:$L$25,6),IF(AND(H99>1994,H99<1998),VLOOKUP(I99,Feuil1!$G$11:$L$25,5),IF(AND(H99>1997,H99<2000),VLOOKUP(I99,Feuil1!$G$11:$L$25,4),IF(AND(H99>1999,H99<2002),VLOOKUP(I99,Feuil1!$G$11:$L$25,3),VLOOKUP(I99,Feuil1!$G$11:$L$25,2))))))) -> FS58 | Y99: 171.2193133 | AB99: =T99-HLOOKUP(X99,Feuil1!$C$1:$BL$10,2,FALSE) -> 51 | AC99: =T99-HLOOKUP(X99,Feuil1!$C$1:$BL$10,3,FALSE) -> 41 | AD99: =T99-HLOOKUP(X99,Feuil1!$C$1:$BL$10,4,FALSE) -> 31 | AE99: =T99-HLOOKUP(X99,Feuil1!$C$1:$BL$10,5,FALSE) -> 21 | AF99: =T99-HLOOKUP(X99,Feuil1!$C$1:$BL$10,6,FALSE) -> 6 | AG99: =T99-HLOOKUP(X99,Feuil1!$C$1:$BL$10,7,FALSE) -> -9 | AH99: =T99-HLOOKUP(X99,Feuil1!$C$1:$BL$10,8,FALSE) -> -29 | AI99: =T99-HLOOKUP(X99,Feuil1!$C$1:$BL$10,9,FALSE) -> -49 | AJ99: =T99-HLOOKUP(X99,Feuil1!$C$1:$BL$10,10,FALSE) -> -69 | AQ99: FED +
A100: F | B100: DOM | C100: REU | D100: 6 | E100: 250371 | F100: OULOUMENI | G100: Aurelia | H100: 1993 | I100: 57.8 | J100: CSPJ St Denis | K100: F | L100: 55 | M100: 58 | N100: -60 | O100: 58 | P100: 63 | Q100: -66 | R100: -66 | S100: =IF(H100="","",IF(MAXA(P100:R100)<=0,0,MAXA(P100:R100))) -> 63 | T100: =IF(H100="","",IF(OR(O100=0,S100=0),0,O100+S100)) -> 121 | U100: =T100-I100 -> 63.2 | V100: =IF(H100="","",AQ100) -> FED + | W100: =IF(AJ100>=0,AJ100,IF(AI100>=0,AI100,IF(AH100>=0,AH100,IF(AG100>=0,AG100,IF(AF100>=0,AF100,IF(AE100>=0,AE100,IF(AD100>=0,AD100,IF(AC100>=0,AC100,AB100)))))))) -> 6 | X100: =IF(I100="","",IF(A100="H",IF(OR(H100="SEN",H100<1995),VLOOKUP(I100,Feuil1!$A$11:$F$29,6),IF(AND(H100>1994,H100<1998),VLOOKUP(I100,Feuil1!$A$11:$F$29,5),IF(AND(H100>1997,H100<2000),VLOOKUP(I100,Feuil1!$A$11:$F$29,4),IF(AND(H100>1999,H100<2002),VLOOKUP(I100,Feuil1!$A$11:$F$29,3),VLOOKUP(I100,Feuil1!$A$11:$F$29,2))))),IF(OR(H100="SEN",H100<1995),VLOOKUP(I100,Feuil1!$G$11:$L$25,6),IF(AND(H100>1994,H100<1998),VLOOKUP(I100,Feuil1!$G$11:$L$25,5),IF(AND(H100>1997,H100<2000),VLOOKUP(I100,Feuil1!$G$11:$L$25,4),IF(AND(H100>1999,H100<2002),VLOOKUP(I100,Feuil1!$G$11:$L$25,3),VLOOKUP(I100,Feuil1!$G$11:$L$25,2))))))) -> FS58 | Y100: =IF(I100="","",IF(A100="H",10^(0.794358141*LOG(I100/174.393)^2)*T100,IF(A100="F",10^(0.89726074*LOG(I100/148.026)^2)*T100,""))) -> 170.7841024 | AB100: =T100-HLOOKUP(X100,Feuil1!$C$1:$BL$10,2,FALSE) -> 51 | AC100: =T100-HLOOKUP(X100,Feuil1!$C$1:$BL$10,3,FALSE) -> 41 | AD100: =T100-HLOOKUP(X100,Feuil1!$C$1:$BL$10,4,FALSE) -> 31 | AE100: =T100-HLOOKUP(X100,Feuil1!$C$1:$BL$10,5,FALSE) -> 21 | AF100: =T100-HLOOKUP(X100,Feuil1!$C$1:$BL$10,6,FALSE) -> 6 | AG100: =T100-HLOOKUP(X100,Feuil1!$C$1:$BL$10,7,FALSE) -> -9 | AH100: =T100-HLOOKUP(X100,Feuil1!$C$1:$BL$10,8,FALSE) -> -29 | AI100: =T100-HLOOKUP(X100,Feuil1!$C$1:$BL$10,9,FALSE) -> -49 | AJ100: =T100-HLOOKUP(X100,Feuil1!$C$1:$BL$10,10,FALSE) -> -69 | AQ100: =IF(AJ100>=0,$AJ$4,IF(AI100>=0,$AI$4,IF(AH100>=0,$AH$4,IF(AG100>=0,$AG$4,IF(AF100>=0,$AF$4,IF(AE100>=0,$AE$4,IF(AD100>=0,$AD$4,IF(AC100>=0,$AC$4,$AB$4)))))))) -> FED +
A101: F | B101: SEST | C101: CAZ | D101: 7 | E101: 326048 | F101: DURAN | G101: Sandra | H101: 1994 | I101: 53.3 | J101: ASPTT. DRAGUIGNAN | K101: F | L101: 45 | M101: -50 | N101: 52 | O101: 52 | P101: -63 | Q101: 63 | R101: 66 | S101: 66 | T101: 118 | U101: 64.7 | V101: FED + | W101: 3 | X101: =IF(I101="","",IF(A101="H",IF(OR(H101="SEN",H101<1995),VLOOKUP(I101,Feuil1!$A$11:$F$29,6),IF(AND(H101>1994,H101<1998),VLOOKUP(I101,Feuil1!$A$11:$F$29,5),IF(AND(H101>1997,H101<2000),VLOOKUP(I101,Feuil1!$A$11:$F$29,4),IF(AND(H101>1999,H101<2002),VLOOKUP(I101,Feuil1!$A$11:$F$29,3),VLOOKUP(I101,Feuil1!$A$11:$F$29,2))))),IF(OR(H101="SEN",H101<1995),VLOOKUP(I101,Feuil1!$G$11:$L$25,6),IF(AND(H101>1994,H101<1998),VLOOKUP(I101,Feuil1!$G$11:$L$25,5),IF(AND(H101>1997,H101<2000),VLOOKUP(I101,Feuil1!$G$11:$L$25,4),IF(AND(H101>1999,H101<2002),VLOOKUP(I101,Feuil1!$G$11:$L$25,3),VLOOKUP(I101,Feuil1!$G$11:$L$25,2))))))) -> FS58 | Y101: 177.1962107 | AB101: =T101-HLOOKUP(X101,Feuil1!$C$1:$BL$10,2,FALSE) -> 48 | AC101: =T101-HLOOKUP(X101,Feuil1!$C$1:$BL$10,3,FALSE) -> 38 | AD101: =T101-HLOOKUP(X101,Feuil1!$C$1:$BL$10,4,FALSE) -> 28 | AE101: =T101-HLOOKUP(X101,Feuil1!$C$1:$BL$10,5,FALSE) -> 18 | AF101: =T101-HLOOKUP(X101,Feuil1!$C$1:$BL$10,6,FALSE) -> 3 | AG101: =T101-HLOOKUP(X101,Feuil1!$C$1:$BL$10,7,FALSE) -> -12 | AH101: =T101-HLOOKUP(X101,Feuil1!$C$1:$BL$10,8,FALSE) -> -32 | AI101: =T101-HLOOKUP(X101,Feuil1!$C$1:$BL$10,9,FALSE) -> -52 | AJ101: =T101-HLOOKUP(X101,Feuil1!$C$1:$BL$10,10,FALSE) -> -72 | AQ101: FED +
A102: F | B102: SEST | C102: RAL | D102: 8 | E102: 372599 | F102: SAINTE AIME | G102: Sarah | H102: 1991 | I102: 57.7 | J102: VAULX EN VELIN | K102: F | L102: -48 | M102: -48 | N102: 48 | O102: 48 | P102: -67 | Q102: -67 | R102: 67 | S102: 67 | T102: 115 | U102: 57.3 | V102: FED + | W102: 0 | X102: =IF(I102="","",IF(A102="H",IF(OR(H102="SEN",H102<1995),VLOOKUP(I102,Feuil1!$A$11:$F$29,6),IF(AND(H102>1994,H102<1998),VLOOKUP(I102,Feuil1!$A$11:$F$29,5),IF(AND(H102>1997,H102<2000),VLOOKUP(I102,Feuil1!$A$11:$F$29,4),IF(AND(H102>1999,H102<2002),VLOOKUP(I102,Feuil1!$A$11:$F$29,3),VLOOKUP(I102,Feuil1!$A$11:$F$29,2))))),IF(OR(H102="SEN",H102<1995),VLOOKUP(I102,Feuil1!$G$11:$L$25,6),IF(AND(H102>1994,H102<1998),VLOOKUP(I102,Feuil1!$G$11:$L$25,5),IF(AND(H102>1997,H102<2000),VLOOKUP(I102,Feuil1!$G$11:$L$25,4),IF(AND(H102>1999,H102<2002),VLOOKUP(I102,Feuil1!$G$11:$L$25,3),VLOOKUP(I102,Feuil1!$G$11:$L$25,2))))))) -> FS58 | Y102: 162.5217833 | AB102: =T102-HLOOKUP(X102,Feuil1!$C$1:$BL$10,2,FALSE) -> 45 | AC102: =T102-HLOOKUP(X102,Feuil1!$C$1:$BL$10,3,FALSE) -> 35 | AD102: =T102-HLOOKUP(X102,Feuil1!$C$1:$BL$10,4,FALSE) -> 25 | AE102: =T102-HLOOKUP(X102,Feuil1!$C$1:$BL$10,5,FALSE) -> 15 | AF102: =T102-HLOOKUP(X102,Feuil1!$C$1:$BL$10,6,FALSE) -> 0 | AG102: =T102-HLOOKUP(X102,Feuil1!$C$1:$BL$10,7,FALSE) -> -15 | AH102: =T102-HLOOKUP(X102,Feuil1!$C$1:$BL$10,8,FALSE) -> -35 | AI102: =T102-HLOOKUP(X102,Feuil1!$C$1:$BL$10,9,FALSE) -> -55 | AJ102: =T102-HLOOKUP(X102,Feuil1!$C$1:$BL$10,10,FALSE) -> -75 | AQ102: FED +
A103: F | B103: SEST | C103: RAL | D103: 9 | E103: 198067 | F103: LAROIX | G103: Adeline | H103: 1991 | I103: 57.6 | J103: A.L. CHARLIEU | K103: F | L103: 48 | M103: -52 | N103: -52 | O103: 48 | P103: 60 | Q103: -64 | R103: -64 | S103: 60 | T103: 108 | U103: 50.4 | V103: IRG + | W103: 8 | X103: =IF(I103="","",IF(A103="H",IF(OR(H103="SEN",H103<1995),VLOOKUP(I103,Feuil1!$A$11:$F$29,6),IF(AND(H103>1994,H103<1998),VLOOKUP(I103,Feuil1!$A$11:$F$29,5),IF(AND(H103>1997,H103<2000),VLOOKUP(I103,Feuil1!$A$11:$F$29,4),IF(AND(H103>1999,H103<2002),VLOOKUP(I103,Feuil1!$A$11:$F$29,3),VLOOKUP(I103,Feuil1!$A$11:$F$29,2))))),IF(OR(H103="SEN",H103<1995),VLOOKUP(I103,Feuil1!$G$11:$L$25,6),IF(AND(H103>1994,H103<1998),VLOOKUP(I103,Feuil1!$G$11:$L$25,5),IF(AND(H103>1997,H103<2000),VLOOKUP(I103,Feuil1!$G$11:$L$25,4),IF(AND(H103>1999,H103<2002),VLOOKUP(I103,Feuil1!$G$11:$L$25,3),VLOOKUP(I103,Feuil1!$G$11:$L$25,2))))))) -> FS58 | Y103: 152.8238499 | AB103: =T103-HLOOKUP(X103,Feuil1!$C$1:$BL$10,2,FALSE) -> 38 | AC103: =T103-HLOOKUP(X103,Feuil1!$C$1:$BL$10,3,FALSE) -> 28 | AD103: =T103-HLOOKUP(X103,Feuil1!$C$1:$BL$10,4,FALSE) -> 18 | AE103: =T103-HLOOKUP(X103,Feuil1!$C$1:$BL$10,5,FALSE) -> 8 | AF103: =T103-HLOOKUP(X103,Feuil1!$C$1:$BL$10,6,FALSE) -> -7 | AG103: =T103-HLOOKUP(X103,Feuil1!$C$1:$BL$10,7,FALSE) -> -22 | AH103: =T103-HLOOKUP(X103,Feuil1!$C$1:$BL$10,8,FALSE) -> -42 | AI103: =T103-HLOOKUP(X103,Feuil1!$C$1:$BL$10,9,FALSE) -> -62 | AJ103: =T103-HLOOKUP(X103,Feuil1!$C$1:$BL$10,10,FALSE) -> -82 | AQ103: IRG +
A104: F | B104: DOM | C104: GUY | D104: 10 | E104: 186614 | F104: BOROT | G104: Lenaïc | H104: 1994 | I104: 57.5 | J104: ASCPG/Rémire Montjoly | K104: F | L104: 40 | M104: 45 | N104: -47 | O104: 45 | P104: 50 | Q104: 55 | R104: -60 | S104: =IF(H104="","",IF(MAXA(P104:R104)<=0,0,MAXA(P104:R104))) -> 55 | T104: =IF(H104="","",IF(OR(O104=0,S104=0),0,O104+S104)) -> 100 | U104: =T104-I104 -> 42.5 | V104: =IF(H104="","",AQ104) -> IRG + | W104: =IF(AJ104>=0,AJ104,IF(AI104>=0,AI104,IF(AH104>=0,AH104,IF(AG104>=0,AG104,IF(AF104>=0,AF104,IF(AE104>=0,AE104,IF(AD104>=0,AD104,IF(AC104>=0,AC104,AB104)))))))) -> 0 | X104: =IF(I104="","",IF(A104="H",IF(OR(H104="SEN",H104<1995),VLOOKUP(I104,Feuil1!$A$11:$F$29,6),IF(AND(H104>1994,H104<1998),VLOOKUP(I104,Feuil1!$A$11:$F$29,5),IF(AND(H104>1997,H104<2000),VLOOKUP(I104,Feuil1!$A$11:$F$29,4),IF(AND(H104>1999,H104<2002),VLOOKUP(I104,Feuil1!$A$11:$F$29,3),VLOOKUP(I104,Feuil1!$A$11:$F$29,2))))),IF(OR(H104="SEN",H104<1995),VLOOKUP(I104,Feuil1!$G$11:$L$25,6),IF(AND(H104>1994,H104<1998),VLOOKUP(I104,Feuil1!$G$11:$L$25,5),IF(AND(H104>1997,H104<2000),VLOOKUP(I104,Feuil1!$G$11:$L$25,4),IF(AND(H104>1999,H104<2002),VLOOKUP(I104,Feuil1!$G$11:$L$25,3),VLOOKUP(I104,Feuil1!$G$11:$L$25,2))))))) -> FS58 | Y104: =IF(I104="","",IF(A104="H",10^(0.794358141*LOG(I104/174.393)^2)*T104,IF(A104="F",10^(0.89726074*LOG(I104/148.026)^2)*T104,""))) -> 141.6847165 | AB104: =T104-HLOOKUP(X104,Feuil1!$C$1:$BL$10,2,FALSE) -> 30 | AC104: =T104-HLOOKUP(X104,Feuil1!$C$1:$BL$10,3,FALSE) -> 20 | AD104: =T104-HLOOKUP(X104,Feuil1!$C$1:$BL$10,4,FALSE) -> 10 | AE104: =T104-HLOOKUP(X104,Feuil1!$C$1:$BL$10,5,FALSE) -> 0 | AF104: =T104-HLOOKUP(X104,Feuil1!$C$1:$BL$10,6,FALSE) -> -15 | AG104: =T104-HLOOKUP(X104,Feuil1!$C$1:$BL$10,7,FALSE) -> -30 | AH104: =T104-HLOOKUP(X104,Feuil1!$C$1:$BL$10,8,FALSE) -> -50 | AI104: =T104-HLOOKUP(X104,Feuil1!$C$1:$BL$10,9,FALSE) -> -70 | AJ104: =T104-HLOOKUP(X104,Feuil1!$C$1:$BL$10,10,FALSE) -> -90 | AQ104: =IF(AJ104>=0,$AJ$4,IF(AI104>=0,$AI$4,IF(AH104>=0,$AH$4,IF(AG104>=0,$AG$4,IF(AF104>=0,$AF$4,IF(AE104>=0,$AE$4,IF(AD104>=0,$AD$4,IF(AC104>=0,$AC$4,$AB$4)))))))) -> IRG +
AB105: =T105-HLOOKUP(X105,Feuil1!$C$1:$BL$10,2,FALSE) ->  | AC105: =T105-HLOOKUP(X105,Feuil1!$C$1:$BL$10,3,FALSE) ->  | AD105: =T105-HLOOKUP(X105,Feuil1!$C$1:$BL$10,4,FALSE) ->  | AE105: =T105-HLOOKUP(X105,Feuil1!$C$1:$BL$10,5,FALSE) ->  | AF105: =T105-HLOOKUP(X105,Feuil1!$C$1:$BL$10,6,FALSE) ->  | AG105: =T105-HLOOKUP(X105,Feuil1!$C$1:$BL$10,7,FALSE) ->  | AH105: =T105-HLOOKUP(X105,Feuil1!$C$1:$BL$10,8,FALSE) ->  | AI105: =T105-HLOOKUP(X105,Feuil1!$C$1:$BL$10,9,FALSE) ->  | AJ105: =T105-HLOOKUP(X105,Feuil1!$C$1:$BL$10,10,FALSE) -> 
A106: F | B106: ZCO | C106: BRE | D106: 1 | E106: 376538 | F106: OSUNGU | G106: Epie | H106: 1983 | I106: 60.45 | J106: ES Saint Avé | K106: Cam | L106: 72 | M106: 75 | N106: 78 | O106: =IF(H106="","",IF(MAXA(L106:N106)<=0,0,MAXA(L106:N106))) -> 78 | P106: 83 | Q106: 87 | R106: 90 | S106: =IF(H106="","",IF(MAXA(P106:R106)<=0,0,MAXA(P106:R106))) -> 90 | T106: =IF(H106="","",IF(OR(O106=0,S106=0),0,O106+S106)) -> 168 | U106: 107.55 | V106: =IF(H106="","",AQ106) -> INTB + | W106: =IF(AJ106>=0,AJ106,IF(AI106>=0,AI106,IF(AH106>=0,AH106,IF(AG106>=0,AG106,IF(AF106>=0,AF106,IF(AE106>=0,AE106,IF(AD106>=0,AD106,IF(AC106>=0,AC106,AB106)))))))) -> 8 | X106: =IF(I106="","",IF(A106="H",IF(OR(H106="SEN",H106<1995),VLOOKUP(I106,Feuil1!$A$11:$F$29,6),IF(AND(H106>1994,H106<1998),VLOOKUP(I106,Feuil1!$A$11:$F$29,5),IF(AND(H106>1997,H106<2000),VLOOKUP(I106,Feuil1!$A$11:$F$29,4),IF(AND(H106>1999,H106<2002),VLOOKUP(I106,Feuil1!$A$11:$F$29,3),VLOOKUP(I106,Feuil1!$A$11:$F$29,2))))),IF(OR(H106="SEN",H106<1995),VLOOKUP(I106,Feuil1!$G$11:$L$25,6),IF(AND(H106>1994,H106<1998),VLOOKUP(I106,Feuil1!$G$11:$L$25,5),IF(AND(H106>1997,H106<2000),VLOOKUP(I106,Feuil1!$G$11:$L$25,4),IF(AND(H106>1999,H106<2002),VLOOKUP(I106,Feuil1!$G$11:$L$25,3),VLOOKUP(I106,Feuil1!$G$11:$L$25,2))))))) -> FS63 | Y106: =IF(I106="","",IF(A106="H",10^(0.794358141*LOG(I106/174.393)^2)*T106,IF(A106="F",10^(0.89726074*LOG(I106/148.026)^2)*T106,""))) -> 229.6375891 | AB106: =T106-HLOOKUP(X106,Feuil1!$C$1:$BL$10,2,FALSE) -> 93 | AC106: =T106-HLOOKUP(X106,Feuil1!$C$1:$BL$10,3,FALSE) -> 83 | AD106: =T106-HLOOKUP(X106,Feuil1!$C$1:$BL$10,4,FALSE) -> 73 | AE106: =T106-HLOOKUP(X106,Feuil1!$C$1:$BL$10,5,FALSE) -> 58 | AF106: =T106-HLOOKUP(X106,Feuil1!$C$1:$BL$10,6,FALSE) -> 43 | AG106: =T106-HLOOKUP(X106,Feuil1!$C$1:$BL$10,7,FALSE) -> 28 | AH106: =T106-HLOOKUP(X106,Feuil1!$C$1:$BL$10,8,FALSE) -> 8 | AI106: =T106-HLOOKUP(X106,Feuil1!$C$1:$BL$10,9,FALSE) -> -12 | AJ106: =T106-HLOOKUP(X106,Feuil1!$C$1:$BL$10,10,FALSE) -> -32 | AQ106: =IF(AJ106>=0,$AJ$4,IF(AI106>=0,$AI$4,IF(AH106>=0,$AH$4,IF(AG106>=0,$AG$4,IF(AF106>=0,$AF$4,IF(AE106>=0,$AE$4,IF(AD106>=0,$AD$4,IF(AC106>=0,$AC$4,$AB$4)))))))) -> INTB +
A107: F | B107: ZCO | C107: BNO | D107: 2 | E107: 115950 | F107: DUMARAIS | G107: Mélissa | H107: 1992 | I107: 59.6 | J107: Caen CHM | K107: F | L107: 62 | M107: 65 | N107: 68 | O107: 68 | P107: 78 | Q107: 81 | R107: -84 | S107: 81 | T107: 149 | U107: 89.4 | V107: NAT + | W107: 9 | X107: =IF(I107="","",IF(A107="H",IF(OR(H107="SEN",H107<1995),VLOOKUP(I107,Feuil1!$A$11:$F$29,6),IF(AND(H107>1994,H107<1998),VLOOKUP(I107,Feuil1!$A$11:$F$29,5),IF(AND(H107>1997,H107<2000),VLOOKUP(I107,Feuil1!$A$11:$F$29,4),IF(AND(H107>1999,H107<2002),VLOOKUP(I107,Feuil1!$A$11:$F$29,3),VLOOKUP(I107,Feuil1!$A$11:$F$29,2))))),IF(OR(H107="SEN",H107<1995),VLOOKUP(I107,Feuil1!$G$11:$L$25,6),IF(AND(H107>1994,H107<1998),VLOOKUP(I107,Feuil1!$G$11:$L$25,5),IF(AND(H107>1997,H107<2000),VLOOKUP(I107,Feuil1!$G$11:$L$25,4),IF(AND(H107>1999,H107<2002),VLOOKUP(I107,Feuil1!$G$11:$L$25,3),VLOOKUP(I107,Feuil1!$G$11:$L$25,2))))))) -> FS63 | Y107: 205.7057419 | AB107: =T107-HLOOKUP(X107,Feuil1!$C$1:$BL$10,2,FALSE) -> 74 | AC107: =T107-HLOOKUP(X107,Feuil1!$C$1:$BL$10,3,FALSE) -> 64 | AD107: =T107-HLOOKUP(X107,Feuil1!$C$1:$BL$10,4,FALSE) -> 54 | AE107: =T107-HLOOKUP(X107,Feuil1!$C$1:$BL$10,5,FALSE) -> 39 | AF107: =T107-HLOOKUP(X107,Feuil1!$C$1:$BL$10,6,FALSE) -> 24 | AG107: =T107-HLOOKUP(X107,Feuil1!$C$1:$BL$10,7,FALSE) -> 9 | AH107: =T107-HLOOKUP(X107,Feuil1!$C$1:$BL$10,8,FALSE) -> -11 | AI107: =T107-HLOOKUP(X107,Feuil1!$C$1:$BL$10,9,FALSE) -> -31 | AJ107: =T107-HLOOKUP(X107,Feuil1!$C$1:$BL$10,10,FALSE) -> -51 | AQ107: NAT +
A108: F | B108: SO | C108: MPY | D108: 3 | E108: 250351 | F108: BRIDIER | G108: Stéphanie | H108: 1985 | I108: 62.4 | J108: TOULOUSE HC | K108: F | L108: 62 | M108: 65 | N108: 68 | O108: 68 | P108: 72 | Q108: 75 | R108: 78 | S108: 78 | T108: 146 | U108: 83.6 | V108: NAT + | W108: 6 | X108: =IF(I108="","",IF(A108="H",IF(OR(H108="SEN",H108<1995),VLOOKUP(I108,Feuil1!$A$11:$F$29,6),IF(AND(H108>1994,H108<1998),VLOOKUP(I108,Feuil1!$A$11:$F$29,5),IF(AND(H108>1997,H108<2000),VLOOKUP(I108,Feuil1!$A$11:$F$29,4),IF(AND(H108>1999,H108<2002),VLOOKUP(I108,Feuil1!$A$11:$F$29,3),VLOOKUP(I108,Feuil1!$A$11:$F$29,2))))),IF(OR(H108="SEN",H108<1995),VLOOKUP(I108,Feuil1!$G$11:$L$25,6),IF(AND(H108>1994,H108<1998),VLOOKUP(I108,Feuil1!$G$11:$L$25,5),IF(AND(H108>1997,H108<2000),VLOOKUP(I108,Feuil1!$G$11:$L$25,4),IF(AND(H108>1999,H108<2002),VLOOKUP(I108,Feuil1!$G$11:$L$25,3),VLOOKUP(I108,Feuil1!$G$11:$L$25,2))))))) -> FS63 | Y108: 195.2690475 | AB108: =T108-HLOOKUP(X108,Feuil1!$C$1:$BL$10,2,FALSE) -> 71 | AC108: =T108-HLOOKUP(X108,Feuil1!$C$1:$BL$10,3,FALSE) -> 61 | AD108: =T108-HLOOKUP(X108,Feuil1!$C$1:$BL$10,4,FALSE) -> 51 | AE108: =T108-HLOOKUP(X108,Feuil1!$C$1:$BL$10,5,FALSE) -> 36 | AF108: =T108-HLOOKUP(X108,Feuil1!$C$1:$BL$10,6,FALSE) -> 21 | AG108: =T108-HLOOKUP(X108,Feuil1!$C$1:$BL$10,7,FALSE) -> 6 | AH108: =T108-HLOOKUP(X108,Feuil1!$C$1:$BL$10,8,FALSE) -> -14 | AI108: =T108-HLOOKUP(X108,Feuil1!$C$1:$BL$10,9,FALSE) -> -34 | AJ108: =T108-HLOOKUP(X108,Feuil1!$C$1:$BL$10,10,FALSE) -> -54 | AQ108: NAT +
A109: F | B109: SEST | C109: CAZ | D109: 4 | E109: 196091 | F109: SOULET | G109: Frederique | H109: 1986 | I109: 61.1 | J109: ASLDD. TOULON | K109: F | L109: 52 | M109: -55 | N109: 55 | O109: 55 | P109: 70 | Q109: -74 | R109: -75 | S109: 70 | T109: 125 | U109: 63.9 | V109: FED + | W109: 0 | X109: =IF(I109="","",IF(A109="H",IF(OR(H109="SEN",H109<1995),VLOOKUP(I109,Feuil1!$A$11:$F$29,6),IF(AND(H109>1994,H109<1998),VLOOKUP(I109,Feuil1!$A$11:$F$29,5),IF(AND(H109>1997,H109<2000),VLOOKUP(I109,Feuil1!$A$11:$F$29,4),IF(AND(H109>1999,H109<2002),VLOOKUP(I109,Feuil1!$A$11:$F$29,3),VLOOKUP(I109,Feuil1!$A$11:$F$29,2))))),IF(OR(H109="SEN",H109<1995),VLOOKUP(I109,Feuil1!$G$11:$L$25,6),IF(AND(H109>1994,H109<1998),VLOOKUP(I109,Feuil1!$G$11:$L$25,5),IF(AND(H109>1997,H109<2000),VLOOKUP(I109,Feuil1!$G$11:$L$25,4),IF(AND(H109>1999,H109<2002),VLOOKUP(I109,Feuil1!$G$11:$L$25,3),VLOOKUP(I109,Feuil1!$G$11:$L$25,2))))))) -> FS63 | Y109: 169.5981423 | AB109: =T109-HLOOKUP(X109,Feuil1!$C$1:$BL$10,2,FALSE) -> 50 | AC109: =T109-HLOOKUP(X109,Feuil1!$C$1:$BL$10,3,FALSE) -> 40 | AD109: =T109-HLOOKUP(X109,Feuil1!$C$1:$BL$10,4,FALSE) -> 30 | AE109: =T109-HLOOKUP(X109,Feuil1!$C$1:$BL$10,5,FALSE) -> 15 | AF109: =T109-HLOOKUP(X109,Feuil1!$C$1:$BL$10,6,FALSE) -> 0 | AG109: =T109-HLOOKUP(X109,Feuil1!$C$1:$BL$10,7,FALSE) -> -15 | AH109: =T109-HLOOKUP(X109,Feuil1!$C$1:$BL$10,8,FALSE) -> -35 | AI109: =T109-HLOOKUP(X109,Feuil1!$C$1:$BL$10,9,FALSE) -> -55 | AJ109: =T109-HLOOKUP(X109,Feuil1!$C$1:$BL$10,10,FALSE) -> -75 | AQ109: FED +
A110: F | B110: SEST | C110: CAZ | D110: 5 | E110: 332675 | F110: RADEAU | G110: Celine | H110: 1983 | I110: 62.05 | J110: A.S. MONACO | K110: F | L110: -50 | M110: 50 | N110: -53 | O110: 50 | P110: 67 | Q110: 71 | R110: -73 | S110: 71 | T110: 121 | U110: 58.95 | V110: IRG + | W110: 11 | X110: =IF(I110="","",IF(A110="H",IF(OR(H110="SEN",H110<1995),VLOOKUP(I110,Feuil1!$A$11:$F$29,6),IF(AND(H110>1994,H110<1998),VLOOKUP(I110,Feuil1!$A$11:$F$29,5),IF(AND(H110>1997,H110<2000),VLOOKUP(I110,Feuil1!$A$11:$F$29,4),IF(AND(H110>1999,H110<2002),VLOOKUP(I110,Feuil1!$A$11:$F$29,3),VLOOKUP(I110,Feuil1!$A$11:$F$29,2))))),IF(OR(H110="SEN",H110<1995),VLOOKUP(I110,Feuil1!$G$11:$L$25,6),IF(AND(H110>1994,H110<1998),VLOOKUP(I110,Feuil1!$G$11:$L$25,5),IF(AND(H110>1997,H110<2000),VLOOKUP(I110,Feuil1!$G$11:$L$25,4),IF(AND(H110>1999,H110<2002),VLOOKUP(I110,Feuil1!$G$11:$L$25,3),VLOOKUP(I110,Feuil1!$G$11:$L$25,2))))))) -> FS63 | Y110: 162.4485439 | AB110: =T110-HLOOKUP(X110,Feuil1!$C$1:$BL$10,2,FALSE) -> 46 | AC110: =T110-HLOOKUP(X110,Feuil1!$C$1:$BL$10,3,FALSE) -> 36 | AD110: =T110-HLOOKUP(X110,Feuil1!$C$1:$BL$10,4,FALSE) -> 26 | AE110: =T110-HLOOKUP(X110,Feuil1!$C$1:$BL$10,5,FALSE) -> 11 | AF110: =T110-HLOOKUP(X110,Feuil1!$C$1:$BL$10,6,FALSE) -> -4 | AG110: =T110-HLOOKUP(X110,Feuil1!$C$1:$BL$10,7,FALSE) -> -19 | AH110: =T110-HLOOKUP(X110,Feuil1!$C$1:$BL$10,8,FALSE) -> -39 | AI110: =T110-HLOOKUP(X110,Feuil1!$C$1:$BL$10,9,FALSE) -> -59 | AJ110: =T110-HLOOKUP(X110,Feuil1!$C$1:$BL$10,10,FALSE) -> -79 | AQ110: IRG +
A111: F | B111: SEST | C111: RAL | D111: 6 | E111: 142132 | F111: BAILLET | G111: Nathalie | H111: 1994 | I111: 58.2 | J111: H.C. ST BALDOPH | K111: F | L111: 47 | M111: -50 | N111: 51 | O111: 51 | P111: -63 | Q111: 63 | R111: -66 | S111: 63 | T111: 114 | U111: 55.8 | V111: IRG + | W111: 4 | X111: =IF(I111="","",IF(A111="H",IF(OR(H111="SEN",H111<1995),VLOOKUP(I111,Feuil1!$A$11:$F$29,6),IF(AND(H111>1994,H111<1998),VLOOKUP(I111,Feuil1!$A$11:$F$29,5),IF(AND(H111>1997,H111<2000),VLOOKUP(I111,Feuil1!$A$11:$F$29,4),IF(AND(H111>1999,H111<2002),VLOOKUP(I111,Feuil1!$A$11:$F$29,3),VLOOKUP(I111,Feuil1!$A$11:$F$29,2))))),IF(OR(H111="SEN",H111<1995),VLOOKUP(I111,Feuil1!$G$11:$L$25,6),IF(AND(H111>1994,H111<1998),VLOOKUP(I111,Feuil1!$G$11:$L$25,5),IF(AND(H111>1997,H111<2000),VLOOKUP(I111,Feuil1!$G$11:$L$25,4),IF(AND(H111>1999,H111<2002),VLOOKUP(I111,Feuil1!$G$11:$L$25,3),VLOOKUP(I111,Feuil1!$G$11:$L$25,2))))))) -> FS63 | Y111: 160.0957588 | AB111: =T111-HLOOKUP(X111,Feuil1!$C$1:$BL$10,2,FALSE) -> 39 | AC111: =T111-HLOOKUP(X111,Feuil1!$C$1:$BL$10,3,FALSE) -> 29 | AD111: =T111-HLOOKUP(X111,Feuil1!$C$1:$BL$10,4,FALSE) -> 19 | AE111: =T111-HLOOKUP(X111,Feuil1!$C$1:$BL$10,5,FALSE) -> 4 | AF111: =T111-HLOOKUP(X111,Feuil1!$C$1:$BL$10,6,FALSE) -> -11 | AG111: =T111-HLOOKUP(X111,Feuil1!$C$1:$BL$10,7,FALSE) -> -26 | AH111: =T111-HLOOKUP(X111,Feuil1!$C$1:$BL$10,8,FALSE) -> -46 | AI111: =T111-HLOOKUP(X111,Feuil1!$C$1:$BL$10,9,FALSE) -> -66 | AJ111: =T111-HLOOKUP(X111,Feuil1!$C$1:$BL$10,10,FALSE) -> -86 | AQ111: IRG +
AB112: =T112-HLOOKUP(X112,Feuil1!$C$1:$BL$10,2,FALSE) ->  | AC112: =T112-HLOOKUP(X112,Feuil1!$C$1:$BL$10,3,FALSE) ->  | AD112: =T112-HLOOKUP(X112,Feuil1!$C$1:$BL$10,4,FALSE) ->  | AE112: =T112-HLOOKUP(X112,Feuil1!$C$1:$BL$10,5,FALSE) ->  | AF112: =T112-HLOOKUP(X112,Feuil1!$C$1:$BL$10,6,FALSE) ->  | AG112: =T112-HLOOKUP(X112,Feuil1!$C$1:$BL$10,7,FALSE) ->  | AH112: =T112-HLOOKUP(X112,Feuil1!$C$1:$BL$10,8,FALSE) ->  | AI112: =T112-HLOOKUP(X112,Feuil1!$C$1:$BL$10,9,FALSE) ->  | AJ112: =T112-HLOOKUP(X112,Feuil1!$C$1:$BL$10,10,FALSE) -> 
A113: F | B113: DOM | C113: REU | D113: 1 | E113: 94140 | F113: SAINT JACQUES | G113: Larissa | H113: 1979 | I113: 68.2 | J113: CSPJ St Denis | K113: F | L113: 65 | M113: 70 | N113: - | O113: =IF(H113="","",IF(MAXA(L113:N113)<=0,0,MAXA(L113:N113))) -> 70 | P113: 80 | Q113: 85 | R113: 90 | S113: =IF(H113="","",IF(MAXA(P113:R113)<=0,0,MAXA(P113:R113))) -> 90 | T113: =IF(H113="","",IF(OR(O113=0,S113=0),0,O113+S113)) -> 160 | U113: =T113-I113 -> 91.8 | V113: =IF(H113="","",AQ113) -> NAT + | W113: =IF(AJ113>=0,AJ113,IF(AI113>=0,AI113,IF(AH113>=0,AH113,IF(AG113>=0,AG113,IF(AF113>=0,AF113,IF(AE113>=0,AE113,IF(AD113>=0,AD113,IF(AC113>=0,AC113,AB113)))))))) -> 10 | X113: =IF(I113="","",IF(A113="H",IF(OR(H113="SEN",H113<1995),VLOOKUP(I113,Feuil1!$A$11:$F$29,6),IF(AND(H113>1994,H113<1998),VLOOKUP(I113,Feuil1!$A$11:$F$29,5),IF(AND(H113>1997,H113<2000),VLOOKUP(I113,Feuil1!$A$11:$F$29,4),IF(AND(H113>1999,H113<2002),VLOOKUP(I113,Feuil1!$A$11:$F$29,3),VLOOKUP(I113,Feuil1!$A$11:$F$29,2))))),IF(OR(H113="SEN",H113<1995),VLOOKUP(I113,Feuil1!$G$11:$L$25,6),IF(AND(H113>1994,H113<1998),VLOOKUP(I113,Feuil1!$G$11:$L$25,5),IF(AND(H113>1997,H113<2000),VLOOKUP(I113,Feuil1!$G$11:$L$25,4),IF(AND(H113>1999,H113<2002),VLOOKUP(I113,Feuil1!$G$11:$L$25,3),VLOOKUP(I113,Feuil1!$G$11:$L$25,2))))))) -> FS69 | Y113: =IF(I113="","",IF(A113="H",10^(0.794358141*LOG(I113/174.393)^2)*T113,IF(A113="F",10^(0.89726074*LOG(I113/148.026)^2)*T113,""))) -> 202.1860659 | AB113: =T113-HLOOKUP(X113,Feuil1!$C$1:$BL$10,2,FALSE) -> 80 | AC113: =T113-HLOOKUP(X113,Feuil1!$C$1:$BL$10,3,FALSE) -> 70 | AD113: =T113-HLOOKUP(X113,Feuil1!$C$1:$BL$10,4,FALSE) -> 55 | AE113: =T113-HLOOKUP(X113,Feuil1!$C$1:$BL$10,5,FALSE) -> 40 | AF113: =T113-HLOOKUP(X113,Feuil1!$C$1:$BL$10,6,FALSE) -> 25 | AG113: =T113-HLOOKUP(X113,Feuil1!$C$1:$BL$10,7,FALSE) -> 10 | AH113: =T113-HLOOKUP(X113,Feuil1!$C$1:$BL$10,8,FALSE) -> -10 | AI113: =T113-HLOOKUP(X113,Feuil1!$C$1:$BL$10,9,FALSE) -> -30 | AJ113: =T113-HLOOKUP(X113,Feuil1!$C$1:$BL$10,10,FALSE) -> -45 | AQ113: =IF(AJ113>=0,$AJ$4,IF(AI113>=0,$AI$4,IF(AH113>=0,$AH$4,IF(AG113>=0,$AG$4,IF(AF113>=0,$AF$4,IF(AE113>=0,$AE$4,IF(AD113>=0,$AD$4,IF(AC113>=0,$AC$4,$AB$4)))))))) -> NAT +
A114: F | B114: NE | C114: ALS | D114: 2 | E114: 319461 | F114: TITTEL MOSSER | G114: Lindsay | H114: 1984 | I114: 68.7 | J114: SR Obernai HM | K114: F | L114: -60 | M114: 60 | N114: 64 | O114: =IF(H114="","",IF(MAXA(L114:N114)<=0,0,MAXA(L114:N114))) -> 64 | P114: 75 | Q114: 79 | R114: 82 | S114: =IF(H114="","",IF(MAXA(P114:R114)<=0,0,MAXA(P114:R114))) -> 82 | T114: =IF(H114="","",IF(OR(O114=0,S114=0),0,O114+S114)) -> 146 | U114: 77.3 | V114: =IF(H114="","",AQ114) -> FED + | W114: =IF(AJ114>=0,AJ114,IF(AI114>=0,AI114,IF(AH114>=0,AH114,IF(AG114>=0,AG114,IF(AF114>=0,AF114,IF(AE114>=0,AE114,IF(AD114>=0,AD114,IF(AC114>=0,AC114,AB114)))))))) -> 11 | X114: =IF(I114="","",IF(A114="H",IF(OR(H114="SEN",H114<1995),VLOOKUP(I114,Feuil1!$A$11:$F$29,6),IF(AND(H114>1994,H114<1998),VLOOKUP(I114,Feuil1!$A$11:$F$29,5),IF(AND(H114>1997,H114<2000),VLOOKUP(I114,Feuil1!$A$11:$F$29,4),IF(AND(H114>1999,H114<2002),VLOOKUP(I114,Feuil1!$A$11:$F$29,3),VLOOKUP(I114,Feuil1!$A$11:$F$29,2))))),IF(OR(H114="SEN",H114<1995),VLOOKUP(I114,Feuil1!$G$11:$L$25,6),IF(AND(H114>1994,H114<1998),VLOOKUP(I114,Feuil1!$G$11:$L$25,5),IF(AND(H114>1997,H114<2000),VLOOKUP(I114,Feuil1!$G$11:$L$25,4),IF(AND(H114>1999,H114<2002),VLOOKUP(I114,Feuil1!$G$11:$L$25,3),VLOOKUP(I114,Feuil1!$G$11:$L$25,2))))))) -> FS69 | Y114: =IF(I114="","",IF(A114="H",10^(0.794358141*LOG(I114/174.393)^2)*T114,IF(A114="F",10^(0.89726074*LOG(I114/148.026)^2)*T114,""))) -> 183.68647 | AB114: =T114-HLOOKUP(X114,Feuil1!$C$1:$BL$10,2,FALSE) -> 66 | AC114: =T114-HLOOKUP(X114,Feuil1!$C$1:$BL$10,3,FALSE) -> 56 | AD114: =T114-HLOOKUP(X114,Feuil1!$C$1:$BL$10,4,FALSE) -> 41 | AE114: =T114-HLOOKUP(X114,Feuil1!$C$1:$BL$10,5,FALSE) -> 26 | AF114: =T114-HLOOKUP(X114,Feuil1!$C$1:$BL$10,6,FALSE) -> 11 | AG114: =T114-HLOOKUP(X114,Feuil1!$C$1:$BL$10,7,FALSE) -> -4 | AH114: =T114-HLOOKUP(X114,Feuil1!$C$1:$BL$10,8,FALSE) -> -24 | AI114: =T114-HLOOKUP(X114,Feuil1!$C$1:$BL$10,9,FALSE) -> -44 | AJ114: =T114-HLOOKUP(X114,Feuil1!$C$1:$BL$10,10,FALSE) -> -59 | AQ114: =IF(AJ114>=0,$AJ$4,IF(AI114>=0,$AI$4,IF(AH114>=0,$AH$4,IF(AG114>=0,$AG$4,IF(AF114>=0,$AF$4,IF(AE114>=0,$AE$4,IF(AD114>=0,$AD$4,IF(AC114>=0,$AC$4,$AB$4)))))))) -> FED +
A115: F | B115: NE | C115: CHA | D115: 3 | E115: 034517 | F115: CRISTOFOLI | G115: Adeline | H115: 1985 | I115: 68.6 | J115: Langres HM | K115: F | L115: 63 | M115: 66 | N115: -68 | O115: =IF(H115="","",IF(MAXA(L115:N115)<=0,0,MAXA(L115:N115))) -> 66 | P115: 73 | Q115: 76 | R115: 79 | S115: =IF(H115="","",IF(MAXA(P115:R115)<=0,0,MAXA(P115:R115))) -> 79 | T115: =IF(H115="","",IF(OR(O115=0,S115=0),0,O115+S115)) -> 145 | U115: 76.4 | V115: =IF(H115="","",AQ115) -> FED + | W115: =IF(AJ115>=0,AJ115,IF(AI115>=0,AI115,IF(AH115>=0,AH115,IF(AG115>=0,AG115,IF(AF115>=0,AF115,IF(AE115>=0,AE115,IF(AD115>=0,AD115,IF(AC115>=0,AC115,AB115)))))))) -> 10 | X115: =IF(I115="","",IF(A115="H",IF(OR(H115="SEN",H115<1995),VLOOKUP(I115,Feuil1!$A$11:$F$29,6),IF(AND(H115>1994,H115<1998),VLOOKUP(I115,Feuil1!$A$11:$F$29,5),IF(AND(H115>1997,H115<2000),VLOOKUP(I115,Feuil1!$A$11:$F$29,4),IF(AND(H115>1999,H115<2002),VLOOKUP(I115,Feuil1!$A$11:$F$29,3),VLOOKUP(I115,Feuil1!$A$11:$F$29,2))))),IF(OR(H115="SEN",H115<1995),VLOOKUP(I115,Feuil1!$G$11:$L$25,6),IF(AND(H115>1994,H115<1998),VLOOKUP(I115,Feuil1!$G$11:$L$25,5),IF(AND(H115>1997,H115<2000),VLOOKUP(I115,Feuil1!$G$11:$L$25,4),IF(AND(H115>1999,H115<2002),VLOOKUP(I115,Feuil1!$G$11:$L$25,3),VLOOKUP(I115,Feuil1!$G$11:$L$25,2))))))) -> FS69 | Y115: =IF(I115="","",IF(A115="H",10^(0.794358141*LOG(I115/174.393)^2)*T115,IF(A115="F",10^(0.89726074*LOG(I115/148.026)^2)*T115,""))) -> 182.5875434 | AB115: =T115-HLOOKUP(X115,Feuil1!$C$1:$BL$10,2,FALSE) -> 65 | AC115: =T115-HLOOKUP(X115,Feuil1!$C$1:$BL$10,3,FALSE) -> 55 | AD115: =T115-HLOOKUP(X115,Feuil1!$C$1:$BL$10,4,FALSE) -> 40 | AE115: =T115-HLOOKUP(X115,Feuil1!$C$1:$BL$10,5,FALSE) -> 25 | AF115: =T115-HLOOKUP(X115,Feuil1!$C$1:$BL$10,6,FALSE) -> 10 | AG115: =T115-HLOOKUP(X115,Feuil1!$C$1:$BL$10,7,FALSE) -> -5 | AH115: =T115-HLOOKUP(X115,Feuil1!$C$1:$BL$10,8,FALSE) -> -25 | AI115: =T115-HLOOKUP(X115,Feuil1!$C$1:$BL$10,9,FALSE) -> -45 | AJ115: =T115-HLOOKUP(X115,Feuil1!$C$1:$BL$10,10,FALSE) -> -60 | AQ115: =IF(AJ115>=0,$AJ$4,IF(AI115>=0,$AI$4,IF(AH115>=0,$AH$4,IF(AG115>=0,$AG$4,IF(AF115>=0,$AF$4,IF(AE115>=0,$AE$4,IF(AD115>=0,$AD$4,IF(AC115>=0,$AC$4,$AB$4)))))))) -> FED +
A116: F | B116: SEST | C116: CAZ | D116: 4 | E116: 230430 | F116: ATTIA | G116: Séverine | H116: 1991 | I116: 64.35 | J116: ASLDD. TOULON | K116: F | L116: 59 | M116: 62 | N116: -64 | O116: =IF(H116="","",IF(MAXA(L116:N116)<=0,0,MAXA(L116:N116))) -> 62 | P116: 70 | Q116: 73 | R116: -76 | S116: =IF(H116="","",IF(MAXA(P116:R116)<=0,0,MAXA(P116:R116))) -> 73 | T116: =IF(H116="","",IF(OR(O116=0,S116=0),0,O116+S116)) -> 135 | U116: 70.65 | V116: =IF(H116="","",AQ116) -> FED + | W116: =IF(AJ116>=0,AJ116,IF(AI116>=0,AI116,IF(AH116>=0,AH116,IF(AG116>=0,AG116,IF(AF116>=0,AF116,IF(AE116>=0,AE116,IF(AD116>=0,AD116,IF(AC116>=0,AC116,AB116)))))))) -> 0 | X116: =IF(I116="","",IF(A116="H",IF(OR(H116="SEN",H116<1995),VLOOKUP(I116,Feuil1!$A$11:$F$29,6),IF(AND(H116>1994,H116<1998),VLOOKUP(I116,Feuil1!$A$11:$F$29,5),IF(AND(H116>1997,H116<2000),VLOOKUP(I116,Feuil1!$A$11:$F$29,4),IF(AND(H116>1999,H116<2002),VLOOKUP(I116,Feuil1!$A$11:$F$29,3),VLOOKUP(I116,Feuil1!$A$11:$F$29,2))))),IF(OR(H116="SEN",H116<1995),VLOOKUP(I116,Feuil1!$G$11:$L$25,6),IF(AND(H116>1994,H116<1998),VLOOKUP(I116,Feuil1!$G$11:$L$25,5),IF(AND(H116>1997,H116<2000),VLOOKUP(I116,Feuil1!$G$11:$L$25,4),IF(AND(H116>1999,H116<2002),VLOOKUP(I116,Feuil1!$G$11:$L$25,3),VLOOKUP(I116,Feuil1!$G$11:$L$25,2))))))) -> FS69 | Y116: =IF(I116="","",IF(A116="H",10^(0.794358141*LOG(I116/174.393)^2)*T116,IF(A116="F",10^(0.89726074*LOG(I116/148.026)^2)*T116,""))) -> 176.9203009 | AB116: =T116-HLOOKUP(X116,Feuil1!$C$1:$BL$10,2,FALSE) -> 55 | AC116: =T116-HLOOKUP(X116,Feuil1!$C$1:$BL$10,3,FALSE) -> 45 | AD116: =T116-HLOOKUP(X116,Feuil1!$C$1:$BL$10,4,FALSE) -> 30 | AE116: =T116-HLOOKUP(X116,Feuil1!$C$1:$BL$10,5,FALSE) -> 15 | AF116: =T116-HLOOKUP(X116,Feuil1!$C$1:$BL$10,6,FALSE) -> 0 | AG116: =T116-HLOOKUP(X116,Feuil1!$C$1:$BL$10,7,FALSE) -> -15 | AH116: =T116-HLOOKUP(X116,Feuil1!$C$1:$BL$10,8,FALSE) -> -35 | AI116: =T116-HLOOKUP(X116,Feuil1!$C$1:$BL$10,9,FALSE) -> -55 | AJ116: =T116-HLOOKUP(X116,Feuil1!$C$1:$BL$10,10,FALSE) -> -70 | AQ116: =IF(AJ116>=0,$AJ$4,IF(AI116>=0,$AI$4,IF(AH116>=0,$AH$4,IF(AG116>=0,$AG$4,IF(AF116>=0,$AF$4,IF(AE116>=0,$AE$4,IF(AD116>=0,$AD$4,IF(AC116>=0,$AC$4,$AB$4)))))))) -> FED +
A117: F | B117: NE | C117: ALS | D117: 5 | E117: 20829 | F117: THOMAS | G117: Evelyne | H117: 1979 | I117: 69 | J117: ASPTT Strasbourg | K117: F | L117: 52 | M117: 54 | N117: 56 | O117: =IF(H117="","",IF(MAXA(L117:N117)<=0,0,MAXA(L117:N117))) -> 56 | P117: 64 | Q117: 67 | R117: 70 | S117: =IF(H117="","",IF(MAXA(P117:R117)<=0,0,MAXA(P117:R117))) -> 70 | T117: =IF(H117="","",IF(OR(O117=0,S117=0),0,O117+S117)) -> 126 | U117: 57 | V117: =IF(H117="","",AQ117) -> IRG + | W117: =IF(AJ117>=0,AJ117,IF(AI117>=0,AI117,IF(AH117>=0,AH117,IF(AG117>=0,AG117,IF(AF117>=0,AF117,IF(AE117>=0,AE117,IF(AD117>=0,AD117,IF(AC117>=0,AC117,AB117)))))))) -> 6 | X117: =IF(I117="","",IF(A117="H",IF(OR(H117="SEN",H117<1995),VLOOKUP(I117,Feuil1!$A$11:$F$29,6),IF(AND(H117>1994,H117<1998),VLOOKUP(I117,Feuil1!$A$11:$F$29,5),IF(AND(H117>1997,H117<2000),VLOOKUP(I117,Feuil1!$A$11:$F$29,4),IF(AND(H117>1999,H117<2002),VLOOKUP(I117,Feuil1!$A$11:$F$29,3),VLOOKUP(I117,Feuil1!$A$11:$F$29,2))))),IF(OR(H117="SEN",H117<1995),VLOOKUP(I117,Feuil1!$G$11:$L$25,6),IF(AND(H117>1994,H117<1998),VLOOKUP(I117,Feuil1!$G$11:$L$25,5),IF(AND(H117>1997,H117<2000),VLOOKUP(I117,Feuil1!$G$11:$L$25,4),IF(AND(H117>1999,H117<2002),VLOOKUP(I117,Feuil1!$G$11:$L$25,3),VLOOKUP(I117,Feuil1!$G$11:$L$25,2))))))) -> FS69 | Y117: =IF(I117="","",IF(A117="H",10^(0.794358141*LOG(I117/174.393)^2)*T117,IF(A117="F",10^(0.89726074*LOG(I117/148.026)^2)*T117,""))) -> 158.1124074 | AB117: =T117-HLOOKUP(X117,Feuil1!$C$1:$BL$10,2,FALSE) -> 46 | AC117: =T117-HLOOKUP(X117,Feuil1!$C$1:$BL$10,3,FALSE) -> 36 | AD117: =T117-HLOOKUP(X117,Feuil1!$C$1:$BL$10,4,FALSE) -> 21 | AE117: =T117-HLOOKUP(X117,Feuil1!$C$1:$BL$10,5,FALSE) -> 6 | AF117: =T117-HLOOKUP(X117,Feuil1!$C$1:$BL$10,6,FALSE) -> -9 | AG117: =T117-HLOOKUP(X117,Feuil1!$C$1:$BL$10,7,FALSE) -> -24 | AH117: =T117-HLOOKUP(X117,Feuil1!$C$1:$BL$10,8,FALSE) -> -44 | AI117: =T117-HLOOKUP(X117,Feuil1!$C$1:$BL$10,9,FALSE) -> -64 | AJ117: =T117-HLOOKUP(X117,Feuil1!$C$1:$BL$10,10,FALSE) -> -79 | AQ117: =IF(AJ117>=0,$AJ$4,IF(AI117>=0,$AI$4,IF(AH117>=0,$AH$4,IF(AG117>=0,$AG$4,IF(AF117>=0,$AF$4,IF(AE117>=0,$AE$4,IF(AD117>=0,$AD$4,IF(AC117>=0,$AC$4,$AB$4)))))))) -> IRG +
AB118: =T118-HLOOKUP(X118,Feuil1!$C$1:$BL$10,2,FALSE) ->  | AC118: =T118-HLOOKUP(X118,Feuil1!$C$1:$BL$10,3,FALSE) ->  | AD118: =T118-HLOOKUP(X118,Feuil1!$C$1:$BL$10,4,FALSE) ->  | AE118: =T118-HLOOKUP(X118,Feuil1!$C$1:$BL$10,5,FALSE) ->  | AF118: =T118-HLOOKUP(X118,Feuil1!$C$1:$BL$10,6,FALSE) ->  | AG118: =T118-HLOOKUP(X118,Feuil1!$C$1:$BL$10,7,FALSE) ->  | AH118: =T118-HLOOKUP(X118,Feuil1!$C$1:$BL$10,8,FALSE) ->  | AI118: =T118-HLOOKUP(X118,Feuil1!$C$1:$BL$10,9,FALSE) ->  | AJ118: =T118-HLOOKUP(X118,Feuil1!$C$1:$BL$10,10,FALSE) -> 
A119: F | B119: NE | C119: ALS | D119: 1 | E119: 176279 | F119: ZAHNER | G119: Salome | H119: 1993 | I119: 70.7 | J119: SAS Colmarienne | K119: F | L119: 70 | M119: 73 | N119: -75 | O119: =IF(H119="","",IF(MAXA(L119:N119)<=0,0,MAXA(L119:N119))) -> 73 | P119: 80 | Q119: 87 | R119: -90 | S119: =IF(H119="","",IF(MAXA(P119:R119)<=0,0,MAXA(P119:R119))) -> 87 | T119: =IF(H119="","",IF(OR(O119=0,S119=0),0,O119+S119)) -> 160 | U119: 89.3 | V119: =IF(H119="","",AQ119) -> NAT + | W119: =IF(AJ119>=0,AJ119,IF(AI119>=0,AI119,IF(AH119>=0,AH119,IF(AG119>=0,AG119,IF(AF119>=0,AF119,IF(AE119>=0,AE119,IF(AD119>=0,AD119,IF(AC119>=0,AC119,AB119)))))))) -> 0 | X119: =IF(I119="","",IF(A119="H",IF(OR(H119="SEN",H119<1995),VLOOKUP(I119,Feuil1!$A$11:$F$29,6),IF(AND(H119>1994,H119<1998),VLOOKUP(I119,Feuil1!$A$11:$F$29,5),IF(AND(H119>1997,H119<2000),VLOOKUP(I119,Feuil1!$A$11:$F$29,4),IF(AND(H119>1999,H119<2002),VLOOKUP(I119,Feuil1!$A$11:$F$29,3),VLOOKUP(I119,Feuil1!$A$11:$F$29,2))))),IF(OR(H119="SEN",H119<1995),VLOOKUP(I119,Feuil1!$G$11:$L$25,6),IF(AND(H119>1994,H119<1998),VLOOKUP(I119,Feuil1!$G$11:$L$25,5),IF(AND(H119>1997,H119<2000),VLOOKUP(I119,Feuil1!$G$11:$L$25,4),IF(AND(H119>1999,H119<2002),VLOOKUP(I119,Feuil1!$G$11:$L$25,3),VLOOKUP(I119,Feuil1!$G$11:$L$25,2))))))) -> FS75 | Y119: =IF(I119="","",IF(A119="H",10^(0.794358141*LOG(I119/174.393)^2)*T119,IF(A119="F",10^(0.89726074*LOG(I119/148.026)^2)*T119,""))) -> 197.9373433 | AB119: =T119-HLOOKUP(X119,Feuil1!$C$1:$BL$10,2,FALSE) -> 65 | AC119: =T119-HLOOKUP(X119,Feuil1!$C$1:$BL$10,3,FALSE) -> 55 | AD119: =T119-HLOOKUP(X119,Feuil1!$C$1:$BL$10,4,FALSE) -> 45 | AE119: =T119-HLOOKUP(X119,Feuil1!$C$1:$BL$10,5,FALSE) -> 30 | AF119: =T119-HLOOKUP(X119,Feuil1!$C$1:$BL$10,6,FALSE) -> 15 | AG119: =T119-HLOOKUP(X119,Feuil1!$C$1:$BL$10,7,FALSE) -> 0 | AH119: =T119-HLOOKUP(X119,Feuil1!$C$1:$BL$10,8,FALSE) -> -20 | AI119: =T119-HLOOKUP(X119,Feuil1!$C$1:$BL$10,9,FALSE) -> -35 | AJ119: =T119-HLOOKUP(X119,Feuil1!$C$1:$BL$10,10,FALSE) -> -50 | AQ119: =IF(AJ119>=0,$AJ$4,IF(AI119>=0,$AI$4,IF(AH119>=0,$AH$4,IF(AG119>=0,$AG$4,IF(AF119>=0,$AF$4,IF(AE119>=0,$AE$4,IF(AD119>=0,$AD$4,IF(AC119>=0,$AC$4,$AB$4)))))))) -> NAT +
AB120: =T120-HLOOKUP(X120,Feuil1!$C$1:$BL$10,2,FALSE) ->  | AC120: =T120-HLOOKUP(X120,Feuil1!$C$1:$BL$10,3,FALSE) ->  | AD120: =T120-HLOOKUP(X120,Feuil1!$C$1:$BL$10,4,FALSE) ->  | AE120: =T120-HLOOKUP(X120,Feuil1!$C$1:$BL$10,5,FALSE) ->  | AF120: =T120-HLOOKUP(X120,Feuil1!$C$1:$BL$10,6,FALSE) ->  | AG120: =T120-HLOOKUP(X120,Feuil1!$C$1:$BL$10,7,FALSE) ->  | AH120: =T120-HLOOKUP(X120,Feuil1!$C$1:$BL$10,8,FALSE) ->  | AI120: =T120-HLOOKUP(X120,Feuil1!$C$1:$BL$10,9,FALSE) ->  | AJ120: =T120-HLOOKUP(X120,Feuil1!$C$1:$BL$10,10,FALSE) -> 
A121: F | B121: NE | C121: BOU | D121: 1 | E121: 378763 | F121: MIYENGA | G121: Hélène | H121: 1984 | I121: 81.3 | J121: Stade Dijonnais HM | K121: Cam | L121: 70 | M121: 75 | N121: 78 | O121: =IF(H121="","",IF(MAXA(L121:N121)<=0,0,MAXA(L121:N121))) -> 78 | P121: 92 | Q121: 98 | R121: 103 | S121: =IF(H121="","",IF(MAXA(P121:R121)<=0,0,MAXA(P121:R121))) -> 103 | T121: =IF(H121="","",IF(OR(O121=0,S121=0),0,O121+S121)) -> 181 | U121: 99.7 | V121: =IF(H121="","",AQ121) -> NAT + | W121: =IF(AJ121>=0,AJ121,IF(AI121>=0,AI121,IF(AH121>=0,AH121,IF(AG121>=0,AG121,IF(AF121>=0,AF121,IF(AE121>=0,AE121,IF(AD121>=0,AD121,IF(AC121>=0,AC121,AB121)))))))) -> 11 | X121: =IF(I121="","",IF(A121="H",IF(OR(H121="SEN",H121<1995),VLOOKUP(I121,Feuil1!$A$11:$F$29,6),IF(AND(H121>1994,H121<1998),VLOOKUP(I121,Feuil1!$A$11:$F$29,5),IF(AND(H121>1997,H121<2000),VLOOKUP(I121,Feuil1!$A$11:$F$29,4),IF(AND(H121>1999,H121<2002),VLOOKUP(I121,Feuil1!$A$11:$F$29,3),VLOOKUP(I121,Feuil1!$A$11:$F$29,2))))),IF(OR(H121="SEN",H121<1995),VLOOKUP(I121,Feuil1!$G$11:$L$25,6),IF(AND(H121>1994,H121<1998),VLOOKUP(I121,Feuil1!$G$11:$L$25,5),IF(AND(H121>1997,H121<2000),VLOOKUP(I121,Feuil1!$G$11:$L$25,4),IF(AND(H121>1999,H121<2002),VLOOKUP(I121,Feuil1!$G$11:$L$25,3),VLOOKUP(I121,Feuil1!$G$11:$L$25,2))))))) -> FS+75 | Y121: =IF(I121="","",IF(A121="H",10^(0.794358141*LOG(I121/174.393)^2)*T121,IF(A121="F",10^(0.89726074*LOG(I121/148.026)^2)*T121,""))) -> 208.1847502 | AB121: =T121-HLOOKUP(X121,Feuil1!$C$1:$BL$10,2,FALSE) -> 81 | AC121: =T121-HLOOKUP(X121,Feuil1!$C$1:$BL$10,3,FALSE) -> 71 | AD121: =T121-HLOOKUP(X121,Feuil1!$C$1:$BL$10,4,FALSE) -> 56 | AE121: =T121-HLOOKUP(X121,Feuil1!$C$1:$BL$10,5,FALSE) -> 41 | AF121: =T121-HLOOKUP(X121,Feuil1!$C$1:$BL$10,6,FALSE) -> 31 | AG121: =T121-HLOOKUP(X121,Feuil1!$C$1:$BL$10,7,FALSE) -> 11 | AH121: =T121-HLOOKUP(X121,Feuil1!$C$1:$BL$10,8,FALSE) -> -9 | AI121: =T121-HLOOKUP(X121,Feuil1!$C$1:$BL$10,9,FALSE) -> -29 | AJ121: =T121-HLOOKUP(X121,Feuil1!$C$1:$BL$10,10,FALSE) -> -44 | AQ121: =IF(AJ121>=0,$AJ$4,IF(AI121>=0,$AI$4,IF(AH121>=0,$AH$4,IF(AG121>=0,$AG$4,IF(AF121>=0,$AF$4,IF(AE121>=0,$AE$4,IF(AD121>=0,$AD$4,IF(AC121>=0,$AC$4,$AB$4)))))))) -> NAT +
A122: F | B122: NE | C122: BOU | D122: 2 | E122: 357580 | F122: ELUARD | G122: Judith | H122: 1983 | I122: 83.1 | J122: Stade Dijonnais HM | K122: F | L122: 58 | M122: 61 | N122: 63 | O122: =IF(H122="","",IF(MAXA(L122:N122)<=0,0,MAXA(L122:N122))) -> 63 | P122: 87 | Q122: 92 | R122: - | S122: =IF(H122="","",IF(MAXA(P122:R122)<=0,0,MAXA(P122:R122))) -> 92 | T122: =IF(H122="","",IF(OR(O122=0,S122=0),0,O122+S122)) -> 155 | U122: 71.9 | V122: =IF(H122="","",AQ122) -> FED + | W122: =IF(AJ122>=0,AJ122,IF(AI122>=0,AI122,IF(AH122>=0,AH122,IF(AG122>=0,AG122,IF(AF122>=0,AF122,IF(AE122>=0,AE122,IF(AD122>=0,AD122,IF(AC122>=0,AC122,AB122)))))))) -> 5 | X122: =IF(I122="","",IF(A122="H",IF(OR(H122="SEN",H122<1995),VLOOKUP(I122,Feuil1!$A$11:$F$29,6),IF(AND(H122>1994,H122<1998),VLOOKUP(I122,Feuil1!$A$11:$F$29,5),IF(AND(H122>1997,H122<2000),VLOOKUP(I122,Feuil1!$A$11:$F$29,4),IF(AND(H122>1999,H122<2002),VLOOKUP(I122,Feuil1!$A$11:$F$29,3),VLOOKUP(I122,Feuil1!$A$11:$F$29,2))))),IF(OR(H122="SEN",H122<1995),VLOOKUP(I122,Feuil1!$G$11:$L$25,6),IF(AND(H122>1994,H122<1998),VLOOKUP(I122,Feuil1!$G$11:$L$25,5),IF(AND(H122>1997,H122<2000),VLOOKUP(I122,Feuil1!$G$11:$L$25,4),IF(AND(H122>1999,H122<2002),VLOOKUP(I122,Feuil1!$G$11:$L$25,3),VLOOKUP(I122,Feuil1!$G$11:$L$25,2))))))) -> FS+75 | Y122: =IF(I122="","",IF(A122="H",10^(0.794358141*LOG(I122/174.393)^2)*T122,IF(A122="F",10^(0.89726074*LOG(I122/148.026)^2)*T122,""))) -> 176.4987416 | AB122: =T122-HLOOKUP(X122,Feuil1!$C$1:$BL$10,2,FALSE) -> 55 | AC122: =T122-HLOOKUP(X122,Feuil1!$C$1:$BL$10,3,FALSE) -> 45 | AD122: =T122-HLOOKUP(X122,Feuil1!$C$1:$BL$10,4,FALSE) -> 30 | AE122: =T122-HLOOKUP(X122,Feuil1!$C$1:$BL$10,5,FALSE) -> 15 | AF122: =T122-HLOOKUP(X122,Feuil1!$C$1:$BL$10,6,FALSE) -> 5 | AG122: =T122-HLOOKUP(X122,Feuil1!$C$1:$BL$10,7,FALSE) -> -15 | AH122: =T122-HLOOKUP(X122,Feuil1!$C$1:$BL$10,8,FALSE) -> -35 | AI122: =T122-HLOOKUP(X122,Feuil1!$C$1:$BL$10,9,FALSE) -> -55 | AJ122: =T122-HLOOKUP(X122,Feuil1!$C$1:$BL$10,10,FALSE) -> -70 | AQ122: =IF(AJ122>=0,$AJ$4,IF(AI122>=0,$AI$4,IF(AH122>=0,$AH$4,IF(AG122>=0,$AG$4,IF(AF122>=0,$AF$4,IF(AE122>=0,$AE$4,IF(AD122>=0,$AD$4,IF(AC122>=0,$AC$4,$AB$4)))))))) -> FED +
A123: F | B123: NE | C123: ALS | D123: 3 | E123: 134752 | F123: CHRISTNACHER | G123: Adeline | H123: 1992 | I123: 78.9 | J123: ASPTT Strasbourg | K123: F | L123: 64 | M123: 67 | N123: -69 | O123: =IF(H123="","",IF(MAXA(L123:N123)<=0,0,MAXA(L123:N123))) -> 67 | P123: 80 | Q123: 83 | R123: 86 | S123: =IF(H123="","",IF(MAXA(P123:R123)<=0,0,MAXA(P123:R123))) -> 86 | T123: =IF(H123="","",IF(OR(O123=0,S123=0),0,O123+S123)) -> 153 | U123: 74.1 | V123: =IF(H123="","",AQ123) -> FED + | W123: =IF(AJ123>=0,AJ123,IF(AI123>=0,AI123,IF(AH123>=0,AH123,IF(AG123>=0,AG123,IF(AF123>=0,AF123,IF(AE123>=0,AE123,IF(AD123>=0,AD123,IF(AC123>=0,AC123,AB123)))))))) -> 3 | X123: =IF(I123="","",IF(A123="H",IF(OR(H123="SEN",H123<1995),VLOOKUP(I123,Feuil1!$A$11:$F$29,6),IF(AND(H123>1994,H123<1998),VLOOKUP(I123,Feuil1!$A$11:$F$29,5),IF(AND(H123>1997,H123<2000),VLOOKUP(I123,Feuil1!$A$11:$F$29,4),IF(AND(H123>1999,H123<2002),VLOOKUP(I123,Feuil1!$A$11:$F$29,3),VLOOKUP(I123,Feuil1!$A$11:$F$29,2))))),IF(OR(H123="SEN",H123<1995),VLOOKUP(I123,Feuil1!$G$11:$L$25,6),IF(AND(H123>1994,H123<1998),VLOOKUP(I123,Feuil1!$G$11:$L$25,5),IF(AND(H123>1997,H123<2000),VLOOKUP(I123,Feuil1!$G$11:$L$25,4),IF(AND(H123>1999,H123<2002),VLOOKUP(I123,Feuil1!$G$11:$L$25,3),VLOOKUP(I123,Feuil1!$G$11:$L$25,2))))))) -> FS+75 | Y123: =IF(I123="","",IF(A123="H",10^(0.794358141*LOG(I123/174.393)^2)*T123,IF(A123="F",10^(0.89726074*LOG(I123/148.026)^2)*T123,""))) -> 178.5218188 | AB123: =T123-HLOOKUP(X123,Feuil1!$C$1:$BL$10,2,FALSE) -> 53 | AC123: =T123-HLOOKUP(X123,Feuil1!$C$1:$BL$10,3,FALSE) -> 43 | AD123: =T123-HLOOKUP(X123,Feuil1!$C$1:$BL$10,4,FALSE) -> 28 | AE123: =T123-HLOOKUP(X123,Feuil1!$C$1:$BL$10,5,FALSE) -> 13 | AF123: =T123-HLOOKUP(X123,Feuil1!$C$1:$BL$10,6,FALSE) -> 3 | AG123: =T123-HLOOKUP(X123,Feuil1!$C$1:$BL$10,7,FALSE) -> -17 | AH123: =T123-HLOOKUP(X123,Feuil1!$C$1:$BL$10,8,FALSE) -> -37 | AI123: =T123-HLOOKUP(X123,Feuil1!$C$1:$BL$10,9,FALSE) -> -57 | AJ123: =T123-HLOOKUP(X123,Feuil1!$C$1:$BL$10,10,FALSE) -> -72 | AQ123: =IF(AJ123>=0,$AJ$4,IF(AI123>=0,$AI$4,IF(AH123>=0,$AH$4,IF(AG123>=0,$AG$4,IF(AF123>=0,$AF$4,IF(AE123>=0,$AE$4,IF(AD123>=0,$AD$4,IF(AC123>=0,$AC$4,$AB$4)))))))) -> FED +
A124: F | B124: Nord | C124: IDF | D124: 4 | E124: 45169 | F124: DRENO | G124: Eva | H124: 1985 | I124: 79.74 | J124: CHM Chaville | K124: F | L124: 58 | M124: 62 | N124: 65 | O124: =IF(H124="","",IF(MAXA(L124:N124)<=0,0,MAXA(L124:N124))) -> 65 | P124: 75 | Q124: 80 | R124: 85 | S124: =IF(H124="","",IF(MAXA(P124:R124)<=0,0,MAXA(P124:R124))) -> 85 | T124: =IF(H124="","",IF(OR(O124=0,S124=0),0,O124+S124)) -> 150 | U124: 70.26 | V124: =IF(H124="","",AQ124) -> FED + | W124: =IF(AJ124>=0,AJ124,IF(AI124>=0,AI124,IF(AH124>=0,AH124,IF(AG124>=0,AG124,IF(AF124>=0,AF124,IF(AE124>=0,AE124,IF(AD124>=0,AD124,IF(AC124>=0,AC124,AB124)))))))) -> 0 | X124: =IF(I124="","",IF(A124="H",IF(OR(H124="SEN",H124<1995),VLOOKUP(I124,Feuil1!$A$11:$F$29,6),IF(AND(H124>1994,H124<1998),VLOOKUP(I124,Feuil1!$A$11:$F$29,5),IF(AND(H124>1997,H124<2000),VLOOKUP(I124,Feuil1!$A$11:$F$29,4),IF(AND(H124>1999,H124<2002),VLOOKUP(I124,Feuil1!$A$11:$F$29,3),VLOOKUP(I124,Feuil1!$A$11:$F$29,2))))),IF(OR(H124="SEN",H124<1995),VLOOKUP(I124,Feuil1!$G$11:$L$25,6),IF(AND(H124>1994,H124<1998),VLOOKUP(I124,Feuil1!$G$11:$L$25,5),IF(AND(H124>1997,H124<2000),VLOOKUP(I124,Feuil1!$G$11:$L$25,4),IF(AND(H124>1999,H124<2002),VLOOKUP(I124,Feuil1!$G$11:$L$25,3),VLOOKUP(I124,Feuil1!$G$11:$L$25,2))))))) -> FS+75 | Y124: =IF(I124="","",IF(A124="H",10^(0.794358141*LOG(I124/174.393)^2)*T124,IF(A124="F",10^(0.89726074*LOG(I124/148.026)^2)*T124,""))) -> 174.1224522 | AB124: =T124-HLOOKUP(X124,Feuil1!$C$1:$BL$10,2,FALSE) -> 50 | AC124: =T124-HLOOKUP(X124,Feuil1!$C$1:$BL$10,3,FALSE) -> 40 | AD124: =T124-HLOOKUP(X124,Feuil1!$C$1:$BL$10,4,FALSE) -> 25 | AE124: =T124-HLOOKUP(X124,Feuil1!$C$1:$BL$10,5,FALSE) -> 10 | AF124: =T124-HLOOKUP(X124,Feuil1!$C$1:$BL$10,6,FALSE) -> 0 | AG124: =T124-HLOOKUP(X124,Feuil1!$C$1:$BL$10,7,FALSE) -> -20 | AH124: =T124-HLOOKUP(X124,Feuil1!$C$1:$BL$10,8,FALSE) -> -40 | AI124: =T124-HLOOKUP(X124,Feuil1!$C$1:$BL$10,9,FALSE) -> -60 | AJ124: =T124-HLOOKUP(X124,Feuil1!$C$1:$BL$10,10,FALSE) -> -75 | AQ124: =IF(AJ124>=0,$AJ$4,IF(AI124>=0,$AI$4,IF(AH124>=0,$AH$4,IF(AG124>=0,$AG$4,IF(AF124>=0,$AF$4,IF(AE124>=0,$AE$4,IF(AD124>=0,$AD$4,IF(AC124>=0,$AC$4,$AB$4)))))))) -> FED +
AB125: =T125-HLOOKUP(X125,Feuil1!$C$1:$BL$10,2,FALSE) ->  | AC125: =T125-HLOOKUP(X125,Feuil1!$C$1:$BL$10,3,FALSE) ->  | AD125: =T125-HLOOKUP(X125,Feuil1!$C$1:$BL$10,4,FALSE) ->  | AE125: =T125-HLOOKUP(X125,Feuil1!$C$1:$BL$10,5,FALSE) ->  | AF125: =T125-HLOOKUP(X125,Feuil1!$C$1:$BL$10,6,FALSE) ->  | AG125: =T125-HLOOKUP(X125,Feuil1!$C$1:$BL$10,7,FALSE) ->  | AH125: =T125-HLOOKUP(X125,Feuil1!$C$1:$BL$10,8,FALSE) ->  | AI125: =T125-HLOOKUP(X125,Feuil1!$C$1:$BL$10,9,FALSE) ->  | AJ125: =T125-HLOOKUP(X125,Feuil1!$C$1:$BL$10,10,FALSE) -> 
AB126: =T126-HLOOKUP(X126,Feuil1!$C$1:$BL$10,2,FALSE) ->  | AC126: =T126-HLOOKUP(X126,Feuil1!$C$1:$BL$10,3,FALSE) ->  | AD126: =T126-HLOOKUP(X126,Feuil1!$C$1:$BL$10,4,FALSE) ->  | AE126: =T126-HLOOKUP(X126,Feuil1!$C$1:$BL$10,5,FALSE) ->  | AF126: =T126-HLOOKUP(X126,Feuil1!$C$1:$BL$10,6,FALSE) ->  | AG126: =T126-HLOOKUP(X126,Feuil1!$C$1:$BL$10,7,FALSE) ->  | AH126: =T126-HLOOKUP(X126,Feuil1!$C$1:$BL$10,8,FALSE) ->  | AI126: =T126-HLOOKUP(X126,Feuil1!$C$1:$BL$10,9,FALSE) ->  | AJ126: =T126-HLOOKUP(X126,Feuil1!$C$1:$BL$10,10,FALSE) ->  | AQ126: =IF(AJ126>=0,$AJ$4,IF(AI126>=0,$AI$4,IF(AH126>=0,$AH$4,IF(AG126>=0,$AG$4,IF(AF126>=0,$AF$4,IF(AE126>=0,$AE$4,IF(AD126>=0,$AD$4,IF(AC126>=0,$AC$4,$AB$4)))))))) -> 
AB625: J77 | AC625: J85 | AD625: J94 | AE625: J105 | AF625: J+105 | AH625: J56 | AI625: J62 | AJ625: J69 | AK625: J77 | AL625: J85 | AM625: J94 | AN625: J105 | AO625: J+105 | AQ625: S56 | AR625: S62 | AS625: S69 | AT625: S77 | AU625: S85 | AV625: S94 | AW625: S105 | AX625: S+105
AB626: 145 | AC626: 160 | AD626: 170 | AE626: 180 | AF626: 190 | AH626: 100 | AI626: 115 | AJ626: 130 | AK626: 145 | AL626: 160 | AM626: 170 | AN626: 180 | AO626: 190 | AQ626: 115 | AR626: 135 | AS626: 150 | AT626: 165 | AU626: 180 | AV626: 190 | AW626: 200 | AX626: 210
AB627: 165 | AC627: 180 | AD627: 190 | AE627: 200 | AF627: 210 | AH627: 115 | AI627: 135 | AJ627: 150 | AK627: 165 | AL627: 180 | AM627: 190 | AN627: 200 | AO627: 210 | AQ627: 130 | AR627: 150 | AS627: 165 | AT627: 185 | AU627: 200 | AV627: 210 | AW627: 220 | AX627: 230
AB628: 185 | AC628: 200 | AD628: 210 | AE628: 220 | AF628: 230 | AH628: 130 | AI628: 150 | AJ628: 165 | AK628: 185 | AL628: 200 | AM628: 210 | AN628: 220 | AO628: 230 | AQ628: 145 | AR628: 165 | AS628: 180 | AT628: 200 | AU628: 220 | AV628: 230 | AW628: 240 | AX628: 250
AB629: 200 | AC629: 220 | AD629: 230 | AE629: 240 | AF629: 250 | AH629: 145 | AI629: 165 | AJ629: 180 | AK629: 200 | AL629: 220 | AM629: 230 | AN629: 240 | AO629: 250 | AQ629: 175 | AR629: 195 | AS629: 215 | AT629: 235 | AU629: 250 | AV629: 260 | AW629: 275 | AX629: 280
AB630: 235 | AC630: 250 | AD630: 260 | AE630: 275 | AF630: 280 | AH630: 175 | AI630: 195 | AJ630: 215 | AK630: 235 | AL630: 250 | AM630: 260 | AN630: 275 | AO630: 280 | AQ630: 210 | AR630: 230 | AS630: 250 | AT630: 270 | AU630: 290 | AV630: 300 | AW630: 310 | AX630: 325
AB631: 270 | AC631: 290 | AD631: 300 | AE631: 310 | AF631: 325 | AH631: 210 | AI631: 230 | AJ631: 250 | AK631: 270 | AL631: 290 | AM631: 300 | AN631: 310 | AO631: 325 | AQ631: 230 | AR631: 255 | AS631: 275 | AT631: 300 | AU631: 315 | AV631: 335 | AW631: 345 | AX631: 355
AB632: 320 | AC632: 335 | AD632: 355 | AE632: 370 | AF632: 380 | AH632: 245 | AI632: 270 | AJ632: 295 | AK632: 320 | AL632: 335 | AM632: 355 | AN632: 370 | AO632: 380 | AQ632: 245 | AR632: 270 | AS632: 295 | AT632: 320 | AU632: 335 | AV632: 355 | AW632: 370 | AX632: 380

Sheet CADETS JUNIORS
F1: EPREUVE : | G1: CHAMPIONNAT INTERREGIONAL D'AUTOMNE | Q1: DATE : | S1: 2014-11-15
G2: CLASSEMENT NATIONAL des ZONES
A4: SEXE | B4: ZONE | C4: REG. | D4: CL. | E4: LICENCE | F4: NOMS | G4: Prénoms | H4: AN | I4: POIDS | J4: CLUB | K4: NAT | L4: 1 | M4: 2 | N4: 3 | O4: ARR | P4: 1 | Q4: 2 | R4: 3 | S4: EP-J | T4: Total | U4: Points | V4: SERIE | X4: Catég | Y4: IWF | AB4: DEB | AC4: DEP + | AD4: REG + | AE4: IRG + | AF4: FED + | AG4: NAT + | AH4: INTB + | AI4: INTA + | AJ4: OLY +
F5: U15
A6: H | B6: NE | C6: CHA | D6: 1 | E6: 357535 | F6: CATTEAU | G6: Jimmy | H6: 2000 | I6: 42.5 | J6: Reims HM | K6: F | L6: 37 | M6: 40 | N6: -42 | O6: =IF(H6="","",IF(MAXA(L6:N6)<=0,0,MAXA(L6:N6))) -> 40 | P6: 47 | Q6: 50 | R6: 52 | S6: =IF(H6="","",IF(MAXA(P6:R6)<=0,0,MAXA(P6:R6))) -> 52 | T6: =IF(H6="","",IF(OR(O6=0,S6=0),0,O6+S6)) -> 92 | U6: =T6-I6*2 -> 7 | V6: =IF(H6="","",AQ6) -> FED + | W6: =IF(AJ6>=0,AJ6,IF(AI6>=0,AI6,IF(AH6>=0,AH6,IF(AG6>=0,AG6,IF(AF6>=0,AF6,IF(AE6>=0,AE6,IF(AD6>=0,AD6,IF(AC6>=0,AC6,AB6)))))))) -> 2 | X6: =IF(I6="","",IF(A6="H",IF(OR(H6="SEN",H6<1995),VLOOKUP(I6,Feuil1!$A$11:$F$29,6),IF(AND(H6>1994,H6<1998),VLOOKUP(I6,Feuil1!$A$11:$F$29,5),IF(AND(H6>1997,H6<2000),VLOOKUP(I6,Feuil1!$A$11:$F$29,4),IF(AND(H6>1999,H6<2002),VLOOKUP(I6,Feuil1!$A$11:$F$29,3),VLOOKUP(I6,Feuil1!$A$11:$F$29,2))))),IF(OR(H6="SEN",H6<1995),VLOOKUP(I6,Feuil1!$G$11:$L$25,6),IF(AND(H6>1994,H6<1998),VLOOKUP(I6,Feuil1!$G$11:$L$25,5),IF(AND(H6>1997,H6<2000),VLOOKUP(I6,Feuil1!$G$11:$L$25,4),IF(AND(H6>1999,H6<2002),VLOOKUP(I6,Feuil1!$G$11:$L$25,3),VLOOKUP(I6,Feuil1!$G$11:$L$25,2))))))) -> C1 45 | Y6: =IF(I6="","",IF(A6="H",10^(0.794358141*LOG(I6/174.393)^2)*T6,IF(A6="F",10^(0.89726074*LOG(I6/148.026)^2)*T6,""))) -> 182.9866753 | AB6: =T6-HLOOKUP(X6,Feuil1!$C$1:$BL$10,2,FALSE) -> 57 | AC6: =T6-HLOOKUP(X6,Feuil1!$C$1:$BL$10,3,FALSE) -> 42 | AD6: =T6-HLOOKUP(X6,Feuil1!$C$1:$BL$10,4,FALSE) -> 32 | AE6: =T6-HLOOKUP(X6,Feuil1!$C$1:$BL$10,5,FALSE) -> 17 | AF6: =T6-HLOOKUP(X6,Feuil1!$C$1:$BL$10,6,FALSE) -> 2 | AG6: =T6-HLOOKUP(X6,Feuil1!$C$1:$BL$10,7,FALSE) -> -13 | AH6: =T6-HLOOKUP(X6,Feuil1!$C$1:$BL$10,8,FALSE) -> -23 | AI6: =T6-HLOOKUP(X6,Feuil1!$C$1:$BL$10,9,FALSE) -> -38 | AJ6: =T6-HLOOKUP(X6,Feuil1!$C$1:$BL$10,10,FALSE) -> -908 | AQ6: =IF(AJ6>=0,$AJ$4,IF(AI6>=0,$AI$4,IF(AH6>=0,$AH$4,IF(AG6>=0,$AG$4,IF(AF6>=0,$AF$4,IF(AE6>=0,$AE$4,IF(AD6>=0,$AD$4,IF(AC6>=0,$AC$4,$AB$4)))))))) -> FED +
A7: H | B7: NE | C7: BOU | D7: 2 | E7: 329944 | F7: AMADOU | G7: Alexis | H7: 2001 | I7: 36.2 | J7: HC Avallon | K7: F | L7: 30 | M7: 33 | N7: 35 | O7: 35 | P7: 47 | Q7: 51 | R7: -53 | S7: 51 | T7: 86 | U7: 13.6 | V7: IRG + | W7: 11 | X7: =IF(I7="","",IF(A7="H",IF(OR(H7="SEN",H7<1995),VLOOKUP(I7,Feuil1!$A$11:$F$29,6),IF(AND(H7>1994,H7<1998),VLOOKUP(I7,Feuil1!$A$11:$F$29,5),IF(AND(H7>1997,H7<2000),VLOOKUP(I7,Feuil1!$A$11:$F$29,4),IF(AND(H7>1999,H7<2002),VLOOKUP(I7,Feuil1!$A$11:$F$29,3),VLOOKUP(I7,Feuil1!$A$11:$F$29,2))))),IF(OR(H7="SEN",H7<1995),VLOOKUP(I7,Feuil1!$G$11:$L$25,6),IF(AND(H7>1994,H7<1998),VLOOKUP(I7,Feuil1!$G$11:$L$25,5),IF(AND(H7>1997,H7<2000),VLOOKUP(I7,Feuil1!$G$11:$L$25,4),IF(AND(H7>1999,H7<2002),VLOOKUP(I7,Feuil1!$G$11:$L$25,3),VLOOKUP(I7,Feuil1!$G$11:$L$25,2))))))) -> C1 45 | Y7: 201.7729826 | AB7: =T7-HLOOKUP(X7,Feuil1!$C$1:$BL$10,2,FALSE) -> 51 | AC7: =T7-HLOOKUP(X7,Feuil1!$C$1:$BL$10,3,FALSE) -> 36 | AD7: =T7-HLOOKUP(X7,Feuil1!$C$1:$BL$10,4,FALSE) -> 26 | AE7: =T7-HLOOKUP(X7,Feuil1!$C$1:$BL$10,5,FALSE) -> 11 | AF7: =T7-HLOOKUP(X7,Feuil1!$C$1:$BL$10,6,FALSE) -> -4 | AG7: =T7-HLOOKUP(X7,Feuil1!$C$1:$BL$10,7,FALSE) -> -19 | AH7: =T7-HLOOKUP(X7,Feuil1!$C$1:$BL$10,8,FALSE) -> -29 | AI7: =T7-HLOOKUP(X7,Feuil1!$C$1:$BL$10,9,FALSE) -> -44 | AJ7: =T7-HLOOKUP(X7,Feuil1!$C$1:$BL$10,10,FALSE) -> -914 | AQ7: IRG +
A8: H | B8: NE | C8: LOR | D8: 3 | E8: 281801 | F8: GUINDOS | G8: Lucas | H8: 2001 | I8: 41.4 | J8: E.S.Laneuveville | K8: F | L8: 34 | M8: 37 | N8: 39 | O8: 39 | P8: 44 | Q8: 47 | R8: -49 | S8: 47 | T8: 86 | U8: 3.2 | V8: IRG + | W8: 11 | X8: =IF(I8="","",IF(A8="H",IF(OR(H8="SEN",H8<1995),VLOOKUP(I8,Feuil1!$A$11:$F$29,6),IF(AND(H8>1994,H8<1998),VLOOKUP(I8,Feuil1!$A$11:$F$29,5),IF(AND(H8>1997,H8<2000),VLOOKUP(I8,Feuil1!$A$11:$F$29,4),IF(AND(H8>1999,H8<2002),VLOOKUP(I8,Feuil1!$A$11:$F$29,3),VLOOKUP(I8,Feuil1!$A$11:$F$29,2))))),IF(OR(H8="SEN",H8<1995),VLOOKUP(I8,Feuil1!$G$11:$L$25,6),IF(AND(H8>1994,H8<1998),VLOOKUP(I8,Feuil1!$G$11:$L$25,5),IF(AND(H8>1997,H8<2000),VLOOKUP(I8,Feuil1!$G$11:$L$25,4),IF(AND(H8>1999,H8<2002),VLOOKUP(I8,Feuil1!$G$11:$L$25,3),VLOOKUP(I8,Feuil1!$G$11:$L$25,2))))))) -> C1 45 | Y8: 175.5200798 | AB8: =T8-HLOOKUP(X8,Feuil1!$C$1:$BL$10,2,FALSE) -> 51 | AC8: =T8-HLOOKUP(X8,Feuil1!$C$1:$BL$10,3,FALSE) -> 36 | AD8: =T8-HLOOKUP(X8,Feuil1!$C$1:$BL$10,4,FALSE) -> 26 | AE8: =T8-HLOOKUP(X8,Feuil1!$C$1:$BL$10,5,FALSE) -> 11 | AF8: =T8-HLOOKUP(X8,Feuil1!$C$1:$BL$10,6,FALSE) -> -4 | AG8: =T8-HLOOKUP(X8,Feuil1!$C$1:$BL$10,7,FALSE) -> -19 | AH8: =T8-HLOOKUP(X8,Feuil1!$C$1:$BL$10,8,FALSE) -> -29 | AI8: =T8-HLOOKUP(X8,Feuil1!$C$1:$BL$10,9,FALSE) -> -44 | AJ8: =T8-HLOOKUP(X8,Feuil1!$C$1:$BL$10,10,FALSE) -> -914 | AQ8: IRG +
A9: H | B9: DOM | C9: REU | D9: 4 | E9: 239770 | F9: ESSOB | G9: Etienne | H9: 2001 | I9: 42.2 | J9: SCHM SAINT PAUL | K9: F | L9: 32 | M9: 36 | N9: 38 | O9: 38 | P9: 42 | Q9: 45 | R9: 48 | S9: =IF(H9="","",IF(MAXA(P9:R9)<=0,0,MAXA(P9:R9))) -> 48 | T9: =IF(H9="","",IF(OR(O9=0,S9=0),0,O9+S9)) -> 86 | U9: 1.6 | V9: =IF(H9="","",AQ9) -> IRG + | W9: =IF(AJ9>=0,AJ9,IF(AI9>=0,AI9,IF(AH9>=0,AH9,IF(AG9>=0,AG9,IF(AF9>=0,AF9,IF(AE9>=0,AE9,IF(AD9>=0,AD9,IF(AC9>=0,AC9,AB9)))))))) -> 11 | X9: =IF(I9="","",IF(A9="H",IF(OR(H9="SEN",H9<1995),VLOOKUP(I9,Feuil1!$A$11:$F$29,6),IF(AND(H9>1994,H9<1998),VLOOKUP(I9,Feuil1!$A$11:$F$29,5),IF(AND(H9>1997,H9<2000),VLOOKUP(I9,Feuil1!$A$11:$F$29,4),IF(AND(H9>1999,H9<2002),VLOOKUP(I9,Feuil1!$A$11:$F$29,3),VLOOKUP(I9,Feuil1!$A$11:$F$29,2))))),IF(OR(H9="SEN",H9<1995),VLOOKUP(I9,Feuil1!$G$11:$L$25,6),IF(AND(H9>1994,H9<1998),VLOOKUP(I9,Feuil1!$G$11:$L$25,5),IF(AND(H9>1997,H9<2000),VLOOKUP(I9,Feuil1!$G$11:$L$25,4),IF(AND(H9>1999,H9<2002),VLOOKUP(I9,Feuil1!$G$11:$L$25,3),VLOOKUP(I9,Feuil1!$G$11:$L$25,2))))))) -> C1 45 | Y9: 172.2401617 | AB9: =T9-HLOOKUP(X9,Feuil1!$C$1:$BL$10,2,FALSE) -> 51 | AC9: =T9-HLOOKUP(X9,Feuil1!$C$1:$BL$10,3,FALSE) -> 36 | AD9: =T9-HLOOKUP(X9,Feuil1!$C$1:$BL$10,4,FALSE) -> 26 | AE9: =T9-HLOOKUP(X9,Feuil1!$C$1:$BL$10,5,FALSE) -> 11 | AF9: =T9-HLOOKUP(X9,Feuil1!$C$1:$BL$10,6,FALSE) -> -4 | AG9: =T9-HLOOKUP(X9,Feuil1!$C$1:$BL$10,7,FALSE) -> -19 | AH9: =T9-HLOOKUP(X9,Feuil1!$C$1:$BL$10,8,FALSE) -> -29 | AI9: =T9-HLOOKUP(X9,Feuil1!$C$1:$BL$10,9,FALSE) -> -44 | AJ9: =T9-HLOOKUP(X9,Feuil1!$C$1:$BL$10,10,FALSE) -> -914 | AQ9: =IF(AJ9>=0,$AJ$4,IF(AI9>=0,$AI$4,IF(AH9>=0,$AH$4,IF(AG9>=0,$AG$4,IF(AF9>=0,$AF$4,IF(AE9>=0,$AE$4,IF(AD9>=0,$AD$4,IF(AC9>=0,$AC$4,$AB$4)))))))) -> IRG +
A10: H | B10: Nord | C10: NPC | D10: 5 | E10: 351701 | F10: BOUGEARD | G10: Dylan | H10: 2001 | I10: 44.78 | J10: AO Sallaumines | K10: F | L10: 33 | M10: -36 | N10: 36 | O10: 36 | P10: 43 | Q10: 47 | R10: 50 | S10: 50 | T10: 86 | U10: -3.56 | V10: IRG + | W10: 11 | X10: =IF(I10="","",IF(A10="H",IF(OR(H10="SEN",H10<1995),VLOOKUP(I10,Feuil1!$A$11:$F$29,6),IF(AND(H10>1994,H10<1998),VLOOKUP(I10,Feuil1!$A$11:$F$29,5),IF(AND(H10>1997,H10<2000),VLOOKUP(I10,Feuil1!$A$11:$F$29,4),IF(AND(H10>1999,H10<2002),VLOOKUP(I10,Feuil1!$A$11:$F$29,3),VLOOKUP(I10,Feuil1!$A$11:$F$29,2))))),IF(OR(H10="SEN",H10<1995),VLOOKUP(I10,Feuil1!$G$11:$L$25,6),IF(AND(H10>1994,H10<1998),VLOOKUP(I10,Feuil1!$G$11:$L$25,5),IF(AND(H10>1997,H10<2000),VLOOKUP(I10,Feuil1!$G$11:$L$25,4),IF(AND(H10>1999,H10<2002),VLOOKUP(I10,Feuil1!$G$11:$L$25,3),VLOOKUP(I10,Feuil1!$G$11:$L$25,2))))))) -> C1 45 | Y10: 162.716561 | AB10: =T10-HLOOKUP(X10,Feuil1!$C$1:$BL$10,2,FALSE) -> 51 | AC10: =T10-HLOOKUP(X10,Feuil1!$C$1:$BL$10,3,FALSE) -> 36 | AD10: =T10-HLOOKUP(X10,Feuil1!$C$1:$BL$10,4,FALSE) -> 26 | AE10: =T10-HLOOKUP(X10,Feuil1!$C$1:$BL$10,5,FALSE) -> 11 | AF10: =T10-HLOOKUP(X10,Feuil1!$C$1:$BL$10,6,FALSE) -> -4 | AG10: =T10-HLOOKUP(X10,Feuil1!$C$1:$BL$10,7,FALSE) -> -19 | AH10: =T10-HLOOKUP(X10,Feuil1!$C$1:$BL$10,8,FALSE) -> -29 | AI10: =T10-HLOOKUP(X10,Feuil1!$C$1:$BL$10,9,FALSE) -> -44 | AJ10: =T10-HLOOKUP(X10,Feuil1!$C$1:$BL$10,10,FALSE) -> -914 | AQ10: IRG +
A11: H | B11: DOM | C11: REU | D11: 6 | E11: 275413 | F11: ESSOB | G11: David | H11: 2001 | I11: 43.7 | J11: SCHM SAINT PAUL | K11: F | L11: 35 | M11: -37 | N11: -37 | O11: 35 | P11: 40 | Q11: 45 | R11: 50 | S11: 50 | T11: 85 | U11: -2.4 | V11: IRG + | W11: 10 | X11: =IF(I11="","",IF(A11="H",IF(OR(H11="SEN",H11<1995),VLOOKUP(I11,Feuil1!$A$11:$F$29,6),IF(AND(H11>1994,H11<1998),VLOOKUP(I11,Feuil1!$A$11:$F$29,5),IF(AND(H11>1997,H11<2000),VLOOKUP(I11,Feuil1!$A$11:$F$29,4),IF(AND(H11>1999,H11<2002),VLOOKUP(I11,Feuil1!$A$11:$F$29,3),VLOOKUP(I11,Feuil1!$A$11:$F$29,2))))),IF(OR(H11="SEN",H11<1995),VLOOKUP(I11,Feuil1!$G$11:$L$25,6),IF(AND(H11>1994,H11<1998),VLOOKUP(I11,Feuil1!$G$11:$L$25,5),IF(AND(H11>1997,H11<2000),VLOOKUP(I11,Feuil1!$G$11:$L$25,4),IF(AND(H11>1999,H11<2002),VLOOKUP(I11,Feuil1!$G$11:$L$25,3),VLOOKUP(I11,Feuil1!$G$11:$L$25,2))))))) -> C1 45 | Y11: 164.5838976 | AB11: =T11-HLOOKUP(X11,Feuil1!$C$1:$BL$10,2,FALSE) -> 50 | AC11: =T11-HLOOKUP(X11,Feuil1!$C$1:$BL$10,3,FALSE) -> 35 | AD11: =T11-HLOOKUP(X11,Feuil1!$C$1:$BL$10,4,FALSE) -> 25 | AE11: =T11-HLOOKUP(X11,Feuil1!$C$1:$BL$10,5,FALSE) -> 10 | AF11: =T11-HLOOKUP(X11,Feuil1!$C$1:$BL$10,6,FALSE) -> -5 | AG11: =T11-HLOOKUP(X11,Feuil1!$C$1:$BL$10,7,FALSE) -> -20 | AH11: =T11-HLOOKUP(X11,Feuil1!$C$1:$BL$10,8,FALSE) -> -30 | AI11: =T11-HLOOKUP(X11,Feuil1!$C$1:$BL$10,9,FALSE) -> -45 | AJ11: =T11-HLOOKUP(X11,Feuil1!$C$1:$BL$10,10,FALSE) -> -915 | AQ11: IRG +
A13: H | B13: Nord | C13: NPC | D13: 1 | E13: 279998 | F13: RIQUIER | G13: Jérémy | H13: 2000 | I13: 46.42 | J13: Lille UC | K13: F | L13: 48 | M13: -51 | N13: -51 | O13: =IF(H13="","",IF(MAXA(L13:N13)<=0,0,MAXA(L13:N13))) -> 48 | P13: 55 | Q13: 62 | R13: 66 | S13: =IF(H13="","",IF(MAXA(P13:R13)<=0,0,MAXA(P13:R13))) -> 66 | T13: =IF(H13="","",IF(OR(O13=0,S13=0),0,O13+S13)) -> 114 | U13: =T13-I13*2 -> 21.16 | V13: =IF(H13="","",AQ13) -> NAT + | W13: =IF(AJ13>=0,AJ13,IF(AI13>=0,AI13,IF(AH13>=0,AH13,IF(AG13>=0,AG13,IF(AF13>=0,AF13,IF(AE13>=0,AE13,IF(AD13>=0,AD13,IF(AC13>=0,AC13,AB13)))))))) -> 4 | X13: =IF(I13="","",IF(A13="H",IF(OR(H13="SEN",H13<1995),VLOOKUP(I13,Feuil1!$A$11:$F$29,6),IF(AND(H13>1994,H13<1998),VLOOKUP(I13,Feuil1!$A$11:$F$29,5),IF(AND(H13>1997,H13<2000),VLOOKUP(I13,Feuil1!$A$11:$F$29,4),IF(AND(H13>1999,H13<2002),VLOOKUP(I13,Feuil1!$A$11:$F$29,3),VLOOKUP(I13,Feuil1!$A$11:$F$29,2))))),IF(OR(H13="SEN",H13<1995),VLOOKUP(I13,Feuil1!$G$11:$L$25,6),IF(AND(H13>1994,H13<1998),VLOOKUP(I13,Feuil1!$G$11:$L$25,5),IF(AND(H13>1997,H13<2000),VLOOKUP(I13,Feuil1!$G$11:$L$25,4),IF(AND(H13>1999,H13<2002),VLOOKUP(I13,Feuil1!$G$11:$L$25,3),VLOOKUP(I13,Feuil1!$G$11:$L$25,2))))))) -> C1 50 | Y13: =IF(I13="","",IF(A13="H",10^(0.794358141*LOG(I13/174.393)^2)*T13,IF(A13="F",10^(0.89726074*LOG(I13/148.026)^2)*T13,""))) -> 208.6309225 | AB13: =T13-HLOOKUP(X13,Feuil1!$C$1:$BL$10,2,FALSE) -> 74 | AC13: =T13-HLOOKUP(X13,Feuil1!$C$1:$BL$10,3,FALSE) -> 59 | AD13: =T13-HLOOKUP(X13,Feuil1!$C$1:$BL$10,4,FALSE) -> 49 | AE13: =T13-HLOOKUP(X13,Feuil1!$C$1:$BL$10,5,FALSE) -> 34 | AF13: =T13-HLOOKUP(X13,Feuil1!$C$1:$BL$10,6,FALSE) -> 19 | AG13: =T13-HLOOKUP(X13,Feuil1!$C$1:$BL$10,7,FALSE) -> 4 | AH13: =T13-HLOOKUP(X13,Feuil1!$C$1:$BL$10,8,FALSE) -> -6 | AI13: =T13-HLOOKUP(X13,Feuil1!$C$1:$BL$10,9,FALSE) -> -21 | AJ13: =T13-HLOOKUP(X13,Feuil1!$C$1:$BL$10,10,FALSE) -> -886 | AQ13: =IF(AJ13>=0,$AJ$4,IF(AI13>=0,$AI$4,IF(AH13>=0,$AH$4,IF(AG13>=0,$AG$4,IF(AF13>=0,$AF$4,IF(AE13>=0,$AE$4,IF(AD13>=0,$AD$4,IF(AC13>=0,$AC$4,$AB$4)))))))) -> NAT +
A14: H | B14: Nord | C14: NPC | D14: 2 | E14: 335809 | F14: FOURNIER | G14: Louis | H14: 2000 | I14: 49.3 | J14: CA Rosendael | K14: F | L14: 48 | M14: -52 | N14: -52 | O14: 48 | P14: 58 | Q14: 62 | R14: 65 | S14: 65 | T14: 113 | U14: 14.4 | V14: NAT + | W14: 3 | X14: =IF(I14="","",IF(A14="H",IF(OR(H14="SEN",H14<1995),VLOOKUP(I14,Feuil1!$A$11:$F$29,6),IF(AND(H14>1994,H14<1998),VLOOKUP(I14,Feuil1!$A$11:$F$29,5),IF(AND(H14>1997,H14<2000),VLOOKUP(I14,Feuil1!$A$11:$F$29,4),IF(AND(H14>1999,H14<2002),VLOOKUP(I14,Feuil1!$A$11:$F$29,3),VLOOKUP(I14,Feuil1!$A$11:$F$29,2))))),IF(OR(H14="SEN",H14<1995),VLOOKUP(I14,Feuil1!$G$11:$L$25,6),IF(AND(H14>1994,H14<1998),VLOOKUP(I14,Feuil1!$G$11:$L$25,5),IF(AND(H14>1997,H14<2000),VLOOKUP(I14,Feuil1!$G$11:$L$25,4),IF(AND(H14>1999,H14<2002),VLOOKUP(I14,Feuil1!$G$11:$L$25,3),VLOOKUP(I14,Feuil1!$G$11:$L$25,2))))))) -> C1 50 | Y14: 195.9844495 | AB14: =T14-HLOOKUP(X14,Feuil1!$C$1:$BL$10,2,FALSE) -> 73 | AC14: =T14-HLOOKUP(X14,Feuil1!$C$1:$BL$10,3,FALSE) -> 58 | AD14: =T14-HLOOKUP(X14,Feuil1!$C$1:$BL$10,4,FALSE) -> 48 | AE14: =T14-HLOOKUP(X14,Feuil1!$C$1:$BL$10,5,FALSE) -> 33 | AF14: =T14-HLOOKUP(X14,Feuil1!$C$1:$BL$10,6,FALSE) -> 18 | AG14: =T14-HLOOKUP(X14,Feuil1!$C$1:$BL$10,7,FALSE) -> 3 | AH14: =T14-HLOOKUP(X14,Feuil1!$C$1:$BL$10,8,FALSE) -> -7 | AI14: =T14-HLOOKUP(X14,Feuil1!$C$1:$BL$10,9,FALSE) -> -22 | AJ14: =T14-HLOOKUP(X14,Feuil1!$C$1:$BL$10,10,FALSE) -> -887 | AQ14: NAT +
A15: H | B15: Nord | C15: NPC | D15: 3 | E15: 359649 | F15: PARANTHOEN | G15: Kévin | H15: 2000 | I15: 48.08 | J15: CA Rosendael | K15: F | L15: 37 | M15: 40 | N15: -42 | O15: 40 | P15: 51 | Q15: 55 | R15: 57 | S15: 57 | T15: 97 | U15: 0.84 | V15: FED + | W15: 2 | X15: =IF(I15="","",IF(A15="H",IF(OR(H15="SEN",H15<1995),VLOOKUP(I15,Feuil1!$A$11:$F$29,6),IF(AND(H15>1994,H15<1998),VLOOKUP(I15,Feuil1!$A$11:$F$29,5),IF(AND(H15>1997,H15<2000),VLOOKUP(I15,Feuil1!$A$11:$F$29,4),IF(AND(H15>1999,H15<2002),VLOOKUP(I15,Feuil1!$A$11:$F$29,3),VLOOKUP(I15,Feuil1!$A$11:$F$29,2))))),IF(OR(H15="SEN",H15<1995),VLOOKUP(I15,Feuil1!$G$11:$L$25,6),IF(AND(H15>1994,H15<1998),VLOOKUP(I15,Feuil1!$G$11:$L$25,5),IF(AND(H15>1997,H15<2000),VLOOKUP(I15,Feuil1!$G$11:$L$25,4),IF(AND(H15>1999,H15<2002),VLOOKUP(I15,Feuil1!$G$11:$L$25,3),VLOOKUP(I15,Feuil1!$G$11:$L$25,2))))))) -> C1 50 | Y15: 171.9868418 | AB15: =T15-HLOOKUP(X15,Feuil1!$C$1:$BL$10,2,FALSE) -> 57 | AC15: =T15-HLOOKUP(X15,Feuil1!$C$1:$BL$10,3,FALSE) -> 42 | AD15: =T15-HLOOKUP(X15,Feuil1!$C$1:$BL$10,4,FALSE) -> 32 | AE15: =T15-HLOOKUP(X15,Feuil1!$C$1:$BL$10,5,FALSE) -> 17 | AF15: =T15-HLOOKUP(X15,Feuil1!$C$1:$BL$10,6,FALSE) -> 2 | AG15: =T15-HLOOKUP(X15,Feuil1!$C$1:$BL$10,7,FALSE) -> -13 | AH15: =T15-HLOOKUP(X15,Feuil1!$C$1:$BL$10,8,FALSE) -> -23 | AI15: =T15-HLOOKUP(X15,Feuil1!$C$1:$BL$10,9,FALSE) -> -38 | AJ15: =T15-HLOOKUP(X15,Feuil1!$C$1:$BL$10,10,FALSE) -> -903 | AQ15: FED +
AB16: =T16-HLOOKUP(X16,Feuil1!$C$1:$BL$10,2,FALSE) ->  | AC16: =T16-HLOOKUP(X16,Feuil1!$C$1:$BL$10,3,FALSE) ->  | AD16: =T16-HLOOKUP(X16,Feuil1!$C$1:$BL$10,4,FALSE) ->  | AE16: =T16-HLOOKUP(X16,Feuil1!$C$1:$BL$10,5,FALSE) ->  | AF16: =T16-HLOOKUP(X16,Feuil1!$C$1:$BL$10,6,FALSE) ->  | AG16: =T16-HLOOKUP(X16,Feuil1!$C$1:$BL$10,7,FALSE) ->  | AH16: =T16-HLOOKUP(X16,Feuil1!$C$1:$BL$10,8,FALSE) ->  | AI16: =T16-HLOOKUP(X16,Feuil1!$C$1:$BL$10,9,FALSE) ->  | AJ16: =T16-HLOOKUP(X16,Feuil1!$C$1:$BL$10,10,FALSE) -> 
A17: H | B17: Nord | C17: NPC | D17: 1 | E17: 248932 | F17: BUYSSCHAERT | G17: Eliott | H17: 2000 | I17: 53.82 | J17: CHCD Comines | K17: F | L17: 56 | M17: -60 | N17: 60 | O17: =IF(H17="","",IF(MAXA(L17:N17)<=0,0,MAXA(L17:N17))) -> 60 | P17: 66 | Q17: 70 | R17: -73 | S17: =IF(H17="","",IF(MAXA(P17:R17)<=0,0,MAXA(P17:R17))) -> 70 | T17: =IF(H17="","",IF(OR(O17=0,S17=0),0,O17+S17)) -> 130 | U17: 22.36 | V17: =IF(H17="","",AQ17) -> NAT + | W17: =IF(AJ17>=0,AJ17,IF(AI17>=0,AI17,IF(AH17>=0,AH17,IF(AG17>=0,AG17,IF(AF17>=0,AF17,IF(AE17>=0,AE17,IF(AD17>=0,AD17,IF(AC17>=0,AC17,AB17)))))))) -> 0 | X17: =IF(I17="","",IF(A17="H",IF(OR(H17="SEN",H17<1995),VLOOKUP(I17,Feuil1!$A$11:$F$29,6),IF(AND(H17>1994,H17<1998),VLOOKUP(I17,Feuil1!$A$11:$F$29,5),IF(AND(H17>1997,H17<2000),VLOOKUP(I17,Feuil1!$A$11:$F$29,4),IF(AND(H17>1999,H17<2002),VLOOKUP(I17,Feuil1!$A$11:$F$29,3),VLOOKUP(I17,Feuil1!$A$11:$F$29,2))))),IF(OR(H17="SEN",H17<1995),VLOOKUP(I17,Feuil1!$G$11:$L$25,6),IF(AND(H17>1994,H17<1998),VLOOKUP(I17,Feuil1!$G$11:$L$25,5),IF(AND(H17>1997,H17<2000),VLOOKUP(I17,Feuil1!$G$11:$L$25,4),IF(AND(H17>1999,H17<2002),VLOOKUP(I17,Feuil1!$G$11:$L$25,3),VLOOKUP(I17,Feuil1!$G$11:$L$25,2))))))) -> C1 56 | Y17: =IF(I17="","",IF(A17="H",10^(0.794358141*LOG(I17/174.393)^2)*T17,IF(A17="F",10^(0.89726074*LOG(I17/148.026)^2)*T17,""))) -> 209.4259327 | AB17: =T17-HLOOKUP(X17,Feuil1!$C$1:$BL$10,2,FALSE) -> 80 | AC17: =T17-HLOOKUP(X17,Feuil1!$C$1:$BL$10,3,FALSE) -> 60 | AD17: =T17-HLOOKUP(X17,Feuil1!$C$1:$BL$10,4,FALSE) -> 45 | AE17: =T17-HLOOKUP(X17,Feuil1!$C$1:$BL$10,5,FALSE) -> 30 | AF17: =T17-HLOOKUP(X17,Feuil1!$C$1:$BL$10,6,FALSE) -> 15 | AG17: =T17-HLOOKUP(X17,Feuil1!$C$1:$BL$10,7,FALSE) -> 0 | AH17: =T17-HLOOKUP(X17,Feuil1!$C$1:$BL$10,8,FALSE) -> -15 | AI17: =T17-HLOOKUP(X17,Feuil1!$C$1:$BL$10,9,FALSE) -> -40 | AJ17: =T17-HLOOKUP(X17,Feuil1!$C$1:$BL$10,10,FALSE) -> -870 | AQ17: =IF(AJ17>=0,$AJ$4,IF(AI17>=0,$AI$4,IF(AH17>=0,$AH$4,IF(AG17>=0,$AG$4,IF(AF17>=0,$AF$4,IF(AE17>=0,$AE$4,IF(AD17>=0,$AD$4,IF(AC17>=0,$AC$4,$AB$4)))))))) -> NAT +
A18: H | B18: NE | C18: CHA | D18: 2 | E18: 366016 | F18: MIGEON | G18: Arthur | H18: 2000 | I18: 53.1 | J18: Reims HM | K18: F | L18: 50 | M18: 53 | N18: 55 | O18: 55 | P18: 60 | Q18: 65 | R18: -70 | S18: 65 | T18: 120 | U18: 13.8 | V18: FED + | W18: 5 | X18: =IF(I18="","",IF(A18="H",IF(OR(H18="SEN",H18<1995),VLOOKUP(I18,Feuil1!$A$11:$F$29,6),IF(AND(H18>1994,H18<1998),VLOOKUP(I18,Feuil1!$A$11:$F$29,5),IF(AND(H18>1997,H18<2000),VLOOKUP(I18,Feuil1!$A$11:$F$29,4),IF(AND(H18>1999,H18<2002),VLOOKUP(I18,Feuil1!$A$11:$F$29,3),VLOOKUP(I18,Feuil1!$A$11:$F$29,2))))),IF(OR(H18="SEN",H18<1995),VLOOKUP(I18,Feuil1!$G$11:$L$25,6),IF(AND(H18>1994,H18<1998),VLOOKUP(I18,Feuil1!$G$11:$L$25,5),IF(AND(H18>1997,H18<2000),VLOOKUP(I18,Feuil1!$G$11:$L$25,4),IF(AND(H18>1999,H18<2002),VLOOKUP(I18,Feuil1!$G$11:$L$25,3),VLOOKUP(I18,Feuil1!$G$11:$L$25,2))))))) -> C1 56 | Y18: 195.4520515 | AB18: =T18-HLOOKUP(X18,Feuil1!$C$1:$BL$10,2,FALSE) -> 70 | AC18: =T18-HLOOKUP(X18,Feuil1!$C$1:$BL$10,3,FALSE) -> 50 | AD18: =T18-HLOOKUP(X18,Feuil1!$C$1:$BL$10,4,FALSE) -> 35 | AE18: =T18-HLOOKUP(X18,Feuil1!$C$1:$BL$10,5,FALSE) -> 20 | AF18: =T18-HLOOKUP(X18,Feuil1!$C$1:$BL$10,6,FALSE) -> 5 | AG18: =T18-HLOOKUP(X18,Feuil1!$C$1:$BL$10,7,FALSE) -> -10 | AH18: =T18-HLOOKUP(X18,Feuil1!$C$1:$BL$10,8,FALSE) -> -25 | AI18: =T18-HLOOKUP(X18,Feuil1!$C$1:$BL$10,9,FALSE) -> -50 | AJ18: =T18-HLOOKUP(X18,Feuil1!$C$1:$BL$10,10,FALSE) -> -880 | AQ18: FED +
A19: H | B19: Nord | C19: NPC | D19: 3 | E19: 311192 | F19: JURKOWSKI | G19: Alexis | H19: 2000 | I19: 53.58 | J19: AO Sallaumines | K19: F | L19: 45 | M19: -49 | N19: 49 | O19: 49 | P19: 66 | Q19: 70 | R19: -73 | S19: 70 | T19: 119 | U19: 11.84 | V19: FED + | W19: 4 | X19: =IF(I19="","",IF(A19="H",IF(OR(H19="SEN",H19<1995),VLOOKUP(I19,Feuil1!$A$11:$F$29,6),IF(AND(H19>1994,H19<1998),VLOOKUP(I19,Feuil1!$A$11:$F$29,5),IF(AND(H19>1997,H19<2000),VLOOKUP(I19,Feuil1!$A$11:$F$29,4),IF(AND(H19>1999,H19<2002),VLOOKUP(I19,Feuil1!$A$11:$F$29,3),VLOOKUP(I19,Feuil1!$A$11:$F$29,2))))),IF(OR(H19="SEN",H19<1995),VLOOKUP(I19,Feuil1!$G$11:$L$25,6),IF(AND(H19>1994,H19<1998),VLOOKUP(I19,Feuil1!$G$11:$L$25,5),IF(AND(H19>1997,H19<2000),VLOOKUP(I19,Feuil1!$G$11:$L$25,4),IF(AND(H19>1999,H19<2002),VLOOKUP(I19,Feuil1!$G$11:$L$25,3),VLOOKUP(I19,Feuil1!$G$11:$L$25,2))))))) -> C1 56 | Y19: 192.4028667 | AB19: =T19-HLOOKUP(X19,Feuil1!$C$1:$BL$10,2,FALSE) -> 69 | AC19: =T19-HLOOKUP(X19,Feuil1!$C$1:$BL$10,3,FALSE) -> 49 | AD19: =T19-HLOOKUP(X19,Feuil1!$C$1:$BL$10,4,FALSE) -> 34 | AE19: =T19-HLOOKUP(X19,Feuil1!$C$1:$BL$10,5,FALSE) -> 19 | AF19: =T19-HLOOKUP(X19,Feuil1!$C$1:$BL$10,6,FALSE) -> 4 | AG19: =T19-HLOOKUP(X19,Feuil1!$C$1:$BL$10,7,FALSE) -> -11 | AH19: =T19-HLOOKUP(X19,Feuil1!$C$1:$BL$10,8,FALSE) -> -26 | AI19: =T19-HLOOKUP(X19,Feuil1!$C$1:$BL$10,9,FALSE) -> -51 | AJ19: =T19-HLOOKUP(X19,Feuil1!$C$1:$BL$10,10,FALSE) -> -881 | AQ19: FED +
A20: H | B20: ZCO | C20: PDL | D20: 4 | E20: 368728 | F20: MELLIER | G20: Romain | H20: 2000 | I20: 55.3 | J20: CA Evron 53 | K20: F | L20: 50 | M20: -54 | N20: 54 | O20: 54 | P20: 61 | Q20: 65 | R20: -67 | S20: 65 | T20: 119 | U20: 8.4 | V20: FED + | W20: 4 | X20: =IF(I20="","",IF(A20="H",IF(OR(H20="SEN",H20<1995),VLOOKUP(I20,Feuil1!$A$11:$F$29,6),IF(AND(H20>1994,H20<1998),VLOOKUP(I20,Feuil1!$A$11:$F$29,5),IF(AND(H20>1997,H20<2000),VLOOKUP(I20,Feuil1!$A$11:$F$29,4),IF(AND(H20>1999,H20<2002),VLOOKUP(I20,Feuil1!$A$11:$F$29,3),VLOOKUP(I20,Feuil1!$A$11:$F$29,2))))),IF(OR(H20="SEN",H20<1995),VLOOKUP(I20,Feuil1!$G$11:$L$25,6),IF(AND(H20>1994,H20<1998),VLOOKUP(I20,Feuil1!$G$11:$L$25,5),IF(AND(H20>1997,H20<2000),VLOOKUP(I20,Feuil1!$G$11:$L$25,4),IF(AND(H20>1999,H20<2002),VLOOKUP(I20,Feuil1!$G$11:$L$25,3),VLOOKUP(I20,Feuil1!$G$11:$L$25,2))))))) -> C1 56 | Y20: 187.5804248 | AB20: =T20-HLOOKUP(X20,Feuil1!$C$1:$BL$10,2,FALSE) -> 69 | AC20: =T20-HLOOKUP(X20,Feuil1!$C$1:$BL$10,3,FALSE) -> 49 | AD20: =T20-HLOOKUP(X20,Feuil1!$C$1:$BL$10,4,FALSE) -> 34 | AE20: =T20-HLOOKUP(X20,Feuil1!$C$1:$BL$10,5,FALSE) -> 19 | AF20: =T20-HLOOKUP(X20,Feuil1!$C$1:$BL$10,6,FALSE) -> 4 | AG20: =T20-HLOOKUP(X20,Feuil1!$C$1:$BL$10,7,FALSE) -> -11 | AH20: =T20-HLOOKUP(X20,Feuil1!$C$1:$BL$10,8,FALSE) -> -26 | AI20: =T20-HLOOKUP(X20,Feuil1!$C$1:$BL$10,9,FALSE) -> -51 | AJ20: =T20-HLOOKUP(X20,Feuil1!$C$1:$BL$10,10,FALSE) -> -881 | AQ20: FED +
A21: H | B21: ZCO | C21: BRE | D21: 5 | E21: 324558 | F21: LERUYET | G21: Téo | H21: 2000 | I21: 55 | J21: CA Lorient | K21: F | L21: 50 | M21: 52 | N21: 53 | O21: 53 | P21: 60 | Q21: 62 | R21: 65 | S21: 65 | T21: 118 | U21: 8 | V21: FED + | W21: 3 | X21: =IF(I21="","",IF(A21="H",IF(OR(H21="SEN",H21<1995),VLOOKUP(I21,Feuil1!$A$11:$F$29,6),IF(AND(H21>1994,H21<1998),VLOOKUP(I21,Feuil1!$A$11:$F$29,5),IF(AND(H21>1997,H21<2000),VLOOKUP(I21,Feuil1!$A$11:$F$29,4),IF(AND(H21>1999,H21<2002),VLOOKUP(I21,Feuil1!$A$11:$F$29,3),VLOOKUP(I21,Feuil1!$A$11:$F$29,2))))),IF(OR(H21="SEN",H21<1995),VLOOKUP(I21,Feuil1!$G$11:$L$25,6),IF(AND(H21>1994,H21<1998),VLOOKUP(I21,Feuil1!$G$11:$L$25,5),IF(AND(H21>1997,H21<2000),VLOOKUP(I21,Feuil1!$G$11:$L$25,4),IF(AND(H21>1999,H21<2002),VLOOKUP(I21,Feuil1!$G$11:$L$25,3),VLOOKUP(I21,Feuil1!$G$11:$L$25,2))))))) -> C1 56 | Y21: 186.809574 | AB21: =T21-HLOOKUP(X21,Feuil1!$C$1:$BL$10,2,FALSE) -> 68 | AC21: =T21-HLOOKUP(X21,Feuil1!$C$1:$BL$10,3,FALSE) -> 48 | AD21: =T21-HLOOKUP(X21,Feuil1!$C$1:$BL$10,4,FALSE) -> 33 | AE21: =T21-HLOOKUP(X21,Feuil1!$C$1:$BL$10,5,FALSE) -> 18 | AF21: =T21-HLOOKUP(X21,Feuil1!$C$1:$BL$10,6,FALSE) -> 3 | AG21: =T21-HLOOKUP(X21,Feuil1!$C$1:$BL$10,7,FALSE) -> -12 | AH21: =T21-HLOOKUP(X21,Feuil1!$C$1:$BL$10,8,FALSE) -> -27 | AI21: =T21-HLOOKUP(X21,Feuil1!$C$1:$BL$10,9,FALSE) -> -52 | AJ21: =T21-HLOOKUP(X21,Feuil1!$C$1:$BL$10,10,FALSE) -> -882 | AQ21: FED +
A22: H | B22: Nord | C22: NPC | D22: 6 | E22: 248951 | F22: KEMPENAIRE | G22: Cédric | H22: 2001 | I22: 54.37 | J22: CHCD Comines | K22: F | L22: 40 | M22: 43 | N22: 45 | O22: 45 | P22: 56 | Q22: 60 | R22: 63 | S22: 63 | T22: 108 | U22: -0.74 | V22: IRG + | W22: 8 | X22: =IF(I22="","",IF(A22="H",IF(OR(H22="SEN",H22<1995),VLOOKUP(I22,Feuil1!$A$11:$F$29,6),IF(AND(H22>1994,H22<1998),VLOOKUP(I22,Feuil1!$A$11:$F$29,5),IF(AND(H22>1997,H22<2000),VLOOKUP(I22,Feuil1!$A$11:$F$29,4),IF(AND(H22>1999,H22<2002),VLOOKUP(I22,Feuil1!$A$11:$F$29,3),VLOOKUP(I22,Feuil1!$A$11:$F$29,2))))),IF(OR(H22="SEN",H22<1995),VLOOKUP(I22,Feuil1!$G$11:$L$25,6),IF(AND(H22>1994,H22<1998),VLOOKUP(I22,Feuil1!$G$11:$L$25,5),IF(AND(H22>1997,H22<2000),VLOOKUP(I22,Feuil1!$G$11:$L$25,4),IF(AND(H22>1999,H22<2002),VLOOKUP(I22,Feuil1!$G$11:$L$25,3),VLOOKUP(I22,Feuil1!$G$11:$L$25,2))))))) -> C1 56 | Y22: 172.5617324 | AB22: =T22-HLOOKUP(X22,Feuil1!$C$1:$BL$10,2,FALSE) -> 58 | AC22: =T22-HLOOKUP(X22,Feuil1!$C$1:$BL$10,3,FALSE) -> 38 | AD22: =T22-HLOOKUP(X22,Feuil1!$C$1:$BL$10,4,FALSE) -> 23 | AE22: =T22-HLOOKUP(X22,Feuil1!$C$1:$BL$10,5,FALSE) -> 8 | AF22: =T22-HLOOKUP(X22,Feuil1!$C$1:$BL$10,6,FALSE) -> -7 | AG22: =T22-HLOOKUP(X22,Feuil1!$C$1:$BL$10,7,FALSE) -> -22 | AH22: =T22-HLOOKUP(X22,Feuil1!$C$1:$BL$10,8,FALSE) -> -37 | AI22: =T22-HLOOKUP(X22,Feuil1!$C$1:$BL$10,9,FALSE) -> -62 | AJ22: =T22-HLOOKUP(X22,Feuil1!$C$1:$BL$10,10,FALSE) -> -892 | AQ22: IRG +
AB23: =T23-HLOOKUP(X23,Feuil1!$C$1:$BL$10,2,FALSE) ->  | AC23: =T23-HLOOKUP(X23,Feuil1!$C$1:$BL$10,3,FALSE) ->  | AD23: =T23-HLOOKUP(X23,Feuil1!$C$1:$BL$10,4,FALSE) ->  | AE23: =T23-HLOOKUP(X23,Feuil1!$C$1:$BL$10,5,FALSE) ->  | AF23: =T23-HLOOKUP(X23,Feuil1!$C$1:$BL$10,6,FALSE) ->  | AG23: =T23-HLOOKUP(X23,Feuil1!$C$1:$BL$10,7,FALSE) ->  | AH23: =T23-HLOOKUP(X23,Feuil1!$C$1:$BL$10,8,FALSE) ->  | AI23: =T23-HLOOKUP(X23,Feuil1!$C$1:$BL$10,9,FALSE) ->  | AJ23: =T23-HLOOKUP(X23,Feuil1!$C$1:$BL$10,10,FALSE) -> 
A24: H | B24: Nord | C24: NPC | D24: 1 | E24: 338176 | F24: FARETIE | G24: Sony | H24: 2000 | I24: 61.23 | J24: CA Rosendael | K24: F | L24: -73 | M24: 75 | N24: 80 | O24: =IF(H24="","",IF(MAXA(L24:N24)<=0,0,MAXA(L24:N24))) -> 80 | P24: -95 | Q24: 95 | R24: 100 | S24: =IF(H24="","",IF(MAXA(P24:R24)<=0,0,MAXA(P24:R24))) -> 100 | T24: =IF(H24="","",IF(OR(O24=0,S24=0),0,O24+S24)) -> 180 | U24: 57.54 | V24: =IF(H24="","",AQ24) -> INTB + | W24: =IF(AJ24>=0,AJ24,IF(AI24>=0,AI24,IF(AH24>=0,AH24,IF(AG24>=0,AG24,IF(AF24>=0,AF24,IF(AE24>=0,AE24,IF(AD24>=0,AD24,IF(AC24>=0,AC24,AB24)))))))) -> 10 | X24: =IF(I24="","",IF(A24="H",IF(OR(H24="SEN",H24<1995),VLOOKUP(I24,Feuil1!$A$11:$F$29,6),IF(AND(H24>1994,H24<1998),VLOOKUP(I24,Feuil1!$A$11:$F$29,5),IF(AND(H24>1997,H24<2000),VLOOKUP(I24,Feuil1!$A$11:$F$29,4),IF(AND(H24>1999,H24<2002),VLOOKUP(I24,Feuil1!$A$11:$F$29,3),VLOOKUP(I24,Feuil1!$A$11:$F$29,2))))),IF(OR(H24="SEN",H24<1995),VLOOKUP(I24,Feuil1!$G$11:$L$25,6),IF(AND(H24>1994,H24<1998),VLOOKUP(I24,Feuil1!$G$11:$L$25,5),IF(AND(H24>1997,H24<2000),VLOOKUP(I24,Feuil1!$G$11:$L$25,4),IF(AND(H24>1999,H24<2002),VLOOKUP(I24,Feuil1!$G$11:$L$25,3),VLOOKUP(I24,Feuil1!$G$11:$L$25,2))))))) -> C1 62 | Y24: =IF(I24="","",IF(A24="H",10^(0.794358141*LOG(I24/174.393)^2)*T24,IF(A24="F",10^(0.89726074*LOG(I24/148.026)^2)*T24,""))) -> 262.6697439 | AB24: =T24-HLOOKUP(X24,Feuil1!$C$1:$BL$10,2,FALSE) -> 105 | AC24: =T24-HLOOKUP(X24,Feuil1!$C$1:$BL$10,3,FALSE) -> 85 | AD24: =T24-HLOOKUP(X24,Feuil1!$C$1:$BL$10,4,FALSE) -> 75 | AE24: =T24-HLOOKUP(X24,Feuil1!$C$1:$BL$10,5,FALSE) -> 60 | AF24: =T24-HLOOKUP(X24,Feuil1!$C$1:$BL$10,6,FALSE) -> 45 | AG24: =T24-HLOOKUP(X24,Feuil1!$C$1:$BL$10,7,FALSE) -> 30 | AH24: =T24-HLOOKUP(X24,Feuil1!$C$1:$BL$10,8,FALSE) -> 10 | AI24: =T24-HLOOKUP(X24,Feuil1!$C$1:$BL$10,9,FALSE) -> -10 | AJ24: =T24-HLOOKUP(X24,Feuil1!$C$1:$BL$10,10,FALSE) -> -820 | AQ24: =IF(AJ24>=0,$AJ$4,IF(AI24>=0,$AI$4,IF(AH24>=0,$AH$4,IF(AG24>=0,$AG$4,IF(AF24>=0,$AF$4,IF(AE24>=0,$AE$4,IF(AD24>=0,$AD$4,IF(AC24>=0,$AC$4,$AB$4)))))))) -> INTB +
A25: H | B25: DOM | C25: GUA | D25: 2 | E25: 265989 | F25: BERTILI | G25: Bernard | H25: 2000 | I25: 59.3 | J25: Body Club Domien | K25: F | L25: 65 | M25: 68 | N25: -70 | O25: =IF(H25="","",IF(MAXA(L25:N25)<=0,0,MAXA(L25:N25))) -> 68 | P25: 78 | Q25: 83 | R25: -85 | S25: =IF(H25="","",IF(MAXA(P25:R25)<=0,0,MAXA(P25:R25))) -> 83 | T25: =IF(H25="","",IF(OR(O25=0,S25=0),0,O25+S25)) -> 151 | U25: 32.4 | V25: =IF(H25="","",AQ25) -> NAT + | W25: =IF(AJ25>=0,AJ25,IF(AI25>=0,AI25,IF(AH25>=0,AH25,IF(AG25>=0,AG25,IF(AF25>=0,AF25,IF(AE25>=0,AE25,IF(AD25>=0,AD25,IF(AC25>=0,AC25,AB25)))))))) -> 1 | X25: =IF(I25="","",IF(A25="H",IF(OR(H25="SEN",H25<1995),VLOOKUP(I25,Feuil1!$A$11:$F$29,6),IF(AND(H25>1994,H25<1998),VLOOKUP(I25,Feuil1!$A$11:$F$29,5),IF(AND(H25>1997,H25<2000),VLOOKUP(I25,Feuil1!$A$11:$F$29,4),IF(AND(H25>1999,H25<2002),VLOOKUP(I25,Feuil1!$A$11:$F$29,3),VLOOKUP(I25,Feuil1!$A$11:$F$29,2))))),IF(OR(H25="SEN",H25<1995),VLOOKUP(I25,Feuil1!$G$11:$L$25,6),IF(AND(H25>1994,H25<1998),VLOOKUP(I25,Feuil1!$G$11:$L$25,5),IF(AND(H25>1997,H25<2000),VLOOKUP(I25,Feuil1!$G$11:$L$25,4),IF(AND(H25>1999,H25<2002),VLOOKUP(I25,Feuil1!$G$11:$L$25,3),VLOOKUP(I25,Feuil1!$G$11:$L$25,2))))))) -> C1 62 | Y25: =IF(I25="","",IF(A25="H",10^(0.794358141*LOG(I25/174.393)^2)*T25,IF(A25="F",10^(0.89726074*LOG(I25/148.026)^2)*T25,""))) -> 225.5866089 | AB25: =T25-HLOOKUP(X25,Feuil1!$C$1:$BL$10,2,FALSE) -> 76 | AC25: =T25-HLOOKUP(X25,Feuil1!$C$1:$BL$10,3,FALSE) -> 56 | AD25: =T25-HLOOKUP(X25,Feuil1!$C$1:$BL$10,4,FALSE) -> 46 | AE25: =T25-HLOOKUP(X25,Feuil1!$C$1:$BL$10,5,FALSE) -> 31 | AF25: =T25-HLOOKUP(X25,Feuil1!$C$1:$BL$10,6,FALSE) -> 16 | AG25: =T25-HLOOKUP(X25,Feuil1!$C$1:$BL$10,7,FALSE) -> 1 | AH25: =T25-HLOOKUP(X25,Feuil1!$C$1:$BL$10,8,FALSE) -> -19 | AI25: =T25-HLOOKUP(X25,Feuil1!$C$1:$BL$10,9,FALSE) -> -39 | AJ25: =T25-HLOOKUP(X25,Feuil1!$C$1:$BL$10,10,FALSE) -> -849 | AQ25: =IF(AJ25>=0,$AJ$4,IF(AI25>=0,$AI$4,IF(AH25>=0,$AH$4,IF(AG25>=0,$AG$4,IF(AF25>=0,$AF$4,IF(AE25>=0,$AE$4,IF(AD25>=0,$AD$4,IF(AC25>=0,$AC$4,$AB$4)))))))) -> NAT +
A26: H | B26: NE | C26: CHA | D26: 3 | E26: 339573 | F26: MKRTCHYAN | G26: Armen | H26: 2000 | I26: 61.2 | J26: Reims HM | K26: Arm | L26: 51 | M26: 55 | N26: 57 | O26: =IF(H26="","",IF(MAXA(L26:N26)<=0,0,MAXA(L26:N26))) -> 57 | P26: 74 | Q26: 78 | R26: 82 | S26: =IF(H26="","",IF(MAXA(P26:R26)<=0,0,MAXA(P26:R26))) -> 82 | T26: =IF(H26="","",IF(OR(O26=0,S26=0),0,O26+S26)) -> 139 | U26: 16.6 | V26: =IF(H26="","",AQ26) -> FED + | W26: =IF(AJ26>=0,AJ26,IF(AI26>=0,AI26,IF(AH26>=0,AH26,IF(AG26>=0,AG26,IF(AF26>=0,AF26,IF(AE26>=0,AE26,IF(AD26>=0,AD26,IF(AC26>=0,AC26,AB26)))))))) -> 4 | X26: =IF(I26="","",IF(A26="H",IF(OR(H26="SEN",H26<1995),VLOOKUP(I26,Feuil1!$A$11:$F$29,6),IF(AND(H26>1994,H26<1998),VLOOKUP(I26,Feuil1!$A$11:$F$29,5),IF(AND(H26>1997,H26<2000),VLOOKUP(I26,Feuil1!$A$11:$F$29,4),IF(AND(H26>1999,H26<2002),VLOOKUP(I26,Feuil1!$A$11:$F$29,3),VLOOKUP(I26,Feuil1!$A$11:$F$29,2))))),IF(OR(H26="SEN",H26<1995),VLOOKUP(I26,Feuil1!$G$11:$L$25,6),IF(AND(H26>1994,H26<1998),VLOOKUP(I26,Feuil1!$G$11:$L$25,5),IF(AND(H26>1997,H26<2000),VLOOKUP(I26,Feuil1!$G$11:$L$25,4),IF(AND(H26>1999,H26<2002),VLOOKUP(I26,Feuil1!$G$11:$L$25,3),VLOOKUP(I26,Feuil1!$G$11:$L$25,2))))))) -> C1 62 | Y26: =IF(I26="","",IF(A26="H",10^(0.794358141*LOG(I26/174.393)^2)*T26,IF(A26="F",10^(0.89726074*LOG(I26/148.026)^2)*T26,""))) -> 202.9112319 | AB26: =T26-HLOOKUP(X26,Feuil1!$C$1:$BL$10,2,FALSE) -> 64 | AC26: =T26-HLOOKUP(X26,Feuil1!$C$1:$BL$10,3,FALSE) -> 44 | AD26: =T26-HLOOKUP(X26,Feuil1!$C$1:$BL$10,4,FALSE) -> 34 | AE26: =T26-HLOOKUP(X26,Feuil1!$C$1:$BL$10,5,FALSE) -> 19 | AF26: =T26-HLOOKUP(X26,Feuil1!$C$1:$BL$10,6,FALSE) -> 4 | AG26: =T26-HLOOKUP(X26,Feuil1!$C$1:$BL$10,7,FALSE) -> -11 | AH26: =T26-HLOOKUP(X26,Feuil1!$C$1:$BL$10,8,FALSE) -> -31 | AI26: =T26-HLOOKUP(X26,Feuil1!$C$1:$BL$10,9,FALSE) -> -51 | AJ26: =T26-HLOOKUP(X26,Feuil1!$C$1:$BL$10,10,FALSE) -> -861 | AQ26: =IF(AJ26>=0,$AJ$4,IF(AI26>=0,$AI$4,IF(AH26>=0,$AH$4,IF(AG26>=0,$AG$4,IF(AF26>=0,$AF$4,IF(AE26>=0,$AE$4,IF(AD26>=0,$AD$4,IF(AC26>=0,$AC$4,$AB$4)))))))) -> FED +
A27: H | B27: Nord | C27: NPC | D27: 4 | E27: 304778 | F27: DESMAREST | G27: Dylan | H27: 2000 | I27: 60 | J27: Lille UC | K27: F | L27: -55 | M27: 55 | N27: 58 | O27: =IF(H27="","",IF(MAXA(L27:N27)<=0,0,MAXA(L27:N27))) -> 58 | P27: 77 | Q27: -80 | R27: -80 | S27: =IF(H27="","",IF(MAXA(P27:R27)<=0,0,MAXA(P27:R27))) -> 77 | T27: =IF(H27="","",IF(OR(O27=0,S27=0),0,O27+S27)) -> 135 | U27: 15 | V27: =IF(H27="","",AQ27) -> FED + | W27: =IF(AJ27>=0,AJ27,IF(AI27>=0,AI27,IF(AH27>=0,AH27,IF(AG27>=0,AG27,IF(AF27>=0,AF27,IF(AE27>=0,AE27,IF(AD27>=0,AD27,IF(AC27>=0,AC27,AB27)))))))) -> 0 | X27: =IF(I27="","",IF(A27="H",IF(OR(H27="SEN",H27<1995),VLOOKUP(I27,Feuil1!$A$11:$F$29,6),IF(AND(H27>1994,H27<1998),VLOOKUP(I27,Feuil1!$A$11:$F$29,5),IF(AND(H27>1997,H27<2000),VLOOKUP(I27,Feuil1!$A$11:$F$29,4),IF(AND(H27>1999,H27<2002),VLOOKUP(I27,Feuil1!$A$11:$F$29,3),VLOOKUP(I27,Feuil1!$A$11:$F$29,2))))),IF(OR(H27="SEN",H27<1995),VLOOKUP(I27,Feuil1!$G$11:$L$25,6),IF(AND(H27>1994,H27<1998),VLOOKUP(I27,Feuil1!$G$11:$L$25,5),IF(AND(H27>1997,H27<2000),VLOOKUP(I27,Feuil1!$G$11:$L$25,4),IF(AND(H27>1999,H27<2002),VLOOKUP(I27,Feuil1!$G$11:$L$25,3),VLOOKUP(I27,Feuil1!$G$11:$L$25,2))))))) -> C1 62 | Y27: =IF(I27="","",IF(A27="H",10^(0.794358141*LOG(I27/174.393)^2)*T27,IF(A27="F",10^(0.89726074*LOG(I27/148.026)^2)*T27,""))) -> 199.9390119 | AB27: =T27-HLOOKUP(X27,Feuil1!$C$1:$BL$10,2,FALSE) -> 60 | AC27: =T27-HLOOKUP(X27,Feuil1!$C$1:$BL$10,3,FALSE) -> 40 | AD27: =T27-HLOOKUP(X27,Feuil1!$C$1:$BL$10,4,FALSE) -> 30 | AE27: =T27-HLOOKUP(X27,Feuil1!$C$1:$BL$10,5,FALSE) -> 15 | AF27: =T27-HLOOKUP(X27,Feuil1!$C$1:$BL$10,6,FALSE) -> 0 | AG27: =T27-HLOOKUP(X27,Feuil1!$C$1:$BL$10,7,FALSE) -> -15 | AH27: =T27-HLOOKUP(X27,Feuil1!$C$1:$BL$10,8,FALSE) -> -35 | AI27: =T27-HLOOKUP(X27,Feuil1!$C$1:$BL$10,9,FALSE) -> -55 | AJ27: =T27-HLOOKUP(X27,Feuil1!$C$1:$BL$10,10,FALSE) -> -865 | AQ27: =IF(AJ27>=0,$AJ$4,IF(AI27>=0,$AI$4,IF(AH27>=0,$AH$4,IF(AG27>=0,$AG$4,IF(AF27>=0,$AF$4,IF(AE27>=0,$AE$4,IF(AD27>=0,$AD$4,IF(AC27>=0,$AC$4,$AB$4)))))))) -> FED +
A28: H | B28: Nord | C28: NPC | D28: 5 | E28: 311932 | F28: MAES | G28: Calvin | H28: 2000 | I28: 60.8 | J28: CA Rosendael | K28: F | L28: 50 | M28: 55 | N28: -57 | O28: =IF(H28="","",IF(MAXA(L28:N28)<=0,0,MAXA(L28:N28))) -> 55 | P28: 70 | Q28: 75 | R28: -80 | S28: =IF(H28="","",IF(MAXA(P28:R28)<=0,0,MAXA(P28:R28))) -> 75 | T28: =IF(H28="","",IF(OR(O28=0,S28=0),0,O28+S28)) -> 130 | U28: 8.4 | V28: =IF(H28="","",AQ28) -> IRG + | W28: =IF(AJ28>=0,AJ28,IF(AI28>=0,AI28,IF(AH28>=0,AH28,IF(AG28>=0,AG28,IF(AF28>=0,AF28,IF(AE28>=0,AE28,IF(AD28>=0,AD28,IF(AC28>=0,AC28,AB28)))))))) -> 10 | X28: =IF(I28="","",IF(A28="H",IF(OR(H28="SEN",H28<1995),VLOOKUP(I28,Feuil1!$A$11:$F$29,6),IF(AND(H28>1994,H28<1998),VLOOKUP(I28,Feuil1!$A$11:$F$29,5),IF(AND(H28>1997,H28<2000),VLOOKUP(I28,Feuil1!$A$11:$F$29,4),IF(AND(H28>1999,H28<2002),VLOOKUP(I28,Feuil1!$A$11:$F$29,3),VLOOKUP(I28,Feuil1!$A$11:$F$29,2))))),IF(OR(H28="SEN",H28<1995),VLOOKUP(I28,Feuil1!$G$11:$L$25,6),IF(AND(H28>1994,H28<1998),VLOOKUP(I28,Feuil1!$G$11:$L$25,5),IF(AND(H28>1997,H28<2000),VLOOKUP(I28,Feuil1!$G$11:$L$25,4),IF(AND(H28>1999,H28<2002),VLOOKUP(I28,Feuil1!$G$11:$L$25,3),VLOOKUP(I28,Feuil1!$G$11:$L$25,2))))))) -> C1 62 | Y28: =IF(I28="","",IF(A28="H",10^(0.794358141*LOG(I28/174.393)^2)*T28,IF(A28="F",10^(0.89726074*LOG(I28/148.026)^2)*T28,""))) -> 190.6771642 | AB28: =T28-HLOOKUP(X28,Feuil1!$C$1:$BL$10,2,FALSE) -> 55 | AC28: =T28-HLOOKUP(X28,Feuil1!$C$1:$BL$10,3,FALSE) -> 35 | AD28: =T28-HLOOKUP(X28,Feuil1!$C$1:$BL$10,4,FALSE) -> 25 | AE28: =T28-HLOOKUP(X28,Feuil1!$C$1:$BL$10,5,FALSE) -> 10 | AF28: =T28-HLOOKUP(X28,Feuil1!$C$1:$BL$10,6,FALSE) -> -5 | AG28: =T28-HLOOKUP(X28,Feuil1!$C$1:$BL$10,7,FALSE) -> -20 | AH28: =T28-HLOOKUP(X28,Feuil1!$C$1:$BL$10,8,FALSE) -> -40 | AI28: =T28-HLOOKUP(X28,Feuil1!$C$1:$BL$10,9,FALSE) -> -60 | AJ28: =T28-HLOOKUP(X28,Feuil1!$C$1:$BL$10,10,FALSE) -> -870 | AQ28: =IF(AJ28>=0,$AJ$4,IF(AI28>=0,$AI$4,IF(AH28>=0,$AH$4,IF(AG28>=0,$AG$4,IF(AF28>=0,$AF$4,IF(AE28>=0,$AE$4,IF(AD28>=0,$AD$4,IF(AC28>=0,$AC$4,$AB$4)))))))) -> IRG +
AB29: =T29-HLOOKUP(X29,Feuil1!$C$1:$BL$10,2,FALSE) ->  | AC29: =T29-HLOOKUP(X29,Feuil1!$C$1:$BL$10,3,FALSE) ->  | AD29: =T29-HLOOKUP(X29,Feuil1!$C$1:$BL$10,4,FALSE) ->  | AE29: =T29-HLOOKUP(X29,Feuil1!$C$1:$BL$10,5,FALSE) ->  | AF29: =T29-HLOOKUP(X29,Feuil1!$C$1:$BL$10,6,FALSE) ->  | AG29: =T29-HLOOKUP(X29,Feuil1!$C$1:$BL$10,7,FALSE) ->  | AH29: =T29-HLOOKUP(X29,Feuil1!$C$1:$BL$10,8,FALSE) ->  | AI29: =T29-HLOOKUP(X29,Feuil1!$C$1:$BL$10,9,FALSE) ->  | AJ29: =T29-HLOOKUP(X29,Feuil1!$C$1:$BL$10,10,FALSE) -> 
A30: H | B30: SEST | C30: PRO | D30: 1 | E30: 342507 | F30: ALFONSI | G30: Luc | H30: 2001 | I30: 66.4 | J30: EEAR. MONTEUX | K30: F | L30: -70 | M30: 70 | N30: 75 | O30: =IF(H30="","",IF(MAXA(L30:N30)<=0,0,MAXA(L30:N30))) -> 75 | P30: 95 | Q30: 101 | R30: - | S30: =IF(H30="","",IF(MAXA(P30:R30)<=0,0,MAXA(P30:R30))) -> 101 | T30: =IF(H30="","",IF(OR(O30=0,S30=0),0,O30+S30)) -> 176 | U30: 43.2 | V30: =IF(H30="","",AQ30) -> NAT + | W30: =IF(AJ30>=0,AJ30,IF(AI30>=0,AI30,IF(AH30>=0,AH30,IF(AG30>=0,AG30,IF(AF30>=0,AF30,IF(AE30>=0,AE30,IF(AD30>=0,AD30,IF(AC30>=0,AC30,AB30)))))))) -> 6 | X30: =IF(I30="","",IF(A30="H",IF(OR(H30="SEN",H30<1995),VLOOKUP(I30,Feuil1!$A$11:$F$29,6),IF(AND(H30>1994,H30<1998),VLOOKUP(I30,Feuil1!$A$11:$F$29,5),IF(AND(H30>1997,H30<2000),VLOOKUP(I30,Feuil1!$A$11:$F$29,4),IF(AND(H30>1999,H30<2002),VLOOKUP(I30,Feuil1!$A$11:$F$29,3),VLOOKUP(I30,Feuil1!$A$11:$F$29,2))))),IF(OR(H30="SEN",H30<1995),VLOOKUP(I30,Feuil1!$G$11:$L$25,6),IF(AND(H30>1994,H30<1998),VLOOKUP(I30,Feuil1!$G$11:$L$25,5),IF(AND(H30>1997,H30<2000),VLOOKUP(I30,Feuil1!$G$11:$L$25,4),IF(AND(H30>1999,H30<2002),VLOOKUP(I30,Feuil1!$G$11:$L$25,3),VLOOKUP(I30,Feuil1!$G$11:$L$25,2))))))) -> C1 69 | Y30: =IF(I30="","",IF(A30="H",10^(0.794358141*LOG(I30/174.393)^2)*T30,IF(A30="F",10^(0.89726074*LOG(I30/148.026)^2)*T30,""))) -> 242.7791397 | AB30: =T30-HLOOKUP(X30,Feuil1!$C$1:$BL$10,2,FALSE) -> 91 | AC30: =T30-HLOOKUP(X30,Feuil1!$C$1:$BL$10,3,FALSE) -> 71 | AD30: =T30-HLOOKUP(X30,Feuil1!$C$1:$BL$10,4,FALSE) -> 61 | AE30: =T30-HLOOKUP(X30,Feuil1!$C$1:$BL$10,5,FALSE) -> 46 | AF30: =T30-HLOOKUP(X30,Feuil1!$C$1:$BL$10,6,FALSE) -> 26 | AG30: =T30-HLOOKUP(X30,Feuil1!$C$1:$BL$10,7,FALSE) -> 6 | AH30: =T30-HLOOKUP(X30,Feuil1!$C$1:$BL$10,8,FALSE) -> -14 | AI30: =T30-HLOOKUP(X30,Feuil1!$C$1:$BL$10,9,FALSE) -> -34 | AJ30: =T30-HLOOKUP(X30,Feuil1!$C$1:$BL$10,10,FALSE) -> -824 | AQ30: =IF(AJ30>=0,$AJ$4,IF(AI30>=0,$AI$4,IF(AH30>=0,$AH$4,IF(AG30>=0,$AG$4,IF(AF30>=0,$AF$4,IF(AE30>=0,$AE$4,IF(AD30>=0,$AD$4,IF(AC30>=0,$AC$4,$AB$4)))))))) -> NAT +
AB31: =T31-HLOOKUP(X31,Feuil1!$C$1:$BL$10,2,FALSE) ->  | AC31: =T31-HLOOKUP(X31,Feuil1!$C$1:$BL$10,3,FALSE) ->  | AD31: =T31-HLOOKUP(X31,Feuil1!$C$1:$BL$10,4,FALSE) ->  | AE31: =T31-HLOOKUP(X31,Feuil1!$C$1:$BL$10,5,FALSE) ->  | AF31: =T31-HLOOKUP(X31,Feuil1!$C$1:$BL$10,6,FALSE) ->  | AG31: =T31-HLOOKUP(X31,Feuil1!$C$1:$BL$10,7,FALSE) ->  | AH31: =T31-HLOOKUP(X31,Feuil1!$C$1:$BL$10,8,FALSE) ->  | AI31: =T31-HLOOKUP(X31,Feuil1!$C$1:$BL$10,9,FALSE) ->  | AJ31: =T31-HLOOKUP(X31,Feuil1!$C$1:$BL$10,10,FALSE) -> 
A32: H | B32: Nord | C32: NPC | D32: 1 | E32: 272004 | F32: FRANCHOIS | G32: Kévin | H32: 2000 | I32: 76.4 | J32: St Pol sur Mer | K32: F | L32: 75 | M32: -80 | N32: 80 | O32: 80 | P32: 95 | Q32: -100 | R32: 100 | S32: 100 | T32: 180 | U32: 27.2 | V32: FED + | W32: 10 | X32: =IF(I32="","",IF(A32="H",IF(OR(H32="SEN",H32<1995),VLOOKUP(I32,Feuil1!$A$11:$F$29,6),IF(AND(H32>1994,H32<1998),VLOOKUP(I32,Feuil1!$A$11:$F$29,5),IF(AND(H32>1997,H32<2000),VLOOKUP(I32,Feuil1!$A$11:$F$29,4),IF(AND(H32>1999,H32<2002),VLOOKUP(I32,Feuil1!$A$11:$F$29,3),VLOOKUP(I32,Feuil1!$A$11:$F$29,2))))),IF(OR(H32="SEN",H32<1995),VLOOKUP(I32,Feuil1!$G$11:$L$25,6),IF(AND(H32>1994,H32<1998),VLOOKUP(I32,Feuil1!$G$11:$L$25,5),IF(AND(H32>1997,H32<2000),VLOOKUP(I32,Feuil1!$G$11:$L$25,4),IF(AND(H32>1999,H32<2002),VLOOKUP(I32,Feuil1!$G$11:$L$25,3),VLOOKUP(I32,Feuil1!$G$11:$L$25,2))))))) -> C1 77 | Y32: =IF(I32="","",IF(A32="H",10^(0.794358141*LOG(I32/174.393)^2)*T32,IF(A32="F",10^(0.89726074*LOG(I32/148.026)^2)*T32,""))) -> 227.6819362 | AB32: =T32-HLOOKUP(X32,Feuil1!$C$1:$BL$10,2,FALSE) -> 90 | AC32: =T32-HLOOKUP(X32,Feuil1!$C$1:$BL$10,3,FALSE) -> 70 | AD32: =T32-HLOOKUP(X32,Feuil1!$C$1:$BL$10,4,FALSE) -> 50 | AE32: =T32-HLOOKUP(X32,Feuil1!$C$1:$BL$10,5,FALSE) -> 30 | AF32: =T32-HLOOKUP(X32,Feuil1!$C$1:$BL$10,6,FALSE) -> 10 | AG32: =T32-HLOOKUP(X32,Feuil1!$C$1:$BL$10,7,FALSE) -> -5 | AH32: =T32-HLOOKUP(X32,Feuil1!$C$1:$BL$10,8,FALSE) -> -20 | AI32: =T32-HLOOKUP(X32,Feuil1!$C$1:$BL$10,9,FALSE) -> -40 | AJ32: =T32-HLOOKUP(X32,Feuil1!$C$1:$BL$10,10,FALSE) -> -820 | AQ32: FED +
A33: H | B33: NE | C33: ALS | D33: 2 | E33: 326143 | F33: SPIELMANN | G33: Arthur | H33: 2000 | I33: 74.3 | J33: SR Obernai HM | K33: F | L33: -61 | M33: 61 | N33: 66 | O33: 66 | P33: 80 | Q33: 84 | R33: -88 | S33: 84 | T33: 150 | U33: 1.4 | V33: IRG + | W33: 0 | X33: =IF(I33="","",IF(A33="H",IF(OR(H33="SEN",H33<1995),VLOOKUP(I33,Feuil1!$A$11:$F$29,6),IF(AND(H33>1994,H33<1998),VLOOKUP(I33,Feuil1!$A$11:$F$29,5),IF(AND(H33>1997,H33<2000),VLOOKUP(I33,Feuil1!$A$11:$F$29,4),IF(AND(H33>1999,H33<2002),VLOOKUP(I33,Feuil1!$A$11:$F$29,3),VLOOKUP(I33,Feuil1!$A$11:$F$29,2))))),IF(OR(H33="SEN",H33<1995),VLOOKUP(I33,Feuil1!$G$11:$L$25,6),IF(AND(H33>1994,H33<1998),VLOOKUP(I33,Feuil1!$G$11:$L$25,5),IF(AND(H33>1997,H33<2000),VLOOKUP(I33,Feuil1!$G$11:$L$25,4),IF(AND(H33>1999,H33<2002),VLOOKUP(I33,Feuil1!$G$11:$L$25,3),VLOOKUP(I33,Feuil1!$G$11:$L$25,2))))))) -> C1 77 | Y33: =IF(I33="","",IF(A33="H",10^(0.794358141*LOG(I33/174.393)^2)*T33,IF(A33="F",10^(0.89726074*LOG(I33/148.026)^2)*T33,""))) -> 192.8220448 | AB33: =T33-HLOOKUP(X33,Feuil1!$C$1:$BL$10,2,FALSE) -> 60 | AC33: =T33-HLOOKUP(X33,Feuil1!$C$1:$BL$10,3,FALSE) -> 40 | AD33: =T33-HLOOKUP(X33,Feuil1!$C$1:$BL$10,4,FALSE) -> 20 | AE33: =T33-HLOOKUP(X33,Feuil1!$C$1:$BL$10,5,FALSE) -> 0 | AF33: =T33-HLOOKUP(X33,Feuil1!$C$1:$BL$10,6,FALSE) -> -20 | AG33: =T33-HLOOKUP(X33,Feuil1!$C$1:$BL$10,7,FALSE) -> -35 | AH33: =T33-HLOOKUP(X33,Feuil1!$C$1:$BL$10,8,FALSE) -> -50 | AI33: =T33-HLOOKUP(X33,Feuil1!$C$1:$BL$10,9,FALSE) -> -70 | AJ33: =T33-HLOOKUP(X33,Feuil1!$C$1:$BL$10,10,FALSE) -> -850 | AQ33: IRG +
AB34: =T34-HLOOKUP(X34,Feuil1!$C$1:$BL$10,2,FALSE) ->  | AC34: =T34-HLOOKUP(X34,Feuil1!$C$1:$BL$10,3,FALSE) ->  | AD34: =T34-HLOOKUP(X34,Feuil1!$C$1:$BL$10,4,FALSE) ->  | AE34: =T34-HLOOKUP(X34,Feuil1!$C$1:$BL$10,5,FALSE) ->  | AF34: =T34-HLOOKUP(X34,Feuil1!$C$1:$BL$10,6,FALSE) ->  | AG34: =T34-HLOOKUP(X34,Feuil1!$C$1:$BL$10,7,FALSE) ->  | AH34: =T34-HLOOKUP(X34,Feuil1!$C$1:$BL$10,8,FALSE) ->  | AI34: =T34-HLOOKUP(X34,Feuil1!$C$1:$BL$10,9,FALSE) ->  | AJ34: =T34-HLOOKUP(X34,Feuil1!$C$1:$BL$10,10,FALSE) -> 
F35: U17 | AB35: =T35-HLOOKUP(X35,Feuil1!$C$1:$BL$10,2,FALSE) ->  | AC35: =T35-HLOOKUP(X35,Feuil1!$C$1:$BL$10,3,FALSE) ->  | AD35: =T35-HLOOKUP(X35,Feuil1!$C$1:$BL$10,4,FALSE) ->  | AE35: =T35-HLOOKUP(X35,Feuil1!$C$1:$BL$10,5,FALSE) ->  | AF35: =T35-HLOOKUP(X35,Feuil1!$C$1:$BL$10,6,FALSE) ->  | AG35: =T35-HLOOKUP(X35,Feuil1!$C$1:$BL$10,7,FALSE) ->  | AH35: =T35-HLOOKUP(X35,Feuil1!$C$1:$BL$10,8,FALSE) ->  | AI35: =T35-HLOOKUP(X35,Feuil1!$C$1:$BL$10,9,FALSE) ->  | AJ35: =T35-HLOOKUP(X35,Feuil1!$C$1:$BL$10,10,FALSE) -> 
A36: H | B36: SEST | C36: CAZ | D36: 1 | E36: 357026 | F36: MONTAGNOLI | G36: Corentin | H36: 1998 | I36: 49.6 | J36: E.S. VILLENEUVE LOUBET | K36: F | L36: 44 | M36: 47 | N36: -50 | O36: =IF(H36="","",IF(MAXA(L36:N36)<=0,0,MAXA(L36:N36))) -> 47 | P36: 53 | Q36: 57 | R36: -60 | S36: =IF(H36="","",IF(MAXA(P36:R36)<=0,0,MAXA(P36:R36))) -> 57 | T36: =IF(H36="","",IF(OR(O36=0,S36=0),0,O36+S36)) -> 104 | U36: 4.8 | V36: =IF(H36="","",AQ36) -> IRG + | W36: =IF(AJ36>=0,AJ36,IF(AI36>=0,AI36,IF(AH36>=0,AH36,IF(AG36>=0,AG36,IF(AF36>=0,AF36,IF(AE36>=0,AE36,IF(AD36>=0,AD36,IF(AC36>=0,AC36,AB36)))))))) -> 9 | X36: =IF(I36="","",IF(A36="H",IF(OR(H36="SEN",H36<1995),VLOOKUP(I36,Feuil1!$A$11:$F$29,6),IF(AND(H36>1994,H36<1998),VLOOKUP(I36,Feuil1!$A$11:$F$29,5),IF(AND(H36>1997,H36<2000),VLOOKUP(I36,Feuil1!$A$11:$F$29,4),IF(AND(H36>1999,H36<2002),VLOOKUP(I36,Feuil1!$A$11:$F$29,3),VLOOKUP(I36,Feuil1!$A$11:$F$29,2))))),IF(OR(H36="SEN",H36<1995),VLOOKUP(I36,Feuil1!$G$11:$L$25,6),IF(AND(H36>1994,H36<1998),VLOOKUP(I36,Feuil1!$G$11:$L$25,5),IF(AND(H36>1997,H36<2000),VLOOKUP(I36,Feuil1!$G$11:$L$25,4),IF(AND(H36>1999,H36<2002),VLOOKUP(I36,Feuil1!$G$11:$L$25,3),VLOOKUP(I36,Feuil1!$G$11:$L$25,2))))))) -> C2 50 | Y36: =IF(I36="","",IF(A36="H",10^(0.794358141*LOG(I36/174.393)^2)*T36,IF(A36="F",10^(0.89726074*LOG(I36/148.026)^2)*T36,""))) -> 179.425971 | AB36: =T36-HLOOKUP(X36,Feuil1!$C$1:$BL$10,2,FALSE) -> 59 | AC36: =T36-HLOOKUP(X36,Feuil1!$C$1:$BL$10,3,FALSE) -> 39 | AD36: =T36-HLOOKUP(X36,Feuil1!$C$1:$BL$10,4,FALSE) -> 24 | AE36: =T36-HLOOKUP(X36,Feuil1!$C$1:$BL$10,5,FALSE) -> 9 | AF36: =T36-HLOOKUP(X36,Feuil1!$C$1:$BL$10,6,FALSE) -> -6 | AG36: =T36-HLOOKUP(X36,Feuil1!$C$1:$BL$10,7,FALSE) -> -16 | AH36: =T36-HLOOKUP(X36,Feuil1!$C$1:$BL$10,8,FALSE) -> -31 | AI36: =T36-HLOOKUP(X36,Feuil1!$C$1:$BL$10,9,FALSE) -> -46 | AJ36: =T36-HLOOKUP(X36,Feuil1!$C$1:$BL$10,10,FALSE) -> -896 | AQ36: =IF(AJ36>=0,$AJ$4,IF(AI36>=0,$AI$4,IF(AH36>=0,$AH$4,IF(AG36>=0,$AG$4,IF(AF36>=0,$AF$4,IF(AE36>=0,$AE$4,IF(AD36>=0,$AD$4,IF(AC36>=0,$AC$4,$AB$4)))))))) -> IRG +
A37: H | B37: Nord | C37: NPC | D37: 2 | E37: 279997 | F37: RIQUIER | G37: Dimitri | H37: 1999 | I37: 48.51 | J37: Lille UC | K37: F | L37: 43 | M37: 47 | N37: -50 | O37: =IF(H37="","",IF(MAXA(L37:N37)<=0,0,MAXA(L37:N37))) -> 47 | P37: 55 | Q37: -63 | R37: -63 | S37: =IF(H37="","",IF(MAXA(P37:R37)<=0,0,MAXA(P37:R37))) -> 55 | T37: =IF(H37="","",IF(OR(O37=0,S37=0),0,O37+S37)) -> 102 | U37: 4.98 | V37: =IF(H37="","",AQ37) -> IRG + | W37: =IF(AJ37>=0,AJ37,IF(AI37>=0,AI37,IF(AH37>=0,AH37,IF(AG37>=0,AG37,IF(AF37>=0,AF37,IF(AE37>=0,AE37,IF(AD37>=0,AD37,IF(AC37>=0,AC37,AB37)))))))) -> 7 | X37: =IF(I37="","",IF(A37="H",IF(OR(H37="SEN",H37<1995),VLOOKUP(I37,Feuil1!$A$11:$F$29,6),IF(AND(H37>1994,H37<1998),VLOOKUP(I37,Feuil1!$A$11:$F$29,5),IF(AND(H37>1997,H37<2000),VLOOKUP(I37,Feuil1!$A$11:$F$29,4),IF(AND(H37>1999,H37<2002),VLOOKUP(I37,Feuil1!$A$11:$F$29,3),VLOOKUP(I37,Feuil1!$A$11:$F$29,2))))),IF(OR(H37="SEN",H37<1995),VLOOKUP(I37,Feuil1!$G$11:$L$25,6),IF(AND(H37>1994,H37<1998),VLOOKUP(I37,Feuil1!$G$11:$L$25,5),IF(AND(H37>1997,H37<2000),VLOOKUP(I37,Feuil1!$G$11:$L$25,4),IF(AND(H37>1999,H37<2002),VLOOKUP(I37,Feuil1!$G$11:$L$25,3),VLOOKUP(I37,Feuil1!$G$11:$L$25,2))))))) -> C2 50 | Y37: =IF(I37="","",IF(A37="H",10^(0.794358141*LOG(I37/174.393)^2)*T37,IF(A37="F",10^(0.89726074*LOG(I37/148.026)^2)*T37,""))) -> 179.431207 | AB37: =T37-HLOOKUP(X37,Feuil1!$C$1:$BL$10,2,FALSE) -> 57 | AC37: =T37-HLOOKUP(X37,Feuil1!$C$1:$BL$10,3,FALSE) -> 37 | AD37: =T37-HLOOKUP(X37,Feuil1!$C$1:$BL$10,4,FALSE) -> 22 | AE37: =T37-HLOOKUP(X37,Feuil1!$C$1:$BL$10,5,FALSE) -> 7 | AF37: =T37-HLOOKUP(X37,Feuil1!$C$1:$BL$10,6,FALSE) -> -8 | AG37: =T37-HLOOKUP(X37,Feuil1!$C$1:$BL$10,7,FALSE) -> -18 | AH37: =T37-HLOOKUP(X37,Feuil1!$C$1:$BL$10,8,FALSE) -> -33 | AI37: =T37-HLOOKUP(X37,Feuil1!$C$1:$BL$10,9,FALSE) -> -48 | AJ37: =T37-HLOOKUP(X37,Feuil1!$C$1:$BL$10,10,FALSE) -> -898 | AQ37: =IF(AJ37>=0,$AJ$4,IF(AI37>=0,$AI$4,IF(AH37>=0,$AH$4,IF(AG37>=0,$AG$4,IF(AF37>=0,$AF$4,IF(AE37>=0,$AE$4,IF(AD37>=0,$AD$4,IF(AC37>=0,$AC$4,$AB$4)))))))) -> IRG +
A38: H | B38: ZCO | C38: PDL | D38: 3 | E38: 234307 | F38: ROUSSELET | G38: Clément | H38: 1999 | I38: 47.85 | J38: Giberville | K38: F | L38: 42 | M38: 45 | N38: -47 | O38: =IF(H38="","",IF(MAXA(L38:N38)<=0,0,MAXA(L38:N38))) -> 45 | P38: 50 | Q38: 55 | R38: -60 | S38: =IF(H38="","",IF(MAXA(P38:R38)<=0,0,MAXA(P38:R38))) -> 55 | T38: =IF(H38="","",IF(OR(O38=0,S38=0),0,O38+S38)) -> 100 | U38: 4.3 | V38: =IF(H38="","",AQ38) -> IRG + | W38: =IF(AJ38>=0,AJ38,IF(AI38>=0,AI38,IF(AH38>=0,AH38,IF(AG38>=0,AG38,IF(AF38>=0,AF38,IF(AE38>=0,AE38,IF(AD38>=0,AD38,IF(AC38>=0,AC38,AB38)))))))) -> 5 | X38: =IF(I38="","",IF(A38="H",IF(OR(H38="SEN",H38<1995),VLOOKUP(I38,Feuil1!$A$11:$F$29,6),IF(AND(H38>1994,H38<1998),VLOOKUP(I38,Feuil1!$A$11:$F$29,5),IF(AND(H38>1997,H38<2000),VLOOKUP(I38,Feuil1!$A$11:$F$29,4),IF(AND(H38>1999,H38<2002),VLOOKUP(I38,Feuil1!$A$11:$F$29,3),VLOOKUP(I38,Feuil1!$A$11:$F$29,2))))),IF(OR(H38="SEN",H38<1995),VLOOKUP(I38,Feuil1!$G$11:$L$25,6),IF(AND(H38>1994,H38<1998),VLOOKUP(I38,Feuil1!$G$11:$L$25,5),IF(AND(H38>1997,H38<2000),VLOOKUP(I38,Feuil1!$G$11:$L$25,4),IF(AND(H38>1999,H38<2002),VLOOKUP(I38,Feuil1!$G$11:$L$25,3),VLOOKUP(I38,Feuil1!$G$11:$L$25,2))))))) -> C2 50 | Y38: =IF(I38="","",IF(A38="H",10^(0.794358141*LOG(I38/174.393)^2)*T38,IF(A38="F",10^(0.89726074*LOG(I38/148.026)^2)*T38,""))) -> 178.0648785 | AB38: =T38-HLOOKUP(X38,Feuil1!$C$1:$BL$10,2,FALSE) -> 55 | AC38: =T38-HLOOKUP(X38,Feuil1!$C$1:$BL$10,3,FALSE) -> 35 | AD38: =T38-HLOOKUP(X38,Feuil1!$C$1:$BL$10,4,FALSE) -> 20 | AE38: =T38-HLOOKUP(X38,Feuil1!$C$1:$BL$10,5,FALSE) -> 5 | AF38: =T38-HLOOKUP(X38,Feuil1!$C$1:$BL$10,6,FALSE) -> -10 | AG38: =T38-HLOOKUP(X38,Feuil1!$C$1:$BL$10,7,FALSE) -> -20 | AH38: =T38-HLOOKUP(X38,Feuil1!$C$1:$BL$10,8,FALSE) -> -35 | AI38: =T38-HLOOKUP(X38,Feuil1!$C$1:$BL$10,9,FALSE) -> -50 | AJ38: =T38-HLOOKUP(X38,Feuil1!$C$1:$BL$10,10,FALSE) -> -900 | AQ38: =IF(AJ38>=0,$AJ$4,IF(AI38>=0,$AI$4,IF(AH38>=0,$AH$4,IF(AG38>=0,$AG$4,IF(AF38>=0,$AF$4,IF(AE38>=0,$AE$4,IF(AD38>=0,$AD$4,IF(AC38>=0,$AC$4,$AB$4)))))))) -> IRG +
Q39: R.F. | T39: R.F. | AB39: =T39-HLOOKUP(X39,Feuil1!$C$1:$BL$10,2,FALSE) ->  | AC39: =T39-HLOOKUP(X39,Feuil1!$C$1:$BL$10,3,FALSE) ->  | AD39: =T39-HLOOKUP(X39,Feuil1!$C$1:$BL$10,4,FALSE) ->  | AE39: =T39-HLOOKUP(X39,Feuil1!$C$1:$BL$10,5,FALSE) ->  | AF39: =T39-HLOOKUP(X39,Feuil1!$C$1:$BL$10,6,FALSE) ->  | AG39: =T39-HLOOKUP(X39,Feuil1!$C$1:$BL$10,7,FALSE) ->  | AH39: =T39-HLOOKUP(X39,Feuil1!$C$1:$BL$10,8,FALSE) ->  | AI39: =T39-HLOOKUP(X39,Feuil1!$C$1:$BL$10,9,FALSE) ->  | AJ39: =T39-HLOOKUP(X39,Feuil1!$C$1:$BL$10,10,FALSE) -> 
A40: H | B40: Nord | C40: PIC | D40: 1 | E40: 261141 | F40: PEDRAK | G40: Benjamin | H40: 1998 | I40: 55.39 | J40: Villers-Bretonneux KC | K40: F | L40: 84 | M40: 88 | N40: -92 | O40: =IF(H40="","",IF(MAXA(L40:N40)<=0,0,MAXA(L40:N40))) -> 88 | P40: 105 | Q40: 111 | R40: -113 | S40: =IF(H40="","",IF(MAXA(P40:R40)<=0,0,MAXA(P40:R40))) -> 111 | T40: =IF(H40="","",IF(OR(O40=0,S40=0),0,O40+S40)) -> 199 | U40: 88.22 | V40: =IF(H40="","",AQ40) -> INTA + | W40: =IF(AJ40>=0,AJ40,IF(AI40>=0,AI40,IF(AH40>=0,AH40,IF(AG40>=0,AG40,IF(AF40>=0,AF40,IF(AE40>=0,AE40,IF(AD40>=0,AD40,IF(AC40>=0,AC40,AB40)))))))) -> 9 | X40: =IF(I40="","",IF(A40="H",IF(OR(H40="SEN",H40<1995),VLOOKUP(I40,Feuil1!$A$11:$F$29,6),IF(AND(H40>1994,H40<1998),VLOOKUP(I40,Feuil1!$A$11:$F$29,5),IF(AND(H40>1997,H40<2000),VLOOKUP(I40,Feuil1!$A$11:$F$29,4),IF(AND(H40>1999,H40<2002),VLOOKUP(I40,Feuil1!$A$11:$F$29,3),VLOOKUP(I40,Feuil1!$A$11:$F$29,2))))),IF(OR(H40="SEN",H40<1995),VLOOKUP(I40,Feuil1!$G$11:$L$25,6),IF(AND(H40>1994,H40<1998),VLOOKUP(I40,Feuil1!$G$11:$L$25,5),IF(AND(H40>1997,H40<2000),VLOOKUP(I40,Feuil1!$G$11:$L$25,4),IF(AND(H40>1999,H40<2002),VLOOKUP(I40,Feuil1!$G$11:$L$25,3),VLOOKUP(I40,Feuil1!$G$11:$L$25,2))))))) -> C2 56 | Y40: =IF(I40="","",IF(A40="H",10^(0.794358141*LOG(I40/174.393)^2)*T40,IF(A40="F",10^(0.89726074*LOG(I40/148.026)^2)*T40,""))) -> 313.2812231 | AB40: =T40-HLOOKUP(X40,Feuil1!$C$1:$BL$10,2,FALSE) -> 134 | AC40: =T40-HLOOKUP(X40,Feuil1!$C$1:$BL$10,3,FALSE) -> 114 | AD40: =T40-HLOOKUP(X40,Feuil1!$C$1:$BL$10,4,FALSE) -> 99 | AE40: =T40-HLOOKUP(X40,Feuil1!$C$1:$BL$10,5,FALSE) -> 84 | AF40: =T40-HLOOKUP(X40,Feuil1!$C$1:$BL$10,6,FALSE) -> 69 | AG40: =T40-HLOOKUP(X40,Feuil1!$C$1:$BL$10,7,FALSE) -> 54 | AH40: =T40-HLOOKUP(X40,Feuil1!$C$1:$BL$10,8,FALSE) -> 29 | AI40: =T40-HLOOKUP(X40,Feuil1!$C$1:$BL$10,9,FALSE) -> 9 | AJ40: =T40-HLOOKUP(X40,Feuil1!$C$1:$BL$10,10,FALSE) -> -801 | AQ40: =IF(AJ40>=0,$AJ$4,IF(AI40>=0,$AI$4,IF(AH40>=0,$AH$4,IF(AG40>=0,$AG$4,IF(AF40>=0,$AF$4,IF(AE40>=0,$AE$4,IF(AD40>=0,$AD$4,IF(AC40>=0,$AC$4,$AB$4)))))))) -> INTA +
A41: H | B41: SEST | C41: CAZ | D41: 2 | E41: 305873 | F41: LANDAIS | G41: Alexis | H41: 1999 | I41: 55.2 | J41: E.S. VILLENEUVE LOUBET | K41: F | L41: 66 | M41: 70 | N41: -72 | O41: 70 | P41: 83 | Q41: 87 | R41: -90 | S41: 87 | T41: 157 | U41: 46.6 | V41: NAT + | W41: 12 | X41: =IF(I41="","",IF(A41="H",IF(OR(H41="SEN",H41<1995),VLOOKUP(I41,Feuil1!$A$11:$F$29,6),IF(AND(H41>1994,H41<1998),VLOOKUP(I41,Feuil1!$A$11:$F$29,5),IF(AND(H41>1997,H41<2000),VLOOKUP(I41,Feuil1!$A$11:$F$29,4),IF(AND(H41>1999,H41<2002),VLOOKUP(I41,Feuil1!$A$11:$F$29,3),VLOOKUP(I41,Feuil1!$A$11:$F$29,2))))),IF(OR(H41="SEN",H41<1995),VLOOKUP(I41,Feuil1!$G$11:$L$25,6),IF(AND(H41>1994,H41<1998),VLOOKUP(I41,Feuil1!$G$11:$L$25,5),IF(AND(H41>1997,H41<2000),VLOOKUP(I41,Feuil1!$G$11:$L$25,4),IF(AND(H41>1999,H41<2002),VLOOKUP(I41,Feuil1!$G$11:$L$25,3),VLOOKUP(I41,Feuil1!$G$11:$L$25,2))))))) -> C2 56 | Y41: =IF(I41="","",IF(A41="H",10^(0.794358141*LOG(I41/174.393)^2)*T41,IF(A41="F",10^(0.89726074*LOG(I41/148.026)^2)*T41,""))) -> 247.835555 | AB41: =T41-HLOOKUP(X41,Feuil1!$C$1:$BL$10,2,FALSE) -> 92 | AC41: =T41-HLOOKUP(X41,Feuil1!$C$1:$BL$10,3,FALSE) -> 72 | AD41: =T41-HLOOKUP(X41,Feuil1!$C$1:$BL$10,4,FALSE) -> 57 | AE41: =T41-HLOOKUP(X41,Feuil1!$C$1:$BL$10,5,FALSE) -> 42 | AF41: =T41-HLOOKUP(X41,Feuil1!$C$1:$BL$10,6,FALSE) -> 27 | AG41: =T41-HLOOKUP(X41,Feuil1!$C$1:$BL$10,7,FALSE) -> 12 | AH41: =T41-HLOOKUP(X41,Feuil1!$C$1:$BL$10,8,FALSE) -> -13 | AI41: =T41-HLOOKUP(X41,Feuil1!$C$1:$BL$10,9,FALSE) -> -33 | AJ41: =T41-HLOOKUP(X41,Feuil1!$C$1:$BL$10,10,FALSE) -> -843 | AQ41: NAT +
A42: H | B42: Nord | C42: NPC | D42: 3 | E42: 328452 | F42: HOELLE | G42: Alexis | H42: 1998 | I42: 55.73 | J42: CA Rosendael | K42: F | L42: -68 | M42: 68 | N42: 72 | O42: 72 | P42: 85 | Q42: -91 | R42: -91 | S42: 85 | T42: 157 | U42: 45.54 | V42: NAT + | W42: 12 | X42: =IF(I42="","",IF(A42="H",IF(OR(H42="SEN",H42<1995),VLOOKUP(I42,Feuil1!$A$11:$F$29,6),IF(AND(H42>1994,H42<1998),VLOOKUP(I42,Feuil1!$A$11:$F$29,5),IF(AND(H42>1997,H42<2000),VLOOKUP(I42,Feuil1!$A$11:$F$29,4),IF(AND(H42>1999,H42<2002),VLOOKUP(I42,Feuil1!$A$11:$F$29,3),VLOOKUP(I42,Feuil1!$A$11:$F$29,2))))),IF(OR(H42="SEN",H42<1995),VLOOKUP(I42,Feuil1!$G$11:$L$25,6),IF(AND(H42>1994,H42<1998),VLOOKUP(I42,Feuil1!$G$11:$L$25,5),IF(AND(H42>1997,H42<2000),VLOOKUP(I42,Feuil1!$G$11:$L$25,4),IF(AND(H42>1999,H42<2002),VLOOKUP(I42,Feuil1!$G$11:$L$25,3),VLOOKUP(I42,Feuil1!$G$11:$L$25,2))))))) -> C2 56 | Y42: =IF(I42="","",IF(A42="H",10^(0.794358141*LOG(I42/174.393)^2)*T42,IF(A42="F",10^(0.89726074*LOG(I42/148.026)^2)*T42,""))) -> 245.9707337 | AB42: =T42-HLOOKUP(X42,Feuil1!$C$1:$BL$10,2,FALSE) -> 92 | AC42: =T42-HLOOKUP(X42,Feuil1!$C$1:$BL$10,3,FALSE) -> 72 | AD42: =T42-HLOOKUP(X42,Feuil1!$C$1:$BL$10,4,FALSE) -> 57 | AE42: =T42-HLOOKUP(X42,Feuil1!$C$1:$BL$10,5,FALSE) -> 42 | AF42: =T42-HLOOKUP(X42,Feuil1!$C$1:$BL$10,6,FALSE) -> 27 | AG42: =T42-HLOOKUP(X42,Feuil1!$C$1:$BL$10,7,FALSE) -> 12 | AH42: =T42-HLOOKUP(X42,Feuil1!$C$1:$BL$10,8,FALSE) -> -13 | AI42: =T42-HLOOKUP(X42,Feuil1!$C$1:$BL$10,9,FALSE) -> -33 | AJ42: =T42-HLOOKUP(X42,Feuil1!$C$1:$BL$10,10,FALSE) -> -843 | AQ42: NAT +
A43: H | B43: Nord | C43: PIC | D43: 4 | E43: 343406 | F43: CANUT | G43: Timothé | H43: 1999 | I43: 53.78 | J43: La Vaillante St Quentin | K43: F | L43: -60 | M43: 60 | N43: 65 | O43: 65 | P43: 70 | Q43: 75 | R43: 80 | S43: 80 | T43: 145 | U43: 37.44 | V43: NAT + | W43: 0 | X43: =IF(I43="","",IF(A43="H",IF(OR(H43="SEN",H43<1995),VLOOKUP(I43,Feuil1!$A$11:$F$29,6),IF(AND(H43>1994,H43<1998),VLOOKUP(I43,Feuil1!$A$11:$F$29,5),IF(AND(H43>1997,H43<2000),VLOOKUP(I43,Feuil1!$A$11:$F$29,4),IF(AND(H43>1999,H43<2002),VLOOKUP(I43,Feuil1!$A$11:$F$29,3),VLOOKUP(I43,Feuil1!$A$11:$F$29,2))))),IF(OR(H43="SEN",H43<1995),VLOOKUP(I43,Feuil1!$G$11:$L$25,6),IF(AND(H43>1994,H43<1998),VLOOKUP(I43,Feuil1!$G$11:$L$25,5),IF(AND(H43>1997,H43<2000),VLOOKUP(I43,Feuil1!$G$11:$L$25,4),IF(AND(H43>1999,H43<2002),VLOOKUP(I43,Feuil1!$G$11:$L$25,3),VLOOKUP(I43,Feuil1!$G$11:$L$25,2))))))) -> C2 56 | Y43: =IF(I43="","",IF(A43="H",10^(0.794358141*LOG(I43/174.393)^2)*T43,IF(A43="F",10^(0.89726074*LOG(I43/148.026)^2)*T43,""))) -> 233.7314299 | AB43: =T43-HLOOKUP(X43,Feuil1!$C$1:$BL$10,2,FALSE) -> 80 | AC43: =T43-HLOOKUP(X43,Feuil1!$C$1:$BL$10,3,FALSE) -> 60 | AD43: =T43-HLOOKUP(X43,Feuil1!$C$1:$BL$10,4,FALSE) -> 45 | AE43: =T43-HLOOKUP(X43,Feuil1!$C$1:$BL$10,5,FALSE) -> 30 | AF43: =T43-HLOOKUP(X43,Feuil1!$C$1:$BL$10,6,FALSE) -> 15 | AG43: =T43-HLOOKUP(X43,Feuil1!$C$1:$BL$10,7,FALSE) -> 0 | AH43: =T43-HLOOKUP(X43,Feuil1!$C$1:$BL$10,8,FALSE) -> -25 | AI43: =T43-HLOOKUP(X43,Feuil1!$C$1:$BL$10,9,FALSE) -> -45 | AJ43: =T43-HLOOKUP(X43,Feuil1!$C$1:$BL$10,10,FALSE) -> -855 | AQ43: NAT +
A44: H | B44: NE | C44: LOR | D44: 5 | E44: 273033 | F44: GUINDOS | G44: Vincent | H44: 1998 | I44: 53.8 | J44: E.S.Laneuveville | K44: F | L44: 57 | M44: 60 | N44: 62 | O44: 62 | P44: 70 | Q44: 75 | R44: 78 | S44: 78 | T44: 140 | U44: 32.4 | V44: FED + | W44: 10 | X44: =IF(I44="","",IF(A44="H",IF(OR(H44="SEN",H44<1995),VLOOKUP(I44,Feuil1!$A$11:$F$29,6),IF(AND(H44>1994,H44<1998),VLOOKUP(I44,Feuil1!$A$11:$F$29,5),IF(AND(H44>1997,H44<2000),VLOOKUP(I44,Feuil1!$A$11:$F$29,4),IF(AND(H44>1999,H44<2002),VLOOKUP(I44,Feuil1!$A$11:$F$29,3),VLOOKUP(I44,Feuil1!$A$11:$F$29,2))))),IF(OR(H44="SEN",H44<1995),VLOOKUP(I44,Feuil1!$G$11:$L$25,6),IF(AND(H44>1994,H44<1998),VLOOKUP(I44,Feuil1!$G$11:$L$25,5),IF(AND(H44>1997,H44<2000),VLOOKUP(I44,Feuil1!$G$11:$L$25,4),IF(AND(H44>1999,H44<2002),VLOOKUP(I44,Feuil1!$G$11:$L$25,3),VLOOKUP(I44,Feuil1!$G$11:$L$25,2))))))) -> C2 56 | Y44: =IF(I44="","",IF(A44="H",10^(0.794358141*LOG(I44/174.393)^2)*T44,IF(A44="F",10^(0.89726074*LOG(I44/148.026)^2)*T44,""))) -> 225.603639 | AB44: =T44-HLOOKUP(X44,Feuil1!$C$1:$BL$10,2,FALSE) -> 75 | AC44: =T44-HLOOKUP(X44,Feuil1!$C$1:$BL$10,3,FALSE) -> 55 | AD44: =T44-HLOOKUP(X44,Feuil1!$C$1:$BL$10,4,FALSE) -> 40 | AE44: =T44-HLOOKUP(X44,Feuil1!$C$1:$BL$10,5,FALSE) -> 25 | AF44: =T44-HLOOKUP(X44,Feuil1!$C$1:$BL$10,6,FALSE) -> 10 | AG44: =T44-HLOOKUP(X44,Feuil1!$C$1:$BL$10,7,FALSE) -> -5 | AH44: =T44-HLOOKUP(X44,Feuil1!$C$1:$BL$10,8,FALSE) -> -30 | AI44: =T44-HLOOKUP(X44,Feuil1!$C$1:$BL$10,9,FALSE) -> -50 | AJ44: =T44-HLOOKUP(X44,Feuil1!$C$1:$BL$10,10,FALSE) -> -860 | AQ44: FED +
A45: H | B45: DOM | C45: REU | D45: 6 | E45: 250368 | F45: MARKA | G45: Erwann | H45: 1999 | I45: 54.6 | J45: CSPJ St Denis | K45: F | L45: 55 | M45: -58 | N45: 58 | O45: 58 | P45: 70 | Q45: 75 | R45: -77 | S45: =IF(H45="","",IF(MAXA(P45:R45)<=0,0,MAXA(P45:R45))) -> 75 | T45: =IF(H45="","",IF(OR(O45=0,S45=0),0,O45+S45)) -> 133 | U45: =T45-I45*2 -> 23.8 | V45: =IF(H45="","",AQ45) -> FED + | W45: =IF(AJ45>=0,AJ45,IF(AI45>=0,AI45,IF(AH45>=0,AH45,IF(AG45>=0,AG45,IF(AF45>=0,AF45,IF(AE45>=0,AE45,IF(AD45>=0,AD45,IF(AC45>=0,AC45,AB45)))))))) -> 3 | X45: =IF(I45="","",IF(A45="H",IF(OR(H45="SEN",H45<1995),VLOOKUP(I45,Feuil1!$A$11:$F$29,6),IF(AND(H45>1994,H45<1998),VLOOKUP(I45,Feuil1!$A$11:$F$29,5),IF(AND(H45>1997,H45<2000),VLOOKUP(I45,Feuil1!$A$11:$F$29,4),IF(AND(H45>1999,H45<2002),VLOOKUP(I45,Feuil1!$A$11:$F$29,3),VLOOKUP(I45,Feuil1!$A$11:$F$29,2))))),IF(OR(H45="SEN",H45<1995),VLOOKUP(I45,Feuil1!$G$11:$L$25,6),IF(AND(H45>1994,H45<1998),VLOOKUP(I45,Feuil1!$G$11:$L$25,5),IF(AND(H45>1997,H45<2000),VLOOKUP(I45,Feuil1!$G$11:$L$25,4),IF(AND(H45>1999,H45<2002),VLOOKUP(I45,Feuil1!$G$11:$L$25,3),VLOOKUP(I45,Feuil1!$G$11:$L$25,2))))))) -> C2 56 | Y45: =IF(I45="","",IF(A45="H",10^(0.794358141*LOG(I45/174.393)^2)*T45,IF(A45="F",10^(0.89726074*LOG(I45/148.026)^2)*T45,""))) -> 211.7877191 | AB45: =T45-HLOOKUP(X45,Feuil1!$C$1:$BL$10,2,FALSE) -> 68 | AC45: =T45-HLOOKUP(X45,Feuil1!$C$1:$BL$10,3,FALSE) -> 48 | AD45: =T45-HLOOKUP(X45,Feuil1!$C$1:$BL$10,4,FALSE) -> 33 | AE45: =T45-HLOOKUP(X45,Feuil1!$C$1:$BL$10,5,FALSE) -> 18 | AF45: =T45-HLOOKUP(X45,Feuil1!$C$1:$BL$10,6,FALSE) -> 3 | AG45: =T45-HLOOKUP(X45,Feuil1!$C$1:$BL$10,7,FALSE) -> -12 | AH45: =T45-HLOOKUP(X45,Feuil1!$C$1:$BL$10,8,FALSE) -> -37 | AI45: =T45-HLOOKUP(X45,Feuil1!$C$1:$BL$10,9,FALSE) -> -57 | AJ45: =T45-HLOOKUP(X45,Feuil1!$C$1:$BL$10,10,FALSE) -> -867 | AQ45: =IF(AJ45>=0,$AJ$4,IF(AI45>=0,$AI$4,IF(AH45>=0,$AH$4,IF(AG45>=0,$AG$4,IF(AF45>=0,$AF$4,IF(AE45>=0,$AE$4,IF(AD45>=0,$AD$4,IF(AC45>=0,$AC$4,$AB$4)))))))) -> FED +
A46: H | B46: Nord | C46: NPC | D46: 7 | E46: 332308 | F46: EVERAERT | G46: Gaétan | H46: 1999 | I46: 55.8 | J46: St Pol sur Mer | K46: F | L46: 50 | M46: 55 | N46: 57 | O46: 57 | P46: 70 | Q46: 73 | R46: 75 | S46: 75 | T46: 132 | U46: 20.4 | V46: FED + | W46: 2 | X46: =IF(I46="","",IF(A46="H",IF(OR(H46="SEN",H46<1995),VLOOKUP(I46,Feuil1!$A$11:$F$29,6),IF(AND(H46>1994,H46<1998),VLOOKUP(I46,Feuil1!$A$11:$F$29,5),IF(AND(H46>1997,H46<2000),VLOOKUP(I46,Feuil1!$A$11:$F$29,4),IF(AND(H46>1999,H46<2002),VLOOKUP(I46,Feuil1!$A$11:$F$29,3),VLOOKUP(I46,Feuil1!$A$11:$F$29,2))))),IF(OR(H46="SEN",H46<1995),VLOOKUP(I46,Feuil1!$G$11:$L$25,6),IF(AND(H46>1994,H46<1998),VLOOKUP(I46,Feuil1!$G$11:$L$25,5),IF(AND(H46>1997,H46<2000),VLOOKUP(I46,Feuil1!$G$11:$L$25,4),IF(AND(H46>1999,H46<2002),VLOOKUP(I46,Feuil1!$G$11:$L$25,3),VLOOKUP(I46,Feuil1!$G$11:$L$25,2))))))) -> C2 56 | Y46: 206.5993029 | AB46: =T46-HLOOKUP(X46,Feuil1!$C$1:$BL$10,2,FALSE) -> 67 | AC46: =T46-HLOOKUP(X46,Feuil1!$C$1:$BL$10,3,FALSE) -> 47 | AD46: =T46-HLOOKUP(X46,Feuil1!$C$1:$BL$10,4,FALSE) -> 32 | AE46: =T46-HLOOKUP(X46,Feuil1!$C$1:$BL$10,5,FALSE) -> 17 | AF46: =T46-HLOOKUP(X46,Feuil1!$C$1:$BL$10,6,FALSE) -> 2 | AG46: =T46-HLOOKUP(X46,Feuil1!$C$1:$BL$10,7,FALSE) -> -13 | AH46: =T46-HLOOKUP(X46,Feuil1!$C$1:$BL$10,8,FALSE) -> -38 | AI46: =T46-HLOOKUP(X46,Feuil1!$C$1:$BL$10,9,FALSE) -> -58 | AJ46: =T46-HLOOKUP(X46,Feuil1!$C$1:$BL$10,10,FALSE) -> -868 | AQ46: FED +
A47: H | B47: DOM | C47: GUA | D47: 8 | E47: 363272 | F47: PROCOPE | G47: Nathanael | H47: 1998 | I47: 55.6 | J47: AHCS/Pointois | K47: F | L47: 50 | M47: 55 | N47: -58 | O47: 55 | P47: 65 | Q47: 70 | R47: -75 | S47: 70 | T47: 125 | U47: 13.8 | V47: IRG + | W47: 10 | X47: =IF(I47="","",IF(A47="H",IF(OR(H47="SEN",H47<1995),VLOOKUP(I47,Feuil1!$A$11:$F$29,6),IF(AND(H47>1994,H47<1998),VLOOKUP(I47,Feuil1!$A$11:$F$29,5),IF(AND(H47>1997,H47<2000),VLOOKUP(I47,Feuil1!$A$11:$F$29,4),IF(AND(H47>1999,H47<2002),VLOOKUP(I47,Feuil1!$A$11:$F$29,3),VLOOKUP(I47,Feuil1!$A$11:$F$29,2))))),IF(OR(H47="SEN",H47<1995),VLOOKUP(I47,Feuil1!$G$11:$L$25,6),IF(AND(H47>1994,H47<1998),VLOOKUP(I47,Feuil1!$G$11:$L$25,5),IF(AND(H47>1997,H47<2000),VLOOKUP(I47,Feuil1!$G$11:$L$25,4),IF(AND(H47>1999,H47<2002),VLOOKUP(I47,Feuil1!$G$11:$L$25,3),VLOOKUP(I47,Feuil1!$G$11:$L$25,2))))))) -> C2 56 | Y47: 196.1972634 | AB47: =T47-HLOOKUP(X47,Feuil1!$C$1:$BL$10,2,FALSE) -> 60 | AC47: =T47-HLOOKUP(X47,Feuil1!$C$1:$BL$10,3,FALSE) -> 40 | AD47: =T47-HLOOKUP(X47,Feuil1!$C$1:$BL$10,4,FALSE) -> 25 | AE47: =T47-HLOOKUP(X47,Feuil1!$C$1:$BL$10,5,FALSE) -> 10 | AF47: =T47-HLOOKUP(X47,Feuil1!$C$1:$BL$10,6,FALSE) -> -5 | AG47: =T47-HLOOKUP(X47,Feuil1!$C$1:$BL$10,7,FALSE) -> -20 | AH47: =T47-HLOOKUP(X47,Feuil1!$C$1:$BL$10,8,FALSE) -> -45 | AI47: =T47-HLOOKUP(X47,Feuil1!$C$1:$BL$10,9,FALSE) -> -65 | AJ47: =T47-HLOOKUP(X47,Feuil1!$C$1:$BL$10,10,FALSE) -> -875 | AQ47: IRG +
AB48: =T48-HLOOKUP(X48,Feuil1!$C$1:$BL$10,2,FALSE) ->  | AC48: =T48-HLOOKUP(X48,Feuil1!$C$1:$BL$10,3,FALSE) ->  | AD48: =T48-HLOOKUP(X48,Feuil1!$C$1:$BL$10,4,FALSE) ->  | AE48: =T48-HLOOKUP(X48,Feuil1!$C$1:$BL$10,5,FALSE) ->  | AF48: =T48-HLOOKUP(X48,Feuil1!$C$1:$BL$10,6,FALSE) ->  | AG48: =T48-HLOOKUP(X48,Feuil1!$C$1:$BL$10,7,FALSE) ->  | AH48: =T48-HLOOKUP(X48,Feuil1!$C$1:$BL$10,8,FALSE) ->  | AI48: =T48-HLOOKUP(X48,Feuil1!$C$1:$BL$10,9,FALSE) ->  | AJ48: =T48-HLOOKUP(X48,Feuil1!$C$1:$BL$10,10,FALSE) -> 
A49: H | B49: NE | C49: LOR | D49: 2 | E49: 283960 | F49: CUVELLIER | G49: Valentin | H49: 1998 | I49: 59 | J49: E.S.Laneuveville | K49: F | L49: 70 | M49: -75 | N49: 75 | O49: =IF(H49="","",IF(MAXA(L49:N49)<=0,0,MAXA(L49:N49))) -> 75 | P49: 90 | Q49: 95 | R49: 100 | S49: =IF(H49="","",IF(MAXA(P49:R49)<=0,0,MAXA(P49:R49))) -> 100 | T49: =IF(H49="","",IF(OR(O49=0,S49=0),0,O49+S49)) -> 175 | U49: =T49-I49*2 -> 57 | V49: =IF(H49="","",AQ49) -> NAT + | W49: =IF(AJ49>=0,AJ49,IF(AI49>=0,AI49,IF(AH49>=0,AH49,IF(AG49>=0,AG49,IF(AF49>=0,AF49,IF(AE49>=0,AE49,IF(AD49>=0,AD49,IF(AC49>=0,AC49,AB49)))))))) -> 5 | X49: =IF(I49="","",IF(A49="H",IF(OR(H49="SEN",H49<1995),VLOOKUP(I49,Feuil1!$A$11:$F$29,6),IF(AND(H49>1994,H49<1998),VLOOKUP(I49,Feuil1!$A$11:$F$29,5),IF(AND(H49>1997,H49<2000),VLOOKUP(I49,Feuil1!$A$11:$F$29,4),IF(AND(H49>1999,H49<2002),VLOOKUP(I49,Feuil1!$A$11:$F$29,3),VLOOKUP(I49,Feuil1!$A$11:$F$29,2))))),IF(OR(H49="SEN",H49<1995),VLOOKUP(I49,Feuil1!$G$11:$L$25,6),IF(AND(H49>1994,H49<1998),VLOOKUP(I49,Feuil1!$G$11:$L$25,5),IF(AND(H49>1997,H49<2000),VLOOKUP(I49,Feuil1!$G$11:$L$25,4),IF(AND(H49>1999,H49<2002),VLOOKUP(I49,Feuil1!$G$11:$L$25,3),VLOOKUP(I49,Feuil1!$G$11:$L$25,2))))))) -> C2 62 | Y49: =IF(I49="","",IF(A49="H",10^(0.794358141*LOG(I49/174.393)^2)*T49,IF(A49="F",10^(0.89726074*LOG(I49/148.026)^2)*T49,""))) -> 262.4325301 | AB49: =T49-HLOOKUP(X49,Feuil1!$C$1:$BL$10,2,FALSE) -> 90 | AC49: =T49-HLOOKUP(X49,Feuil1!$C$1:$BL$10,3,FALSE) -> 70 | AD49: =T49-HLOOKUP(X49,Feuil1!$C$1:$BL$10,4,FALSE) -> 55 | AE49: =T49-HLOOKUP(X49,Feuil1!$C$1:$BL$10,5,FALSE) -> 40 | AF49: =T49-HLOOKUP(X49,Feuil1!$C$1:$BL$10,6,FALSE) -> 25 | AG49: =T49-HLOOKUP(X49,Feuil1!$C$1:$BL$10,7,FALSE) -> 5 | AH49: =T49-HLOOKUP(X49,Feuil1!$C$1:$BL$10,8,FALSE) -> -15 | AI49: =T49-HLOOKUP(X49,Feuil1!$C$1:$BL$10,9,FALSE) -> -35 | AJ49: =T49-HLOOKUP(X49,Feuil1!$C$1:$BL$10,10,FALSE) -> -825 | AQ49: =IF(AJ49>=0,$AJ$4,IF(AI49>=0,$AI$4,IF(AH49>=0,$AH$4,IF(AG49>=0,$AG$4,IF(AF49>=0,$AF$4,IF(AE49>=0,$AE$4,IF(AD49>=0,$AD$4,IF(AC49>=0,$AC$4,$AB$4)))))))) -> NAT +
A50: H | B50: Nord | C50: PIC | D50: 1 | E50: 250197 | F50: ANCEL | G50: Georges | H50: 1998 | I50: 61.9 | J50: Saleux CHM | K50: F | L50: 70 | M50: -75 | N50: 75 | O50: =IF(H50="","",IF(MAXA(L50:N50)<=0,0,MAXA(L50:N50))) -> 75 | P50: 90 | Q50: 95 | R50: 100 | S50: =IF(H50="","",IF(MAXA(P50:R50)<=0,0,MAXA(P50:R50))) -> 100 | T50: =IF(H50="","",IF(OR(O50=0,S50=0),0,O50+S50)) -> 175 | U50: =T50-I50*2 -> 51.2 | V50: =IF(H50="","",AQ50) -> NAT + | W50: =IF(AJ50>=0,AJ50,IF(AI50>=0,AI50,IF(AH50>=0,AH50,IF(AG50>=0,AG50,IF(AF50>=0,AF50,IF(AE50>=0,AE50,IF(AD50>=0,AD50,IF(AC50>=0,AC50,AB50)))))))) -> 5 | X50: =IF(I50="","",IF(A50="H",IF(OR(H50="SEN",H50<1995),VLOOKUP(I50,Feuil1!$A$11:$F$29,6),IF(AND(H50>1994,H50<1998),VLOOKUP(I50,Feuil1!$A$11:$F$29,5),IF(AND(H50>1997,H50<2000),VLOOKUP(I50,Feuil1!$A$11:$F$29,4),IF(AND(H50>1999,H50<2002),VLOOKUP(I50,Feuil1!$A$11:$F$29,3),VLOOKUP(I50,Feuil1!$A$11:$F$29,2))))),IF(OR(H50="SEN",H50<1995),VLOOKUP(I50,Feuil1!$G$11:$L$25,6),IF(AND(H50>1994,H50<1998),VLOOKUP(I50,Feuil1!$G$11:$L$25,5),IF(AND(H50>1997,H50<2000),VLOOKUP(I50,Feuil1!$G$11:$L$25,4),IF(AND(H50>1999,H50<2002),VLOOKUP(I50,Feuil1!$G$11:$L$25,3),VLOOKUP(I50,Feuil1!$G$11:$L$25,2))))))) -> C2 62 | Y50: 253.3845097 | AB50: =T50-HLOOKUP(X50,Feuil1!$C$1:$BL$10,2,FALSE) -> 90 | AC50: =T50-HLOOKUP(X50,Feuil1!$C$1:$BL$10,3,FALSE) -> 70 | AD50: =T50-HLOOKUP(X50,Feuil1!$C$1:$BL$10,4,FALSE) -> 55 | AE50: =T50-HLOOKUP(X50,Feuil1!$C$1:$BL$10,5,FALSE) -> 40 | AF50: =T50-HLOOKUP(X50,Feuil1!$C$1:$BL$10,6,FALSE) -> 25 | AG50: =T50-HLOOKUP(X50,Feuil1!$C$1:$BL$10,7,FALSE) -> 5 | AH50: =T50-HLOOKUP(X50,Feuil1!$C$1:$BL$10,8,FALSE) -> -15 | AI50: =T50-HLOOKUP(X50,Feuil1!$C$1:$BL$10,9,FALSE) -> -35 | AJ50: =T50-HLOOKUP(X50,Feuil1!$C$1:$BL$10,10,FALSE) -> -825 | AQ50: =IF(AJ50>=0,$AJ$4,IF(AI50>=0,$AI$4,IF(AH50>=0,$AH$4,IF(AG50>=0,$AG$4,IF(AF50>=0,$AF$4,IF(AE50>=0,$AE$4,IF(AD50>=0,$AD$4,IF(AC50>=0,$AC$4,$AB$4)))))))) -> NAT +
A51: H | B51: Nord | C51: PIC | D51: 3 | E51: 274621 | F51: CABON | G51: Lilian | H51: 1998 | I51: 57.71 | J51: Péronne AAEEP | K51: F | L51: 70 | M51: 73 | N51: 75 | O51: =IF(H51="","",IF(MAXA(L51:N51)<=0,0,MAXA(L51:N51))) -> 75 | P51: 90 | Q51: 95 | R51: -100 | S51: =IF(H51="","",IF(MAXA(P51:R51)<=0,0,MAXA(P51:R51))) -> 95 | T51: =IF(H51="","",IF(OR(O51=0,S51=0),0,O51+S51)) -> 170 | U51: 54.58 | V51: =IF(H51="","",AQ51) -> NAT + | W51: =IF(AJ51>=0,AJ51,IF(AI51>=0,AI51,IF(AH51>=0,AH51,IF(AG51>=0,AG51,IF(AF51>=0,AF51,IF(AE51>=0,AE51,IF(AD51>=0,AD51,IF(AC51>=0,AC51,AB51)))))))) -> 0 | X51: =IF(I51="","",IF(A51="H",IF(OR(H51="SEN",H51<1995),VLOOKUP(I51,Feuil1!$A$11:$F$29,6),IF(AND(H51>1994,H51<1998),VLOOKUP(I51,Feuil1!$A$11:$F$29,5),IF(AND(H51>1997,H51<2000),VLOOKUP(I51,Feuil1!$A$11:$F$29,4),IF(AND(H51>1999,H51<2002),VLOOKUP(I51,Feuil1!$A$11:$F$29,3),VLOOKUP(I51,Feuil1!$A$11:$F$29,2))))),IF(OR(H51="SEN",H51<1995),VLOOKUP(I51,Feuil1!$G$11:$L$25,6),IF(AND(H51>1994,H51<1998),VLOOKUP(I51,Feuil1!$G$11:$L$25,5),IF(AND(H51>1997,H51<2000),VLOOKUP(I51,Feuil1!$G$11:$L$25,4),IF(AND(H51>1999,H51<2002),VLOOKUP(I51,Feuil1!$G$11:$L$25,3),VLOOKUP(I51,Feuil1!$G$11:$L$25,2))))))) -> C2 62 | Y51: 259.2275034 | AB51: =T51-HLOOKUP(X51,Feuil1!$C$1:$BL$10,2,FALSE) -> 85 | AC51: =T51-HLOOKUP(X51,Feuil1!$C$1:$BL$10,3,FALSE) -> 65 | AD51: =T51-HLOOKUP(X51,Feuil1!$C$1:$BL$10,4,FALSE) -> 50 | AE51: =T51-HLOOKUP(X51,Feuil1!$C$1:$BL$10,5,FALSE) -> 35 | AF51: =T51-HLOOKUP(X51,Feuil1!$C$1:$BL$10,6,FALSE) -> 20 | AG51: =T51-HLOOKUP(X51,Feuil1!$C$1:$BL$10,7,FALSE) -> 0 | AH51: =T51-HLOOKUP(X51,Feuil1!$C$1:$BL$10,8,FALSE) -> -20 | AI51: =T51-HLOOKUP(X51,Feuil1!$C$1:$BL$10,9,FALSE) -> -40 | AJ51: =T51-HLOOKUP(X51,Feuil1!$C$1:$BL$10,10,FALSE) -> -830 | AQ51: =IF(AJ51>=0,$AJ$4,IF(AI51>=0,$AI$4,IF(AH51>=0,$AH$4,IF(AG51>=0,$AG$4,IF(AF51>=0,$AF$4,IF(AE51>=0,$AE$4,IF(AD51>=0,$AD$4,IF(AC51>=0,$AC$4,$AB$4)))))))) -> NAT +
A52: H | B52: SEST | C52: CAZ | D52: 4 | E52: 305874 | F52: FOLCHER | G52: Guilhem | H52: 1998 | I52: 61.1 | J52: E.S. VILLENEUVE LOUBET | K52: F | L52: 70 | M52: 73 | N52: 76 | O52: 76 | P52: 85 | Q52: 90 | R52: -94 | S52: 90 | T52: 166 | U52: 43.8 | V52: FED + | W52: 16 | X52: =IF(I52="","",IF(A52="H",IF(OR(H52="SEN",H52<1995),VLOOKUP(I52,Feuil1!$A$11:$F$29,6),IF(AND(H52>1994,H52<1998),VLOOKUP(I52,Feuil1!$A$11:$F$29,5),IF(AND(H52>1997,H52<2000),VLOOKUP(I52,Feuil1!$A$11:$F$29,4),IF(AND(H52>1999,H52<2002),VLOOKUP(I52,Feuil1!$A$11:$F$29,3),VLOOKUP(I52,Feuil1!$A$11:$F$29,2))))),IF(OR(H52="SEN",H52<1995),VLOOKUP(I52,Feuil1!$G$11:$L$25,6),IF(AND(H52>1994,H52<1998),VLOOKUP(I52,Feuil1!$G$11:$L$25,5),IF(AND(H52>1997,H52<2000),VLOOKUP(I52,Feuil1!$G$11:$L$25,4),IF(AND(H52>1999,H52<2002),VLOOKUP(I52,Feuil1!$G$11:$L$25,3),VLOOKUP(I52,Feuil1!$G$11:$L$25,2))))))) -> C2 62 | Y52: 242.6123547 | AB52: =T52-HLOOKUP(X52,Feuil1!$C$1:$BL$10,2,FALSE) -> 81 | AC52: =T52-HLOOKUP(X52,Feuil1!$C$1:$BL$10,3,FALSE) -> 61 | AD52: =T52-HLOOKUP(X52,Feuil1!$C$1:$BL$10,4,FALSE) -> 46 | AE52: =T52-HLOOKUP(X52,Feuil1!$C$1:$BL$10,5,FALSE) -> 31 | AF52: =T52-HLOOKUP(X52,Feuil1!$C$1:$BL$10,6,FALSE) -> 16 | AG52: =T52-HLOOKUP(X52,Feuil1!$C$1:$BL$10,7,FALSE) -> -4 | AH52: =T52-HLOOKUP(X52,Feuil1!$C$1:$BL$10,8,FALSE) -> -24 | AI52: =T52-HLOOKUP(X52,Feuil1!$C$1:$BL$10,9,FALSE) -> -44 | AJ52: =T52-HLOOKUP(X52,Feuil1!$C$1:$BL$10,10,FALSE) -> -834 | AQ52: FED +
A53: H | B53: ZCO | C53: BNO | D53: 5 | E53: 312349 | F53: RENOUF | G53: Tom | H53: 1999 | I53: 61.7 | J53: Caen CHM | K53: F | L53: 65 | M53: 70 | N53: 73 | O53: 73 | P53: 77 | Q53: 81 | R53: -85 | S53: 81 | T53: 154 | U53: 30.6 | V53: FED + | W53: 4 | X53: =IF(I53="","",IF(A53="H",IF(OR(H53="SEN",H53<1995),VLOOKUP(I53,Feuil1!$A$11:$F$29,6),IF(AND(H53>1994,H53<1998),VLOOKUP(I53,Feuil1!$A$11:$F$29,5),IF(AND(H53>1997,H53<2000),VLOOKUP(I53,Feuil1!$A$11:$F$29,4),IF(AND(H53>1999,H53<2002),VLOOKUP(I53,Feuil1!$A$11:$F$29,3),VLOOKUP(I53,Feuil1!$A$11:$F$29,2))))),IF(OR(H53="SEN",H53<1995),VLOOKUP(I53,Feuil1!$G$11:$L$25,6),IF(AND(H53>1994,H53<1998),VLOOKUP(I53,Feuil1!$G$11:$L$25,5),IF(AND(H53>1997,H53<2000),VLOOKUP(I53,Feuil1!$G$11:$L$25,4),IF(AND(H53>1999,H53<2002),VLOOKUP(I53,Feuil1!$G$11:$L$25,3),VLOOKUP(I53,Feuil1!$G$11:$L$25,2))))))) -> C2 62 | Y53: 223.4954852 | AB53: =T53-HLOOKUP(X53,Feuil1!$C$1:$BL$10,2,FALSE) -> 69 | AC53: =T53-HLOOKUP(X53,Feuil1!$C$1:$BL$10,3,FALSE) -> 49 | AD53: =T53-HLOOKUP(X53,Feuil1!$C$1:$BL$10,4,FALSE) -> 34 | AE53: =T53-HLOOKUP(X53,Feuil1!$C$1:$BL$10,5,FALSE) -> 19 | AF53: =T53-HLOOKUP(X53,Feuil1!$C$1:$BL$10,6,FALSE) -> 4 | AG53: =T53-HLOOKUP(X53,Feuil1!$C$1:$BL$10,7,FALSE) -> -16 | AH53: =T53-HLOOKUP(X53,Feuil1!$C$1:$BL$10,8,FALSE) -> -36 | AI53: =T53-HLOOKUP(X53,Feuil1!$C$1:$BL$10,9,FALSE) -> -56 | AJ53: =T53-HLOOKUP(X53,Feuil1!$C$1:$BL$10,10,FALSE) -> -846 | AQ53: FED +
A54: H | B54: Nord | C54: PIC | D54: 6 | E54: 279883 | F54: SEGARD | G54: Lilian | H54: 1998 | I54: 57.7 | J54: La Vaillante St Quentin | K54: F | L54: 63 | M54: 67 | N54: -72 | O54: 67 | P54: 85 | Q54: -95 | R54: -95 | S54: 85 | T54: 152 | U54: 36.6 | V54: FED + | W54: 2 | X54: =IF(I54="","",IF(A54="H",IF(OR(H54="SEN",H54<1995),VLOOKUP(I54,Feuil1!$A$11:$F$29,6),IF(AND(H54>1994,H54<1998),VLOOKUP(I54,Feuil1!$A$11:$F$29,5),IF(AND(H54>1997,H54<2000),VLOOKUP(I54,Feuil1!$A$11:$F$29,4),IF(AND(H54>1999,H54<2002),VLOOKUP(I54,Feuil1!$A$11:$F$29,3),VLOOKUP(I54,Feuil1!$A$11:$F$29,2))))),IF(OR(H54="SEN",H54<1995),VLOOKUP(I54,Feuil1!$G$11:$L$25,6),IF(AND(H54>1994,H54<1998),VLOOKUP(I54,Feuil1!$G$11:$L$25,5),IF(AND(H54>1997,H54<2000),VLOOKUP(I54,Feuil1!$G$11:$L$25,4),IF(AND(H54>1999,H54<2002),VLOOKUP(I54,Feuil1!$G$11:$L$25,3),VLOOKUP(I54,Feuil1!$G$11:$L$25,2))))))) -> C2 62 | Y54: 231.8105378 | AB54: =T54-HLOOKUP(X54,Feuil1!$C$1:$BL$10,2,FALSE) -> 67 | AC54: =T54-HLOOKUP(X54,Feuil1!$C$1:$BL$10,3,FALSE) -> 47 | AD54: =T54-HLOOKUP(X54,Feuil1!$C$1:$BL$10,4,FALSE) -> 32 | AE54: =T54-HLOOKUP(X54,Feuil1!$C$1:$BL$10,5,FALSE) -> 17 | AF54: =T54-HLOOKUP(X54,Feuil1!$C$1:$BL$10,6,FALSE) -> 2 | AG54: =T54-HLOOKUP(X54,Feuil1!$C$1:$BL$10,7,FALSE) -> -18 | AH54: =T54-HLOOKUP(X54,Feuil1!$C$1:$BL$10,8,FALSE) -> -38 | AI54: =T54-HLOOKUP(X54,Feuil1!$C$1:$BL$10,9,FALSE) -> -58 | AJ54: =T54-HLOOKUP(X54,Feuil1!$C$1:$BL$10,10,FALSE) -> -848 | AQ54: FED +
AB55: =T55-HLOOKUP(X55,Feuil1!$C$1:$BL$10,2,FALSE) ->  | AC55: =T55-HLOOKUP(X55,Feuil1!$C$1:$BL$10,3,FALSE) ->  | AD55: =T55-HLOOKUP(X55,Feuil1!$C$1:$BL$10,4,FALSE) ->  | AE55: =T55-HLOOKUP(X55,Feuil1!$C$1:$BL$10,5,FALSE) ->  | AF55: =T55-HLOOKUP(X55,Feuil1!$C$1:$BL$10,6,FALSE) ->  | AG55: =T55-HLOOKUP(X55,Feuil1!$C$1:$BL$10,7,FALSE) ->  | AH55: =T55-HLOOKUP(X55,Feuil1!$C$1:$BL$10,8,FALSE) ->  | AI55: =T55-HLOOKUP(X55,Feuil1!$C$1:$BL$10,9,FALSE) ->  | AJ55: =T55-HLOOKUP(X55,Feuil1!$C$1:$BL$10,10,FALSE) -> 
A56: H | B56: NE | C56: ALS | D56: 1 | E56: 295214 | F56: YILDIRIM | G56: Mario | H56: 1998 | I56: 68.6 | J56: SR Obernai HM | K56: F | L56: -90 | M56: 90 | N56: -95 | O56: =IF(H56="","",IF(MAXA(L56:N56)<=0,0,MAXA(L56:N56))) -> 90 | P56: 107 | Q56: 112 | R56: -115 | S56: =IF(H56="","",IF(MAXA(P56:R56)<=0,0,MAXA(P56:R56))) -> 112 | T56: =IF(H56="","",IF(OR(O56=0,S56=0),0,O56+S56)) -> 202 | U56: 64.8 | V56: =IF(H56="","",AQ56) -> NAT + | W56: =IF(AJ56>=0,AJ56,IF(AI56>=0,AI56,IF(AH56>=0,AH56,IF(AG56>=0,AG56,IF(AF56>=0,AF56,IF(AE56>=0,AE56,IF(AD56>=0,AD56,IF(AC56>=0,AC56,AB56)))))))) -> 12 | X56: =IF(I56="","",IF(A56="H",IF(OR(H56="SEN",H56<1995),VLOOKUP(I56,Feuil1!$A$11:$F$29,6),IF(AND(H56>1994,H56<1998),VLOOKUP(I56,Feuil1!$A$11:$F$29,5),IF(AND(H56>1997,H56<2000),VLOOKUP(I56,Feuil1!$A$11:$F$29,4),IF(AND(H56>1999,H56<2002),VLOOKUP(I56,Feuil1!$A$11:$F$29,3),VLOOKUP(I56,Feuil1!$A$11:$F$29,2))))),IF(OR(H56="SEN",H56<1995),VLOOKUP(I56,Feuil1!$G$11:$L$25,6),IF(AND(H56>1994,H56<1998),VLOOKUP(I56,Feuil1!$G$11:$L$25,5),IF(AND(H56>1997,H56<2000),VLOOKUP(I56,Feuil1!$G$11:$L$25,4),IF(AND(H56>1999,H56<2002),VLOOKUP(I56,Feuil1!$G$11:$L$25,3),VLOOKUP(I56,Feuil1!$G$11:$L$25,2))))))) -> C2 69 | Y56: =IF(I56="","",IF(A56="H",10^(0.794358141*LOG(I56/174.393)^2)*T56,IF(A56="F",10^(0.89726074*LOG(I56/148.026)^2)*T56,""))) -> 272.7582259 | AB56: =T56-HLOOKUP(X56,Feuil1!$C$1:$BL$10,2,FALSE) -> 107 | AC56: =T56-HLOOKUP(X56,Feuil1!$C$1:$BL$10,3,FALSE) -> 87 | AD56: =T56-HLOOKUP(X56,Feuil1!$C$1:$BL$10,4,FALSE) -> 72 | AE56: =T56-HLOOKUP(X56,Feuil1!$C$1:$BL$10,5,FALSE) -> 52 | AF56: =T56-HLOOKUP(X56,Feuil1!$C$1:$BL$10,6,FALSE) -> 32 | AG56: =T56-HLOOKUP(X56,Feuil1!$C$1:$BL$10,7,FALSE) -> 12 | AH56: =T56-HLOOKUP(X56,Feuil1!$C$1:$BL$10,8,FALSE) -> -8 | AI56: =T56-HLOOKUP(X56,Feuil1!$C$1:$BL$10,9,FALSE) -> -28 | AJ56: =T56-HLOOKUP(X56,Feuil1!$C$1:$BL$10,10,FALSE) -> -798 | AQ56: =IF(AJ56>=0,$AJ$4,IF(AI56>=0,$AI$4,IF(AH56>=0,$AH$4,IF(AG56>=0,$AG$4,IF(AF56>=0,$AF$4,IF(AE56>=0,$AE$4,IF(AD56>=0,$AD$4,IF(AC56>=0,$AC$4,$AB$4)))))))) -> NAT +
A57: H | B57: ZCO | C57: BRE | D57: 2 | E57: 290461 | F57: DELAPLACE | G57: Quentin | H57: 1998 | I57: 66.6 | J57: ES Saint-Avé | K57: F | L57: 83 | M57: 87 | N57: -90 | O57: 87 | P57: 103 | Q57: 108 | R57: -113 | S57: 108 | T57: 195 | U57: 61.8 | V57: NAT + | W57: 5 | X57: =IF(I57="","",IF(A57="H",IF(OR(H57="SEN",H57<1995),VLOOKUP(I57,Feuil1!$A$11:$F$29,6),IF(AND(H57>1994,H57<1998),VLOOKUP(I57,Feuil1!$A$11:$F$29,5),IF(AND(H57>1997,H57<2000),VLOOKUP(I57,Feuil1!$A$11:$F$29,4),IF(AND(H57>1999,H57<2002),VLOOKUP(I57,Feuil1!$A$11:$F$29,3),VLOOKUP(I57,Feuil1!$A$11:$F$29,2))))),IF(OR(H57="SEN",H57<1995),VLOOKUP(I57,Feuil1!$G$11:$L$25,6),IF(AND(H57>1994,H57<1998),VLOOKUP(I57,Feuil1!$G$11:$L$25,5),IF(AND(H57>1997,H57<2000),VLOOKUP(I57,Feuil1!$G$11:$L$25,4),IF(AND(H57>1999,H57<2002),VLOOKUP(I57,Feuil1!$G$11:$L$25,3),VLOOKUP(I57,Feuil1!$G$11:$L$25,2))))))) -> C2 69 | Y57: 268.4506441 | AB57: =T57-HLOOKUP(X57,Feuil1!$C$1:$BL$10,2,FALSE) -> 100 | AC57: =T57-HLOOKUP(X57,Feuil1!$C$1:$BL$10,3,FALSE) -> 80 | AD57: =T57-HLOOKUP(X57,Feuil1!$C$1:$BL$10,4,FALSE) -> 65 | AE57: =T57-HLOOKUP(X57,Feuil1!$C$1:$BL$10,5,FALSE) -> 45 | AF57: =T57-HLOOKUP(X57,Feuil1!$C$1:$BL$10,6,FALSE) -> 25 | AG57: =T57-HLOOKUP(X57,Feuil1!$C$1:$BL$10,7,FALSE) -> 5 | AH57: =T57-HLOOKUP(X57,Feuil1!$C$1:$BL$10,8,FALSE) -> -15 | AI57: =T57-HLOOKUP(X57,Feuil1!$C$1:$BL$10,9,FALSE) -> -35 | AJ57: =T57-HLOOKUP(X57,Feuil1!$C$1:$BL$10,10,FALSE) -> -805 | AQ57: NAT +
A58: H | B58: ZCO | C58: PDL | D58: 3 | E58: 379231 | F58: HEUZE | G58: Alexandre | H58: 1998 | I58: 67.5 | J58: CA Evron 53 | K58: F | L58: 72 | M58: 76 | N58: 80 | O58: 80 | P58: 92 | Q58: 97 | R58: 100 | S58: 100 | T58: 180 | U58: 45 | V58: FED + | W58: 10 | X58: =IF(I58="","",IF(A58="H",IF(OR(H58="SEN",H58<1995),VLOOKUP(I58,Feuil1!$A$11:$F$29,6),IF(AND(H58>1994,H58<1998),VLOOKUP(I58,Feuil1!$A$11:$F$29,5),IF(AND(H58>1997,H58<2000),VLOOKUP(I58,Feuil1!$A$11:$F$29,4),IF(AND(H58>1999,H58<2002),VLOOKUP(I58,Feuil1!$A$11:$F$29,3),VLOOKUP(I58,Feuil1!$A$11:$F$29,2))))),IF(OR(H58="SEN",H58<1995),VLOOKUP(I58,Feuil1!$G$11:$L$25,6),IF(AND(H58>1994,H58<1998),VLOOKUP(I58,Feuil1!$G$11:$L$25,5),IF(AND(H58>1997,H58<2000),VLOOKUP(I58,Feuil1!$G$11:$L$25,4),IF(AND(H58>1999,H58<2002),VLOOKUP(I58,Feuil1!$G$11:$L$25,3),VLOOKUP(I58,Feuil1!$G$11:$L$25,2))))))) -> C2 69 | Y58: 245.6164943 | AB58: =T58-HLOOKUP(X58,Feuil1!$C$1:$BL$10,2,FALSE) -> 85 | AC58: =T58-HLOOKUP(X58,Feuil1!$C$1:$BL$10,3,FALSE) -> 65 | AD58: =T58-HLOOKUP(X58,Feuil1!$C$1:$BL$10,4,FALSE) -> 50 | AE58: =T58-HLOOKUP(X58,Feuil1!$C$1:$BL$10,5,FALSE) -> 30 | AF58: =T58-HLOOKUP(X58,Feuil1!$C$1:$BL$10,6,FALSE) -> 10 | AG58: =T58-HLOOKUP(X58,Feuil1!$C$1:$BL$10,7,FALSE) -> -10 | AH58: =T58-HLOOKUP(X58,Feuil1!$C$1:$BL$10,8,FALSE) -> -30 | AI58: =T58-HLOOKUP(X58,Feuil1!$C$1:$BL$10,9,FALSE) -> -50 | AJ58: =T58-HLOOKUP(X58,Feuil1!$C$1:$BL$10,10,FALSE) -> -820 | AQ58: FED +
A59: H | B59: ZCO | C59: BNO | D59: 4 | E59: 284350 | F59: FAUNY | G59: Sébastien | H59: 1998 | I59: 66.4 | J59: Stade St-Lo | K59: F | L59: 65 | M59: 69 | N59: -75 | O59: 69 | P59: 88 | Q59: -95 | R59: -95 | S59: 88 | T59: 157 | U59: 24.2 | V59: IRG + | W59: 7 | X59: =IF(I59="","",IF(A59="H",IF(OR(H59="SEN",H59<1995),VLOOKUP(I59,Feuil1!$A$11:$F$29,6),IF(AND(H59>1994,H59<1998),VLOOKUP(I59,Feuil1!$A$11:$F$29,5),IF(AND(H59>1997,H59<2000),VLOOKUP(I59,Feuil1!$A$11:$F$29,4),IF(AND(H59>1999,H59<2002),VLOOKUP(I59,Feuil1!$A$11:$F$29,3),VLOOKUP(I59,Feuil1!$A$11:$F$29,2))))),IF(OR(H59="SEN",H59<1995),VLOOKUP(I59,Feuil1!$G$11:$L$25,6),IF(AND(H59>1994,H59<1998),VLOOKUP(I59,Feuil1!$G$11:$L$25,5),IF(AND(H59>1997,H59<2000),VLOOKUP(I59,Feuil1!$G$11:$L$25,4),IF(AND(H59>1999,H59<2002),VLOOKUP(I59,Feuil1!$G$11:$L$25,3),VLOOKUP(I59,Feuil1!$G$11:$L$25,2))))))) -> C2 69 | Y59: 216.570028 | AB59: =T59-HLOOKUP(X59,Feuil1!$C$1:$BL$10,2,FALSE) -> 62 | AC59: =T59-HLOOKUP(X59,Feuil1!$C$1:$BL$10,3,FALSE) -> 42 | AD59: =T59-HLOOKUP(X59,Feuil1!$C$1:$BL$10,4,FALSE) -> 27 | AE59: =T59-HLOOKUP(X59,Feuil1!$C$1:$BL$10,5,FALSE) -> 7 | AF59: =T59-HLOOKUP(X59,Feuil1!$C$1:$BL$10,6,FALSE) -> -13 | AG59: =T59-HLOOKUP(X59,Feuil1!$C$1:$BL$10,7,FALSE) -> -33 | AH59: =T59-HLOOKUP(X59,Feuil1!$C$1:$BL$10,8,FALSE) -> -53 | AI59: =T59-HLOOKUP(X59,Feuil1!$C$1:$BL$10,9,FALSE) -> -73 | AJ59: =T59-HLOOKUP(X59,Feuil1!$C$1:$BL$10,10,FALSE) -> -843 | AQ59: IRG +
A60: H | B60: Nord | C60: PIC | D60: 5 | E60: 334518 | F60: DUPREZ | G60: Kurt | H60: 1998 | I60: 63.45 | J60: Saleux CHM | K60: F | L60: 67 | M60: 70 | N60: -72 | O60: =IF(H60="","",IF(MAXA(L60:N60)<=0,0,MAXA(L60:N60))) -> 70 | P60: 75 | Q60: 80 | R60: 85 | S60: =IF(H60="","",IF(MAXA(P60:R60)<=0,0,MAXA(P60:R60))) -> 85 | T60: =IF(H60="","",IF(OR(O60=0,S60=0),0,O60+S60)) -> 155 | U60: =T60-I60*2 -> 28.1 | V60: =IF(H60="","",AQ60) -> IRG + | W60: =IF(AJ60>=0,AJ60,IF(AI60>=0,AI60,IF(AH60>=0,AH60,IF(AG60>=0,AG60,IF(AF60>=0,AF60,IF(AE60>=0,AE60,IF(AD60>=0,AD60,IF(AC60>=0,AC60,AB60)))))))) -> 5 | X60: =IF(I60="","",IF(A60="H",IF(OR(H60="SEN",H60<1995),VLOOKUP(I60,Feuil1!$A$11:$F$29,6),IF(AND(H60>1994,H60<1998),VLOOKUP(I60,Feuil1!$A$11:$F$29,5),IF(AND(H60>1997,H60<2000),VLOOKUP(I60,Feuil1!$A$11:$F$29,4),IF(AND(H60>1999,H60<2002),VLOOKUP(I60,Feuil1!$A$11:$F$29,3),VLOOKUP(I60,Feuil1!$A$11:$F$29,2))))),IF(OR(H60="SEN",H60<1995),VLOOKUP(I60,Feuil1!$G$11:$L$25,6),IF(AND(H60>1994,H60<1998),VLOOKUP(I60,Feuil1!$G$11:$L$25,5),IF(AND(H60>1997,H60<2000),VLOOKUP(I60,Feuil1!$G$11:$L$25,4),IF(AND(H60>1999,H60<2002),VLOOKUP(I60,Feuil1!$G$11:$L$25,3),VLOOKUP(I60,Feuil1!$G$11:$L$25,2))))))) -> C2 69 | Y60: 220.5409027 | AB60: =T60-HLOOKUP(X60,Feuil1!$C$1:$BL$10,2,FALSE) -> 60 | AC60: =T60-HLOOKUP(X60,Feuil1!$C$1:$BL$10,3,FALSE) -> 40 | AD60: =T60-HLOOKUP(X60,Feuil1!$C$1:$BL$10,4,FALSE) -> 25 | AE60: =T60-HLOOKUP(X60,Feuil1!$C$1:$BL$10,5,FALSE) -> 5 | AF60: =T60-HLOOKUP(X60,Feuil1!$C$1:$BL$10,6,FALSE) -> -15 | AG60: =T60-HLOOKUP(X60,Feuil1!$C$1:$BL$10,7,FALSE) -> -35 | AH60: =T60-HLOOKUP(X60,Feuil1!$C$1:$BL$10,8,FALSE) -> -55 | AI60: =T60-HLOOKUP(X60,Feuil1!$C$1:$BL$10,9,FALSE) -> -75 | AJ60: =T60-HLOOKUP(X60,Feuil1!$C$1:$BL$10,10,FALSE) -> -845 | AQ60: =IF(AJ60>=0,$AJ$4,IF(AI60>=0,$AI$4,IF(AH60>=0,$AH$4,IF(AG60>=0,$AG$4,IF(AF60>=0,$AF$4,IF(AE60>=0,$AE$4,IF(AD60>=0,$AD$4,IF(AC60>=0,$AC$4,$AB$4)))))))) -> IRG +
A61: H | B61: ZCO | C61: BRE | D61: 6 | E61: 355842 | F61: LOZACHMEUR | G61: David | H61: 1998 | I61: 65.6 | J61: AL Quimper | K61: F | L61: 63 | M61: 66 | N61: -69 | O61: =IF(H61="","",IF(MAXA(L61:N61)<=0,0,MAXA(L61:N61))) -> 66 | P61: 82 | Q61: 86 | R61: 89 | S61: =IF(H61="","",IF(MAXA(P61:R61)<=0,0,MAXA(P61:R61))) -> 89 | T61: =IF(H61="","",IF(OR(O61=0,S61=0),0,O61+S61)) -> 155 | U61: =T61-I61*2 -> 23.8 | V61: =IF(H61="","",AQ61) -> IRG + | W61: =IF(AJ61>=0,AJ61,IF(AI61>=0,AI61,IF(AH61>=0,AH61,IF(AG61>=0,AG61,IF(AF61>=0,AF61,IF(AE61>=0,AE61,IF(AD61>=0,AD61,IF(AC61>=0,AC61,AB61)))))))) -> 5 | X61: =IF(I61="","",IF(A61="H",IF(OR(H61="SEN",H61<1995),VLOOKUP(I61,Feuil1!$A$11:$F$29,6),IF(AND(H61>1994,H61<1998),VLOOKUP(I61,Feuil1!$A$11:$F$29,5),IF(AND(H61>1997,H61<2000),VLOOKUP(I61,Feuil1!$A$11:$F$29,4),IF(AND(H61>1999,H61<2002),VLOOKUP(I61,Feuil1!$A$11:$F$29,3),VLOOKUP(I61,Feuil1!$A$11:$F$29,2))))),IF(OR(H61="SEN",H61<1995),VLOOKUP(I61,Feuil1!$G$11:$L$25,6),IF(AND(H61>1994,H61<1998),VLOOKUP(I61,Feuil1!$G$11:$L$25,5),IF(AND(H61>1997,H61<2000),VLOOKUP(I61,Feuil1!$G$11:$L$25,4),IF(AND(H61>1999,H61<2002),VLOOKUP(I61,Feuil1!$G$11:$L$25,3),VLOOKUP(I61,Feuil1!$G$11:$L$25,2))))))) -> C2 69 | Y61: 215.5557879 | AB61: =T61-HLOOKUP(X61,Feuil1!$C$1:$BL$10,2,FALSE) -> 60 | AC61: =T61-HLOOKUP(X61,Feuil1!$C$1:$BL$10,3,FALSE) -> 40 | AD61: =T61-HLOOKUP(X61,Feuil1!$C$1:$BL$10,4,FALSE) -> 25 | AE61: =T61-HLOOKUP(X61,Feuil1!$C$1:$BL$10,5,FALSE) -> 5 | AF61: =T61-HLOOKUP(X61,Feuil1!$C$1:$BL$10,6,FALSE) -> -15 | AG61: =T61-HLOOKUP(X61,Feuil1!$C$1:$BL$10,7,FALSE) -> -35 | AH61: =T61-HLOOKUP(X61,Feuil1!$C$1:$BL$10,8,FALSE) -> -55 | AI61: =T61-HLOOKUP(X61,Feuil1!$C$1:$BL$10,9,FALSE) -> -75 | AJ61: =T61-HLOOKUP(X61,Feuil1!$C$1:$BL$10,10,FALSE) -> -845 | AQ61: =IF(AJ61>=0,$AJ$4,IF(AI61>=0,$AI$4,IF(AH61>=0,$AH$4,IF(AG61>=0,$AG$4,IF(AF61>=0,$AF$4,IF(AE61>=0,$AE$4,IF(AD61>=0,$AD$4,IF(AC61>=0,$AC$4,$AB$4)))))))) -> IRG +
A62: H | B62: DOM | C62: GUA | D62: 7 | E62: 292762 | F62: GALVANI | G62: Dylan | H62: 1998 | I62: 65.6 | J62: Body Club Domien | K62: F | L62: 60 | M62: -65 | N62: 65 | O62: =IF(H62="","",IF(MAXA(L62:N62)<=0,0,MAXA(L62:N62))) -> 65 | P62: 75 | Q62: 80 | R62: 85 | S62: =IF(H62="","",IF(MAXA(P62:R62)<=0,0,MAXA(P62:R62))) -> 85 | T62: =IF(H62="","",IF(OR(O62=0,S62=0),0,O62+S62)) -> 150 | U62: =T62-I62*2 -> 18.8 | V62: =IF(H62="","",AQ62) -> IRG + | W62: =IF(AJ62>=0,AJ62,IF(AI62>=0,AI62,IF(AH62>=0,AH62,IF(AG62>=0,AG62,IF(AF62>=0,AF62,IF(AE62>=0,AE62,IF(AD62>=0,AD62,IF(AC62>=0,AC62,AB62)))))))) -> 0 | X62: =IF(I62="","",IF(A62="H",IF(OR(H62="SEN",H62<1995),VLOOKUP(I62,Feuil1!$A$11:$F$29,6),IF(AND(H62>1994,H62<1998),VLOOKUP(I62,Feuil1!$A$11:$F$29,5),IF(AND(H62>1997,H62<2000),VLOOKUP(I62,Feuil1!$A$11:$F$29,4),IF(AND(H62>1999,H62<2002),VLOOKUP(I62,Feuil1!$A$11:$F$29,3),VLOOKUP(I62,Feuil1!$A$11:$F$29,2))))),IF(OR(H62="SEN",H62<1995),VLOOKUP(I62,Feuil1!$G$11:$L$25,6),IF(AND(H62>1994,H62<1998),VLOOKUP(I62,Feuil1!$G$11:$L$25,5),IF(AND(H62>1997,H62<2000),VLOOKUP(I62,Feuil1!$G$11:$L$25,4),IF(AND(H62>1999,H62<2002),VLOOKUP(I62,Feuil1!$G$11:$L$25,3),VLOOKUP(I62,Feuil1!$G$11:$L$25,2))))))) -> C2 69 | Y62: 208.6023754 | AB62: =T62-HLOOKUP(X62,Feuil1!$C$1:$BL$10,2,FALSE) -> 55 | AC62: =T62-HLOOKUP(X62,Feuil1!$C$1:$BL$10,3,FALSE) -> 35 | AD62: =T62-HLOOKUP(X62,Feuil1!$C$1:$BL$10,4,FALSE) -> 20 | AE62: =T62-HLOOKUP(X62,Feuil1!$C$1:$BL$10,5,FALSE) -> 0 | AF62: =T62-HLOOKUP(X62,Feuil1!$C$1:$BL$10,6,FALSE) -> -20 | AG62: =T62-HLOOKUP(X62,Feuil1!$C$1:$BL$10,7,FALSE) -> -40 | AH62: =T62-HLOOKUP(X62,Feuil1!$C$1:$BL$10,8,FALSE) -> -60 | AI62: =T62-HLOOKUP(X62,Feuil1!$C$1:$BL$10,9,FALSE) -> -80 | AJ62: =T62-HLOOKUP(X62,Feuil1!$C$1:$BL$10,10,FALSE) -> -850 | AQ62: =IF(AJ62>=0,$AJ$4,IF(AI62>=0,$AI$4,IF(AH62>=0,$AH$4,IF(AG62>=0,$AG$4,IF(AF62>=0,$AF$4,IF(AE62>=0,$AE$4,IF(AD62>=0,$AD$4,IF(AC62>=0,$AC$4,$AB$4)))))))) -> IRG +
A63: H | B63: SEST | C63: CAZ | E63: 295872 | F63: RICHET | G63: Benoit | H63: 1999 | I63: 66.7 | J63: E.S. VILLENEUVE LOUBET | K63: F | L63: -80 | M63: -80 | N63: -80 | O63: 0 | S63: 0 | T63: 0 | U63: -133.4 | V63: DEB | W63: -95 | X63: =IF(I63="","",IF(A63="H",IF(OR(H63="SEN",H63<1995),VLOOKUP(I63,Feuil1!$A$11:$F$29,6),IF(AND(H63>1994,H63<1998),VLOOKUP(I63,Feuil1!$A$11:$F$29,5),IF(AND(H63>1997,H63<2000),VLOOKUP(I63,Feuil1!$A$11:$F$29,4),IF(AND(H63>1999,H63<2002),VLOOKUP(I63,Feuil1!$A$11:$F$29,3),VLOOKUP(I63,Feuil1!$A$11:$F$29,2))))),IF(OR(H63="SEN",H63<1995),VLOOKUP(I63,Feuil1!$G$11:$L$25,6),IF(AND(H63>1994,H63<1998),VLOOKUP(I63,Feuil1!$G$11:$L$25,5),IF(AND(H63>1997,H63<2000),VLOOKUP(I63,Feuil1!$G$11:$L$25,4),IF(AND(H63>1999,H63<2002),VLOOKUP(I63,Feuil1!$G$11:$L$25,3),VLOOKUP(I63,Feuil1!$G$11:$L$25,2))))))) -> C2 69 | Y63: 0 | AB63: =T63-HLOOKUP(X63,Feuil1!$C$1:$BL$10,2,FALSE) -> -95 | AC63: =T63-HLOOKUP(X63,Feuil1!$C$1:$BL$10,3,FALSE) -> -115 | AD63: =T63-HLOOKUP(X63,Feuil1!$C$1:$BL$10,4,FALSE) -> -130 | AE63: =T63-HLOOKUP(X63,Feuil1!$C$1:$BL$10,5,FALSE) -> -150 | AF63: =T63-HLOOKUP(X63,Feuil1!$C$1:$BL$10,6,FALSE) -> -170 | AG63: =T63-HLOOKUP(X63,Feuil1!$C$1:$BL$10,7,FALSE) -> -190 | AH63: =T63-HLOOKUP(X63,Feuil1!$C$1:$BL$10,8,FALSE) -> -210 | AI63: =T63-HLOOKUP(X63,Feuil1!$C$1:$BL$10,9,FALSE) -> -230 | AJ63: =T63-HLOOKUP(X63,Feuil1!$C$1:$BL$10,10,FALSE) -> -1000 | AQ63: DEB
AB64: =T64-HLOOKUP(X64,Feuil1!$C$1:$BL$10,2,FALSE) ->  | AC64: =T64-HLOOKUP(X64,Feuil1!$C$1:$BL$10,3,FALSE) ->  | AD64: =T64-HLOOKUP(X64,Feuil1!$C$1:$BL$10,4,FALSE) ->  | AE64: =T64-HLOOKUP(X64,Feuil1!$C$1:$BL$10,5,FALSE) ->  | AF64: =T64-HLOOKUP(X64,Feuil1!$C$1:$BL$10,6,FALSE) ->  | AG64: =T64-HLOOKUP(X64,Feuil1!$C$1:$BL$10,7,FALSE) ->  | AH64: =T64-HLOOKUP(X64,Feuil1!$C$1:$BL$10,8,FALSE) ->  | AI64: =T64-HLOOKUP(X64,Feuil1!$C$1:$BL$10,9,FALSE) ->  | AJ64: =T64-HLOOKUP(X64,Feuil1!$C$1:$BL$10,10,FALSE) -> 
A65: H | B65: NE | C65: LOR | D65: 1 | E65: 222911 | F65: FLAUS | G65: Dylan | H65: 1998 | I65: 75.6 | J65: A.O.C.Pte-Rosselle | K65: F | L65: 87 | M65: 92 | N65: -97 | O65: =IF(H65="","",IF(MAXA(L65:N65)<=0,0,MAXA(L65:N65))) -> 92 | P65: 110 | Q65: 115 | R65: -120 | S65: =IF(H65="","",IF(MAXA(P65:R65)<=0,0,MAXA(P65:R65))) -> 115 | T65: =IF(H65="","",IF(OR(O65=0,S65=0),0,O65+S65)) -> 207 | U65: 55.8 | V65: =IF(H65="","",AQ65) -> NAT + | W65: =IF(AJ65>=0,AJ65,IF(AI65>=0,AI65,IF(AH65>=0,AH65,IF(AG65>=0,AG65,IF(AF65>=0,AF65,IF(AE65>=0,AE65,IF(AD65>=0,AD65,IF(AC65>=0,AC65,AB65)))))))) -> 7 | X65: =IF(I65="","",IF(A65="H",IF(OR(H65="SEN",H65<1995),VLOOKUP(I65,Feuil1!$A$11:$F$29,6),IF(AND(H65>1994,H65<1998),VLOOKUP(I65,Feuil1!$A$11:$F$29,5),IF(AND(H65>1997,H65<2000),VLOOKUP(I65,Feuil1!$A$11:$F$29,4),IF(AND(H65>1999,H65<2002),VLOOKUP(I65,Feuil1!$A$11:$F$29,3),VLOOKUP(I65,Feuil1!$A$11:$F$29,2))))),IF(OR(H65="SEN",H65<1995),VLOOKUP(I65,Feuil1!$G$11:$L$25,6),IF(AND(H65>1994,H65<1998),VLOOKUP(I65,Feuil1!$G$11:$L$25,5),IF(AND(H65>1997,H65<2000),VLOOKUP(I65,Feuil1!$G$11:$L$25,4),IF(AND(H65>1999,H65<2002),VLOOKUP(I65,Feuil1!$G$11:$L$25,3),VLOOKUP(I65,Feuil1!$G$11:$L$25,2))))))) -> C2 77 | Y65: =IF(I65="","",IF(A65="H",10^(0.794358141*LOG(I65/174.393)^2)*T65,IF(A65="F",10^(0.89726074*LOG(I65/148.026)^2)*T65,""))) -> 263.4185206 | AB65: =T65-HLOOKUP(X65,Feuil1!$C$1:$BL$10,2,FALSE) -> 97 | AC65: =T65-HLOOKUP(X65,Feuil1!$C$1:$BL$10,3,FALSE) -> 77 | AD65: =T65-HLOOKUP(X65,Feuil1!$C$1:$BL$10,4,FALSE) -> 57 | AE65: =T65-HLOOKUP(X65,Feuil1!$C$1:$BL$10,5,FALSE) -> 37 | AF65: =T65-HLOOKUP(X65,Feuil1!$C$1:$BL$10,6,FALSE) -> 22 | AG65: =T65-HLOOKUP(X65,Feuil1!$C$1:$BL$10,7,FALSE) -> 7 | AH65: =T65-HLOOKUP(X65,Feuil1!$C$1:$BL$10,8,FALSE) -> -13 | AI65: =T65-HLOOKUP(X65,Feuil1!$C$1:$BL$10,9,FALSE) -> -43 | AJ65: =T65-HLOOKUP(X65,Feuil1!$C$1:$BL$10,10,FALSE) -> -793 | AQ65: =IF(AJ65>=0,$AJ$4,IF(AI65>=0,$AI$4,IF(AH65>=0,$AH$4,IF(AG65>=0,$AG$4,IF(AF65>=0,$AF$4,IF(AE65>=0,$AE$4,IF(AD65>=0,$AD$4,IF(AC65>=0,$AC$4,$AB$4)))))))) -> NAT +
A66: H | B66: NE | C66: FCO | D66: 2 | E66: 312740 | F66: BULLE | G66: Sébastien | H66: 1998 | I66: 70.9 | J66: LF Besançon | K66: F | L66: 80 | M66: 82 | N66: 85 | O66: 85 | P66: 93 | Q66: 97 | R66: 100 | S66: 100 | T66: 185 | U66: 43.2 | V66: FED + | W66: 0 | X66: =IF(I66="","",IF(A66="H",IF(OR(H66="SEN",H66<1995),VLOOKUP(I66,Feuil1!$A$11:$F$29,6),IF(AND(H66>1994,H66<1998),VLOOKUP(I66,Feuil1!$A$11:$F$29,5),IF(AND(H66>1997,H66<2000),VLOOKUP(I66,Feuil1!$A$11:$F$29,4),IF(AND(H66>1999,H66<2002),VLOOKUP(I66,Feuil1!$A$11:$F$29,3),VLOOKUP(I66,Feuil1!$A$11:$F$29,2))))),IF(OR(H66="SEN",H66<1995),VLOOKUP(I66,Feuil1!$G$11:$L$25,6),IF(AND(H66>1994,H66<1998),VLOOKUP(I66,Feuil1!$G$11:$L$25,5),IF(AND(H66>1997,H66<2000),VLOOKUP(I66,Feuil1!$G$11:$L$25,4),IF(AND(H66>1999,H66<2002),VLOOKUP(I66,Feuil1!$G$11:$L$25,3),VLOOKUP(I66,Feuil1!$G$11:$L$25,2))))))) -> C2 77 | Y66: =IF(I66="","",IF(A66="H",10^(0.794358141*LOG(I66/174.393)^2)*T66,IF(A66="F",10^(0.89726074*LOG(I66/148.026)^2)*T66,""))) -> 244.6477418 | AB66: =T66-HLOOKUP(X66,Feuil1!$C$1:$BL$10,2,FALSE) -> 75 | AC66: =T66-HLOOKUP(X66,Feuil1!$C$1:$BL$10,3,FALSE) -> 55 | AD66: =T66-HLOOKUP(X66,Feuil1!$C$1:$BL$10,4,FALSE) -> 35 | AE66: =T66-HLOOKUP(X66,Feuil1!$C$1:$BL$10,5,FALSE) -> 15 | AF66: =T66-HLOOKUP(X66,Feuil1!$C$1:$BL$10,6,FALSE) -> 0 | AG66: =T66-HLOOKUP(X66,Feuil1!$C$1:$BL$10,7,FALSE) -> -15 | AH66: =T66-HLOOKUP(X66,Feuil1!$C$1:$BL$10,8,FALSE) -> -35 | AI66: =T66-HLOOKUP(X66,Feuil1!$C$1:$BL$10,9,FALSE) -> -65 | AJ66: =T66-HLOOKUP(X66,Feuil1!$C$1:$BL$10,10,FALSE) -> -815 | AQ66: FED +
AB67: =T67-HLOOKUP(X67,Feuil1!$C$1:$BL$10,2,FALSE) ->  | AC67: =T67-HLOOKUP(X67,Feuil1!$C$1:$BL$10,3,FALSE) ->  | AD67: =T67-HLOOKUP(X67,Feuil1!$C$1:$BL$10,4,FALSE) ->  | AE67: =T67-HLOOKUP(X67,Feuil1!$C$1:$BL$10,5,FALSE) ->  | AF67: =T67-HLOOKUP(X67,Feuil1!$C$1:$BL$10,6,FALSE) ->  | AG67: =T67-HLOOKUP(X67,Feuil1!$C$1:$BL$10,7,FALSE) ->  | AH67: =T67-HLOOKUP(X67,Feuil1!$C$1:$BL$10,8,FALSE) ->  | AI67: =T67-HLOOKUP(X67,Feuil1!$C$1:$BL$10,9,FALSE) ->  | AJ67: =T67-HLOOKUP(X67,Feuil1!$C$1:$BL$10,10,FALSE) -> 
F68: JUNIORS | AB68: =T68-HLOOKUP(X68,Feuil1!$C$1:$BL$10,2,FALSE) ->  | AC68: =T68-HLOOKUP(X68,Feuil1!$C$1:$BL$10,3,FALSE) ->  | AD68: =T68-HLOOKUP(X68,Feuil1!$C$1:$BL$10,4,FALSE) ->  | AE68: =T68-HLOOKUP(X68,Feuil1!$C$1:$BL$10,5,FALSE) ->  | AF68: =T68-HLOOKUP(X68,Feuil1!$C$1:$BL$10,6,FALSE) ->  | AG68: =T68-HLOOKUP(X68,Feuil1!$C$1:$BL$10,7,FALSE) ->  | AH68: =T68-HLOOKUP(X68,Feuil1!$C$1:$BL$10,8,FALSE) ->  | AI68: =T68-HLOOKUP(X68,Feuil1!$C$1:$BL$10,9,FALSE) ->  | AJ68: =T68-HLOOKUP(X68,Feuil1!$C$1:$BL$10,10,FALSE) -> 
AB69: =T69-HLOOKUP(X69,Feuil1!$C$1:$BL$10,2,FALSE) ->  | AC69: =T69-HLOOKUP(X69,Feuil1!$C$1:$BL$10,3,FALSE) ->  | AD69: =T69-HLOOKUP(X69,Feuil1!$C$1:$BL$10,4,FALSE) ->  | AE69: =T69-HLOOKUP(X69,Feuil1!$C$1:$BL$10,5,FALSE) ->  | AF69: =T69-HLOOKUP(X69,Feuil1!$C$1:$BL$10,6,FALSE) ->  | AG69: =T69-HLOOKUP(X69,Feuil1!$C$1:$BL$10,7,FALSE) ->  | AH69: =T69-HLOOKUP(X69,Feuil1!$C$1:$BL$10,8,FALSE) ->  | AI69: =T69-HLOOKUP(X69,Feuil1!$C$1:$BL$10,9,FALSE) ->  | AJ69: =T69-HLOOKUP(X69,Feuil1!$C$1:$BL$10,10,FALSE) -> 
A70: H | B70: SO | C70: AQU | D70: 1 | E70: 220892 | F70: MOCAER | G70: Alan | H70: 1996 | I70: 50.6 | J70: St-Médard-en-Jalles | K70: F | L70: 67 | M70: -71 | N70: 71 | O70: =IF(H70="","",IF(MAXA(L70:N70)<=0,0,MAXA(L70:N70))) -> 71 | P70: 90 | Q70: 95 | R70: -99 | S70: =IF(H70="","",IF(MAXA(P70:R70)<=0,0,MAXA(P70:R70))) -> 95 | T70: =IF(H70="","",IF(OR(O70=0,S70=0),0,O70+S70)) -> 166 | U70: =T70-I70*2 -> 64.8 | V70: =IF(H70="","",AQ70) -> FED + | W70: =IF(AJ70>=0,AJ70,IF(AI70>=0,AI70,IF(AH70>=0,AH70,IF(AG70>=0,AG70,IF(AF70>=0,AF70,IF(AE70>=0,AE70,IF(AD70>=0,AD70,IF(AC70>=0,AC70,AB70)))))))) -> 21 | X70: =IF(I70="","",IF(A70="H",IF(OR(H70="SEN",H70<1995),VLOOKUP(I70,Feuil1!$A$11:$F$29,6),IF(AND(H70>1994,H70<1998),VLOOKUP(I70,Feuil1!$A$11:$F$29,5),IF(AND(H70>1997,H70<2000),VLOOKUP(I70,Feuil1!$A$11:$F$29,4),IF(AND(H70>1999,H70<2002),VLOOKUP(I70,Feuil1!$A$11:$F$29,3),VLOOKUP(I70,Feuil1!$A$11:$F$29,2))))),IF(OR(H70="SEN",H70<1995),VLOOKUP(I70,Feuil1!$G$11:$L$25,6),IF(AND(H70>1994,H70<1998),VLOOKUP(I70,Feuil1!$G$11:$L$25,5),IF(AND(H70>1997,H70<2000),VLOOKUP(I70,Feuil1!$G$11:$L$25,4),IF(AND(H70>1999,H70<2002),VLOOKUP(I70,Feuil1!$G$11:$L$25,3),VLOOKUP(I70,Feuil1!$G$11:$L$25,2))))))) -> J56 | Y70: =IF(I70="","",IF(A70="H",10^(0.794358141*LOG(I70/174.393)^2)*T70,IF(A70="F",10^(0.89726074*LOG(I70/148.026)^2)*T70,""))) -> 281.5136162 | AB70: =T70-HLOOKUP(X70,Feuil1!$C$1:$BL$10,2,FALSE) -> 86 | AC70: =T70-HLOOKUP(X70,Feuil1!$C$1:$BL$10,3,FALSE) -> 66 | AD70: =T70-HLOOKUP(X70,Feuil1!$C$1:$BL$10,4,FALSE) -> 51 | AE70: =T70-HLOOKUP(X70,Feuil1!$C$1:$BL$10,5,FALSE) -> 36 | AF70: =T70-HLOOKUP(X70,Feuil1!$C$1:$BL$10,6,FALSE) -> 21 | AG70: =T70-HLOOKUP(X70,Feuil1!$C$1:$BL$10,7,FALSE) -> -4 | AH70: =T70-HLOOKUP(X70,Feuil1!$C$1:$BL$10,8,FALSE) -> -24 | AI70: =T70-HLOOKUP(X70,Feuil1!$C$1:$BL$10,9,FALSE) -> -44 | AJ70: =T70-HLOOKUP(X70,Feuil1!$C$1:$BL$10,10,FALSE) -> -834 | AQ70: =IF(AJ70>=0,$AJ$4,IF(AI70>=0,$AI$4,IF(AH70>=0,$AH$4,IF(AG70>=0,$AG$4,IF(AF70>=0,$AF$4,IF(AE70>=0,$AE$4,IF(AD70>=0,$AD$4,IF(AC70>=0,$AC$4,$AB$4)))))))) -> FED +
A71: H | B71: Nord | C71: NPC | D71: 2 | E71: 223320 | F71: TRANCARD | G71: Tristan | H71: 1996 | I71: 54.35 | J71: OSM Lomme | K71: F | L71: -60 | M71: 62 | N71: 66 | O71: 66 | P71: 83 | Q71: 86 | R71: -88 | S71: 86 | T71: 152 | U71: 43.3 | V71: FED + | W71: 7 | X71: =IF(I71="","",IF(A71="H",IF(OR(H71="SEN",H71<1995),VLOOKUP(I71,Feuil1!$A$11:$F$29,6),IF(AND(H71>1994,H71<1998),VLOOKUP(I71,Feuil1!$A$11:$F$29,5),IF(AND(H71>1997,H71<2000),VLOOKUP(I71,Feuil1!$A$11:$F$29,4),IF(AND(H71>1999,H71<2002),VLOOKUP(I71,Feuil1!$A$11:$F$29,3),VLOOKUP(I71,Feuil1!$A$11:$F$29,2))))),IF(OR(H71="SEN",H71<1995),VLOOKUP(I71,Feuil1!$G$11:$L$25,6),IF(AND(H71>1994,H71<1998),VLOOKUP(I71,Feuil1!$G$11:$L$25,5),IF(AND(H71>1997,H71<2000),VLOOKUP(I71,Feuil1!$G$11:$L$25,4),IF(AND(H71>1999,H71<2002),VLOOKUP(I71,Feuil1!$G$11:$L$25,3),VLOOKUP(I71,Feuil1!$G$11:$L$25,2))))))) -> J56 | Y71: 242.9365375 | AB71: =T71-HLOOKUP(X71,Feuil1!$C$1:$BL$10,2,FALSE) -> 72 | AC71: =T71-HLOOKUP(X71,Feuil1!$C$1:$BL$10,3,FALSE) -> 52 | AD71: =T71-HLOOKUP(X71,Feuil1!$C$1:$BL$10,4,FALSE) -> 37 | AE71: =T71-HLOOKUP(X71,Feuil1!$C$1:$BL$10,5,FALSE) -> 22 | AF71: =T71-HLOOKUP(X71,Feuil1!$C$1:$BL$10,6,FALSE) -> 7 | AG71: =T71-HLOOKUP(X71,Feuil1!$C$1:$BL$10,7,FALSE) -> -18 | AH71: =T71-HLOOKUP(X71,Feuil1!$C$1:$BL$10,8,FALSE) -> -38 | AI71: =T71-HLOOKUP(X71,Feuil1!$C$1:$BL$10,9,FALSE) -> -58 | AJ71: =T71-HLOOKUP(X71,Feuil1!$C$1:$BL$10,10,FALSE) -> -848 | AQ71: FED +
A72: H | B72: NE | C72: CHA | D72: 3 | E72: 214038 | F72: NOËL | G72: Tanguy | H72: 1996 | I72: 52.2 | J72: Langres HM | K72: F | L72: 63 | M72: 66 | N72: 68 | O72: =IF(H72="","",IF(MAXA(L72:N72)<=0,0,MAXA(L72:N72))) -> 68 | P72: 74 | Q72: 77 | R72: -81 | S72: =IF(H72="","",IF(MAXA(P72:R72)<=0,0,MAXA(P72:R72))) -> 77 | T72: =IF(H72="","",IF(OR(O72=0,S72=0),0,O72+S72)) -> 145 | U72: 40.6 | V72: =IF(H72="","",AQ72) -> FED + | W72: =IF(AJ72>=0,AJ72,IF(AI72>=0,AI72,IF(AH72>=0,AH72,IF(AG72>=0,AG72,IF(AF72>=0,AF72,IF(AE72>=0,AE72,IF(AD72>=0,AD72,IF(AC72>=0,AC72,AB72)))))))) -> 0 | X72: =IF(I72="","",IF(A72="H",IF(OR(H72="SEN",H72<1995),VLOOKUP(I72,Feuil1!$A$11:$F$29,6),IF(AND(H72>1994,H72<1998),VLOOKUP(I72,Feuil1!$A$11:$F$29,5),IF(AND(H72>1997,H72<2000),VLOOKUP(I72,Feuil1!$A$11:$F$29,4),IF(AND(H72>1999,H72<2002),VLOOKUP(I72,Feuil1!$A$11:$F$29,3),VLOOKUP(I72,Feuil1!$A$11:$F$29,2))))),IF(OR(H72="SEN",H72<1995),VLOOKUP(I72,Feuil1!$G$11:$L$25,6),IF(AND(H72>1994,H72<1998),VLOOKUP(I72,Feuil1!$G$11:$L$25,5),IF(AND(H72>1997,H72<2000),VLOOKUP(I72,Feuil1!$G$11:$L$25,4),IF(AND(H72>1999,H72<2002),VLOOKUP(I72,Feuil1!$G$11:$L$25,3),VLOOKUP(I72,Feuil1!$G$11:$L$25,2))))))) -> J56 | Y72: 239.5311172 | AB72: =T72-HLOOKUP(X72,Feuil1!$C$1:$BL$10,2,FALSE) -> 65 | AC72: =T72-HLOOKUP(X72,Feuil1!$C$1:$BL$10,3,FALSE) -> 45 | AD72: =T72-HLOOKUP(X72,Feuil1!$C$1:$BL$10,4,FALSE) -> 30 | AE72: =T72-HLOOKUP(X72,Feuil1!$C$1:$BL$10,5,FALSE) -> 15 | AF72: =T72-HLOOKUP(X72,Feuil1!$C$1:$BL$10,6,FALSE) -> 0 | AG72: =T72-HLOOKUP(X72,Feuil1!$C$1:$BL$10,7,FALSE) -> -25 | AH72: =T72-HLOOKUP(X72,Feuil1!$C$1:$BL$10,8,FALSE) -> -45 | AI72: =T72-HLOOKUP(X72,Feuil1!$C$1:$BL$10,9,FALSE) -> -65 | AJ72: =T72-HLOOKUP(X72,Feuil1!$C$1:$BL$10,10,FALSE) -> -855 | AQ72: =IF(AJ72>=0,$AJ$4,IF(AI72>=0,$AI$4,IF(AH72>=0,$AH$4,IF(AG72>=0,$AG$4,IF(AF72>=0,$AF$4,IF(AE72>=0,$AE$4,IF(AD72>=0,$AD$4,IF(AC72>=0,$AC$4,$AB$4)))))))) -> FED +
